Workbook

Sheet Home

Sheet Daily
B2: مبيعات يوم | G2: الوردية | J2: اخر وردية | L2: 2022-08-18 | M2: وردية أولى
A4: بنزين 91 | F4: 95 | K4: Diesel
A5: مسدس | B5: القيمة الحالية | C5: القيمة السابقة | D5: الكمية المباعة | F5: مسدس | G5: القيمة الحالية | H5: القيمة السابقة | I5: الكمية المباعة | K5: مسدس | L5: القيمة الحالية | M5: القيمة السابقة | N5: الكمية المباعة
A6: 1 | C6: 714000 | D6: =IF(AND(B6<>"",C6<=B6),B6-C6,0) -> 0 | F6: 1 | I6: =IF(AND(G6<>"",H6<=G6),G6-H6,0) -> 0 | K6: 1 | M6: 1522000 | N6: =IF(AND(L6<>"",M6<=L6),L6-M6,0) -> 0
A7: 2 | C7: 962000 | D7: =IF(AND(B7<>"",C7<=B7),B7-C7,0) -> 0 | F7: 2 | I7: =IF(AND(G7<>"",H7<=G7),G7-H7,0) -> 0 | K7: 2 | M7: 210000 | N7: =IF(AND(L7<>"",M7<=L7),L7-M7,0) -> 0
A8: 3 | C8: 271000 | D8: 0 | F8: 3 | I8: 0 | K8: 3 | N8: 0
A9: 4 | C9: 825000 | D9: 0 | F9: 4 | I9: 0 | K9: 4 | N9: 0
A10: 5 | D10: 0 | F10: 5 | I10: 0 | K10: 5 | N10: 0
A11: 6 | D11: 0 | F11: 6 | I11: 0 | K11: 6 | N11: 0
A12: 7 | D12: 0 | F12: 7 | I12: 0 | K12: 7 | N12: 0
A13: 8 | D13: 0 | F13: 8 | I13: 0 | K13: 8 | N13: 0
A14: 9 | D14: 0 | F14: 9 | I14: 0 | K14: 9 | N14: 0
A15: 10 | D15: 0 | F15: 10 | I15: 0 | K15: 10 | N15: 0
B17: ( المعايرة ) | G17: ( المعايرة ) | L17: ( المعايرة )
B19: صافي المبيعات | C19: =SUM(D6:D15)-C17 -> 0 | G19: صافي المبيعات | H19: =SUM(I6:I15)-H17 -> 0 | L19: صافي المبيعات | M19: =SUM(N6:N15)-M17 -> 0
B21: سعر البيع | C21: =Table1520[بنزين 91] -> 2.18 | G21: سعر البيع | H21: =Table1520[بنزين 95] -> 2.33 | L21: سعر البيع | M21: =Table1520[Diesel] -> 0.63
B23: اجمالي الايراد | C23: =C19*C21 -> 0 | G23: اجمالي الايراد | H23: =H19*H21 -> 0 | L23: اجمالي الايراد | M23: =M19*M21 -> 0
C25: اجمالي المبلغ المطلوب | E25: =$C$23+$M$23+$H$23 -> 0 | H25: =NumberToText(E25,"ريال","هلله") -> ÕÝÑ
B27: بيان المستلم | C27: المبلغ | G27: مدفوعات للمورد | L27: إضافة مشتريات | P27: ,
B28: نقدية | G28: نقدية | L28: الصنف | M28: الكمية
B29: عملاء | G29: إيداع | L29: 91
B30: نقاط بيع | G30: رقم السند | L30: 95
B31: متبقي (عجز) | C31: =C32-E25 -> 0 | G31: اسم المورد | L31: Dis
B32: المجموع | C32: =SUM(C28:C30) -> 0 | G32: بيــــــــان | L32: اجمالي الكمية | M32: =SUM(M29:M31) -> 0
B33: =IF(E25=C32,"المجاميع متوافقة","المجاميع غير متوافقة") -> المجاميع متوافقة | L33: إجمالي القيمة | M33: =M29*Table15[بنزين 91]+M30*Table15[بنزين 95]+M31*Table15[Diesel] -> 0
L34: اسم المورد

Sheet 91
B3: بنزين 91
B4: التاريخ | C4: الوردية | D4: 1 | E4: 2 | F4: 3 | G4: 4 | H4: 5 | I4: 6 | J4: 7 | K4: 8 | L4: 9 | M4: 10 | N4: المعايرة
D5: 756577 | E5: 540777 | F5: 931814 | G5: 449136
B6: 2022-01-01 | C6: وردية أولى | D6: 758357 | E6: 541708 | F6: 932433 | G6: 449830
B7: 2022-01-01 | C7: وردية ثانية | D7: 760464 | E7: 542401 | F7: 932849 | G7: 450501
B8: 2022-01-02 | C8: وردية أولى | D8: 762486 | E8: 543762 | F8: 933511 | G8: 451209
B9: 2022-01-02 | C9: وردية ثانية | D9: 764278 | E9: 544485 | F9: 934279 | G9: 451682
B10: 2022-01-03 | C10: وردية أولى | D10: 766372 | E10: 545512 | F10: 934897 | G10: 452361
B11: 2022-01-03 | C11: وردية ثانية | D11: 769274 | E11: 546546 | F11: 935657 | G11: 453364
B12: 2022-01-04 | C12: وردية أولى | D12: 771093 | E12: 547559 | F12: 936288 | G12: 454320
B13: 2022-01-04 | C13: وردية ثانية | D13: 773214 | E13: 548991 | F13: 937201 | G13: 455062
B14: 2022-01-05 | C14: وردية أولى | D14: 775193 | E14: 550023 | F14: 937805 | G14: 456012
B15: 2022-01-05 | C15: وردية ثانية | D15: 777470 | E15: 551234 | F15: 938583 | G15: 457101
B16: 2022-01-06 | C16: وردية أولى | D16: 779372 | E16: 552352 | F16: 939400 | G16: 457789
B17: 2022-01-06 | C17: وردية ثانية | D17: 782132 | E17: 553145 | F17: 940326 | G17: 458812
B18: 2022-01-07 | C18: وردية أولى | D18: 783386 | E18: 553754 | F18: 940836 | G18: 459283
B19: 2022-01-07 | C19: وردية ثانية | D19: 785989 | E19: 554676 | F19: 941589 | G19: 460055
B20: 2022-01-08 | C20: وردية أولى | D20: 788095 | E20: 555563 | F20: 942311 | G20: 460699
B21: 2022-01-08 | C21: وردية ثانية | D21: 790054 | E21: 556667 | F21: 942988 | G21: 461399
B22: 2022-01-09 | C22: وردية أولى | D22: 791750 | E22: 557560 | F22: 943720 | G22: 461750
B23: 2022-01-09 | C23: وردية ثانية | D23: 794261 | E23: 558311 | F23: 944806 | G23: 462534
B24: 2022-01-10 | C24: وردية أولى | D24: 795912 | E24: 559130 | F24: 945435 | G24: 463093
B25: 2022-01-10 | C25: وردية ثانية | D25: 798183 | E25: 560080 | F25: 946126 | G25: 463800
B26: 2022-01-11 | C26: وردية أولى | D26: 800047 | E26: 560813 | F26: 946904 | G26: 464293
B27: 2022-01-11 | C27: وردية ثانية | D27: 802321 | E27: 562054 | F27: 947557 | G27: 465028
B28: 2022-01-12 | C28: وردية أولى | D28: 804778 | E28: 563065 | F28: 948335 | G28: 465581
B29: 2022-01-12 | C29: وردية ثانية | D29: 807303 | E29: 563748 | F29: 949230 | G29: 466228
B30: 2022-01-13 | C30: وردية أولى | D30: 809100 | E30: 565051 | F30: 950019 | G30: 466824
B31: 2022-01-13 | C31: وردية ثانية | D31: 811939 | E31: 565751 | F31: 951164 | G31: 467572
B32: 2022-01-14 | C32: وردية أولى | D32: 812842 | E32: 566110 | F32: 951418 | G32: 467863
B33: 2022-01-14 | C33: وردية ثانية | D33: 815056 | E33: 566483 | F33: 951864 | G33: 468451
B34: 2022-01-15 | C34: وردية أولى | D34: 816579 | E34: 567254 | F34: 952615 | G34: 468988
B35: 2022-01-15 | C35: وردية ثانية | D35: 818986 | E35: 568128 | F35: 953340 | G35: 469708
B36: 2022-01-16 | C36: وردية أولى | D36: 820681 | E36: 569157 | F36: 953961 | G36: 470524
B37: 2022-11-16 | C37: وردية ثانية | D37: 823301 | E37: 570270 | F37: 954650 | G37: 471339
B38: 2022-01-17 | C38: وردية أولى | D38: 825455 | E38: 571298 | F38: 955439 | G38: 472124
B39: 2022-01-17 | C39: وردية ثانية | D39: 828001 | E39: 572133 | F39: 956119 | G39: 472857
B40: 2022-01-18 | C40: وردية أولى | D40: 830223 | E40: 572857 | F40: 957415 | G40: 474030
B41: 2022-01-18 | C41: وردية ثانية | D41: 832316 | E41: 573836 | F41: 958318 | G41: 474889
B42: 2022-01-19 | C42: وردية أولى | D42: 834149 | E42: 574574 | F42: 959219 | G42: 475654
B43: 2022-01-19 | C43: وردية ثانية | D43: 836524 | E43: 575104 | F43: 960083 | G43: 476343
B44: 2022-01-20 | C44: وردية أولى | D44: 838558 | E44: 576243 | F44: 960886 | G44: 477239
B45: 2022-01-20 | C45: وردية ثانية | D45: 840922 | E45: 577360 | F45: 961972 | G45: 478295
B46: 2022-01-21 | C46: وردية أولى | D46: 841828 | E46: 577830 | F46: 962191 | G46: 478870
B47: 2022-01-21 | C47: وردية ثانية | D47: 844111 | E47: 578583 | F47: 962981 | G47: 479538
B48: 2022-01-22 | C48: وردية أولى | D48: 846352 | E48: 579650 | F48: 963632 | G48: 480393
B49: 2022-01-22 | C49: وردية ثانية | D49: 848472 | E49: 580750 | F49: 964815 | G49: 481188
B50: 2022-01-23 | C50: وردية أولى | D50: 850879 | E50: 581677 | F50: 965895 | G50: 482138
B51: 2022-01-23 | C51: وردية ثانية | D51: 853858 | E51: 582292 | F51: 967181 | G51: 483066
B52: 2022-01-24 | C52: وردية أولى | D52: 855882 | E52: 583435 | F52: 967970 | G52: 483899
B53: 2022-01-24 | C53: وردية ثانية | D53: 857928 | E53: 584400 | F53: 968968 | G53: 484583
B54: 2022-01-25 | C54: وردية أولى | D54: 859745 | E54: 585373 | F54: 969808 | G54: 485210
B55: 2022-01-25 | C55: وردية ثانية | D55: 862369 | E55: 586191 | F55: 970403 | G55: 485782
B56: 2022-01-26 | C56: وردية أولى | D56: 864272 | E56: 586786 | F56: 970777 | G56: 486464
B57: 2022-01-26 | C57: وردية ثانية | D57: 866370 | E57: 588009 | F57: 971674 | G57: 487057
B58: 2022-01-27 | C58: وردية أولى | D58: 868580 | E58: 589382 | F58: 972480 | G58: 488291
B59: 2022-01-27 | C59: وردية ثانية | D59: 871005 | E59: 590458 | F59: 973452 | G59: 489326
B60: 2022-01-28 | C60: وردية أولى | D60: 872343 | E60: 591079 | F60: 974065 | G60: 489836
B61: 2022-01-28 | C61: وردية ثانية | D61: 873792 | E61: 591757 | F61: 974564 | G61: 490105
B62: 2022-01-29 | C62: وردية أولى | D62: 875736 | E62: 592502 | F62: 975099 | G62: 490878
B63: 2022-01-29 | C63: وردية ثانية | D63: 878333 | E63: 593130 | F63: 975810 | G63: 491858
B64: 2022-01-30 | C64: وردية أولى | D64: 880409 | E64: 594779 | F64: 976566 | G64: 492809
B65: 2022-01-30 | C65: وردية ثانية | D65: 882420 | E65: 595236 | F65: 977130 | G65: 493393
B66: 2022-01-31 | C66: وردية أولى | D66: 885041 | E66: 596787 | F66: 978024 | G66: 494532
B67: 2022-01-31 | C67: وردية ثانية | D67: 887420 | E67: 597589 | F67: 978927 | G67: 495167
B68: 2022-02-01 | C68: وردية أولى | D68: 889632 | E68: 598386 | F68: 979584 | G68: 495477
B69: 2022-02-01 | C69: وردية ثانية | D69: 891554 | E69: 599566 | F69: 980221 | G69: 496562
B70: 2022-02-02 | C70: وردية أولى | D70: 893906 | E70: 600205 | F70: 981363 | G70: 496768
B71: 2022-02-02 | C71: وردية ثانية | D71: 895894 | E71: 601396 | F71: 982130 | G71: 497622
B72: 2022-02-03 | C72: وردية أولى | D72: 898071 | E72: 602539 | F72: 983140 | G72: 498103
B73: 2022-02-03 | C73: وردية ثانية | D73: 900309 | E73: 603691 | F73: 983873 | G73: 498912
B74: 2022-02-04 | C74: وردية أولى | D74: 901430 | E74: 603829 | F74: 984338 | G74: 499284
B75: 2022-02-04 | C75: وردية ثانية | D75: 903413 | E75: 604425 | F75: 984929 | G75: 500036
B76: 2022-02-05 | C76: وردية أولى | D76: 905542 | E76: 604590 | F76: 985882 | G76: 500510
B77: 2022-02-05 | C77: وردية ثانية | D77: 907461 | E77: 605871 | F77: 986765 | G77: 501380
B78: 2022-02-06 | C78: وردية أولى | D78: 909664 | E78: 606492 | F78: 987785 | G78: 501817
B79: 2022-02-06 | C79: وردية ثانية | D79: 911547 | E79: 607600 | F79: 988500 | G79: 502860
B80: 2022-02-07 | C80: وردية أولى | D80: 914468 | E80: 608592 | F80: 989411 | G80: 503559
B81: 2022-02-07 | C81: وردية ثانية | D81: 916811 | E81: 609411 | F81: 990191 | G81: 504592
B82: 2022-02-08 | C82: وردية أولى | D82: 919648 | E82: 609740 | F82: 990940 | G82: 505052
B83: 2022-02-08 | C83: وردية ثانية | D83: 921311 | E83: 610955 | F83: 991772 | G83: 505906
B84: 2022-02-09 | C84: وردية أولى | D84: 923979 | E84: 611898 | F84: 992774 | G84: 506239
B85: 2022-02-09 | C85: وردية ثانية | D85: 926035 | E85: 612831 | F85: 993666 | G85: 507251
B86: 2022-02-10 | C86: وردية أولى | D86: 928868 | E86: 613235 | F86: 994750 | G86: 507754
B87: 2022-02-10 | C87: وردية ثانية | D87: 931125 | E87: 614802 | F87: 995877 | G87: 509024
B88: 2022-02-11 | C88: وردية أولى | D88: 932529 | E88: 615218 | F88: 996345 | G88: 509233
B89: 2022-02-11 | C89: وردية ثانية | D89: 934487 | E89: 615714 | F89: 997099 | G89: 509996
B90: 2022-02-12 | C90: وردية أولى | D90: 937018 | E90: 616241 | F90: 997827 | G90: 510685
B91: 2022-02-12 | C91: وردية أولى | D91: 938930 | E91: 617393 | F91: 998584 | G91: 511662
B92: 2022-02-13 | C92: وردية أولى | D92: 941630 | E92: 618008 | F92: 999843 | G92: 512081
B93: 2022-02-13 | C93: وردية ثانية | D93: 943483 | E93: 618980 | F93: 364 | G93: 513311
B94: 2022-02-14 | C94: وردية أولى | D94: 946591 | E94: 619451 | F94: 1117 | G94: 513789
B95: 2022-02-14 | C95: وردية ثانية | D95: 948649 | E95: 620557 | F95: 1523 | G95: 514845
B96: 2022-02-15 | C96: وردية أولى | D96: 951005 | E96: 621164 | F96: 2281 | G96: 515288
B97: 2022-02-15 | C97: وردية ثانية | D97: 953058 | E97: 622086 | F97: 2885 | G97: 516302
B98: 2022-02-16 | C98: وردية أولى | D98: 955206 | E98: 622913 | F98: 3531 | G98: 516952
B99: 2022-02-16 | C99: وردية ثانية | D99: 956520 | E99: 624258 | F99: 4039 | G99: 517864
B100: 2022-02-17 | C100: وردية أولى | D100: 958677 | E100: 625307 | F100: 4501 | G100: 518641
B101: 2022-02-17 | C101: وردية ثانية | D101: 960754 | E101: 626420 | F101: 5116 | G101: 519659
B102: 2022-02-18 | C102: وردية أولى | D102: 961684 | E102: 626966 | F102: 5614 | G102: 520137
B103: 2022-02-18 | C103: وردية ثانية | D103: 963615 | E103: 628122 | F103: 6228 | G103: 520639
B104: 2022-02-19 | C104: وردية أولى | D104: 965127 | E104: 628401 | F104: 6547 | G104: 521269
B105: 2022-02-19 | C105: وردية ثانية | D105: 967011 | E105: 629446 | F105: 7263 | G105: 522104
B106: 2022-02-20 | C106: وردية أولى | D106: 969132 | E106: 629915 | F106: 8153 | G106: 522736
B107: 2022-02-20 | C107: وردية ثانية | D107: 971456 | E107: 630875 | F107: 9181 | G107: 523187
B108: 2022-02-21 | C108: وردية أولى | D108: 973462 | E108: 631992 | F108: 9926 | G108: 524140
B109: 2022-02-21 | C109: وردية ثانية | D109: 975737 | E109: 633217 | F109: 10760 | G109: 524872
B110: 2022-02-22 | C110: وردية أولى | D110: 978111 | E110: 633570 | F110: 11259 | G110: 526224
B111: 2022-02-22 | C111: وردية ثانية | D111: 980959 | E111: 634177 | F111: 11935 | G111: 526767
B112: 2022-02-23 | C112: وردية أولى | D112: 982855 | E112: 635013 | F112: 12690 | G112: 527611
B113: 2022-02-23 | C113: وردية ثانية | D113: 985076 | E113: 636236 | F113: 13737 | G113: 528193
B114: 2022-02-24 | C114: وردية أولى | D114: 986892 | E114: 637107 | F114: 14357 | G114: 529273
B115: 2022-02-24 | C115: وردية ثانية | D115: 989348 | E115: 638184 | F115: 15030 | G115: 530101
B116: 2022-02-25 | C116: وردية أولى | D116: 990325 | E116: 638775 | F116: 15302 | G116: 530578
B117: 2022-02-25 | C117: وردية ثانية | D117: 992713 | E117: 639509 | F117: 15302 | G117: 531708
B118: 2022-02-26 | C118: وردية أولى | D118: 995125 | E118: 639785 | F118: 15481 | G118: 533211
B119: 2022-02-26 | C119: وردية ثانية | D119: 997711 | E119: 641216 | F119: 15520 | G119: 534332
B120: 2022-02-27 | C120: وردية أولى | D120: 999594 | E120: 643101 | F120: 16166 | G120: 535669
B121: 2022-02-27 | C121: وردية ثانية | D121: 2263 | E121: 644042 | F121: 16166 | G121: 536635
B122: 2022-02-28 | C122: وردية أولى | D122: 4016 | E122: 645232 | F122: 16596 | G122: 537678
B123: 2022-02-28 | C123: وردية ثانية | D123: 6466 | E123: 646237 | F123: 16596 | G123: 539045
B124: 2022-03-01 | C124: وردية أولى | D124: 9021 | E124: 647118 | F124: 16820 | G124: 540258
B125: 2022-03-01 | C125: وردية ثانية | D125: 11179 | E125: 648498 | F125: 17252 | G125: 541382
B126: 2022-03-02 | C126: وردية أولى | D126: 12868 | E126: 649880 | F126: 17934 | G126: 541986
B127: 2022-03-02 | C127: وردية ثانية | D127: 14751 | E127: 650877 | F127: 19089 | G127: 542833
B128: 2022-03-03 | C128: وردية أولى | D128: 17410 | E128: 652074 | F128: 19995 | G128: 543458
B129: 2022-03-03 | C129: وردية ثانية | D129: 19461 | E129: 653041 | F129: 20498 | G129: 544723
B130: 2022-03-04 | C130: وردية أولى | D130: 20564 | E130: 653559 | F130: 20910 | G130: 544976
B131: 2022-03-04 | C131: وردية ثانية | D131: 22696 | E131: 654824 | F131: 21580 | G131: 545774
B132: 2022-03-05 | C132: وردية أولى | D132: 25262 | E132: 655673 | F132: 21966 | G132: 546241
B133: 2022-03-05 | C133: وردية ثانية | D133: 27393 | E133: 656789 | F133: 22757 | G133: 547416
B134: 2022-03-06 | C134: وردية أولى | D134: 29883 | E134: 657972 | F134: 23511 | G134: 548016
B135: 2022-03-06 | C135: وردية ثانية | D135: 32360 | E135: 658688 | F135: 24060 | G135: 548987
B136: 2022-03-07 | C136: وردية أولى | D136: 34296 | E136: 659431 | F136: 24913 | G136: 549285
B137: 2022-03-07 | C137: وردية ثانية | D137: 36391 | E137: 660690 | F137: 25821 | G137: 550190
B138: 2022-03-08 | C138: وردية أولى | D138: 38618 | E138: 661477 | F138: 26767 | G138: 550712
B139: 2022-03-08 | C139: وردية ثانية | D139: 40801 | E139: 662815 | F139: 27643 | G139: 551526
B140: 2022-03-09 | C140: وردية أولى | D140: 43262 | E140: 663734 | F140: 28679 | G140: 551951
B141: 2022-03-09 | C141: وردية ثانية | D141: 45322 | E141: 665042 | F141: 29501 | G141: 552762
B142: 2022-03-10 | C142: وردية أولى | D142: 47838 | E142: 665728 | F142: 30213 | G142: 553343
B143: 2022-03-10 | C143: وردية ثانية | D143: 49941 | E143: 667269 | F143: 30841 | G143: 554597
B144: 2022-03-11 | C144: وردية أولى | D144: 51279 | E144: 667764 | F144: 31281 | G144: 554945
B145: 2022-03-11 | C145: وردية ثانية | D145: 53282 | E145: 669410 | F145: 32506 | G145: 555949
B146: 2022-03-12 | C146: وردية أولى | D146: 55267 | E146: 670199 | F146: 33216 | G146: 556327
B147: 2022-03-12 | C147: وردية ثانية | D147: 57115 | E147: 671431 | F147: 33972 | G147: 557126
B148: 2022-03-13 | C148: وردية أولى | D148: 59588 | E148: 671843 | F148: 34875 | G148: 557664
B149: 2022-03-13 | C149: وردية ثانية | D149: 61678 | E149: 672947 | F149: 35569 | G149: 558892
B150: 2022-03-14 | C150: وردية أولى | D150: 63950 | E150: 673882 | F150: 36503 | G150: 559717
B151: 2022-03-14 | C151: وردية ثانية | D151: 65650 | E151: 675161 | F151: 37346 | G151: 560574
B152: 2022-03-15 | C152: وردية أولى | D152: 67968 | E152: 676138 | F152: 38291 | G152: 561471
B153: 2022-03-15 | C153: وردية ثانية | D153: 70290 | E153: 677172 | F153: 39263 | G153: 562143
B154: 2022-03-16 | C154: وردية أولى | D154: 72392 | E154: 678550 | F154: 40182 | G154: 563153
B155: 2022-03-16 | C155: وردية ثانية | D155: 74484 | E155: 679751 | F155: 40726 | G155: 563868
B156: 2022-03-17 | C156: وردية أولى | D156: 76507 | E156: 681158 | F156: 41444 | G156: 564718
B157: 2022-03-17 | C157: وردية ثانية | D157: 78691 | E157: 682253 | F157: 42431 | G157: 565529
B158: 2022-03-18 | C158: وردية أولى | D158: 79989 | E158: 682986 | F158: 42875 | G158: 565814
B159: 2022-03-18 | C159: وردية ثانية | D159: 82441 | E159: 683731 | F159: 43622 | G159: 566757
B160: 2022-03-19 | C160: وردية أولى | D160: 84310 | E160: 684982 | F160: 44260 | G160: 567508
B161: 2022-03-19 | C161: وردية ثانية | D161: 86823 | E161: 685864 | F161: 45005 | G161: 568447
B162: 2022-03-20 | C162: وردية أولى | D162: 89091 | E162: 687379 | F162: 45798 | G162: 569134
B163: 2022-03-20 | C163: وردية ثانية | D163: 91414 | E163: 688881 | F163: 46001 | G163: 570484
B164: 2022-03-21 | C164: وردية أولى | D164: 92853 | E164: 690041 | F164: 46002 | G164: 571494
B165: 2022-03-21 | C165: وردية ثانية | D165: 95006 | E165: 691555 | F165: 46002 | G165: 572438
B166: 2022-03-22 | C166: وردية أولى | D166: 97155 | E166: 693280 | F166: 46002 | G166: 574201
B167: 2022-03-22 | C167: وردية ثانية | D167: 99306 | E167: 694102 | F167: 46002 | G167: 575518
B168: 2022-03-23 | C168: وردية أولى | D168: 101545 | E168: 695448 | F168: 46493 | G168: 576628
B169: 2022-03-23 | C169: وردية ثانية | D169: 103783 | E169: 696436 | F169: 47464 | G169: 577393
B170: 2022-03-24 | C170: وردية أولى | D170: 106165 | E170: 697721 | F170: 48149 | G170: 578318
B171: 2022-03-24 | C171: وردية ثانية | D171: 108489 | E171: 698809 | F171: 49078 | G171: 579269
B172: 2022-03-25 | C172: وردية أولى | D172: 109362 | E172: 699318 | F172: 49585 | G172: 579711
B173: 2022-03-25 | C173: وردية ثانية | D173: 111768 | E173: 700607 | F173: 50376 | G173: 580697
B174: 2022-03-26 | C174: وردية أولى | D174: 113333 | E174: 701929 | F174: 50928 | G174: 581426
B175: 2022-03-26 | C175: وردية ثانية | D175: 115709 | E175: 703129 | F175: 52227 | G175: 582315
B176: 2022-03-27 | C176: وردية أولى | D176: 118123 | E176: 704963 | F176: 53190 | G176: 583163
B177: 2022-03-27 | C177: وردية ثانية | D177: 120689 | E177: 706126 | F177: 53927 | G177: 584212
B178: 2022-03-28 | C178: وردية أولى | D178: 122834 | E178: 707525 | F178: 54688 | G178: 584801
B179: 2022-03-28 | C179: وردية ثانية | D179: 125013 | E179: 708593 | F179: 55642 | G179: 585928
B180: 2022-03-29 | C180: وردية أولى | D180: 127321 | E180: 710134 | F180: 56686 | G180: 586738
B181: 2022-03-29 | C181: وردية ثانية | D181: 129329 | E181: 711775 | F181: 57739 | G181: 587895
B182: 2022-03-30 | C182: وردية أولى | D182: 131460 | E182: 712876 | F182: 58475 | G182: 588566
B183: 2022-03-30 | C183: وردية ثانية | D183: 133519 | E183: 713945 | F183: 59505 | G183: 589336
B184: 2022-03-31 | C184: وردية أولى | D184: 135957 | E184: 715490 | F184: 60391 | G184: 590222
B185: 2022-03-31 | C185: وردية ثانية | D185: 137792 | E185: 716544 | F185: 61470 | G185: 591156
B186: 2022-04-01 | C186: وردية أولى | D186: 139351 | E186: 717191 | F186: 62049 | G186: 591690
B187: 2022-04-01 | C187: وردية ثانية | D187: 141507 | E187: 718889 | F187: 63062 | G187: 592792
B188: 2022-04-02 | C188: وردية أولى | D188: 143231 | E188: 719835 | F188: 63910 | G188: 593178
B189: 2022-04-02 | C189: وردية ثانية | D189: 145394 | E189: 721013 | F189: 64652 | G189: 593991
B190: 2022-04-03 | C190: وردية أولى | D190: 147937 | E190: 721857 | F190: 65583 | G190: 594891
B191: 2022-04-03 | C191: وردية ثانية | D191: 149836 | E191: 722935 | F191: 66483 | G191: 595712
B192: 2022-04-04 | C192: وردية أولى | D192: 151824 | E192: 724075 | F192: 67171 | G192: 596276
B193: 2022-04-04 | C193: وردية ثانية | D193: 153405 | E193: 725327 | F193: 67982 | G193: 597027
B194: 2022-04-05 | C194: وردية أولى | D194: 155343 | E194: 726246 | F194: 68938 | G194: 597907
B195: 2022-04-05 | C195: وردية ثانية | D195: 157483 | E195: 727592 | F195: 69869 | G195: 598617
B196: 2022-04-06 | C196: وردية أولى | D196: 159181 | E196: 728616 | F196: 70567 | G196: 599165
B197: 2022-04-06 | C197: وردية ثانية | D197: 161443 | E197: 730137 | F197: 71420 | G197: 600136
B198: 2022-04-07 | C198: وردية أولى | D198: 163660 | E198: 731224 | F198: 72292 | G198: 600711
B199: 2022-04-07 | C199: وردية ثانية | D199: 163660 | E199: 734042 | F199: 73636 | G199: 601815
B200: 2022-04-08 | C200: وردية أولى | D200: 163660 | E200: 736025 | F200: 74517 | G200: 602441
B201: 2022-04-08 | C201: وردية ثانية | D201: 165492 | E201: 737331 | F201: 74518 | G201: 603444
B202: 2022-04-09 | C202: وردية أولى | D202: 167260 | E202: 738006 | F202: 74518 | G202: 604563
... 256 more rows

Sheet 95
B3: 95
B4: التاريخ | C4: الوردية | D4: 1 | E4: 2 | F4: 3 | G4: 4 | H4: 5 | I4: 6 | J4: 7 | K4: 8 | L4: 9 | M4: 10 | N4: المعايرات
B6: 2022-08-07 | C6: وردية أولى
B7: 2022-08-08 | C7: وردية ثانية
B8: 2022-08-09 | C8: وردية أولى
B9: 2022-08-13 | C9: وردية ثانية
B10: 2022-08-14 | C10: وردية أولى
B11: 2022-08-14 | C11: وردية ثانية
B12: 2022-08-15 | C12: وردية أولى
B13: 2022-08-15 | C13: وردية ثانية
B14: 2022-08-16 | C14: وردية أولى
B15: 2022-08-17 | C15: وردية ثانية
B16: 2022-08-18 | C16: وردية أولى

Sheet Dis
B3: ديزل
B4: التاريخ | C4: الوردية | D4: 1 | E4: 2 | F4: 3 | G4: 4 | H4: 5 | I4: 6 | J4: 7 | K4: 8 | L4: 9 | M4: 10 | N4: المعايرة
D5: 601059 | E5: 348132
B6: 2022-01-01 | C6: وردية أولى | D6: 603893 | E6: 352538
B7: 2022-01-01 | C7: وردية ثانية | D7: 605402 | E7: 354036
B8: 2022-01-02 | C8: وردية أولى | D8: 607787 | E8: 355611
B9: 2022-01-02 | C9: وردية ثانية | D9: 609034 | E9: 356843
B10: 2022-01-03 | C10: وردية أولى | D10: 612106 | E10: 361050
B11: 2022-01-03 | C11: وردية ثانية | D11: 613481 | E11: 362043
B12: 2022-01-04 | C12: وردية أولى | D12: 615227 | E12: 363354
B13: 2022-01-04 | C13: وردية ثانية | D13: 616777 | E13: 365000
B14: 2022-01-05 | C14: وردية أولى | D14: 619683 | E14: 369782
B15: 2022-01-05 | C15: وردية ثانية | D15: 620877 | E15: 371030
B16: 2022-01-06 | C16: وردية أولى | D16: 623015 | E16: 372107
B17: 2022-01-06 | C17: وردية ثانية | D17: 624571 | E17: 373012
B18: 2022-01-07 | C18: وردية أولى | D18: 625291 | E18: 373188
B19: 2022-01-07 | C19: وردية ثانية | D19: 626532 | E19: 374128
B20: 2022-01-08 | C20: وردية أولى | D20: 629672 | E20: 377882
B21: 2022-01-08 | C21: وردية ثانية | D21: 631384 | E21: 379153
B22: 2022-01-09 | C22: وردية أولى | D22: 633299 | E22: 381291
B23: 2022-01-09 | C23: وردية ثانية | D23: 634774 | E23: 382434
B24: 2022-01-10 | C24: وردية أولى | D24: 637594 | E24: 386840
B25: 2022-01-10 | C25: وردية ثانية | D25: 639012 | E25: 387980
B26: 2022-01-11 | C26: وردية أولى | D26: 640435 | E26: 388722
B27: 2022-01-11 | C27: وردية ثانية | D27: 642453 | E27: 390224
B28: 2022-01-12 | C28: وردية أولى | D28: 646416 | E28: 393922
B29: 2022-01-12 | C29: وردية ثانية | D29: 647836 | E29: 395014
B30: 2022-01-13 | C30: وردية أولى | D30: 649275 | E30: 397443
B31: 2022-01-13 | C31: وردية ثانية | D31: 650886 | E31: 398368
B32: 2022-01-14 | C32: وردية أولى | D32: 651265 | E32: 398654
B33: 2022-01-14 | C33: وردية ثانية | D33: 652229 | E33: 399812
B34: 2022-01-15 | C34: وردية أولى | D34: 653228 | E34: 400902
B35: 2022-01-15 | C35: وردية ثانية | D35: 656206 | E35: 405416
B36: 2022-01-16 | C36: وردية أولى | D36: 658244 | E36: 407589
B37: 2022-11-16 | C37: وردية ثانية | D37: 659954 | E37: 408550
B38: 2022-01-17 | C38: وردية أولى | D38: 662939 | E38: 411486
B39: 2022-01-17 | C39: وردية ثانية | D39: 664495 | E39: 412328
B40: 2022-01-18 | C40: وردية أولى | D40: 666275 | E40: 414521
B41: 2022-01-18 | C41: وردية ثانية | D41: 667291 | E41: 415714
B42: 2022-01-19 | C42: وردية أولى | D42: 670170 | E42: 420121
B43: 2022-01-19 | C43: وردية ثانية | D43: 671439 | E43: 421563
B44: 2022-01-20 | C44: وردية أولى | D44: 673368 | E44: 423293
B45: 2022-01-20 | C45: وردية ثانية | D45: 674581 | E45: 424344
B46: 2022-01-21 | C46: وردية أولى | D46: 675574 | E46: 424847
B47: 2022-01-21 | C47: وردية ثانية | D47: 676789 | E47: 426501
B48: 2022-01-22 | C48: وردية أولى | D48: 679726 | E48: 430278
B49: 2022-01-22 | C49: وردية ثانية | D49: 681218 | E49: 431867
B50: 2022-01-23 | C50: وردية أولى | D50: 682906 | E50: 433113
B51: 2022-01-23 | C51: وردية ثانية | D51: 684600 | E51: 434534
B52: 2022-01-24 | C52: وردية أولى | D52: 686481 | E52: 436415
B53: 2022-01-24 | C53: وردية ثانية | D53: 687509 | E53: 437594
B54: 2022-01-25 | C54: وردية أولى | D54: 689401 | E54: 438898
B55: 2022-01-25 | C55: وردية ثانية | D55: 690686 | E55: 439615
B56: 2022-01-26 | C56: وردية أولى | D56: 693796 | E56: 441559
B57: 2022-01-26 | C57: وردية ثانية | D57: 695812 | E57: 442469
B58: 2022-01-27 | C58: وردية أولى | D58: 699423 | E58: 446250
B59: 2022-01-27 | C59: وردية ثانية | D59: 700983 | E59: 447240
B60: 2022-01-28 | C60: وردية أولى | D60: 701607 | E60: 447761
B61: 2022-01-28 | C61: وردية ثانية | D61: 702465 | E61: 448568
B62: 2022-01-29 | C62: وردية أولى | D62: 705474 | E62: 452289
B63: 2022-01-29 | C63: وردية ثانية | D63: 706830 | E63: 453714
B64: 2022-01-30 | C64: وردية أولى | D64: 708682 | E64: 454957
B65: 2022-01-30 | C65: وردية ثانية | D65: 709897 | E65: 455759
B66: 2022-01-31 | C66: وردية أولى | D66: 712395 | E66: 457611
B67: 2022-01-31 | C67: وردية ثانية | D67: 713722 | E67: 458599
B68: 2022-02-01 | C68: وردية أولى | D68: 716451 | E68: 461776
B69: 2022-02-01 | C69: وردية ثانية | D69: 717595 | E69: 462975
B70: 2022-02-02 | C70: وردية أولى | D70: 720447 | E70: 467121
B71: 2022-02-02 | C71: وردية ثانية | D71: 722460 | E71: 468791
B72: 2022-02-03 | C72: وردية أولى | D72: 724182 | E72: 469915
B73: 2022-02-03 | C73: وردية ثانية | D73: 725027 | E73: 470981
B74: 2022-02-04 | C74: وردية أولى | D74: 725589 | E74: 471265
B75: 2022-02-04 | C75: وردية ثانية | D75: 727115 | E75: 472234
B76: 2022-02-05 | C76: وردية أولى | D76: 730031 | E76: 475249
B77: 2022-02-05 | C77: وردية ثانية | D77: 731715 | E77: 476570
B78: 2022-02-06 | C78: وردية أولى | D78: 733637 | E78: 477877
B79: 2022-02-06 | C79: وردية ثانية | D79: 735138 | E79: 479345
B80: 2022-02-07 | C80: وردية أولى | D80: 737157 | E80: 482334
B81: 2022-02-07 | C81: وردية ثانية | D81: 738776 | E81: 483236
B82: 2022-02-08 | C82: وردية أولى | D82: 740838 | E82: 486017
B83: 2022-02-08 | C83: وردية ثانية | D83: 742149 | E83: 487713
B84: 2022-02-09 | C84: وردية أولى | D84: 745661 | E84: 490986
B85: 2022-02-09 | C85: وردية ثانية | D85: 746886 | E85: 492455
B86: 2022-02-10 | C86: وردية أولى | D86: 749122 | E86: 493555
B87: 2022-02-10 | C87: وردية ثانية | D87: 750450 | E87: 494827
B88: 2022-02-11 | C88: وردية أولى | D88: 750987 | E88: 495152
B89: 2022-02-11 | C89: وردية ثانية | D89: 752137 | E89: 496147
B90: 2022-02-12 | C90: وردية أولى | D90: 755871 | E90: 497882
B91: 2022-02-12 | C91: وردية أولى | D91: 757307 | E91: 499224
B92: 2022-02-13 | C92: وردية أولى | D92: 760342 | E92: 501137
B93: 2022-02-13 | C93: وردية ثانية | D93: 761763 | E93: 502284
B94: 2022-02-14 | C94: وردية أولى | D94: 764569 | E94: 505577
B95: 2022-02-14 | C95: وردية ثانية | D95: 765636 | E95: 506410
B96: 2022-02-15 | C96: وردية أولى | D96: 767537 | E96: 508019
B97: 2022-02-15 | C97: وردية ثانية | D97: 768994 | E97: 509213
B98: 2022-02-16 | C98: وردية أولى | D98: 771508 | E98: 511304
B99: 2022-02-16 | C99: وردية ثانية | D99: 773031 | E99: 512136
B100: 2022-02-17 | C100: وردية أولى | D100: 776018 | E100: 513493
B101: 2022-02-17 | C101: وردية ثانية | D101: 777843 | E101: 514224
B102: 2022-02-18 | C102: وردية أولى | D102: 778715 | E102: 514607
B103: 2022-02-18 | C103: وردية ثانية | D103: 779574 | E103: 515579
B104: 2022-02-19 | C104: وردية أولى | D104: 782079 | E104: 516729
B105: 2022-02-19 | C105: وردية ثانية | D105: 783375 | E105: 517592
B106: 2022-02-20 | C106: وردية أولى | D106: 785365 | E106: 519436
B107: 2022-02-20 | C107: وردية ثانية | D107: 786378 | E107: 520638
B108: 2022-02-21 | C108: وردية أولى | D108: 791092 | E108: 521930
B109: 2022-02-21 | C109: وردية ثانية | D109: 792760 | E109: 522662
B110: 2022-02-22 | C110: وردية أولى | D110: 793956 | E110: 524230
B111: 2022-02-22 | C111: وردية ثانية | D111: 794958 | E111: 525634
B112: 2022-02-23 | C112: وردية أولى | D112: 797637 | E112: 526742
B113: 2022-02-23 | C113: وردية ثانية | D113: 798701 | E113: 528123
B114: 2022-02-24 | C114: وردية أولى | D114: 802797 | E114: 529461
B115: 2022-02-24 | C115: وردية ثانية | D115: 804641 | E115: 529980
B116: 2022-02-25 | C116: وردية أولى | D116: 804871 | E116: 530161
B117: 2022-02-25 | C117: وردية ثانية | D117: 805216 | E117: 532015
B118: 2022-02-26 | C118: وردية أولى | D118: 806836 | E118: 532935
B119: 2022-02-26 | C119: وردية ثانية | D119: 808035 | E119: 533870
B120: 2022-02-27 | C120: وردية أولى | D120: 811763 | E120: 535425
B121: 2022-02-27 | C121: وردية ثانية | D121: 813023 | E121: 536960
B122: 2022-02-28 | C122: وردية أولى | D122: 816125 | E122: 538573
B123: 2022-02-28 | C123: وردية ثانية | D123: 817235 | E123: 539644
B124: 2022-03-01 | C124: وردية أولى | D124: 822750 | E124: 540680
B125: 2022-03-01 | C125: وردية ثانية | D125: 824653 | E125: 542411
B126: 2022-03-02 | C126: وردية أولى | D126: 825801 | E126: 544324
B127: 2022-03-02 | C127: وردية ثانية | D127: 827566 | E127: 545614
B128: 2022-03-03 | C128: وردية أولى | D128: 830856 | E128: 546742
B129: 2022-03-03 | C129: وردية ثانية | D129: 832376 | E129: 547706
B130: 2022-03-04 | C130: وردية أولى | D130: 832975 | E130: 548065
B131: 2022-03-04 | C131: وردية ثانية | D131: 834195 | E131: 549326
B132: 2022-03-05 | C132: وردية أولى | D132: 839275 | E132: 551580
B133: 2022-03-05 | C133: وردية ثانية | D133: 840500 | E133: 553359
B134: 2022-03-06 | C134: وردية أولى | D134: 844816 | E134: 554766
B135: 2022-03-06 | C135: وردية ثانية | D135: 847601 | E135: 556085
B136: 2022-03-07 | C136: وردية أولى | D136: 849414 | E136: 556998
B137: 2022-03-07 | C137: وردية ثانية | D137: 850697 | E137: 558161
B138: 2022-03-08 | C138: وردية أولى | D138: 854073 | E138: 560027
B139: 2022-03-08 | C139: وردية ثانية | D139: 855688 | E139: 561289
B140: 2022-03-09 | C140: وردية أولى | D140: 859213 | E140: 562997
B141: 2022-03-09 | C141: وردية ثانية | D141: 860843 | E141: 564587
B142: 2022-03-10 | C142: وردية أولى | D142: 864326 | E142: 566001
B143: 2022-03-10 | C143: وردية ثانية | D143: 865791 | E143: 566947
B144: 2022-03-11 | C144: وردية أولى | D144: 866283 | E144: 567453
B145: 2022-03-11 | C145: وردية ثانية | D145: 867386 | E145: 568324
B146: 2022-03-12 | C146: وردية أولى | D146: 869618 | E146: 568904
B147: 2022-03-12 | C147: وردية ثانية | D147: 873020 | E147: 570449
B148: 2022-03-13 | C148: وردية أولى | D148: 876810 | E148: 571632
B149: 2022-03-13 | C149: وردية ثانية | D149: 878193 | E149: 572865
B150: 2022-03-14 | C150: وردية أولى | D150: 882922 | E150: 574498
B151: 2022-03-14 | C151: وردية ثانية | D151: 884946 | E151: 576258
B152: 2022-03-15 | C152: وردية أولى | D152: 889382 | E152: 577929
B153: 2022-03-15 | C153: وردية ثانية | D153: 890483 | E153: 579381
B154: 2022-03-16 | C154: وردية أولى | D154: 895353 | E154: 581587
B155: 2022-03-16 | C155: وردية ثانية | D155: 897353 | E155: 583125
B156: 2022-03-17 | C156: وردية أولى | D156: 901419 | E156: 584562
B157: 2022-03-17 | C157: وردية ثانية | D157: 902958 | E157: 586127
B158: 2022-03-18 | C158: وردية أولى | D158: 903699 | E158: 586597
B159: 2022-03-18 | C159: وردية ثانية | D159: 904658 | E159: 588140
B160: 2022-03-19 | C160: وردية أولى | D160: 906362 | E160: 589217
B161: 2022-03-19 | C161: وردية ثانية | D161: 907923 | E161: 590532
B162: 2022-03-20 | C162: وردية أولى | D162: 912442 | E162: 592552
B163: 2022-03-20 | C163: وردية ثانية | D163: 913894 | E163: 593879
B164: 2022-03-21 | C164: وردية أولى | D164: 919672 | E164: 595314
B165: 2022-03-21 | C165: وردية ثانية | D165: 921161 | E165: 596215
B166: 2022-03-22 | C166: وردية أولى | D166: 925199 | E166: 597749
B167: 2022-03-22 | C167: وردية ثانية | D167: 926622 | E167: 598331
B168: 2022-03-23 | C168: وردية أولى | D168: 930283 | E168: 600401
B169: 2022-03-23 | C169: وردية ثانية | D169: 931888 | E169: 601963
B170: 2022-03-24 | C170: وردية أولى | D170: 935122 | E170: 603417
B171: 2022-03-24 | C171: وردية ثانية | D171: 937001 | E171: 604332
B172: 2022-03-25 | C172: وردية أولى | D172: 938034 | E172: 604760
B173: 2022-03-25 | C173: وردية ثانية | D173: 939236 | E173: 605568
B174: 2022-03-26 | C174: وردية أولى | D174: 944458 | E174: 607785
B175: 2022-03-26 | C175: وردية ثانية | D175: 946759 | E175: 610104
B176: 2022-03-27 | C176: وردية أولى | D176: 951751 | E176: 612023
B177: 2022-03-27 | C177: وردية ثانية | D177: 953018 | E177: 612824
B178: 2022-03-28 | C178: وردية أولى | D178: 956665 | E178: 614482
B179: 2022-03-28 | C179: وردية ثانية | D179: 958457 | E179: 616073
B180: 2022-03-29 | C180: وردية أولى | D180: 961561 | E180: 618080
B181: 2022-03-29 | C181: وردية ثانية | D181: 962775 | E181: 619363
B182: 2022-03-30 | C182: وردية أولى | D182: 967192 | E182: 621284
B183: 2022-03-30 | C183: وردية ثانية | D183: 969043 | E183: 622768
B184: 2022-03-31 | C184: وردية أولى | D184: 973452 | E184: 625271
B185: 2022-03-31 | C185: وردية ثانية | D185: 975014 | E185: 626608
B186: 2022-04-01 | C186: وردية أولى | D186: 976073 | E186: 627027
B187: 2022-04-01 | C187: وردية ثانية | D187: 979473 | E187: 629089
B188: 2022-04-02 | C188: وردية أولى | D188: 981378 | E188: 632180
B189: 2022-04-02 | C189: وردية ثانية | D189: 983243 | E189: 634179
B190: 2022-04-03 | C190: وردية أولى | D190: 986506 | E190: 637311
B191: 2022-04-03 | C191: وردية ثانية | D191: 988132 | E191: 638607
B192: 2022-04-04 | C192: وردية أولى | D192: 991192 | E192: 641576
B193: 2022-04-04 | C193: وردية ثانية | D193: 993658 | E193: 643058
B194: 2022-04-05 | C194: وردية أولى | D194: 996833 | E194: 645344
B195: 2022-04-05 | C195: وردية ثانية | D195: 998976 | E195: 646701
B196: 2022-04-06 | C196: وردية أولى | D196: 1003227 | E196: 649850
B197: 2022-04-06 | C197: وردية ثانية | D197: 1005569 | E197: 651384
B198: 2022-04-07 | C198: وردية أولى | D198: 1007633 | E198: 653801
B199: 2022-04-07 | C199: وردية ثانية | D199: 1008854 | E199: 654964
B200: 2022-04-08 | C200: وردية أولى | D200: 1010229 | E200: 655437
B201: 2022-04-08 | C201: وردية ثانية | D201: 1012136 | E201: 657336
B202: 2022-04-09 | C202: وردية أولى | D202: 1014735 | E202: 659241
... 256 more rows

Sheet Total
B1: اجمالي حركة المبيعات
B3: التاريخ | C3: الوردية | D3: مبيعات 91 | E3: سعر 91 | F3: ايراد 91 | G3: مبيعات 95 | H3: سعر 95 | I3: ايراد 95 | J3: مبيعات Diesel | K3: سعر Diesel | L3: ايراد Diesel | M3: اجمالي الايراد | N3: شراء 91 | O3: شراء 95 | P3: شراء Diesel | Q3: أرباح 91 | R3: ارباح 95 | S3: أرباح Diesel | T3: مجمل ربح | U3: ضريبة | V3: ص.قيمة
B4: 2022-01-01 | C4: وردية أولى | D4: 4024 | E4: 2.18 | F4: =Table10[[#This Row],[مبيعات 91]]*Table10[[#This Row],[سعر 91]] -> 8772.32 | I4: =Table10[[#This Row],[سعر 95]]*Table10[[#This Row],[مبيعات 95]] -> 0 | J4: 7240 | K4: 0.63 | L4: =Table10[[#This Row],[سعر Diesel]]*Table10[[#This Row],[مبيعات Diesel]] -> 4561.2 | M4: =Table10[[#This Row],[ايراد Diesel]]+Table10[[#This Row],[ايراد 95]]+Table10[[#This Row],[ايراد 91]] -> 13333.52 | N4: 2.095 | O4: 0.6075 | P4: 0.61 | Q4: =(Table10[[#This Row],[سعر 91]]-Table10[[#This Row],[شراء 91]])*Table10[[#This Row],[مبيعات 91]] -> 342.04 | R4: =(Table10[[#This Row],[سعر 95]]-Table10[[#This Row],[شراء 95]])*Table10[[#This Row],[مبيعات 95]] -> 0 | S4: =(Table10[[#This Row],[سعر Diesel]]-Table10[[#This Row],[شراء Diesel]])*Table10[[#This Row],[مبيعات Diesel]] -> 144.8 | T4: =SUM(Table10[[#This Row],[أرباح 91]:[أرباح Diesel]]) -> 486.84 | U4: =Table10[[#This Row],[اجمالي الايراد]]*(15/115) -> 1739.154783 | V4: =Table10[[#This Row],[اجمالي الايراد]]-Table10[[#This Row],[ضريبة]] -> 11594.36522
B5: 2022-01-01 | C5: وردية ثانية | D5: 3887 | E5: 2.18 | F5: =Table10[[#This Row],[مبيعات 91]]*Table10[[#This Row],[سعر 91]] -> 8473.66 | I5: =Table10[[#This Row],[سعر 95]]*Table10[[#This Row],[مبيعات 95]] -> 0 | J5: 3007 | K5: 0.63 | L5: =Table10[[#This Row],[سعر Diesel]]*Table10[[#This Row],[مبيعات Diesel]] -> 1894.41 | M5: =Table10[[#This Row],[ايراد Diesel]]+Table10[[#This Row],[ايراد 95]]+Table10[[#This Row],[ايراد 91]] -> 10368.07 | N5: 2.095 | O5: 0.6075 | P5: 0.61 | Q5: =(Table10[[#This Row],[سعر 91]]-Table10[[#This Row],[شراء 91]])*Table10[[#This Row],[مبيعات 91]] -> 330.395 | R5: =(Table10[[#This Row],[سعر 95]]-Table10[[#This Row],[شراء 95]])*Table10[[#This Row],[مبيعات 95]] -> 0 | S5: =(Table10[[#This Row],[سعر Diesel]]-Table10[[#This Row],[شراء Diesel]])*Table10[[#This Row],[مبيعات Diesel]] -> 60.14 | T5: =SUM(Table10[[#This Row],[أرباح 91]:[أرباح Diesel]]) -> 390.535 | U5: =Table10[[#This Row],[اجمالي الايراد]]*(15/115) -> 1352.356957 | V5: =Table10[[#This Row],[اجمالي الايراد]]-Table10[[#This Row],[ضريبة]] -> 9015.713043
B6: 2022-01-02 | C6: وردية أولى | D6: 4753 | E6: 2.18 | F6: =Table10[[#This Row],[مبيعات 91]]*Table10[[#This Row],[سعر 91]] -> 10361.54 | I6: =Table10[[#This Row],[سعر 95]]*Table10[[#This Row],[مبيعات 95]] -> 0 | J6: 3960 | K6: 0.63 | L6: =Table10[[#This Row],[سعر Diesel]]*Table10[[#This Row],[مبيعات Diesel]] -> 2494.8 | M6: =Table10[[#This Row],[ايراد Diesel]]+Table10[[#This Row],[ايراد 95]]+Table10[[#This Row],[ايراد 91]] -> 12856.34 | N6: 2.095 | O6: 0.6075 | P6: 0.61 | Q6: =(Table10[[#This Row],[سعر 91]]-Table10[[#This Row],[شراء 91]])*Table10[[#This Row],[مبيعات 91]] -> 404.005 | R6: =(Table10[[#This Row],[سعر 95]]-Table10[[#This Row],[شراء 95]])*Table10[[#This Row],[مبيعات 95]] -> 0 | S6: =(Table10[[#This Row],[سعر Diesel]]-Table10[[#This Row],[شراء Diesel]])*Table10[[#This Row],[مبيعات Diesel]] -> 79.2 | T6: =SUM(Table10[[#This Row],[أرباح 91]:[أرباح Diesel]]) -> 483.205 | U6: =Table10[[#This Row],[اجمالي الايراد]]*(15/115) -> 1676.913913 | V6: =Table10[[#This Row],[اجمالي الايراد]]-Table10[[#This Row],[ضريبة]] -> 11179.42609
B7: 2022-01-02 | C7: وردية ثانية | D7: 3756 | E7: 2.18 | F7: =Table10[[#This Row],[مبيعات 91]]*Table10[[#This Row],[سعر 91]] -> 8188.08 | I7: =Table10[[#This Row],[سعر 95]]*Table10[[#This Row],[مبيعات 95]] -> 0 | J7: 2479 | K7: 0.63 | L7: =Table10[[#This Row],[سعر Diesel]]*Table10[[#This Row],[مبيعات Diesel]] -> 1561.77 | M7: =Table10[[#This Row],[ايراد Diesel]]+Table10[[#This Row],[ايراد 95]]+Table10[[#This Row],[ايراد 91]] -> 9749.85 | N7: 2.095 | O7: 0.6075 | P7: 0.61 | Q7: =(Table10[[#This Row],[سعر 91]]-Table10[[#This Row],[شراء 91]])*Table10[[#This Row],[مبيعات 91]] -> 319.26 | R7: =(Table10[[#This Row],[سعر 95]]-Table10[[#This Row],[شراء 95]])*Table10[[#This Row],[مبيعات 95]] -> 0 | S7: =(Table10[[#This Row],[سعر Diesel]]-Table10[[#This Row],[شراء Diesel]])*Table10[[#This Row],[مبيعات Diesel]] -> 49.58 | T7: =SUM(Table10[[#This Row],[أرباح 91]:[أرباح Diesel]]) -> 368.84 | U7: =Table10[[#This Row],[اجمالي الايراد]]*(15/115) -> 1271.719565 | V7: =Table10[[#This Row],[اجمالي الايراد]]-Table10[[#This Row],[ضريبة]] -> 8478.130435
B8: 2022-01-03 | C8: وردية أولى | D8: 4418 | E8: 2.18 | F8: =Table10[[#This Row],[مبيعات 91]]*Table10[[#This Row],[سعر 91]] -> 9631.24 | I8: =Table10[[#This Row],[سعر 95]]*Table10[[#This Row],[مبيعات 95]] -> 0 | J8: 7279 | K8: 0.63 | L8: =Table10[[#This Row],[سعر Diesel]]*Table10[[#This Row],[مبيعات Diesel]] -> 4585.77 | M8: =Table10[[#This Row],[ايراد Diesel]]+Table10[[#This Row],[ايراد 95]]+Table10[[#This Row],[ايراد 91]] -> 14217.01 | N8: 2.095 | O8: 0.6075 | P8: 0.61 | Q8: =(Table10[[#This Row],[سعر 91]]-Table10[[#This Row],[شراء 91]])*Table10[[#This Row],[مبيعات 91]] -> 375.53 | R8: =(Table10[[#This Row],[سعر 95]]-Table10[[#This Row],[شراء 95]])*Table10[[#This Row],[مبيعات 95]] -> 0 | S8: =(Table10[[#This Row],[سعر Diesel]]-Table10[[#This Row],[شراء Diesel]])*Table10[[#This Row],[مبيعات Diesel]] -> 145.58 | T8: =SUM(Table10[[#This Row],[أرباح 91]:[أرباح Diesel]]) -> 521.11 | U8: =Table10[[#This Row],[اجمالي الايراد]]*(15/115) -> 1854.392609 | V8: =Table10[[#This Row],[اجمالي الايراد]]-Table10[[#This Row],[ضريبة]] -> 12362.61739
B9: 2022-01-03 | C9: وردية ثانية | D9: 5699 | E9: 2.18 | F9: =Table10[[#This Row],[مبيعات 91]]*Table10[[#This Row],[سعر 91]] -> 12423.82 | I9: =Table10[[#This Row],[سعر 95]]*Table10[[#This Row],[مبيعات 95]] -> 0 | J9: 2368 | K9: 0.63 | L9: =Table10[[#This Row],[سعر Diesel]]*Table10[[#This Row],[مبيعات Diesel]] -> 1491.84 | M9: =Table10[[#This Row],[ايراد Diesel]]+Table10[[#This Row],[ايراد 95]]+Table10[[#This Row],[ايراد 91]] -> 13915.66 | N9: 2.095 | O9: 0.6075 | P9: 0.61 | Q9: =(Table10[[#This Row],[سعر 91]]-Table10[[#This Row],[شراء 91]])*Table10[[#This Row],[مبيعات 91]] -> 484.415 | R9: =(Table10[[#This Row],[سعر 95]]-Table10[[#This Row],[شراء 95]])*Table10[[#This Row],[مبيعات 95]] -> 0 | S9: =(Table10[[#This Row],[سعر Diesel]]-Table10[[#This Row],[شراء Diesel]])*Table10[[#This Row],[مبيعات Diesel]] -> 47.36 | T9: =SUM(Table10[[#This Row],[أرباح 91]:[أرباح Diesel]]) -> 531.775 | U9: =Table10[[#This Row],[اجمالي الايراد]]*(15/115) -> 1815.086087 | V9: =Table10[[#This Row],[اجمالي الايراد]]-Table10[[#This Row],[ضريبة]] -> 12100.57391
B10: 2022-01-04 | C10: وردية أولى | D10: 4419 | E10: 2.18 | F10: =Table10[[#This Row],[مبيعات 91]]*Table10[[#This Row],[سعر 91]] -> 9633.42 | I10: =Table10[[#This Row],[سعر 95]]*Table10[[#This Row],[مبيعات 95]] -> 0 | J10: 3057 | K10: 0.63 | L10: =Table10[[#This Row],[سعر Diesel]]*Table10[[#This Row],[مبيعات Diesel]] -> 1925.91 | M10: =Table10[[#This Row],[ايراد Diesel]]+Table10[[#This Row],[ايراد 95]]+Table10[[#This Row],[ايراد 91]] -> 11559.33 | N10: 2.095 | O10: 0.6075 | P10: 0.61 | Q10: =(Table10[[#This Row],[سعر 91]]-Table10[[#This Row],[شراء 91]])*Table10[[#This Row],[مبيعات 91]] -> 375.615 | R10: =(Table10[[#This Row],[سعر 95]]-Table10[[#This Row],[شراء 95]])*Table10[[#This Row],[مبيعات 95]] -> 0 | S10: =(Table10[[#This Row],[سعر Diesel]]-Table10[[#This Row],[شراء Diesel]])*Table10[[#This Row],[مبيعات Diesel]] -> 61.14 | T10: =SUM(Table10[[#This Row],[أرباح 91]:[أرباح Diesel]]) -> 436.755 | U10: =Table10[[#This Row],[اجمالي الايراد]]*(15/115) -> 1507.738696 | V10: =Table10[[#This Row],[اجمالي الايراد]]-Table10[[#This Row],[ضريبة]] -> 10051.5913
B11: 2022-01-04 | C11: وردية ثانية | D11: 5208 | E11: 2.18 | F11: =Table10[[#This Row],[مبيعات 91]]*Table10[[#This Row],[سعر 91]] -> 11353.44 | I11: =Table10[[#This Row],[سعر 95]]*Table10[[#This Row],[مبيعات 95]] -> 0 | J11: 3196 | K11: 0.63 | L11: =Table10[[#This Row],[سعر Diesel]]*Table10[[#This Row],[مبيعات Diesel]] -> 2013.48 | M11: =Table10[[#This Row],[ايراد Diesel]]+Table10[[#This Row],[ايراد 95]]+Table10[[#This Row],[ايراد 91]] -> 13366.92 | N11: 2.095 | O11: 0.6075 | P11: 0.61 | Q11: =(Table10[[#This Row],[سعر 91]]-Table10[[#This Row],[شراء 91]])*Table10[[#This Row],[مبيعات 91]] -> 442.68 | R11: =(Table10[[#This Row],[سعر 95]]-Table10[[#This Row],[شراء 95]])*Table10[[#This Row],[مبيعات 95]] -> 0 | S11: =(Table10[[#This Row],[سعر Diesel]]-Table10[[#This Row],[شراء Diesel]])*Table10[[#This Row],[مبيعات Diesel]] -> 63.92 | T11: =SUM(Table10[[#This Row],[أرباح 91]:[أرباح Diesel]]) -> 506.6 | U11: =Table10[[#This Row],[اجمالي الايراد]]*(15/115) -> 1743.511304 | V11: =Table10[[#This Row],[اجمالي الايراد]]-Table10[[#This Row],[ضريبة]] -> 11623.4087
B12: 2022-01-05 | C12: وردية أولى | D12: 4565 | E12: 2.18 | F12: =Table10[[#This Row],[مبيعات 91]]*Table10[[#This Row],[سعر 91]] -> 9951.7 | I12: =Table10[[#This Row],[سعر 95]]*Table10[[#This Row],[مبيعات 95]] -> 0 | J12: 7688 | K12: 0.63 | L12: =Table10[[#This Row],[سعر Diesel]]*Table10[[#This Row],[مبيعات Diesel]] -> 4843.44 | M12: =Table10[[#This Row],[ايراد Diesel]]+Table10[[#This Row],[ايراد 95]]+Table10[[#This Row],[ايراد 91]] -> 14795.14 | N12: 2.095 | O12: 0.6075 | P12: 0.61 | Q12: =(Table10[[#This Row],[سعر 91]]-Table10[[#This Row],[شراء 91]])*Table10[[#This Row],[مبيعات 91]] -> 388.025 | R12: =(Table10[[#This Row],[سعر 95]]-Table10[[#This Row],[شراء 95]])*Table10[[#This Row],[مبيعات 95]] -> 0 | S12: =(Table10[[#This Row],[سعر Diesel]]-Table10[[#This Row],[شراء Diesel]])*Table10[[#This Row],[مبيعات Diesel]] -> 153.76 | T12: =SUM(Table10[[#This Row],[أرباح 91]:[أرباح Diesel]]) -> 541.785 | U12: =Table10[[#This Row],[اجمالي الايراد]]*(15/115) -> 1929.80087 | V12: =Table10[[#This Row],[اجمالي الايراد]]-Table10[[#This Row],[ضريبة]] -> 12865.33913
B13: 2022-01-05 | C13: وردية ثانية | D13: 5355 | E13: 2.18 | F13: =Table10[[#This Row],[مبيعات 91]]*Table10[[#This Row],[سعر 91]] -> 11673.9 | I13: =Table10[[#This Row],[سعر 95]]*Table10[[#This Row],[مبيعات 95]] -> 0 | J13: 2442 | K13: 0.63 | L13: =Table10[[#This Row],[سعر Diesel]]*Table10[[#This Row],[مبيعات Diesel]] -> 1538.46 | M13: =Table10[[#This Row],[ايراد Diesel]]+Table10[[#This Row],[ايراد 95]]+Table10[[#This Row],[ايراد 91]] -> 13212.36 | N13: 2.095 | O13: 0.6075 | P13: 0.61 | Q13: =(Table10[[#This Row],[سعر 91]]-Table10[[#This Row],[شراء 91]])*Table10[[#This Row],[مبيعات 91]] -> 455.175 | R13: =(Table10[[#This Row],[سعر 95]]-Table10[[#This Row],[شراء 95]])*Table10[[#This Row],[مبيعات 95]] -> 0 | S13: =(Table10[[#This Row],[سعر Diesel]]-Table10[[#This Row],[شراء Diesel]])*Table10[[#This Row],[مبيعات Diesel]] -> 48.84 | T13: =SUM(Table10[[#This Row],[أرباح 91]:[أرباح Diesel]]) -> 504.015 | U13: =Table10[[#This Row],[اجمالي الايراد]]*(15/115) -> 1723.351304 | V13: =Table10[[#This Row],[اجمالي الايراد]]-Table10[[#This Row],[ضريبة]] -> 11489.0087
B14: 2022-01-06 | C14: وردية أولى | D14: 4525 | E14: 2.18 | F14: =Table10[[#This Row],[مبيعات 91]]*Table10[[#This Row],[سعر 91]] -> 9864.5 | I14: =Table10[[#This Row],[سعر 95]]*Table10[[#This Row],[مبيعات 95]] -> 0 | J14: 3215 | K14: 0.63 | L14: =Table10[[#This Row],[سعر Diesel]]*Table10[[#This Row],[مبيعات Diesel]] -> 2025.45 | M14: =Table10[[#This Row],[ايراد Diesel]]+Table10[[#This Row],[ايراد 95]]+Table10[[#This Row],[ايراد 91]] -> 11889.95 | N14: 2.095 | O14: 0.6075 | P14: 0.61 | Q14: =(Table10[[#This Row],[سعر 91]]-Table10[[#This Row],[شراء 91]])*Table10[[#This Row],[مبيعات 91]] -> 384.625 | R14: =(Table10[[#This Row],[سعر 95]]-Table10[[#This Row],[شراء 95]])*Table10[[#This Row],[مبيعات 95]] -> 0 | S14: =(Table10[[#This Row],[سعر Diesel]]-Table10[[#This Row],[شراء Diesel]])*Table10[[#This Row],[مبيعات Diesel]] -> 64.3 | T14: =SUM(Table10[[#This Row],[أرباح 91]:[أرباح Diesel]]) -> 448.925 | U14: =Table10[[#This Row],[اجمالي الايراد]]*(15/115) -> 1550.863043 | V14: =Table10[[#This Row],[اجمالي الايراد]]-Table10[[#This Row],[ضريبة]] -> 10339.08696
B15: 2022-01-06 | C15: وردية ثانية | D15: 5502 | E15: 2.18 | F15: =Table10[[#This Row],[مبيعات 91]]*Table10[[#This Row],[سعر 91]] -> 11994.36 | I15: =Table10[[#This Row],[سعر 95]]*Table10[[#This Row],[مبيعات 95]] -> 0 | J15: 2461 | K15: 0.63 | L15: =Table10[[#This Row],[سعر Diesel]]*Table10[[#This Row],[مبيعات Diesel]] -> 1550.43 | M15: =Table10[[#This Row],[ايراد Diesel]]+Table10[[#This Row],[ايراد 95]]+Table10[[#This Row],[ايراد 91]] -> 13544.79 | N15: 2.095 | O15: 0.6075 | P15: 0.61 | Q15: =(Table10[[#This Row],[سعر 91]]-Table10[[#This Row],[شراء 91]])*Table10[[#This Row],[مبيعات 91]] -> 467.67 | R15: =(Table10[[#This Row],[سعر 95]]-Table10[[#This Row],[شراء 95]])*Table10[[#This Row],[مبيعات 95]] -> 0 | S15: =(Table10[[#This Row],[سعر Diesel]]-Table10[[#This Row],[شراء Diesel]])*Table10[[#This Row],[مبيعات Diesel]] -> 49.22 | T15: =SUM(Table10[[#This Row],[أرباح 91]:[أرباح Diesel]]) -> 516.89 | U15: =Table10[[#This Row],[اجمالي الايراد]]*(15/115) -> 1766.711739 | V15: =Table10[[#This Row],[اجمالي الايراد]]-Table10[[#This Row],[ضريبة]] -> 11778.07826
B16: 2022-01-07 | C16: وردية أولى | D16: 2844 | E16: 2.18 | F16: =Table10[[#This Row],[مبيعات 91]]*Table10[[#This Row],[سعر 91]] -> 6199.92 | I16: =Table10[[#This Row],[سعر 95]]*Table10[[#This Row],[مبيعات 95]] -> 0 | J16: 896 | K16: 0.63 | L16: =Table10[[#This Row],[سعر Diesel]]*Table10[[#This Row],[مبيعات Diesel]] -> 564.48 | M16: =Table10[[#This Row],[ايراد Diesel]]+Table10[[#This Row],[ايراد 95]]+Table10[[#This Row],[ايراد 91]] -> 6764.4 | N16: 2.095 | O16: 0.6075 | P16: 0.61 | Q16: =(Table10[[#This Row],[سعر 91]]-Table10[[#This Row],[شراء 91]])*Table10[[#This Row],[مبيعات 91]] -> 241.74 | R16: =(Table10[[#This Row],[سعر 95]]-Table10[[#This Row],[شراء 95]])*Table10[[#This Row],[مبيعات 95]] -> 0 | S16: =(Table10[[#This Row],[سعر Diesel]]-Table10[[#This Row],[شراء Diesel]])*Table10[[#This Row],[مبيعات Diesel]] -> 17.92 | T16: =SUM(Table10[[#This Row],[أرباح 91]:[أرباح Diesel]]) -> 259.66 | U16: =Table10[[#This Row],[اجمالي الايراد]]*(15/115) -> 882.3130435 | V16: =Table10[[#This Row],[اجمالي الايراد]]-Table10[[#This Row],[ضريبة]] -> 5882.086957
B17: 2022-01-07 | C17: وردية ثانية | D17: 5050 | E17: 2.18 | F17: =Table10[[#This Row],[مبيعات 91]]*Table10[[#This Row],[سعر 91]] -> 11009 | I17: =Table10[[#This Row],[سعر 95]]*Table10[[#This Row],[مبيعات 95]] -> 0 | J17: 2181 | K17: 0.63 | L17: =Table10[[#This Row],[سعر Diesel]]*Table10[[#This Row],[مبيعات Diesel]] -> 1374.03 | M17: =Table10[[#This Row],[ايراد Diesel]]+Table10[[#This Row],[ايراد 95]]+Table10[[#This Row],[ايراد 91]] -> 12383.03 | N17: 2.095 | O17: 0.6075 | P17: 0.61 | Q17: =(Table10[[#This Row],[سعر 91]]-Table10[[#This Row],[شراء 91]])*Table10[[#This Row],[مبيعات 91]] -> 429.25 | R17: =(Table10[[#This Row],[سعر 95]]-Table10[[#This Row],[شراء 95]])*Table10[[#This Row],[مبيعات 95]] -> 0 | S17: =(Table10[[#This Row],[سعر Diesel]]-Table10[[#This Row],[شراء Diesel]])*Table10[[#This Row],[مبيعات Diesel]] -> 43.62 | T17: =SUM(Table10[[#This Row],[أرباح 91]:[أرباح Diesel]]) -> 472.87 | U17: =Table10[[#This Row],[اجمالي الايراد]]*(15/115) -> 1615.177826 | V17: =Table10[[#This Row],[اجمالي الايراد]]-Table10[[#This Row],[ضريبة]] -> 10767.85217
B18: 2022-01-08 | C18: وردية أولى | D18: 4359 | E18: 2.18 | F18: =Table10[[#This Row],[مبيعات 91]]*Table10[[#This Row],[سعر 91]] -> 9502.62 | I18: =Table10[[#This Row],[سعر 95]]*Table10[[#This Row],[مبيعات 95]] -> 0 | J18: 6894 | K18: 0.63 | L18: =Table10[[#This Row],[سعر Diesel]]*Table10[[#This Row],[مبيعات Diesel]] -> 4343.22 | M18: =Table10[[#This Row],[ايراد Diesel]]+Table10[[#This Row],[ايراد 95]]+Table10[[#This Row],[ايراد 91]] -> 13845.84 | N18: 2.095 | O18: 0.6075 | P18: 0.61 | Q18: =(Table10[[#This Row],[سعر 91]]-Table10[[#This Row],[شراء 91]])*Table10[[#This Row],[مبيعات 91]] -> 370.515 | R18: =(Table10[[#This Row],[سعر 95]]-Table10[[#This Row],[شراء 95]])*Table10[[#This Row],[مبيعات 95]] -> 0 | S18: =(Table10[[#This Row],[سعر Diesel]]-Table10[[#This Row],[شراء Diesel]])*Table10[[#This Row],[مبيعات Diesel]] -> 137.88 | T18: =SUM(Table10[[#This Row],[أرباح 91]:[أرباح Diesel]]) -> 508.395 | U18: =Table10[[#This Row],[اجمالي الايراد]]*(15/115) -> 1805.97913 | V18: =Table10[[#This Row],[اجمالي الايراد]]-Table10[[#This Row],[ضريبة]] -> 12039.86087
B19: 2022-01-08 | C19: وردية ثانية | D19: 4440 | E19: 2.18 | F19: =Table10[[#This Row],[مبيعات 91]]*Table10[[#This Row],[سعر 91]] -> 9679.2 | I19: =Table10[[#This Row],[سعر 95]]*Table10[[#This Row],[مبيعات 95]] -> 0 | J19: 2983 | K19: 0.63 | L19: =Table10[[#This Row],[سعر Diesel]]*Table10[[#This Row],[مبيعات Diesel]] -> 1879.29 | M19: =Table10[[#This Row],[ايراد Diesel]]+Table10[[#This Row],[ايراد 95]]+Table10[[#This Row],[ايراد 91]] -> 11558.49 | N19: 2.095 | O19: 0.6075 | P19: 0.61 | Q19: =(Table10[[#This Row],[سعر 91]]-Table10[[#This Row],[شراء 91]])*Table10[[#This Row],[مبيعات 91]] -> 377.4 | R19: =(Table10[[#This Row],[سعر 95]]-Table10[[#This Row],[شراء 95]])*Table10[[#This Row],[مبيعات 95]] -> 0 | S19: =(Table10[[#This Row],[سعر Diesel]]-Table10[[#This Row],[شراء Diesel]])*Table10[[#This Row],[مبيعات Diesel]] -> 59.66 | T19: =SUM(Table10[[#This Row],[أرباح 91]:[أرباح Diesel]]) -> 437.06 | U19: =Table10[[#This Row],[اجمالي الايراد]]*(15/115) -> 1507.62913 | V19: =Table10[[#This Row],[اجمالي الايراد]]-Table10[[#This Row],[ضريبة]] -> 10050.86087
B20: 2022-01-09 | C20: وردية أولى | D20: 3672 | E20: 2.18 | F20: =Table10[[#This Row],[مبيعات 91]]*Table10[[#This Row],[سعر 91]] -> 8004.96 | I20: =Table10[[#This Row],[سعر 95]]*Table10[[#This Row],[مبيعات 95]] -> 0 | J20: 4053 | K20: 0.63 | L20: =Table10[[#This Row],[سعر Diesel]]*Table10[[#This Row],[مبيعات Diesel]] -> 2553.39 | M20: =Table10[[#This Row],[ايراد Diesel]]+Table10[[#This Row],[ايراد 95]]+Table10[[#This Row],[ايراد 91]] -> 10558.35 | N20: 2.095 | O20: 0.6075 | P20: 0.61 | Q20: =(Table10[[#This Row],[سعر 91]]-Table10[[#This Row],[شراء 91]])*Table10[[#This Row],[مبيعات 91]] -> 312.12 | R20: =(Table10[[#This Row],[سعر 95]]-Table10[[#This Row],[شراء 95]])*Table10[[#This Row],[مبيعات 95]] -> 0 | S20: =(Table10[[#This Row],[سعر Diesel]]-Table10[[#This Row],[شراء Diesel]])*Table10[[#This Row],[مبيعات Diesel]] -> 81.06 | T20: =SUM(Table10[[#This Row],[أرباح 91]:[أرباح Diesel]]) -> 393.18 | U20: =Table10[[#This Row],[اجمالي الايراد]]*(15/115) -> 1377.176087 | V20: =Table10[[#This Row],[اجمالي الايراد]]-Table10[[#This Row],[ضريبة]] -> 9181.173913
B21: 2022-01-09 | C21: وردية ثانية | D21: 5132 | E21: 2.18 | F21: =Table10[[#This Row],[مبيعات 91]]*Table10[[#This Row],[سعر 91]] -> 11187.76 | I21: =Table10[[#This Row],[سعر 95]]*Table10[[#This Row],[مبيعات 95]] -> 0 | J21: 2618 | K21: 0.63 | L21: =Table10[[#This Row],[سعر Diesel]]*Table10[[#This Row],[مبيعات Diesel]] -> 1649.34 | M21: =Table10[[#This Row],[ايراد Diesel]]+Table10[[#This Row],[ايراد 95]]+Table10[[#This Row],[ايراد 91]] -> 12837.1 | N21: 2.095 | O21: 0.6075 | P21: 0.61 | Q21: =(Table10[[#This Row],[سعر 91]]-Table10[[#This Row],[شراء 91]])*Table10[[#This Row],[مبيعات 91]] -> 436.22 | R21: =(Table10[[#This Row],[سعر 95]]-Table10[[#This Row],[شراء 95]])*Table10[[#This Row],[مبيعات 95]] -> 0 | S21: =(Table10[[#This Row],[سعر Diesel]]-Table10[[#This Row],[شراء Diesel]])*Table10[[#This Row],[مبيعات Diesel]] -> 52.36 | T21: =SUM(Table10[[#This Row],[أرباح 91]:[أرباح Diesel]]) -> 488.58 | U21: =Table10[[#This Row],[اجمالي الايراد]]*(15/115) -> 1674.404348 | V21: =Table10[[#This Row],[اجمالي الايراد]]-Table10[[#This Row],[ضريبة]] -> 11162.69565
B22: 2022-01-10 | C22: وردية أولى | D22: 3658 | E22: 2.18 | F22: =Table10[[#This Row],[مبيعات 91]]*Table10[[#This Row],[سعر 91]] -> 7974.44 | I22: =Table10[[#This Row],[سعر 95]]*Table10[[#This Row],[مبيعات 95]] -> 0 | J22: 7226 | K22: 0.63 | L22: =Table10[[#This Row],[سعر Diesel]]*Table10[[#This Row],[مبيعات Diesel]] -> 4552.38 | M22: =Table10[[#This Row],[ايراد Diesel]]+Table10[[#This Row],[ايراد 95]]+Table10[[#This Row],[ايراد 91]] -> 12526.82 | N22: 2.095 | O22: 0.6075 | P22: 0.61 | Q22: =(Table10[[#This Row],[سعر 91]]-Table10[[#This Row],[شراء 91]])*Table10[[#This Row],[مبيعات 91]] -> 310.93 | R22: =(Table10[[#This Row],[سعر 95]]-Table10[[#This Row],[شراء 95]])*Table10[[#This Row],[مبيعات 95]] -> 0 | S22: =(Table10[[#This Row],[سعر Diesel]]-Table10[[#This Row],[شراء Diesel]])*Table10[[#This Row],[مبيعات Diesel]] -> 144.52 | T22: =SUM(Table10[[#This Row],[أرباح 91]:[أرباح Diesel]]) -> 455.45 | U22: =Table10[[#This Row],[اجمالي الايراد]]*(15/115) -> 1633.933043 | V22: =Table10[[#This Row],[اجمالي الايراد]]-Table10[[#This Row],[ضريبة]] -> 10892.88696
B23: 2022-01-10 | C23: وردية ثانية | D23: 4619 | E23: 2.18 | F23: =Table10[[#This Row],[مبيعات 91]]*Table10[[#This Row],[سعر 91]] -> 10069.42 | I23: =Table10[[#This Row],[سعر 95]]*Table10[[#This Row],[مبيعات 95]] -> 0 | J23: 2558 | K23: 0.63 | L23: =Table10[[#This Row],[سعر Diesel]]*Table10[[#This Row],[مبيعات Diesel]] -> 1611.54 | M23: =Table10[[#This Row],[ايراد Diesel]]+Table10[[#This Row],[ايراد 95]]+Table10[[#This Row],[ايراد 91]] -> 11680.96 | N23: 2.095 | O23: 0.6075 | P23: 0.61 | Q23: =(Table10[[#This Row],[سعر 91]]-Table10[[#This Row],[شراء 91]])*Table10[[#This Row],[مبيعات 91]] -> 392.615 | R23: =(Table10[[#This Row],[سعر 95]]-Table10[[#This Row],[شراء 95]])*Table10[[#This Row],[مبيعات 95]] -> 0 | S23: =(Table10[[#This Row],[سعر Diesel]]-Table10[[#This Row],[شراء Diesel]])*Table10[[#This Row],[مبيعات Diesel]] -> 51.16 | T23: =SUM(Table10[[#This Row],[أرباح 91]:[أرباح Diesel]]) -> 443.775 | U23: =Table10[[#This Row],[اجمالي الايراد]]*(15/115) -> 1523.603478 | V23: =Table10[[#This Row],[اجمالي الايراد]]-Table10[[#This Row],[ضريبة]] -> 10157.35652
B24: 2022-01-11 | C24: وردية أولى | D24: 3868 | E24: 2.18 | F24: =Table10[[#This Row],[مبيعات 91]]*Table10[[#This Row],[سعر 91]] -> 8432.24 | I24: =Table10[[#This Row],[سعر 95]]*Table10[[#This Row],[مبيعات 95]] -> 0 | J24: 2165 | K24: 0.63 | L24: =Table10[[#This Row],[سعر Diesel]]*Table10[[#This Row],[مبيعات Diesel]] -> 1363.95 | M24: =Table10[[#This Row],[ايراد Diesel]]+Table10[[#This Row],[ايراد 95]]+Table10[[#This Row],[ايراد 91]] -> 9796.19 | N24: 2.095 | O24: 0.6075 | P24: 0.61 | Q24: =(Table10[[#This Row],[سعر 91]]-Table10[[#This Row],[شراء 91]])*Table10[[#This Row],[مبيعات 91]] -> 328.78 | R24: =(Table10[[#This Row],[سعر 95]]-Table10[[#This Row],[شراء 95]])*Table10[[#This Row],[مبيعات 95]] -> 0 | S24: =(Table10[[#This Row],[سعر Diesel]]-Table10[[#This Row],[شراء Diesel]])*Table10[[#This Row],[مبيعات Diesel]] -> 43.3 | T24: =SUM(Table10[[#This Row],[أرباح 91]:[أرباح Diesel]]) -> 372.08 | U24: =Table10[[#This Row],[اجمالي الايراد]]*(15/115) -> 1277.763913 | V24: =Table10[[#This Row],[اجمالي الايراد]]-Table10[[#This Row],[ضريبة]] -> 8518.426087
B25: 2022-01-11 | C25: وردية ثانية | D25: 4903 | E25: 2.18 | F25: =Table10[[#This Row],[مبيعات 91]]*Table10[[#This Row],[سعر 91]] -> 10688.54 | I25: =Table10[[#This Row],[سعر 95]]*Table10[[#This Row],[مبيعات 95]] -> 0 | J25: 3520 | K25: 0.63 | L25: =Table10[[#This Row],[سعر Diesel]]*Table10[[#This Row],[مبيعات Diesel]] -> 2217.6 | M25: =Table10[[#This Row],[ايراد Diesel]]+Table10[[#This Row],[ايراد 95]]+Table10[[#This Row],[ايراد 91]] -> 12906.14 | N25: 2.095 | O25: 0.6075 | P25: 0.61 | Q25: =(Table10[[#This Row],[سعر 91]]-Table10[[#This Row],[شراء 91]])*Table10[[#This Row],[مبيعات 91]] -> 416.755 | R25: =(Table10[[#This Row],[سعر 95]]-Table10[[#This Row],[شراء 95]])*Table10[[#This Row],[مبيعات 95]] -> 0 | S25: =(Table10[[#This Row],[سعر Diesel]]-Table10[[#This Row],[شراء Diesel]])*Table10[[#This Row],[مبيعات Diesel]] -> 70.4 | T25: =SUM(Table10[[#This Row],[أرباح 91]:[أرباح Diesel]]) -> 487.155 | U25: =Table10[[#This Row],[اجمالي الايراد]]*(15/115) -> 1683.409565 | V25: =Table10[[#This Row],[اجمالي الايراد]]-Table10[[#This Row],[ضريبة]] -> 11222.73043
B26: 2022-01-12 | C26: وردية أولى | D26: 4799 | E26: 2.18 | F26: =Table10[[#This Row],[مبيعات 91]]*Table10[[#This Row],[سعر 91]] -> 10461.82 | I26: =Table10[[#This Row],[سعر 95]]*Table10[[#This Row],[مبيعات 95]] -> 0 | J26: 7661 | K26: 0.63 | L26: =Table10[[#This Row],[سعر Diesel]]*Table10[[#This Row],[مبيعات Diesel]] -> 4826.43 | M26: =Table10[[#This Row],[ايراد Diesel]]+Table10[[#This Row],[ايراد 95]]+Table10[[#This Row],[ايراد 91]] -> 15288.25 | N26: 2.095 | O26: 0.6075 | P26: 0.61 | Q26: =(Table10[[#This Row],[سعر 91]]-Table10[[#This Row],[شراء 91]])*Table10[[#This Row],[مبيعات 91]] -> 407.915 | R26: =(Table10[[#This Row],[سعر 95]]-Table10[[#This Row],[شراء 95]])*Table10[[#This Row],[مبيعات 95]] -> 0 | S26: =(Table10[[#This Row],[سعر Diesel]]-Table10[[#This Row],[شراء Diesel]])*Table10[[#This Row],[مبيعات Diesel]] -> 153.22 | T26: =SUM(Table10[[#This Row],[أرباح 91]:[أرباح Diesel]]) -> 561.135 | U26: =Table10[[#This Row],[اجمالي الايراد]]*(15/115) -> 1994.119565 | V26: =Table10[[#This Row],[اجمالي الايراد]]-Table10[[#This Row],[ضريبة]] -> 13294.13043
B27: 2022-01-12 | C27: وردية ثانية | D27: 4750 | E27: 2.18 | F27: =Table10[[#This Row],[مبيعات 91]]*Table10[[#This Row],[سعر 91]] -> 10355 | I27: =Table10[[#This Row],[سعر 95]]*Table10[[#This Row],[مبيعات 95]] -> 0 | J27: 2512 | K27: 0.63 | L27: =Table10[[#This Row],[سعر Diesel]]*Table10[[#This Row],[مبيعات Diesel]] -> 1582.56 | M27: =Table10[[#This Row],[ايراد Diesel]]+Table10[[#This Row],[ايراد 95]]+Table10[[#This Row],[ايراد 91]] -> 11937.56 | N27: 2.095 | O27: 0.6075 | P27: 0.61 | Q27: =(Table10[[#This Row],[سعر 91]]-Table10[[#This Row],[شراء 91]])*Table10[[#This Row],[مبيعات 91]] -> 403.75 | R27: =(Table10[[#This Row],[سعر 95]]-Table10[[#This Row],[شراء 95]])*Table10[[#This Row],[مبيعات 95]] -> 0 | S27: =(Table10[[#This Row],[سعر Diesel]]-Table10[[#This Row],[شراء Diesel]])*Table10[[#This Row],[مبيعات Diesel]] -> 50.24 | T27: =SUM(Table10[[#This Row],[أرباح 91]:[أرباح Diesel]]) -> 453.99 | U27: =Table10[[#This Row],[اجمالي الايراد]]*(15/115) -> 1557.073043 | V27: =Table10[[#This Row],[اجمالي الايراد]]-Table10[[#This Row],[ضريبة]] -> 10380.48696
B28: 2022-01-13 | C28: وردية أولى | D28: 4485 | E28: 2.18 | F28: =Table10[[#This Row],[مبيعات 91]]*Table10[[#This Row],[سعر 91]] -> 9777.3 | I28: =Table10[[#This Row],[سعر 95]]*Table10[[#This Row],[مبيعات 95]] -> 0 | J28: 3868 | K28: 0.63 | L28: =Table10[[#This Row],[سعر Diesel]]*Table10[[#This Row],[مبيعات Diesel]] -> 2436.84 | M28: =Table10[[#This Row],[ايراد Diesel]]+Table10[[#This Row],[ايراد 95]]+Table10[[#This Row],[ايراد 91]] -> 12214.14 | N28: 2.095 | O28: 0.6075 | P28: 0.61 | Q28: =(Table10[[#This Row],[سعر 91]]-Table10[[#This Row],[شراء 91]])*Table10[[#This Row],[مبيعات 91]] -> 381.225 | R28: =(Table10[[#This Row],[سعر 95]]-Table10[[#This Row],[شراء 95]])*Table10[[#This Row],[مبيعات 95]] -> 0 | S28: =(Table10[[#This Row],[سعر Diesel]]-Table10[[#This Row],[شراء Diesel]])*Table10[[#This Row],[مبيعات Diesel]] -> 77.36 | T28: =SUM(Table10[[#This Row],[أرباح 91]:[أرباح Diesel]]) -> 458.585 | U28: =Table10[[#This Row],[اجمالي الايراد]]*(15/115) -> 1593.148696 | V28: =Table10[[#This Row],[اجمالي الايراد]]-Table10[[#This Row],[ضريبة]] -> 10620.9913
B29: 2022-01-13 | C29: وردية ثانية | D29: 5432 | E29: 2.18 | F29: =Table10[[#This Row],[مبيعات 91]]*Table10[[#This Row],[سعر 91]] -> 11841.76 | I29: =Table10[[#This Row],[سعر 95]]*Table10[[#This Row],[مبيعات 95]] -> 0 | J29: 2536 | K29: 0.63 | L29: =Table10[[#This Row],[سعر Diesel]]*Table10[[#This Row],[مبيعات Diesel]] -> 1597.68 | M29: =Table10[[#This Row],[ايراد Diesel]]+Table10[[#This Row],[ايراد 95]]+Table10[[#This Row],[ايراد 91]] -> 13439.44 | N29: 2.095 | O29: 0.6075 | P29: 0.61 | Q29: =(Table10[[#This Row],[سعر 91]]-Table10[[#This Row],[شراء 91]])*Table10[[#This Row],[مبيعات 91]] -> 461.72 | R29: =(Table10[[#This Row],[سعر 95]]-Table10[[#This Row],[شراء 95]])*Table10[[#This Row],[مبيعات 95]] -> 0 | S29: =(Table10[[#This Row],[سعر Diesel]]-Table10[[#This Row],[شراء Diesel]])*Table10[[#This Row],[مبيعات Diesel]] -> 50.72 | T29: =SUM(Table10[[#This Row],[أرباح 91]:[أرباح Diesel]]) -> 512.44 | U29: =Table10[[#This Row],[اجمالي الايراد]]*(15/115) -> 1752.970435 | V29: =Table10[[#This Row],[اجمالي الايراد]]-Table10[[#This Row],[ضريبة]] -> 11686.46957
B30: 2022-01-14 | C30: وردية أولى | D30: 1807 | E30: 2.18 | F30: =Table10[[#This Row],[مبيعات 91]]*Table10[[#This Row],[سعر 91]] -> 3939.26 | I30: =Table10[[#This Row],[سعر 95]]*Table10[[#This Row],[مبيعات 95]] -> 0 | J30: 665 | K30: 0.63 | L30: =Table10[[#This Row],[سعر Diesel]]*Table10[[#This Row],[مبيعات Diesel]] -> 418.95 | M30: =Table10[[#This Row],[ايراد Diesel]]+Table10[[#This Row],[ايراد 95]]+Table10[[#This Row],[ايراد 91]] -> 4358.21 | N30: 2.095 | O30: 0.6075 | P30: 0.61 | Q30: =(Table10[[#This Row],[سعر 91]]-Table10[[#This Row],[شراء 91]])*Table10[[#This Row],[مبيعات 91]] -> 153.595 | R30: =(Table10[[#This Row],[سعر 95]]-Table10[[#This Row],[شراء 95]])*Table10[[#This Row],[مبيعات 95]] -> 0 | S30: =(Table10[[#This Row],[سعر Diesel]]-Table10[[#This Row],[شراء Diesel]])*Table10[[#This Row],[مبيعات Diesel]] -> 13.3 | T30: =SUM(Table10[[#This Row],[أرباح 91]:[أرباح Diesel]]) -> 166.895 | U30: =Table10[[#This Row],[اجمالي الايراد]]*(15/115) -> 568.4621739 | V30: =Table10[[#This Row],[اجمالي الايراد]]-Table10[[#This Row],[ضريبة]] -> 3789.747826
B31: 2022-01-14 | C31: وردية ثانية | D31: 3621 | E31: 2.18 | F31: =Table10[[#This Row],[مبيعات 91]]*Table10[[#This Row],[سعر 91]] -> 7893.78 | I31: =Table10[[#This Row],[سعر 95]]*Table10[[#This Row],[مبيعات 95]] -> 0 | J31: 2122 | K31: 0.63 | L31: =Table10[[#This Row],[سعر Diesel]]*Table10[[#This Row],[مبيعات Diesel]] -> 1336.86 | M31: =Table10[[#This Row],[ايراد Diesel]]+Table10[[#This Row],[ايراد 95]]+Table10[[#This Row],[ايراد 91]] -> 9230.64 | N31: 2.095 | O31: 0.6075 | P31: 0.61 | Q31: =(Table10[[#This Row],[سعر 91]]-Table10[[#This Row],[شراء 91]])*Table10[[#This Row],[مبيعات 91]] -> 307.785 | R31: =(Table10[[#This Row],[سعر 95]]-Table10[[#This Row],[شراء 95]])*Table10[[#This Row],[مبيعات 95]] -> 0 | S31: =(Table10[[#This Row],[سعر Diesel]]-Table10[[#This Row],[شراء Diesel]])*Table10[[#This Row],[مبيعات Diesel]] -> 42.44 | T31: =SUM(Table10[[#This Row],[أرباح 91]:[أرباح Diesel]]) -> 350.225 | U31: =Table10[[#This Row],[اجمالي الايراد]]*(15/115) -> 1203.996522 | V31: =Table10[[#This Row],[اجمالي الايراد]]-Table10[[#This Row],[ضريبة]] -> 8026.643478
B32: 2022-01-15 | C32: وردية أولى | D32: 3582 | E32: 2.18 | F32: =Table10[[#This Row],[مبيعات 91]]*Table10[[#This Row],[سعر 91]] -> 7808.76 | I32: =Table10[[#This Row],[سعر 95]]*Table10[[#This Row],[مبيعات 95]] -> 0 | J32: 2089 | K32: 0.63 | L32: =Table10[[#This Row],[سعر Diesel]]*Table10[[#This Row],[مبيعات Diesel]] -> 1316.07 | M32: =Table10[[#This Row],[ايراد Diesel]]+Table10[[#This Row],[ايراد 95]]+Table10[[#This Row],[ايراد 91]] -> 9124.83 | N32: 2.095 | O32: 0.6075 | P32: 0.61 | Q32: =(Table10[[#This Row],[سعر 91]]-Table10[[#This Row],[شراء 91]])*Table10[[#This Row],[مبيعات 91]] -> 304.47 | R32: =(Table10[[#This Row],[سعر 95]]-Table10[[#This Row],[شراء 95]])*Table10[[#This Row],[مبيعات 95]] -> 0 | S32: =(Table10[[#This Row],[سعر Diesel]]-Table10[[#This Row],[شراء Diesel]])*Table10[[#This Row],[مبيعات Diesel]] -> 41.78 | T32: =SUM(Table10[[#This Row],[أرباح 91]:[أرباح Diesel]]) -> 346.25 | U32: =Table10[[#This Row],[اجمالي الايراد]]*(15/115) -> 1190.195217 | V32: =Table10[[#This Row],[اجمالي الايراد]]-Table10[[#This Row],[ضريبة]] -> 7934.634783
B33: 2022-01-15 | C33: وردية ثانية | D33: 4726 | E33: 2.18 | F33: =Table10[[#This Row],[مبيعات 91]]*Table10[[#This Row],[سعر 91]] -> 10302.68 | I33: =Table10[[#This Row],[سعر 95]]*Table10[[#This Row],[مبيعات 95]] -> 0 | J33: 7492 | K33: 0.63 | L33: =Table10[[#This Row],[سعر Diesel]]*Table10[[#This Row],[مبيعات Diesel]] -> 4719.96 | M33: =Table10[[#This Row],[ايراد Diesel]]+Table10[[#This Row],[ايراد 95]]+Table10[[#This Row],[ايراد 91]] -> 15022.64 | N33: 2.095 | O33: 0.6075 | P33: 0.61 | Q33: =(Table10[[#This Row],[سعر 91]]-Table10[[#This Row],[شراء 91]])*Table10[[#This Row],[مبيعات 91]] -> 401.71 | R33: =(Table10[[#This Row],[سعر 95]]-Table10[[#This Row],[شراء 95]])*Table10[[#This Row],[مبيعات 95]] -> 0 | S33: =(Table10[[#This Row],[سعر Diesel]]-Table10[[#This Row],[شراء Diesel]])*Table10[[#This Row],[مبيعات Diesel]] -> 149.84 | T33: =SUM(Table10[[#This Row],[أرباح 91]:[أرباح Diesel]]) -> 551.55 | U33: =Table10[[#This Row],[اجمالي الايراد]]*(15/115) -> 1959.474783 | V33: =Table10[[#This Row],[اجمالي الايراد]]-Table10[[#This Row],[ضريبة]] -> 13063.16522
B34: 2022-01-16 | C34: وردية أولى | D34: 4161 | E34: 2.18 | F34: =Table10[[#This Row],[مبيعات 91]]*Table10[[#This Row],[سعر 91]] -> 9070.98 | I34: =Table10[[#This Row],[سعر 95]]*Table10[[#This Row],[مبيعات 95]] -> 0 | J34: 4211 | K34: 0.63 | L34: =Table10[[#This Row],[سعر Diesel]]*Table10[[#This Row],[مبيعات Diesel]] -> 2652.93 | M34: =Table10[[#This Row],[ايراد Diesel]]+Table10[[#This Row],[ايراد 95]]+Table10[[#This Row],[ايراد 91]] -> 11723.91 | N34: 2.095 | O34: 0.6075 | P34: 0.61 | Q34: =(Table10[[#This Row],[سعر 91]]-Table10[[#This Row],[شراء 91]])*Table10[[#This Row],[مبيعات 91]] -> 353.685 | R34: =(Table10[[#This Row],[سعر 95]]-Table10[[#This Row],[شراء 95]])*Table10[[#This Row],[مبيعات 95]] -> 0 | S34: =(Table10[[#This Row],[سعر Diesel]]-Table10[[#This Row],[شراء Diesel]])*Table10[[#This Row],[مبيعات Diesel]] -> 84.22 | T34: =SUM(Table10[[#This Row],[أرباح 91]:[أرباح Diesel]]) -> 437.905 | U34: =Table10[[#This Row],[اجمالي الايراد]]*(15/115) -> 1529.205652 | V34: =Table10[[#This Row],[اجمالي الايراد]]-Table10[[#This Row],[ضريبة]] -> 10194.70435
B35: 2022-01-16 | C35: وردية ثانية | D35: 5237 | E35: 2.18 | F35: =Table10[[#This Row],[مبيعات 91]]*Table10[[#This Row],[سعر 91]] -> 11416.66 | I35: =Table10[[#This Row],[سعر 95]]*Table10[[#This Row],[مبيعات 95]] -> 0 | J35: 2671 | K35: 0.63 | L35: =Table10[[#This Row],[سعر Diesel]]*Table10[[#This Row],[مبيعات Diesel]] -> 1682.73 | M35: =Table10[[#This Row],[ايراد Diesel]]+Table10[[#This Row],[ايراد 95]]+Table10[[#This Row],[ايراد 91]] -> 13099.39 | N35: 2.095 | O35: 0.6075 | P35: 0.61 | Q35: =(Table10[[#This Row],[سعر 91]]-Table10[[#This Row],[شراء 91]])*Table10[[#This Row],[مبيعات 91]] -> 445.145 | R35: =(Table10[[#This Row],[سعر 95]]-Table10[[#This Row],[شراء 95]])*Table10[[#This Row],[مبيعات 95]] -> 0 | S35: =(Table10[[#This Row],[سعر Diesel]]-Table10[[#This Row],[شراء Diesel]])*Table10[[#This Row],[مبيعات Diesel]] -> 53.42 | T35: =SUM(Table10[[#This Row],[أرباح 91]:[أرباح Diesel]]) -> 498.565 | U35: =Table10[[#This Row],[اجمالي الايراد]]*(15/115) -> 1708.616087 | V35: =Table10[[#This Row],[اجمالي الايراد]]-Table10[[#This Row],[ضريبة]] -> 11390.77391
B36: 2022-01-17 | C36: وردية أولى | D36: 4756 | E36: 2.18 | F36: =Table10[[#This Row],[مبيعات 91]]*Table10[[#This Row],[سعر 91]] -> 10368.08 | I36: =Table10[[#This Row],[سعر 95]]*Table10[[#This Row],[مبيعات 95]] -> 0 | J36: 5921 | K36: 0.63 | L36: =Table10[[#This Row],[سعر Diesel]]*Table10[[#This Row],[مبيعات Diesel]] -> 3730.23 | M36: =Table10[[#This Row],[ايراد Diesel]]+Table10[[#This Row],[ايراد 95]]+Table10[[#This Row],[ايراد 91]] -> 14098.31 | N36: 2.095 | O36: 0.6075 | P36: 0.61 | Q36: =(Table10[[#This Row],[سعر 91]]-Table10[[#This Row],[شراء 91]])*Table10[[#This Row],[مبيعات 91]] -> 404.26 | R36: =(Table10[[#This Row],[سعر 95]]-Table10[[#This Row],[شراء 95]])*Table10[[#This Row],[مبيعات 95]] -> 0 | S36: =(Table10[[#This Row],[سعر Diesel]]-Table10[[#This Row],[شراء Diesel]])*Table10[[#This Row],[مبيعات Diesel]] -> 118.42 | T36: =SUM(Table10[[#This Row],[أرباح 91]:[أرباح Diesel]]) -> 522.68 | U36: =Table10[[#This Row],[اجمالي الايراد]]*(15/115) -> 1838.91 | V36: =Table10[[#This Row],[اجمالي الايراد]]-Table10[[#This Row],[ضريبة]] -> 12259.4
B37: 2022-01-17 | C37: وردية ثانية | D37: 4794 | E37: 2.18 | F37: =Table10[[#This Row],[مبيعات 91]]*Table10[[#This Row],[سعر 91]] -> 10450.92 | I37: =Table10[[#This Row],[سعر 95]]*Table10[[#This Row],[مبيعات 95]] -> 0 | J37: 2398 | K37: 0.63 | L37: =Table10[[#This Row],[سعر Diesel]]*Table10[[#This Row],[مبيعات Diesel]] -> 1510.74 | M37: =Table10[[#This Row],[ايراد Diesel]]+Table10[[#This Row],[ايراد 95]]+Table10[[#This Row],[ايراد 91]] -> 11961.66 | N37: 2.095 | O37: 0.6075 | P37: 0.61 | Q37: =(Table10[[#This Row],[سعر 91]]-Table10[[#This Row],[شراء 91]])*Table10[[#This Row],[مبيعات 91]] -> 407.49 | R37: =(Table10[[#This Row],[سعر 95]]-Table10[[#This Row],[شراء 95]])*Table10[[#This Row],[مبيعات 95]] -> 0 | S37: =(Table10[[#This Row],[سعر Diesel]]-Table10[[#This Row],[شراء Diesel]])*Table10[[#This Row],[مبيعات Diesel]] -> 47.96 | T37: =SUM(Table10[[#This Row],[أرباح 91]:[أرباح Diesel]]) -> 455.45 | U37: =Table10[[#This Row],[اجمالي الايراد]]*(15/115) -> 1560.216522 | V37: =Table10[[#This Row],[اجمالي الايراد]]-Table10[[#This Row],[ضريبة]] -> 10401.44348
B38: 2022-01-18 | C38: وردية أولى | D38: 5415 | E38: 2.18 | F38: =Table10[[#This Row],[مبيعات 91]]*Table10[[#This Row],[سعر 91]] -> 11804.7 | I38: =Table10[[#This Row],[سعر 95]]*Table10[[#This Row],[مبيعات 95]] -> 0 | J38: 3973 | K38: 0.63 | L38: =Table10[[#This Row],[سعر Diesel]]*Table10[[#This Row],[مبيعات Diesel]] -> 2502.99 | M38: =Table10[[#This Row],[ايراد Diesel]]+Table10[[#This Row],[ايراد 95]]+Table10[[#This Row],[ايراد 91]] -> 14307.69 | N38: 2.095 | O38: 0.6075 | P38: 0.61 | Q38: =(Table10[[#This Row],[سعر 91]]-Table10[[#This Row],[شراء 91]])*Table10[[#This Row],[مبيعات 91]] -> 460.275 | R38: =(Table10[[#This Row],[سعر 95]]-Table10[[#This Row],[شراء 95]])*Table10[[#This Row],[مبيعات 95]] -> 0 | S38: =(Table10[[#This Row],[سعر Diesel]]-Table10[[#This Row],[شراء Diesel]])*Table10[[#This Row],[مبيعات Diesel]] -> 79.46 | T38: =SUM(Table10[[#This Row],[أرباح 91]:[أرباح Diesel]]) -> 539.735 | U38: =Table10[[#This Row],[اجمالي الايراد]]*(15/115) -> 1866.220435 | V38: =Table10[[#This Row],[اجمالي الايراد]]-Table10[[#This Row],[ضريبة]] -> 12441.46957
B39: 2022-01-18 | C39: وردية ثانية | D39: 4834 | E39: 2.18 | F39: =Table10[[#This Row],[مبيعات 91]]*Table10[[#This Row],[سعر 91]] -> 10538.12 | I39: =Table10[[#This Row],[سعر 95]]*Table10[[#This Row],[مبيعات 95]] -> 0 | J39: 2209 | K39: 0.63 | L39: =Table10[[#This Row],[سعر Diesel]]*Table10[[#This Row],[مبيعات Diesel]] -> 1391.67 | M39: =Table10[[#This Row],[ايراد Diesel]]+Table10[[#This Row],[ايراد 95]]+Table10[[#This Row],[ايراد 91]] -> 11929.79 | N39: 2.095 | O39: 0.6075 | P39: 0.61 | Q39: =(Table10[[#This Row],[سعر 91]]-Table10[[#This Row],[شراء 91]])*Table10[[#This Row],[مبيعات 91]] -> 410.89 | R39: =(Table10[[#This Row],[سعر 95]]-Table10[[#This Row],[شراء 95]])*Table10[[#This Row],[مبيعات 95]] -> 0 | S39: =(Table10[[#This Row],[سعر Diesel]]-Table10[[#This Row],[شراء Diesel]])*Table10[[#This Row],[مبيعات Diesel]] -> 44.18 | T39: =SUM(Table10[[#This Row],[أرباح 91]:[أرباح Diesel]]) -> 455.07 | U39: =Table10[[#This Row],[اجمالي الايراد]]*(15/115) -> 1556.059565 | V39: =Table10[[#This Row],[اجمالي الايراد]]-Table10[[#This Row],[ضريبة]] -> 10373.73043
B40: 2022-01-19 | C40: وردية أولى | D40: 4237 | E40: 2.18 | F40: =Table10[[#This Row],[مبيعات 91]]*Table10[[#This Row],[سعر 91]] -> 9236.66 | I40: =Table10[[#This Row],[سعر 95]]*Table10[[#This Row],[مبيعات 95]] -> 0 | J40: 7286 | K40: 0.63 | L40: =Table10[[#This Row],[سعر Diesel]]*Table10[[#This Row],[مبيعات Diesel]] -> 4590.18 | M40: =Table10[[#This Row],[ايراد Diesel]]+Table10[[#This Row],[ايراد 95]]+Table10[[#This Row],[ايراد 91]] -> 13826.84 | N40: 2.095 | O40: 0.6075 | P40: 0.61 | Q40: =(Table10[[#This Row],[سعر 91]]-Table10[[#This Row],[شراء 91]])*Table10[[#This Row],[مبيعات 91]] -> 360.145 | R40: =(Table10[[#This Row],[سعر 95]]-Table10[[#This Row],[شراء 95]])*Table10[[#This Row],[مبيعات 95]] -> 0 | S40: =(Table10[[#This Row],[سعر Diesel]]-Table10[[#This Row],[شراء Diesel]])*Table10[[#This Row],[مبيعات Diesel]] -> 145.72 | T40: =SUM(Table10[[#This Row],[أرباح 91]:[أرباح Diesel]]) -> 505.865 | U40: =Table10[[#This Row],[اجمالي الايراد]]*(15/115) -> 1803.50087 | V40: =Table10[[#This Row],[اجمالي الايراد]]-Table10[[#This Row],[ضريبة]] -> 12023.33913
B41: 2022-01-19 | C41: وردية ثانية | D41: 4458 | E41: 2.18 | F41: =Table10[[#This Row],[مبيعات 91]]*Table10[[#This Row],[سعر 91]] -> 9718.44 | I41: =Table10[[#This Row],[سعر 95]]*Table10[[#This Row],[مبيعات 95]] -> 0 | J41: 2711 | K41: 0.63 | L41: =Table10[[#This Row],[سعر Diesel]]*Table10[[#This Row],[مبيعات Diesel]] -> 1707.93 | M41: =Table10[[#This Row],[ايراد Diesel]]+Table10[[#This Row],[ايراد 95]]+Table10[[#This Row],[ايراد 91]] -> 11426.37 | N41: 2.095 | O41: 0.6075 | P41: 0.61 | Q41: =(Table10[[#This Row],[سعر 91]]-Table10[[#This Row],[شراء 91]])*Table10[[#This Row],[مبيعات 91]] -> 378.93 | R41: =(Table10[[#This Row],[سعر 95]]-Table10[[#This Row],[شراء 95]])*Table10[[#This Row],[مبيعات 95]] -> 0 | S41: =(Table10[[#This Row],[سعر Diesel]]-Table10[[#This Row],[شراء Diesel]])*Table10[[#This Row],[مبيعات Diesel]] -> 54.22 | T41: =SUM(Table10[[#This Row],[أرباح 91]:[أرباح Diesel]]) -> 433.15 | U41: =Table10[[#This Row],[اجمالي الايراد]]*(15/115) -> 1490.396087 | V41: =Table10[[#This Row],[اجمالي الايراد]]-Table10[[#This Row],[ضريبة]] -> 9935.973913
B42: 2022-01-20 | C42: وردية أولى | D42: 4872 | E42: 2.18 | F42: =Table10[[#This Row],[مبيعات 91]]*Table10[[#This Row],[سعر 91]] -> 10620.96 | I42: =Table10[[#This Row],[سعر 95]]*Table10[[#This Row],[مبيعات 95]] -> 0 | J42: 3659 | K42: 0.63 | L42: =Table10[[#This Row],[سعر Diesel]]*Table10[[#This Row],[مبيعات Diesel]] -> 2305.17 | M42: =Table10[[#This Row],[ايراد Diesel]]+Table10[[#This Row],[ايراد 95]]+Table10[[#This Row],[ايراد 91]] -> 12926.13 | N42: 2.095 | O42: 0.60975 | P42: 0.61 | Q42: =(Table10[[#This Row],[سعر 91]]-Table10[[#This Row],[شراء 91]])*Table10[[#This Row],[مبيعات 91]] -> 414.12 | R42: =(Table10[[#This Row],[سعر 95]]-Table10[[#This Row],[شراء 95]])*Table10[[#This Row],[مبيعات 95]] -> 0 | S42: =(Table10[[#This Row],[سعر Diesel]]-Table10[[#This Row],[شراء Diesel]])*Table10[[#This Row],[مبيعات Diesel]] -> 73.18 | T42: =SUM(Table10[[#This Row],[أرباح 91]:[أرباح Diesel]]) -> 487.3 | U42: =Table10[[#This Row],[اجمالي الايراد]]*(15/115) -> 1686.016957 | V42: =Table10[[#This Row],[اجمالي الايراد]]-Table10[[#This Row],[ضريبة]] -> 11240.11304
B43: 2022-01-20 | C43: وردية ثانية | D43: 5623 | E43: 2.18 | F43: =Table10[[#This Row],[مبيعات 91]]*Table10[[#This Row],[سعر 91]] -> 12258.14 | I43: =Table10[[#This Row],[سعر 95]]*Table10[[#This Row],[مبيعات 95]] -> 0 | J43: 2264 | K43: 0.63 | L43: =Table10[[#This Row],[سعر Diesel]]*Table10[[#This Row],[مبيعات Diesel]] -> 1426.32 | M43: =Table10[[#This Row],[ايراد Diesel]]+Table10[[#This Row],[ايراد 95]]+Table10[[#This Row],[ايراد 91]] -> 13684.46 | N43: 2.095 | O43: 0.60975 | P43: 0.61 | Q43: =(Table10[[#This Row],[سعر 91]]-Table10[[#This Row],[شراء 91]])*Table10[[#This Row],[مبيعات 91]] -> 477.955 | R43: =(Table10[[#This Row],[سعر 95]]-Table10[[#This Row],[شراء 95]])*Table10[[#This Row],[مبيعات 95]] -> 0 | S43: =(Table10[[#This Row],[سعر Diesel]]-Table10[[#This Row],[شراء Diesel]])*Table10[[#This Row],[مبيعات Diesel]] -> 45.28 | T43: =SUM(Table10[[#This Row],[أرباح 91]:[أرباح Diesel]]) -> 523.235 | U43: =Table10[[#This Row],[اجمالي الايراد]]*(15/115) -> 1784.929565 | V43: =Table10[[#This Row],[اجمالي الايراد]]-Table10[[#This Row],[ضريبة]] -> 11899.53043
B44: 2022-01-21 | C44: وردية أولى | D44: 2170 | E44: 2.18 | F44: =Table10[[#This Row],[مبيعات 91]]*Table10[[#This Row],[سعر 91]] -> 4730.6 | I44: =Table10[[#This Row],[سعر 95]]*Table10[[#This Row],[مبيعات 95]] -> 0 | J44: 1496 | K44: 0.63 | L44: =Table10[[#This Row],[سعر Diesel]]*Table10[[#This Row],[مبيعات Diesel]] -> 942.48 | M44: =Table10[[#This Row],[ايراد Diesel]]+Table10[[#This Row],[ايراد 95]]+Table10[[#This Row],[ايراد 91]] -> 5673.08 | N44: 2.095 | O44: 0.60975 | P44: 0.61 | Q44: =(Table10[[#This Row],[سعر 91]]-Table10[[#This Row],[شراء 91]])*Table10[[#This Row],[مبيعات 91]] -> 184.45 | R44: =(Table10[[#This Row],[سعر 95]]-Table10[[#This Row],[شراء 95]])*Table10[[#This Row],[مبيعات 95]] -> 0 | S44: =(Table10[[#This Row],[سعر Diesel]]-Table10[[#This Row],[شراء Diesel]])*Table10[[#This Row],[مبيعات Diesel]] -> 29.92 | T44: =SUM(Table10[[#This Row],[أرباح 91]:[أرباح Diesel]]) -> 214.37 | U44: =Table10[[#This Row],[اجمالي الايراد]]*(15/115) -> 739.9669565 | V44: =Table10[[#This Row],[اجمالي الايراد]]-Table10[[#This Row],[ضريبة]] -> 4933.113043
B45: 2022-01-21 | C45: وردية ثانية | D45: 4494 | E45: 2.18 | F45: =Table10[[#This Row],[مبيعات 91]]*Table10[[#This Row],[سعر 91]] -> 9796.92 | I45: =Table10[[#This Row],[سعر 95]]*Table10[[#This Row],[مبيعات 95]] -> 0 | J45: 2869 | K45: 0.63 | L45: =Table10[[#This Row],[سعر Diesel]]*Table10[[#This Row],[مبيعات Diesel]] -> 1807.47 | M45: =Table10[[#This Row],[ايراد Diesel]]+Table10[[#This Row],[ايراد 95]]+Table10[[#This Row],[ايراد 91]] -> 11604.39 | N45: 2.095 | O45: 0.60975 | P45: 0.61 | Q45: =(Table10[[#This Row],[سعر 91]]-Table10[[#This Row],[شراء 91]])*Table10[[#This Row],[مبيعات 91]] -> 381.99 | R45: =(Table10[[#This Row],[سعر 95]]-Table10[[#This Row],[شراء 95]])*Table10[[#This Row],[مبيعات 95]] -> 0 | S45: =(Table10[[#This Row],[سعر Diesel]]-Table10[[#This Row],[شراء Diesel]])*Table10[[#This Row],[مبيعات Diesel]] -> 57.38 | T45: =SUM(Table10[[#This Row],[أرباح 91]:[أرباح Diesel]]) -> 439.37 | U45: =Table10[[#This Row],[اجمالي الايراد]]*(15/115) -> 1513.616087 | V45: =Table10[[#This Row],[اجمالي الايراد]]-Table10[[#This Row],[ضريبة]] -> 10090.77391
B46: 2022-01-22 | C46: وردية أولى | D46: 4814 | E46: 2.18 | F46: =Table10[[#This Row],[مبيعات 91]]*Table10[[#This Row],[سعر 91]] -> 10494.52 | I46: =Table10[[#This Row],[سعر 95]]*Table10[[#This Row],[مبيعات 95]] -> 0 | J46: 6714 | K46: 0.63 | L46: =Table10[[#This Row],[سعر Diesel]]*Table10[[#This Row],[مبيعات Diesel]] -> 4229.82 | M46: =Table10[[#This Row],[ايراد Diesel]]+Table10[[#This Row],[ايراد 95]]+Table10[[#This Row],[ايراد 91]] -> 14724.34 | N46: 2.095 | O46: 0.60975 | P46: 0.61 | Q46: =(Table10[[#This Row],[سعر 91]]-Table10[[#This Row],[شراء 91]])*Table10[[#This Row],[مبيعات 91]] -> 409.19 | R46: =(Table10[[#This Row],[سعر 95]]-Table10[[#This Row],[شراء 95]])*Table10[[#This Row],[مبيعات 95]] -> 0 | S46: =(Table10[[#This Row],[سعر Diesel]]-Table10[[#This Row],[شراء Diesel]])*Table10[[#This Row],[مبيعات Diesel]] -> 134.28 | T46: =SUM(Table10[[#This Row],[أرباح 91]:[أرباح Diesel]]) -> 543.47 | U46: =Table10[[#This Row],[اجمالي الايراد]]*(15/115) -> 1920.566087 | V46: =Table10[[#This Row],[اجمالي الايراد]]-Table10[[#This Row],[ضريبة]] -> 12803.77391
B47: 2022-01-22 | C47: وردية ثانية | D47: 5198 | E47: 2.18 | F47: =Table10[[#This Row],[مبيعات 91]]*Table10[[#This Row],[سعر 91]] -> 11331.64 | I47: =Table10[[#This Row],[سعر 95]]*Table10[[#This Row],[مبيعات 95]] -> 0 | J47: 3081 | K47: 0.63 | L47: =Table10[[#This Row],[سعر Diesel]]*Table10[[#This Row],[مبيعات Diesel]] -> 1941.03 | M47: =Table10[[#This Row],[ايراد Diesel]]+Table10[[#This Row],[ايراد 95]]+Table10[[#This Row],[ايراد 91]] -> 13272.67 | N47: 2.095 | O47: 0.60975 | P47: 0.61 | Q47: =(Table10[[#This Row],[سعر 91]]-Table10[[#This Row],[شراء 91]])*Table10[[#This Row],[مبيعات 91]] -> 441.83 | R47: =(Table10[[#This Row],[سعر 95]]-Table10[[#This Row],[شراء 95]])*Table10[[#This Row],[مبيعات 95]] -> 0 | S47: =(Table10[[#This Row],[سعر Diesel]]-Table10[[#This Row],[شراء Diesel]])*Table10[[#This Row],[مبيعات Diesel]] -> 61.62 | T47: =SUM(Table10[[#This Row],[أرباح 91]:[أرباح Diesel]]) -> 503.45 | U47: =Table10[[#This Row],[اجمالي الايراد]]*(15/115) -> 1731.217826 | V47: =Table10[[#This Row],[اجمالي الايراد]]-Table10[[#This Row],[ضريبة]] -> 11541.45217
B48: 2022-01-23 | C48: وردية أولى | D48: 5364 | E48: 2.18 | F48: =Table10[[#This Row],[مبيعات 91]]*Table10[[#This Row],[سعر 91]] -> 11693.52 | I48: =Table10[[#This Row],[سعر 95]]*Table10[[#This Row],[مبيعات 95]] -> 0 | J48: 2934 | K48: 0.63 | L48: =Table10[[#This Row],[سعر Diesel]]*Table10[[#This Row],[مبيعات Diesel]] -> 1848.42 | M48: =Table10[[#This Row],[ايراد Diesel]]+Table10[[#This Row],[ايراد 95]]+Table10[[#This Row],[ايراد 91]] -> 13541.94 | N48: 2.095 | O48: 0.60975 | P48: 0.61 | Q48: =(Table10[[#This Row],[سعر 91]]-Table10[[#This Row],[شراء 91]])*Table10[[#This Row],[مبيعات 91]] -> 455.94 | R48: =(Table10[[#This Row],[سعر 95]]-Table10[[#This Row],[شراء 95]])*Table10[[#This Row],[مبيعات 95]] -> 0 | S48: =(Table10[[#This Row],[سعر Diesel]]-Table10[[#This Row],[شراء Diesel]])*Table10[[#This Row],[مبيعات Diesel]] -> 58.68 | T48: =SUM(Table10[[#This Row],[أرباح 91]:[أرباح Diesel]]) -> 514.62 | U48: =Table10[[#This Row],[اجمالي الايراد]]*(15/115) -> 1766.34 | V48: =Table10[[#This Row],[اجمالي الايراد]]-Table10[[#This Row],[ضريبة]] -> 11775.6
B49: 2022-01-23 | C49: وردية ثانية | D49: 5808 | E49: 2.18 | F49: =Table10[[#This Row],[مبيعات 91]]*Table10[[#This Row],[سعر 91]] -> 12661.44 | I49: =Table10[[#This Row],[سعر 95]]*Table10[[#This Row],[مبيعات 95]] -> 0 | J49: 3115 | K49: 0.63 | L49: =Table10[[#This Row],[سعر Diesel]]*Table10[[#This Row],[مبيعات Diesel]] -> 1962.45 | M49: =Table10[[#This Row],[ايراد Diesel]]+Table10[[#This Row],[ايراد 95]]+Table10[[#This Row],[ايراد 91]] -> 14623.89 | N49: 2.095 | O49: 0.60975 | P49: 0.61 | Q49: =(Table10[[#This Row],[سعر 91]]-Table10[[#This Row],[شراء 91]])*Table10[[#This Row],[مبيعات 91]] -> 493.68 | R49: =(Table10[[#This Row],[سعر 95]]-Table10[[#This Row],[شراء 95]])*Table10[[#This Row],[مبيعات 95]] -> 0 | S49: =(Table10[[#This Row],[سعر Diesel]]-Table10[[#This Row],[شراء Diesel]])*Table10[[#This Row],[مبيعات Diesel]] -> 62.3 | T49: =SUM(Table10[[#This Row],[أرباح 91]:[أرباح Diesel]]) -> 555.98 | U49: =Table10[[#This Row],[اجمالي الايراد]]*(15/115) -> 1907.463913 | V49: =Table10[[#This Row],[اجمالي الايراد]]-Table10[[#This Row],[ضريبة]] -> 12716.42609
B50: 2022-01-24 | C50: وردية أولى | D50: 4789 | E50: 2.18 | F50: =Table10[[#This Row],[مبيعات 91]]*Table10[[#This Row],[سعر 91]] -> 10440.02 | I50: =Table10[[#This Row],[سعر 95]]*Table10[[#This Row],[مبيعات 95]] -> 0 | J50: 3762 | K50: 0.63 | L50: =Table10[[#This Row],[سعر Diesel]]*Table10[[#This Row],[مبيعات Diesel]] -> 2370.06 | M50: =Table10[[#This Row],[ايراد Diesel]]+Table10[[#This Row],[ايراد 95]]+Table10[[#This Row],[ايراد 91]] -> 12810.08 | N50: 2.095 | O50: 0.60975 | P50: 0.61 | Q50: =(Table10[[#This Row],[سعر 91]]-Table10[[#This Row],[شراء 91]])*Table10[[#This Row],[مبيعات 91]] -> 407.065 | R50: =(Table10[[#This Row],[سعر 95]]-Table10[[#This Row],[شراء 95]])*Table10[[#This Row],[مبيعات 95]] -> 0 | S50: =(Table10[[#This Row],[سعر Diesel]]-Table10[[#This Row],[شراء Diesel]])*Table10[[#This Row],[مبيعات Diesel]] -> 75.24 | T50: =SUM(Table10[[#This Row],[أرباح 91]:[أرباح Diesel]]) -> 482.305 | U50: =Table10[[#This Row],[اجمالي الايراد]]*(15/115) -> 1670.88 | V50: =Table10[[#This Row],[اجمالي الايراد]]-Table10[[#This Row],[ضريبة]] -> 11139.2
B51: 2022-01-24 | C51: وردية ثانية | D51: 4693 | E51: 2.18 | F51: =Table10[[#This Row],[مبيعات 91]]*Table10[[#This Row],[سعر 91]] -> 10230.74 | I51: =Table10[[#This Row],[سعر 95]]*Table10[[#This Row],[مبيعات 95]] -> 0 | J51: 2207 | K51: 0.63 | L51: =Table10[[#This Row],[سعر Diesel]]*Table10[[#This Row],[مبيعات Diesel]] -> 1390.41 | M51: =Table10[[#This Row],[ايراد Diesel]]+Table10[[#This Row],[ايراد 95]]+Table10[[#This Row],[ايراد 91]] -> 11621.15 | N51: 2.095 | O51: 0.60975 | P51: 0.61 | Q51: =(Table10[[#This Row],[سعر 91]]-Table10[[#This Row],[شراء 91]])*Table10[[#This Row],[مبيعات 91]] -> 398.905 | R51: =(Table10[[#This Row],[سعر 95]]-Table10[[#This Row],[شراء 95]])*Table10[[#This Row],[مبيعات 95]] -> 0 | S51: =(Table10[[#This Row],[سعر Diesel]]-Table10[[#This Row],[شراء Diesel]])*Table10[[#This Row],[مبيعات Diesel]] -> 44.14 | T51: =SUM(Table10[[#This Row],[أرباح 91]:[أرباح Diesel]]) -> 443.045 | U51: =Table10[[#This Row],[اجمالي الايراد]]*(15/115) -> 1515.802174 | V51: =Table10[[#This Row],[اجمالي الايراد]]-Table10[[#This Row],[ضريبة]] -> 10105.34783
B52: 2022-01-25 | C52: وردية أولى | D52: 4257 | E52: 2.18 | F52: =Table10[[#This Row],[مبيعات 91]]*Table10[[#This Row],[سعر 91]] -> 9280.26 | I52: =Table10[[#This Row],[سعر 95]]*Table10[[#This Row],[مبيعات 95]] -> 0 | J52: 3196 | K52: 0.63 | L52: =Table10[[#This Row],[سعر Diesel]]*Table10[[#This Row],[مبيعات Diesel]] -> 2013.48 | M52: =Table10[[#This Row],[ايراد Diesel]]+Table10[[#This Row],[ايراد 95]]+Table10[[#This Row],[ايراد 91]] -> 11293.74 | N52: 2.095 | O52: 0.60975 | P52: 0.61 | Q52: =(Table10[[#This Row],[سعر 91]]-Table10[[#This Row],[شراء 91]])*Table10[[#This Row],[مبيعات 91]] -> 361.845 | R52: =(Table10[[#This Row],[سعر 95]]-Table10[[#This Row],[شراء 95]])*Table10[[#This Row],[مبيعات 95]] -> 0 | S52: =(Table10[[#This Row],[سعر Diesel]]-Table10[[#This Row],[شراء Diesel]])*Table10[[#This Row],[مبيعات Diesel]] -> 63.92 | T52: =SUM(Table10[[#This Row],[أرباح 91]:[أرباح Diesel]]) -> 425.765 | U52: =Table10[[#This Row],[اجمالي الايراد]]*(15/115) -> 1473.096522 | V52: =Table10[[#This Row],[اجمالي الايراد]]-Table10[[#This Row],[ضريبة]] -> 9820.643478
B53: 2022-01-25 | C53: وردية ثانية | D53: 4609 | E53: 2.18 | F53: =Table10[[#This Row],[مبيعات 91]]*Table10[[#This Row],[سعر 91]] -> 10047.62 | I53: =Table10[[#This Row],[سعر 95]]*Table10[[#This Row],[مبيعات 95]] -> 0 | J53: 2002 | K53: 0.63 | L53: =Table10[[#This Row],[سعر Diesel]]*Table10[[#This Row],[مبيعات Diesel]] -> 1261.26 | M53: =Table10[[#This Row],[ايراد Diesel]]+Table10[[#This Row],[ايراد 95]]+Table10[[#This Row],[ايراد 91]] -> 11308.88 | N53: 2.095 | O53: 0.60975 | P53: 0.61 | Q53: =(Table10[[#This Row],[سعر 91]]-Table10[[#This Row],[شراء 91]])*Table10[[#This Row],[مبيعات 91]] -> 391.765 | R53: =(Table10[[#This Row],[سعر 95]]-Table10[[#This Row],[شراء 95]])*Table10[[#This Row],[مبيعات 95]] -> 0 | S53: =(Table10[[#This Row],[سعر Diesel]]-Table10[[#This Row],[شراء Diesel]])*Table10[[#This Row],[مبيعات Diesel]] -> 40.04 | T53: =SUM(Table10[[#This Row],[أرباح 91]:[أرباح Diesel]]) -> 431.805 | U53: =Table10[[#This Row],[اجمالي الايراد]]*(15/115) -> 1475.071304 | V53: =Table10[[#This Row],[اجمالي الايراد]]-Table10[[#This Row],[ضريبة]] -> 9833.808696
B54: 2022-01-26 | C54: وردية أولى | D54: 3554 | E54: 2.18 | F54: =Table10[[#This Row],[مبيعات 91]]*Table10[[#This Row],[سعر 91]] -> 7747.72 | I54: =Table10[[#This Row],[سعر 95]]*Table10[[#This Row],[مبيعات 95]] -> 0 | J54: 5054 | K54: 0.63 | L54: =Table10[[#This Row],[سعر Diesel]]*Table10[[#This Row],[مبيعات Diesel]] -> 3184.02 | M54: =Table10[[#This Row],[ايراد Diesel]]+Table10[[#This Row],[ايراد 95]]+Table10[[#This Row],[ايراد 91]] -> 10931.74 | N54: 2.095 | O54: 0.60975 | P54: 0.61 | Q54: =(Table10[[#This Row],[سعر 91]]-Table10[[#This Row],[شراء 91]])*Table10[[#This Row],[مبيعات 91]] -> 302.09 | R54: =(Table10[[#This Row],[سعر 95]]-Table10[[#This Row],[شراء 95]])*Table10[[#This Row],[مبيعات 95]] -> 0 | S54: =(Table10[[#This Row],[سعر Diesel]]-Table10[[#This Row],[شراء Diesel]])*Table10[[#This Row],[مبيعات Diesel]] -> 101.08 | T54: =SUM(Table10[[#This Row],[أرباح 91]:[أرباح Diesel]]) -> 403.17 | U54: =Table10[[#This Row],[اجمالي الايراد]]*(15/115) -> 1425.87913 | V54: =Table10[[#This Row],[اجمالي الايراد]]-Table10[[#This Row],[ضريبة]] -> 9505.86087
B55: 2022-01-26 | C55: وردية ثانية | D55: 4811 | E55: 2.18 | F55: =Table10[[#This Row],[مبيعات 91]]*Table10[[#This Row],[سعر 91]] -> 10487.98 | I55: =Table10[[#This Row],[سعر 95]]*Table10[[#This Row],[مبيعات 95]] -> 0 | J55: 2926 | K55: 0.63 | L55: =Table10[[#This Row],[سعر Diesel]]*Table10[[#This Row],[مبيعات Diesel]] -> 1843.38 | M55: =Table10[[#This Row],[ايراد Diesel]]+Table10[[#This Row],[ايراد 95]]+Table10[[#This Row],[ايراد 91]] -> 12331.36 | N55: 2.095 | O55: 0.60975 | P55: 0.61 | Q55: =(Table10[[#This Row],[سعر 91]]-Table10[[#This Row],[شراء 91]])*Table10[[#This Row],[مبيعات 91]] -> 408.935 | R55: =(Table10[[#This Row],[سعر 95]]-Table10[[#This Row],[شراء 95]])*Table10[[#This Row],[مبيعات 95]] -> 0 | S55: =(Table10[[#This Row],[سعر Diesel]]-Table10[[#This Row],[شراء Diesel]])*Table10[[#This Row],[مبيعات Diesel]] -> 58.52 | T55: =SUM(Table10[[#This Row],[أرباح 91]:[أرباح Diesel]]) -> 467.455 | U55: =Table10[[#This Row],[اجمالي الايراد]]*(15/115) -> 1608.438261 | V55: =Table10[[#This Row],[اجمالي الايراد]]-Table10[[#This Row],[ضريبة]] -> 10722.92174
B56: 2022-01-27 | C56: وردية أولى | D56: 5623 | E56: 2.18 | F56: =Table10[[#This Row],[مبيعات 91]]*Table10[[#This Row],[سعر 91]] -> 12258.14 | I56: =Table10[[#This Row],[سعر 95]]*Table10[[#This Row],[مبيعات 95]] -> 0 | J56: 7392 | K56: 0.63 | L56: =Table10[[#This Row],[سعر Diesel]]*Table10[[#This Row],[مبيعات Diesel]] -> 4656.96 | M56: =Table10[[#This Row],[ايراد Diesel]]+Table10[[#This Row],[ايراد 95]]+Table10[[#This Row],[ايراد 91]] -> 16915.1 | N56: 2.095 | O56: 0.60975 | P56: 0.61 | Q56: =(Table10[[#This Row],[سعر 91]]-Table10[[#This Row],[شراء 91]])*Table10[[#This Row],[مبيعات 91]] -> 477.955 | R56: =(Table10[[#This Row],[سعر 95]]-Table10[[#This Row],[شراء 95]])*Table10[[#This Row],[مبيعات 95]] -> 0 | S56: =(Table10[[#This Row],[سعر Diesel]]-Table10[[#This Row],[شراء Diesel]])*Table10[[#This Row],[مبيعات Diesel]] -> 147.84 | T56: =SUM(Table10[[#This Row],[أرباح 91]:[أرباح Diesel]]) -> 625.795 | U56: =Table10[[#This Row],[اجمالي الايراد]]*(15/115) -> 2206.317391 | V56: =Table10[[#This Row],[اجمالي الايراد]]-Table10[[#This Row],[ضريبة]] -> 14708.78261
B57: 2022-01-27 | C57: وردية ثانية | D57: 5508 | E57: 2.18 | F57: =Table10[[#This Row],[مبيعات 91]]*Table10[[#This Row],[سعر 91]] -> 12007.44 | I57: =Table10[[#This Row],[سعر 95]]*Table10[[#This Row],[مبيعات 95]] -> 0 | J57: 2550 | K57: 0.63 | L57: =Table10[[#This Row],[سعر Diesel]]*Table10[[#This Row],[مبيعات Diesel]] -> 1606.5 | M57: =Table10[[#This Row],[ايراد Diesel]]+Table10[[#This Row],[ايراد 95]]+Table10[[#This Row],[ايراد 91]] -> 13613.94 | N57: 2.095 | O57: 0.60975 | P57: 0.61 | Q57: =(Table10[[#This Row],[سعر 91]]-Table10[[#This Row],[شراء 91]])*Table10[[#This Row],[مبيعات 91]] -> 468.18 | R57: =(Table10[[#This Row],[سعر 95]]-Table10[[#This Row],[شراء 95]])*Table10[[#This Row],[مبيعات 95]] -> 0 | S57: =(Table10[[#This Row],[سعر Diesel]]-Table10[[#This Row],[شراء Diesel]])*Table10[[#This Row],[مبيعات Diesel]] -> 51 | T57: =SUM(Table10[[#This Row],[أرباح 91]:[أرباح Diesel]]) -> 519.18 | U57: =Table10[[#This Row],[اجمالي الايراد]]*(15/115) -> 1775.731304 | V57: =Table10[[#This Row],[اجمالي الايراد]]-Table10[[#This Row],[ضريبة]] -> 11838.2087
B58: 2022-01-28 | C58: وردية أولى | D58: 3082 | E58: 2.18 | F58: =Table10[[#This Row],[مبيعات 91]]*Table10[[#This Row],[سعر 91]] -> 6718.76 | I58: =Table10[[#This Row],[سعر 95]]*Table10[[#This Row],[مبيعات 95]] -> 0 | J58: 1145 | K58: 0.63 | L58: =Table10[[#This Row],[سعر Diesel]]*Table10[[#This Row],[مبيعات Diesel]] -> 721.35 | M58: =Table10[[#This Row],[ايراد Diesel]]+Table10[[#This Row],[ايراد 95]]+Table10[[#This Row],[ايراد 91]] -> 7440.11 | N58: 2.095 | O58: 0.60975 | P58: 0.61 | Q58: =(Table10[[#This Row],[سعر 91]]-Table10[[#This Row],[شراء 91]])*Table10[[#This Row],[مبيعات 91]] -> 261.97 | R58: =(Table10[[#This Row],[سعر 95]]-Table10[[#This Row],[شراء 95]])*Table10[[#This Row],[مبيعات 95]] -> 0 | S58: =(Table10[[#This Row],[سعر Diesel]]-Table10[[#This Row],[شراء Diesel]])*Table10[[#This Row],[مبيعات Diesel]] -> 22.9 | T58: =SUM(Table10[[#This Row],[أرباح 91]:[أرباح Diesel]]) -> 284.87 | U58: =Table10[[#This Row],[اجمالي الايراد]]*(15/115) -> 970.4491304 | V58: =Table10[[#This Row],[اجمالي الايراد]]-Table10[[#This Row],[ضريبة]] -> 6469.66087
B59: 2022-01-28 | C59: وردية ثانية | D59: 2895 | E59: 2.18 | F59: =Table10[[#This Row],[مبيعات 91]]*Table10[[#This Row],[سعر 91]] -> 6311.1 | I59: =Table10[[#This Row],[سعر 95]]*Table10[[#This Row],[مبيعات 95]] -> 0 | J59: 1665 | K59: 0.63 | L59: =Table10[[#This Row],[سعر Diesel]]*Table10[[#This Row],[مبيعات Diesel]] -> 1048.95 | M59: =Table10[[#This Row],[ايراد Diesel]]+Table10[[#This Row],[ايراد 95]]+Table10[[#This Row],[ايراد 91]] -> 7360.05 | N59: 2.095 | O59: 0.60975 | P59: 0.61 | Q59: =(Table10[[#This Row],[سعر 91]]-Table10[[#This Row],[شراء 91]])*Table10[[#This Row],[مبيعات 91]] -> 246.075 | R59: =(Table10[[#This Row],[سعر 95]]-Table10[[#This Row],[شراء 95]])*Table10[[#This Row],[مبيعات 95]] -> 0 | S59: =(Table10[[#This Row],[سعر Diesel]]-Table10[[#This Row],[شراء Diesel]])*Table10[[#This Row],[مبيعات Diesel]] -> 33.3 | T59: =SUM(Table10[[#This Row],[أرباح 91]:[أرباح Diesel]]) -> 279.375 | U59: =Table10[[#This Row],[اجمالي الايراد]]*(15/115) -> 960.0065217 | V59: =Table10[[#This Row],[اجمالي الايراد]]-Table10[[#This Row],[ضريبة]] -> 6400.043478
B60: 2022-01-29 | C60: وردية أولى | D60: 3997 | E60: 2.18 | F60: =Table10[[#This Row],[مبيعات 91]]*Table10[[#This Row],[سعر 91]] -> 8713.46 | I60: =Table10[[#This Row],[سعر 95]]*Table10[[#This Row],[مبيعات 95]] -> 0 | J60: 6730 | K60: 0.63 | L60: =Table10[[#This Row],[سعر Diesel]]*Table10[[#This Row],[مبيعات Diesel]] -> 4239.9 | M60: =Table10[[#This Row],[ايراد Diesel]]+Table10[[#This Row],[ايراد 95]]+Table10[[#This Row],[ايراد 91]] -> 12953.36 | N60: 2.095 | O60: 0.60975 | P60: 0.61 | Q60: =(Table10[[#This Row],[سعر 91]]-Table10[[#This Row],[شراء 91]])*Table10[[#This Row],[مبيعات 91]] -> 339.745 | R60: =(Table10[[#This Row],[سعر 95]]-Table10[[#This Row],[شراء 95]])*Table10[[#This Row],[مبيعات 95]] -> 0 | S60: =(Table10[[#This Row],[سعر Diesel]]-Table10[[#This Row],[شراء Diesel]])*Table10[[#This Row],[مبيعات Diesel]] -> 134.6 | T60: =SUM(Table10[[#This Row],[أرباح 91]:[أرباح Diesel]]) -> 474.345 | U60: =Table10[[#This Row],[اجمالي الايراد]]*(15/115) -> 1689.568696 | V60: =Table10[[#This Row],[اجمالي الايراد]]-Table10[[#This Row],[ضريبة]] -> 11263.7913
B61: 2022-01-29 | C61: وردية ثانية | D61: 4916 | E61: 2.18 | F61: =Table10[[#This Row],[مبيعات 91]]*Table10[[#This Row],[سعر 91]] -> 10716.88 | I61: =Table10[[#This Row],[سعر 95]]*Table10[[#This Row],[مبيعات 95]] -> 0 | J61: 2781 | K61: 0.63 | L61: =Table10[[#This Row],[سعر Diesel]]*Table10[[#This Row],[مبيعات Diesel]] -> 1752.03 | M61: =Table10[[#This Row],[ايراد Diesel]]+Table10[[#This Row],[ايراد 95]]+Table10[[#This Row],[ايراد 91]] -> 12468.91 | N61: 2.095 | O61: 0.60975 | P61: 0.61 | Q61: =(Table10[[#This Row],[سعر 91]]-Table10[[#This Row],[شراء 91]])*Table10[[#This Row],[مبيعات 91]] -> 417.86 | R61: =(Table10[[#This Row],[سعر 95]]-Table10[[#This Row],[شراء 95]])*Table10[[#This Row],[مبيعات 95]] -> 0 | S61: =(Table10[[#This Row],[سعر Diesel]]-Table10[[#This Row],[شراء Diesel]])*Table10[[#This Row],[مبيعات Diesel]] -> 55.62 | T61: =SUM(Table10[[#This Row],[أرباح 91]:[أرباح Diesel]]) -> 473.48 | U61: =Table10[[#This Row],[اجمالي الايراد]]*(15/115) -> 1626.379565 | V61: =Table10[[#This Row],[اجمالي الايراد]]-Table10[[#This Row],[ضريبة]] -> 10842.53043
B62: 2022-01-30 | C62: وردية أولى | D62: 5432 | E62: 2.18 | F62: =Table10[[#This Row],[مبيعات 91]]*Table10[[#This Row],[سعر 91]] -> 11841.76 | I62: =Table10[[#This Row],[سعر 95]]*Table10[[#This Row],[مبيعات 95]] -> 0 | J62: 3095 | K62: 0.63 | L62: =Table10[[#This Row],[سعر Diesel]]*Table10[[#This Row],[مبيعات Diesel]] -> 1949.85 | M62: =Table10[[#This Row],[ايراد Diesel]]+Table10[[#This Row],[ايراد 95]]+Table10[[#This Row],[ايراد 91]] -> 13791.61 | N62: 2.095 | O62: 0.60975 | P62: 0.61 | Q62: =(Table10[[#This Row],[سعر 91]]-Table10[[#This Row],[شراء 91]])*Table10[[#This Row],[مبيعات 91]] -> 461.72 | R62: =(Table10[[#This Row],[سعر 95]]-Table10[[#This Row],[شراء 95]])*Table10[[#This Row],[مبيعات 95]] -> 0 | S62: =(Table10[[#This Row],[سعر Diesel]]-Table10[[#This Row],[شراء Diesel]])*Table10[[#This Row],[مبيعات Diesel]] -> 61.9 | T62: =SUM(Table10[[#This Row],[أرباح 91]:[أرباح Diesel]]) -> 523.62 | U62: =Table10[[#This Row],[اجمالي الايراد]]*(15/115) -> 1798.905652 | V62: =Table10[[#This Row],[اجمالي الايراد]]-Table10[[#This Row],[ضريبة]] -> 11992.70435
B63: 2022-01-30 | C63: وردية ثانية | D63: 3616 | E63: 2.18 | F63: =Table10[[#This Row],[مبيعات 91]]*Table10[[#This Row],[سعر 91]] -> 7882.88 | I63: =Table10[[#This Row],[سعر 95]]*Table10[[#This Row],[مبيعات 95]] -> 0 | J63: 2017 | K63: 0.63 | L63: =Table10[[#This Row],[سعر Diesel]]*Table10[[#This Row],[مبيعات Diesel]] -> 1270.71 | M63: =Table10[[#This Row],[ايراد Diesel]]+Table10[[#This Row],[ايراد 95]]+Table10[[#This Row],[ايراد 91]] -> 9153.59 | N63: 2.095 | O63: 0.60975 | P63: 0.61 | Q63: =(Table10[[#This Row],[سعر 91]]-Table10[[#This Row],[شراء 91]])*Table10[[#This Row],[مبيعات 91]] -> 307.36 | R63: =(Table10[[#This Row],[سعر 95]]-Table10[[#This Row],[شراء 95]])*Table10[[#This Row],[مبيعات 95]] -> 0 | S63: =(Table10[[#This Row],[سعر Diesel]]-Table10[[#This Row],[شراء Diesel]])*Table10[[#This Row],[مبيعات Diesel]] -> 40.34 | T63: =SUM(Table10[[#This Row],[أرباح 91]:[أرباح Diesel]]) -> 347.7 | U63: =Table10[[#This Row],[اجمالي الايراد]]*(15/115) -> 1193.946522 | V63: =Table10[[#This Row],[اجمالي الايراد]]-Table10[[#This Row],[ضريبة]] -> 7959.643478
B64: 2022-01-31 | C64: وردية أولى | D64: 6205 | E64: 2.18 | F64: =Table10[[#This Row],[مبيعات 91]]*Table10[[#This Row],[سعر 91]] -> 13526.9 | I64: =Table10[[#This Row],[سعر 95]]*Table10[[#This Row],[مبيعات 95]] -> 0 | J64: 4350 | K64: 0.63 | L64: =Table10[[#This Row],[سعر Diesel]]*Table10[[#This Row],[مبيعات Diesel]] -> 2740.5 | M64: =Table10[[#This Row],[ايراد Diesel]]+Table10[[#This Row],[ايراد 95]]+Table10[[#This Row],[ايراد 91]] -> 16267.4 | N64: 2.095 | O64: 0.60975 | P64: 0.61 | Q64: =(Table10[[#This Row],[سعر 91]]-Table10[[#This Row],[شراء 91]])*Table10[[#This Row],[مبيعات 91]] -> 527.425 | R64: =(Table10[[#This Row],[سعر 95]]-Table10[[#This Row],[شراء 95]])*Table10[[#This Row],[مبيعات 95]] -> 0 | S64: =(Table10[[#This Row],[سعر Diesel]]-Table10[[#This Row],[شراء Diesel]])*Table10[[#This Row],[مبيعات Diesel]] -> 87 | T64: =SUM(Table10[[#This Row],[أرباح 91]:[أرباح Diesel]]) -> 614.425 | U64: =Table10[[#This Row],[اجمالي الايراد]]*(15/115) -> 2121.834783 | V64: =Table10[[#This Row],[اجمالي الايراد]]-Table10[[#This Row],[ضريبة]] -> 14145.56522
B65: 2022-01-31 | C65: وردية ثانية | D65: 4719 | E65: 2.18 | F65: =Table10[[#This Row],[مبيعات 91]]*Table10[[#This Row],[سعر 91]] -> 10287.42 | I65: =Table10[[#This Row],[سعر 95]]*Table10[[#This Row],[مبيعات 95]] -> 0 | J65: 2315 | K65: 0.63 | L65: =Table10[[#This Row],[سعر Diesel]]*Table10[[#This Row],[مبيعات Diesel]] -> 1458.45 | M65: =Table10[[#This Row],[ايراد Diesel]]+Table10[[#This Row],[ايراد 95]]+Table10[[#This Row],[ايراد 91]] -> 11745.87 | N65: 2.095 | O65: 0.60975 | P65: 0.61 | Q65: =(Table10[[#This Row],[سعر 91]]-Table10[[#This Row],[شراء 91]])*Table10[[#This Row],[مبيعات 91]] -> 401.115 | R65: =(Table10[[#This Row],[سعر 95]]-Table10[[#This Row],[شراء 95]])*Table10[[#This Row],[مبيعات 95]] -> 0 | S65: =(Table10[[#This Row],[سعر Diesel]]-Table10[[#This Row],[شراء Diesel]])*Table10[[#This Row],[مبيعات Diesel]] -> 46.3 | T65: =SUM(Table10[[#This Row],[أرباح 91]:[أرباح Diesel]]) -> 447.415 | U65: =Table10[[#This Row],[اجمالي الايراد]]*(15/115) -> 1532.07 | V65: =Table10[[#This Row],[اجمالي الايراد]]-Table10[[#This Row],[ضريبة]] -> 10213.8
B66: 2022-02-01 | C66: وردية أولى | D66: 3976 | E66: 2.18 | F66: =Table10[[#This Row],[مبيعات 91]]*Table10[[#This Row],[سعر 91]] -> 8667.68 | I66: =Table10[[#This Row],[سعر 95]]*Table10[[#This Row],[مبيعات 95]] -> 0 | J66: 5906 | K66: 0.63 | L66: =Table10[[#This Row],[سعر Diesel]]*Table10[[#This Row],[مبيعات Diesel]] -> 3720.78 | M66: =Table10[[#This Row],[ايراد Diesel]]+Table10[[#This Row],[ايراد 95]]+Table10[[#This Row],[ايراد 91]] -> 12388.46 | N66: 2.095 | O66: 0.60975 | P66: 0.61 | Q66: =(Table10[[#This Row],[سعر 91]]-Table10[[#This Row],[شراء 91]])*Table10[[#This Row],[مبيعات 91]] -> 337.96 | R66: =(Table10[[#This Row],[سعر 95]]-Table10[[#This Row],[شراء 95]])*Table10[[#This Row],[مبيعات 95]] -> 0 | S66: =(Table10[[#This Row],[سعر Diesel]]-Table10[[#This Row],[شراء Diesel]])*Table10[[#This Row],[مبيعات Diesel]] -> 118.12 | T66: =SUM(Table10[[#This Row],[أرباح 91]:[أرباح Diesel]]) -> 456.08 | U66: =Table10[[#This Row],[اجمالي الايراد]]*(15/115) -> 1615.886087 | V66: =Table10[[#This Row],[اجمالي الايراد]]-Table10[[#This Row],[ضريبة]] -> 10772.57391
B67: 2022-02-01 | C67: وردية ثانية | D67: 4824 | E67: 2.18 | F67: =Table10[[#This Row],[مبيعات 91]]*Table10[[#This Row],[سعر 91]] -> 10516.32 | I67: =Table10[[#This Row],[سعر 95]]*Table10[[#This Row],[مبيعات 95]] -> 0 | J67: 2343 | K67: 0.63 | L67: =Table10[[#This Row],[سعر Diesel]]*Table10[[#This Row],[مبيعات Diesel]] -> 1476.09 | M67: =Table10[[#This Row],[ايراد Diesel]]+Table10[[#This Row],[ايراد 95]]+Table10[[#This Row],[ايراد 91]] -> 11992.41 | N67: 2.095 | O67: 0.60975 | P67: 0.61 | Q67: =(Table10[[#This Row],[سعر 91]]-Table10[[#This Row],[شراء 91]])*Table10[[#This Row],[مبيعات 91]] -> 410.04 | R67: =(Table10[[#This Row],[سعر 95]]-Table10[[#This Row],[شراء 95]])*Table10[[#This Row],[مبيعات 95]] -> 0 | S67: =(Table10[[#This Row],[سعر Diesel]]-Table10[[#This Row],[شراء Diesel]])*Table10[[#This Row],[مبيعات Diesel]] -> 46.86 | T67: =SUM(Table10[[#This Row],[أرباح 91]:[أرباح Diesel]]) -> 456.9 | U67: =Table10[[#This Row],[اجمالي الايراد]]*(15/115) -> 1564.227391 | V67: =Table10[[#This Row],[اجمالي الايراد]]-Table10[[#This Row],[ضريبة]] -> 10428.18261
B68: 2022-02-02 | C68: وردية أولى | D68: 4339 | E68: 2.18 | F68: =Table10[[#This Row],[مبيعات 91]]*Table10[[#This Row],[سعر 91]] -> 9459.02 | I68: =Table10[[#This Row],[سعر 95]]*Table10[[#This Row],[مبيعات 95]] -> 0 | J68: 6998 | K68: 0.63 | L68: =Table10[[#This Row],[سعر Diesel]]*Table10[[#This Row],[مبيعات Diesel]] -> 4408.74 | M68: =Table10[[#This Row],[ايراد Diesel]]+Table10[[#This Row],[ايراد 95]]+Table10[[#This Row],[ايراد 91]] -> 13867.76 | N68: 2.095 | O68: 0.60975 | P68: 0.61 | Q68: =(Table10[[#This Row],[سعر 91]]-Table10[[#This Row],[شراء 91]])*Table10[[#This Row],[مبيعات 91]] -> 368.815 | R68: =(Table10[[#This Row],[سعر 95]]-Table10[[#This Row],[شراء 95]])*Table10[[#This Row],[مبيعات 95]] -> 0 | S68: =(Table10[[#This Row],[سعر Diesel]]-Table10[[#This Row],[شراء Diesel]])*Table10[[#This Row],[مبيعات Diesel]] -> 139.96 | T68: =SUM(Table10[[#This Row],[أرباح 91]:[أرباح Diesel]]) -> 508.775 | U68: =Table10[[#This Row],[اجمالي الايراد]]*(15/115) -> 1808.838261 | V68: =Table10[[#This Row],[اجمالي الايراد]]-Table10[[#This Row],[ضريبة]] -> 12058.92174
B69: 2022-02-02 | C69: وردية ثانية | D69: 4800 | E69: 2.18 | F69: =Table10[[#This Row],[مبيعات 91]]*Table10[[#This Row],[سعر 91]] -> 10464 | I69: =Table10[[#This Row],[سعر 95]]*Table10[[#This Row],[مبيعات 95]] -> 0 | J69: 3683 | K69: 0.63 | L69: =Table10[[#This Row],[سعر Diesel]]*Table10[[#This Row],[مبيعات Diesel]] -> 2320.29 | M69: =Table10[[#This Row],[ايراد Diesel]]+Table10[[#This Row],[ايراد 95]]+Table10[[#This Row],[ايراد 91]] -> 12784.29 | N69: 2.095 | O69: 0.60975 | P69: 0.61 | Q69: =(Table10[[#This Row],[سعر 91]]-Table10[[#This Row],[شراء 91]])*Table10[[#This Row],[مبيعات 91]] -> 408 | R69: =(Table10[[#This Row],[سعر 95]]-Table10[[#This Row],[شراء 95]])*Table10[[#This Row],[مبيعات 95]] -> 0 | S69: =(Table10[[#This Row],[سعر Diesel]]-Table10[[#This Row],[شراء Diesel]])*Table10[[#This Row],[مبيعات Diesel]] -> 73.66 | T69: =SUM(Table10[[#This Row],[أرباح 91]:[أرباح Diesel]]) -> 481.66 | U69: =Table10[[#This Row],[اجمالي الايراد]]*(15/115) -> 1667.516087 | V69: =Table10[[#This Row],[اجمالي الايراد]]-Table10[[#This Row],[ضريبة]] -> 11116.77391
B70: 2022-02-03 | C70: وردية أولى | D70: 4811 | E70: 2.18 | F70: =Table10[[#This Row],[مبيعات 91]]*Table10[[#This Row],[سعر 91]] -> 10487.98 | I70: =Table10[[#This Row],[سعر 95]]*Table10[[#This Row],[مبيعات 95]] -> 0 | J70: 2846 | K70: 0.63 | L70: =Table10[[#This Row],[سعر Diesel]]*Table10[[#This Row],[مبيعات Diesel]] -> 1792.98 | M70: =Table10[[#This Row],[ايراد Diesel]]+Table10[[#This Row],[ايراد 95]]+Table10[[#This Row],[ايراد 91]] -> 12280.96 | N70: 2.095 | O70: 0.60975 | P70: 0.61 | Q70: =(Table10[[#This Row],[سعر 91]]-Table10[[#This Row],[شراء 91]])*Table10[[#This Row],[مبيعات 91]] -> 408.935 | R70: =(Table10[[#This Row],[سعر 95]]-Table10[[#This Row],[شراء 95]])*Table10[[#This Row],[مبيعات 95]] -> 0 | S70: =(Table10[[#This Row],[سعر Diesel]]-Table10[[#This Row],[شراء Diesel]])*Table10[[#This Row],[مبيعات Diesel]] -> 56.92 | T70: =SUM(Table10[[#This Row],[أرباح 91]:[أرباح Diesel]]) -> 465.855 | U70: =Table10[[#This Row],[اجمالي الايراد]]*(15/115) -> 1601.864348 | V70: =Table10[[#This Row],[اجمالي الايراد]]-Table10[[#This Row],[ضريبة]] -> 10679.09565
B71: 2022-02-03 | C71: وردية ثانية | D71: 4932 | E71: 2.18 | F71: =Table10[[#This Row],[مبيعات 91]]*Table10[[#This Row],[سعر 91]] -> 10751.76 | I71: =Table10[[#This Row],[سعر 95]]*Table10[[#This Row],[مبيعات 95]] -> 0 | J71: 1911 | K71: 0.63 | L71: =Table10[[#This Row],[سعر Diesel]]*Table10[[#This Row],[مبيعات Diesel]] -> 1203.93 | M71: =Table10[[#This Row],[ايراد Diesel]]+Table10[[#This Row],[ايراد 95]]+Table10[[#This Row],[ايراد 91]] -> 11955.69 | N71: 2.095 | O71: 0.60975 | P71: 0.61 | Q71: =(Table10[[#This Row],[سعر 91]]-Table10[[#This Row],[شراء 91]])*Table10[[#This Row],[مبيعات 91]] -> 419.22 | R71: =(Table10[[#This Row],[سعر 95]]-Table10[[#This Row],[شراء 95]])*Table10[[#This Row],[مبيعات 95]] -> 0 | S71: =(Table10[[#This Row],[سعر Diesel]]-Table10[[#This Row],[شراء Diesel]])*Table10[[#This Row],[مبيعات Diesel]] -> 38.22 | T71: =SUM(Table10[[#This Row],[أرباح 91]:[أرباح Diesel]]) -> 457.44 | U71: =Table10[[#This Row],[اجمالي الايراد]]*(15/115) -> 1559.437826 | V71: =Table10[[#This Row],[اجمالي الايراد]]-Table10[[#This Row],[ضريبة]] -> 10396.25217
B72: 2022-02-04 | C72: وردية أولى | D72: 2096 | E72: 2.18 | F72: =Table10[[#This Row],[مبيعات 91]]*Table10[[#This Row],[سعر 91]] -> 4569.28 | I72: =Table10[[#This Row],[سعر 95]]*Table10[[#This Row],[مبيعات 95]] -> 0 | J72: 846 | K72: 0.63 | L72: =Table10[[#This Row],[سعر Diesel]]*Table10[[#This Row],[مبيعات Diesel]] -> 532.98 | M72: =Table10[[#This Row],[ايراد Diesel]]+Table10[[#This Row],[ايراد 95]]+Table10[[#This Row],[ايراد 91]] -> 5102.26 | N72: 2.095 | O72: 0.60975 | P72: 0.61 | Q72: =(Table10[[#This Row],[سعر 91]]-Table10[[#This Row],[شراء 91]])*Table10[[#This Row],[مبيعات 91]] -> 178.16 | R72: =(Table10[[#This Row],[سعر 95]]-Table10[[#This Row],[شراء 95]])*Table10[[#This Row],[مبيعات 95]] -> 0 | S72: =(Table10[[#This Row],[سعر Diesel]]-Table10[[#This Row],[شراء Diesel]])*Table10[[#This Row],[مبيعات Diesel]] -> 16.92 | T72: =SUM(Table10[[#This Row],[أرباح 91]:[أرباح Diesel]]) -> 195.08 | U72: =Table10[[#This Row],[اجمالي الايراد]]*(15/115) -> 665.5121739 | V72: =Table10[[#This Row],[اجمالي الايراد]]-Table10[[#This Row],[ضريبة]] -> 4436.747826
B73: 2022-02-04 | C73: وردية ثانية | D73: 3922 | E73: 2.18 | F73: =Table10[[#This Row],[مبيعات 91]]*Table10[[#This Row],[سعر 91]] -> 8549.96 | I73: =Table10[[#This Row],[سعر 95]]*Table10[[#This Row],[مبيعات 95]] -> 0 | J73: 2495 | K73: 0.63 | L73: =Table10[[#This Row],[سعر Diesel]]*Table10[[#This Row],[مبيعات Diesel]] -> 1571.85 | M73: =Table10[[#This Row],[ايراد Diesel]]+Table10[[#This Row],[ايراد 95]]+Table10[[#This Row],[ايراد 91]] -> 10121.81 | N73: 2.095 | O73: 0.60975 | P73: 0.61 | Q73: =(Table10[[#This Row],[سعر 91]]-Table10[[#This Row],[شراء 91]])*Table10[[#This Row],[مبيعات 91]] -> 333.37 | R73: =(Table10[[#This Row],[سعر 95]]-Table10[[#This Row],[شراء 95]])*Table10[[#This Row],[مبيعات 95]] -> 0 | S73: =(Table10[[#This Row],[سعر Diesel]]-Table10[[#This Row],[شراء Diesel]])*Table10[[#This Row],[مبيعات Diesel]] -> 49.9 | T73: =SUM(Table10[[#This Row],[أرباح 91]:[أرباح Diesel]]) -> 383.27 | U73: =Table10[[#This Row],[اجمالي الايراد]]*(15/115) -> 1320.236087 | V73: =Table10[[#This Row],[اجمالي الايراد]]-Table10[[#This Row],[ضريبة]] -> 8801.573913
B74: 2022-02-05 | C74: وردية أولى | D74: 3721 | E74: 2.18 | F74: =Table10[[#This Row],[مبيعات 91]]*Table10[[#This Row],[سعر 91]] -> 8111.78 | I74: =Table10[[#This Row],[سعر 95]]*Table10[[#This Row],[مبيعات 95]] -> 0 | J74: 5931 | K74: 0.63 | L74: =Table10[[#This Row],[سعر Diesel]]*Table10[[#This Row],[مبيعات Diesel]] -> 3736.53 | M74: =Table10[[#This Row],[ايراد Diesel]]+Table10[[#This Row],[ايراد 95]]+Table10[[#This Row],[ايراد 91]] -> 11848.31 | N74: 2.095 | O74: 0.60975 | P74: 0.61 | Q74: =(Table10[[#This Row],[سعر 91]]-Table10[[#This Row],[شراء 91]])*Table10[[#This Row],[مبيعات 91]] -> 316.285 | R74: =(Table10[[#This Row],[سعر 95]]-Table10[[#This Row],[شراء 95]])*Table10[[#This Row],[مبيعات 95]] -> 0 | S74: =(Table10[[#This Row],[سعر Diesel]]-Table10[[#This Row],[شراء Diesel]])*Table10[[#This Row],[مبيعات Diesel]] -> 118.62 | T74: =SUM(Table10[[#This Row],[أرباح 91]:[أرباح Diesel]]) -> 434.905 | U74: =Table10[[#This Row],[اجمالي الايراد]]*(15/115) -> 1545.431739 | V74: =Table10[[#This Row],[اجمالي الايراد]]-Table10[[#This Row],[ضريبة]] -> 10302.87826
B75: 2022-02-05 | C75: وردية ثانية | D75: 4953 | E75: 2.18 | F75: =Table10[[#This Row],[مبيعات 91]]*Table10[[#This Row],[سعر 91]] -> 10797.54 | I75: =Table10[[#This Row],[سعر 95]]*Table10[[#This Row],[مبيعات 95]] -> 0 | J75: 3005 | K75: 0.63 | L75: =Table10[[#This Row],[سعر Diesel]]*Table10[[#This Row],[مبيعات Diesel]] -> 1893.15 | M75: =Table10[[#This Row],[ايراد Diesel]]+Table10[[#This Row],[ايراد 95]]+Table10[[#This Row],[ايراد 91]] -> 12690.69 | N75: 2.095 | O75: 0.60975 | P75: 0.61 | Q75: =(Table10[[#This Row],[سعر 91]]-Table10[[#This Row],[شراء 91]])*Table10[[#This Row],[مبيعات 91]] -> 421.005 | R75: =(Table10[[#This Row],[سعر 95]]-Table10[[#This Row],[شراء 95]])*Table10[[#This Row],[مبيعات 95]] -> 0 | S75: =(Table10[[#This Row],[سعر Diesel]]-Table10[[#This Row],[شراء Diesel]])*Table10[[#This Row],[مبيعات Diesel]] -> 60.1 | T75: =SUM(Table10[[#This Row],[أرباح 91]:[أرباح Diesel]]) -> 481.105 | U75: =Table10[[#This Row],[اجمالي الايراد]]*(15/115) -> 1655.307391 | V75: =Table10[[#This Row],[اجمالي الايراد]]-Table10[[#This Row],[ضريبة]] -> 11035.38261
B76: 2022-02-06 | C76: وردية أولى | D76: 4281 | E76: 2.18 | F76: =Table10[[#This Row],[مبيعات 91]]*Table10[[#This Row],[سعر 91]] -> 9332.58 | I76: =Table10[[#This Row],[سعر 95]]*Table10[[#This Row],[مبيعات 95]] -> 0 | J76: 3229 | K76: 0.63 | L76: =Table10[[#This Row],[سعر Diesel]]*Table10[[#This Row],[مبيعات Diesel]] -> 2034.27 | M76: =Table10[[#This Row],[ايراد Diesel]]+Table10[[#This Row],[ايراد 95]]+Table10[[#This Row],[ايراد 91]] -> 11366.85 | N76: 2.095 | O76: 0.60975 | P76: 0.61 | Q76: =(Table10[[#This Row],[سعر 91]]-Table10[[#This Row],[شراء 91]])*Table10[[#This Row],[مبيعات 91]] -> 363.885 | R76: =(Table10[[#This Row],[سعر 95]]-Table10[[#This Row],[شراء 95]])*Table10[[#This Row],[مبيعات 95]] -> 0 | S76: =(Table10[[#This Row],[سعر Diesel]]-Table10[[#This Row],[شراء Diesel]])*Table10[[#This Row],[مبيعات Diesel]] -> 64.58 | T76: =SUM(Table10[[#This Row],[أرباح 91]:[أرباح Diesel]]) -> 428.465 | U76: =Table10[[#This Row],[اجمالي الايراد]]*(15/115) -> 1482.632609 | V76: =Table10[[#This Row],[اجمالي الايراد]]-Table10[[#This Row],[ضريبة]] -> 9884.217391
B77: 2022-02-06 | C77: وردية ثانية | D77: 4749 | E77: 2.18 | F77: =Table10[[#This Row],[مبيعات 91]]*Table10[[#This Row],[سعر 91]] -> 10352.82 | I77: =Table10[[#This Row],[سعر 95]]*Table10[[#This Row],[مبيعات 95]] -> 0 | J77: 2969 | K77: 0.63 | L77: =Table10[[#This Row],[سعر Diesel]]*Table10[[#This Row],[مبيعات Diesel]] -> 1870.47 | M77: =Table10[[#This Row],[ايراد Diesel]]+Table10[[#This Row],[ايراد 95]]+Table10[[#This Row],[ايراد 91]] -> 12223.29 | N77: 2.095 | O77: 0.60975 | P77: 0.61 | Q77: =(Table10[[#This Row],[سعر 91]]-Table10[[#This Row],[شراء 91]])*Table10[[#This Row],[مبيعات 91]] -> 403.665 | R77: =(Table10[[#This Row],[سعر 95]]-Table10[[#This Row],[شراء 95]])*Table10[[#This Row],[مبيعات 95]] -> 0 | S77: =(Table10[[#This Row],[سعر Diesel]]-Table10[[#This Row],[شراء Diesel]])*Table10[[#This Row],[مبيعات Diesel]] -> 59.38 | T77: =SUM(Table10[[#This Row],[أرباح 91]:[أرباح Diesel]]) -> 463.045 | U77: =Table10[[#This Row],[اجمالي الايراد]]*(15/115) -> 1594.342174 | V77: =Table10[[#This Row],[اجمالي الايراد]]-Table10[[#This Row],[ضريبة]] -> 10628.94783
B78: 2022-02-07 | C78: وردية أولى | D78: 5523 | E78: 2.18 | F78: =Table10[[#This Row],[مبيعات 91]]*Table10[[#This Row],[سعر 91]] -> 12040.14 | I78: =Table10[[#This Row],[سعر 95]]*Table10[[#This Row],[مبيعات 95]] -> 0 | J78: 5008 | K78: 0.63 | L78: =Table10[[#This Row],[سعر Diesel]]*Table10[[#This Row],[مبيعات Diesel]] -> 3155.04 | M78: =Table10[[#This Row],[ايراد Diesel]]+Table10[[#This Row],[ايراد 95]]+Table10[[#This Row],[ايراد 91]] -> 15195.18 | N78: 2.095 | O78: 0.60975 | P78: 0.61 | Q78: =(Table10[[#This Row],[سعر 91]]-Table10[[#This Row],[شراء 91]])*Table10[[#This Row],[مبيعات 91]] -> 469.455 | R78: =(Table10[[#This Row],[سعر 95]]-Table10[[#This Row],[شراء 95]])*Table10[[#This Row],[مبيعات 95]] -> 0 | S78: =(Table10[[#This Row],[سعر Diesel]]-Table10[[#This Row],[شراء Diesel]])*Table10[[#This Row],[مبيعات Diesel]] -> 100.16 | T78: =SUM(Table10[[#This Row],[أرباح 91]:[أرباح Diesel]]) -> 569.615 | U78: =Table10[[#This Row],[اجمالي الايراد]]*(15/115) -> 1981.98 | V78: =Table10[[#This Row],[اجمالي الايراد]]-Table10[[#This Row],[ضريبة]] -> 13213.2
B79: 2022-02-07 | C79: وردية ثانية | D79: 4975 | E79: 2.18 | F79: =Table10[[#This Row],[مبيعات 91]]*Table10[[#This Row],[سعر 91]] -> 10845.5 | I79: =Table10[[#This Row],[سعر 95]]*Table10[[#This Row],[مبيعات 95]] -> 0 | J79: 2521 | K79: 0.63 | L79: =Table10[[#This Row],[سعر Diesel]]*Table10[[#This Row],[مبيعات Diesel]] -> 1588.23 | M79: =Table10[[#This Row],[ايراد Diesel]]+Table10[[#This Row],[ايراد 95]]+Table10[[#This Row],[ايراد 91]] -> 12433.73 | N79: 2.095 | O79: 0.60975 | P79: 0.61 | Q79: =(Table10[[#This Row],[سعر 91]]-Table10[[#This Row],[شراء 91]])*Table10[[#This Row],[مبيعات 91]] -> 422.875 | R79: =(Table10[[#This Row],[سعر 95]]-Table10[[#This Row],[شراء 95]])*Table10[[#This Row],[مبيعات 95]] -> 0 | S79: =(Table10[[#This Row],[سعر Diesel]]-Table10[[#This Row],[شراء Diesel]])*Table10[[#This Row],[مبيعات Diesel]] -> 50.42 | T79: =SUM(Table10[[#This Row],[أرباح 91]:[أرباح Diesel]]) -> 473.295 | U79: =Table10[[#This Row],[اجمالي الايراد]]*(15/115) -> 1621.79087 | V79: =Table10[[#This Row],[اجمالي الايراد]]-Table10[[#This Row],[ضريبة]] -> 10811.93913
B80: 2022-02-08 | C80: وردية أولى | D80: 4375 | E80: 2.18 | F80: =Table10[[#This Row],[مبيعات 91]]*Table10[[#This Row],[سعر 91]] -> 9537.5 | I80: =Table10[[#This Row],[سعر 95]]*Table10[[#This Row],[مبيعات 95]] -> 0 | J80: 4843 | K80: 0.63 | L80: =Table10[[#This Row],[سعر Diesel]]*Table10[[#This Row],[مبيعات Diesel]] -> 3051.09 | M80: =Table10[[#This Row],[ايراد Diesel]]+Table10[[#This Row],[ايراد 95]]+Table10[[#This Row],[ايراد 91]] -> 12588.59 | N80: 2.095 | O80: 0.60975 | P80: 0.61 | Q80: =(Table10[[#This Row],[سعر 91]]-Table10[[#This Row],[شراء 91]])*Table10[[#This Row],[مبيعات 91]] -> 371.875 | R80: =(Table10[[#This Row],[سعر 95]]-Table10[[#This Row],[شراء 95]])*Table10[[#This Row],[مبيعات 95]] -> 0 | S80: =(Table10[[#This Row],[سعر Diesel]]-Table10[[#This Row],[شراء Diesel]])*Table10[[#This Row],[مبيعات Diesel]] -> 96.86 | T80: =SUM(Table10[[#This Row],[أرباح 91]:[أرباح Diesel]]) -> 468.735 | U80: =Table10[[#This Row],[اجمالي الايراد]]*(15/115) -> 1641.99 | V80: =Table10[[#This Row],[اجمالي الايراد]]-Table10[[#This Row],[ضريبة]] -> 10946.6
B81: 2022-02-08 | C81: وردية ثانية | D81: 4564 | E81: 2.18 | F81: =Table10[[#This Row],[مبيعات 91]]*Table10[[#This Row],[سعر 91]] -> 9949.52 | I81: =Table10[[#This Row],[سعر 95]]*Table10[[#This Row],[مبيعات 95]] -> 0 | J81: 3007 | K81: 0.63 | L81: =Table10[[#This Row],[سعر Diesel]]*Table10[[#This Row],[مبيعات Diesel]] -> 1894.41 | M81: =Table10[[#This Row],[ايراد Diesel]]+Table10[[#This Row],[ايراد 95]]+Table10[[#This Row],[ايراد 91]] -> 11843.93 | N81: 2.095 | O81: 0.61 | P81: 0.61 | Q81: =(Table10[[#This Row],[سعر 91]]-Table10[[#This Row],[شراء 91]])*Table10[[#This Row],[مبيعات 91]] -> 387.94 | R81: =(Table10[[#This Row],[سعر 95]]-Table10[[#This Row],[شراء 95]])*Table10[[#This Row],[مبيعات 95]] -> 0 | S81: =(Table10[[#This Row],[سعر Diesel]]-Table10[[#This Row],[شراء Diesel]])*Table10[[#This Row],[مبيعات Diesel]] -> 60.14 | T81: =SUM(Table10[[#This Row],[أرباح 91]:[أرباح Diesel]]) -> 448.08 | U81: =Table10[[#This Row],[اجمالي الايراد]]*(15/115) -> 1544.860435 | V81: =Table10[[#This Row],[اجمالي الايراد]]-Table10[[#This Row],[ضريبة]] -> 10299.06957
B82: 2022-02-09 | C82: وردية أولى | D82: 4946 | E82: 2.18 | F82: =Table10[[#This Row],[مبيعات 91]]*Table10[[#This Row],[سعر 91]] -> 10782.28 | I82: =Table10[[#This Row],[سعر 95]]*Table10[[#This Row],[مبيعات 95]] -> 0 | J82: 6785 | K82: 0.63 | L82: =Table10[[#This Row],[سعر Diesel]]*Table10[[#This Row],[مبيعات Diesel]] -> 4274.55 | M82: =Table10[[#This Row],[ايراد Diesel]]+Table10[[#This Row],[ايراد 95]]+Table10[[#This Row],[ايراد 91]] -> 15056.83 | N82: 2.095 | O82: 0.61 | P82: 0.61 | Q82: =(Table10[[#This Row],[سعر 91]]-Table10[[#This Row],[شراء 91]])*Table10[[#This Row],[مبيعات 91]] -> 420.41 | R82: =(Table10[[#This Row],[سعر 95]]-Table10[[#This Row],[شراء 95]])*Table10[[#This Row],[مبيعات 95]] -> 0 | S82: =(Table10[[#This Row],[سعر Diesel]]-Table10[[#This Row],[شراء Diesel]])*Table10[[#This Row],[مبيعات Diesel]] -> 135.7 | T82: =SUM(Table10[[#This Row],[أرباح 91]:[أرباح Diesel]]) -> 556.11 | U82: =Table10[[#This Row],[اجمالي الايراد]]*(15/115) -> 1963.934348 | V82: =Table10[[#This Row],[اجمالي الايراد]]-Table10[[#This Row],[ضريبة]] -> 13092.89565
B83: 2022-02-09 | C83: وردية ثانية | D83: 4893 | E83: 2.18 | F83: =Table10[[#This Row],[مبيعات 91]]*Table10[[#This Row],[سعر 91]] -> 10666.74 | I83: =Table10[[#This Row],[سعر 95]]*Table10[[#This Row],[مبيعات 95]] -> 0 | J83: 2694 | K83: 0.63 | L83: =Table10[[#This Row],[سعر Diesel]]*Table10[[#This Row],[مبيعات Diesel]] -> 1697.22 | M83: =Table10[[#This Row],[ايراد Diesel]]+Table10[[#This Row],[ايراد 95]]+Table10[[#This Row],[ايراد 91]] -> 12363.96 | N83: 2.095 | O83: 0.61 | P83: 0.61 | Q83: =(Table10[[#This Row],[سعر 91]]-Table10[[#This Row],[شراء 91]])*Table10[[#This Row],[مبيعات 91]] -> 415.905 | R83: =(Table10[[#This Row],[سعر 95]]-Table10[[#This Row],[شراء 95]])*Table10[[#This Row],[مبيعات 95]] -> 0 | S83: =(Table10[[#This Row],[سعر Diesel]]-Table10[[#This Row],[شراء Diesel]])*Table10[[#This Row],[مبيعات Diesel]] -> 53.88 | T83: =SUM(Table10[[#This Row],[أرباح 91]:[أرباح Diesel]]) -> 469.785 | U83: =Table10[[#This Row],[اجمالي الايراد]]*(15/115) -> 1612.690435 | V83: =Table10[[#This Row],[اجمالي الايراد]]-Table10[[#This Row],[ضريبة]] -> 10751.26957
B84: 2022-02-10 | C84: وردية أولى | D84: 4824 | E84: 2.18 | F84: =Table10[[#This Row],[مبيعات 91]]*Table10[[#This Row],[سعر 91]] -> 10516.32 | I84: =Table10[[#This Row],[سعر 95]]*Table10[[#This Row],[مبيعات 95]] -> 0 | J84: 3336 | K84: 0.63 | L84: =Table10[[#This Row],[سعر Diesel]]*Table10[[#This Row],[مبيعات Diesel]] -> 2101.68 | M84: =Table10[[#This Row],[ايراد Diesel]]+Table10[[#This Row],[ايراد 95]]+Table10[[#This Row],[ايراد 91]] -> 12618 | N84: 2.095 | O84: 0.61 | P84: 0.61 | Q84: =(Table10[[#This Row],[سعر 91]]-Table10[[#This Row],[شراء 91]])*Table10[[#This Row],[مبيعات 91]] -> 410.04 | R84: =(Table10[[#This Row],[سعر 95]]-Table10[[#This Row],[شراء 95]])*Table10[[#This Row],[مبيعات 95]] -> 0 | S84: =(Table10[[#This Row],[سعر Diesel]]-Table10[[#This Row],[شراء Diesel]])*Table10[[#This Row],[مبيعات Diesel]] -> 66.72 | T84: =SUM(Table10[[#This Row],[أرباح 91]:[أرباح Diesel]]) -> 476.76 | U84: =Table10[[#This Row],[اجمالي الايراد]]*(15/115) -> 1645.826087 | V84: =Table10[[#This Row],[اجمالي الايراد]]-Table10[[#This Row],[ضريبة]] -> 10972.17391
B85: 2022-02-10 | C85: وردية ثانية | D85: 6221 | E85: 2.18 | F85: =Table10[[#This Row],[مبيعات 91]]*Table10[[#This Row],[سعر 91]] -> 13561.78 | I85: =Table10[[#This Row],[سعر 95]]*Table10[[#This Row],[مبيعات 95]] -> 0 | J85: 2600 | K85: 0.63 | L85: =Table10[[#This Row],[سعر Diesel]]*Table10[[#This Row],[مبيعات Diesel]] -> 1638 | M85: =Table10[[#This Row],[ايراد Diesel]]+Table10[[#This Row],[ايراد 95]]+Table10[[#This Row],[ايراد 91]] -> 15199.78 | N85: 2.095 | O85: 0.61 | P85: 0.61 | Q85: =(Table10[[#This Row],[سعر 91]]-Table10[[#This Row],[شراء 91]])*Table10[[#This Row],[مبيعات 91]] -> 528.785 | R85: =(Table10[[#This Row],[سعر 95]]-Table10[[#This Row],[شراء 95]])*Table10[[#This Row],[مبيعات 95]] -> 0 | S85: =(Table10[[#This Row],[سعر Diesel]]-Table10[[#This Row],[شراء Diesel]])*Table10[[#This Row],[مبيعات Diesel]] -> 52 | T85: =SUM(Table10[[#This Row],[أرباح 91]:[أرباح Diesel]]) -> 580.785 | U85: =Table10[[#This Row],[اجمالي الايراد]]*(15/115) -> 1982.58 | V85: =Table10[[#This Row],[اجمالي الايراد]]-Table10[[#This Row],[ضريبة]] -> 13217.2
B86: 2022-02-11 | C86: وردية أولى | D86: 2497 | E86: 2.18 | F86: =Table10[[#This Row],[مبيعات 91]]*Table10[[#This Row],[سعر 91]] -> 5443.46 | I86: =Table10[[#This Row],[سعر 95]]*Table10[[#This Row],[مبيعات 95]] -> 0 | J86: 862 | K86: 0.63 | L86: =Table10[[#This Row],[سعر Diesel]]*Table10[[#This Row],[مبيعات Diesel]] -> 543.06 | M86: =Table10[[#This Row],[ايراد Diesel]]+Table10[[#This Row],[ايراد 95]]+Table10[[#This Row],[ايراد 91]] -> 5986.52 | N86: 2.095 | O86: 0.61 | P86: 0.61 | Q86: =(Table10[[#This Row],[سعر 91]]-Table10[[#This Row],[شراء 91]])*Table10[[#This Row],[مبيعات 91]] -> 212.245 | R86: =(Table10[[#This Row],[سعر 95]]-Table10[[#This Row],[شراء 95]])*Table10[[#This Row],[مبيعات 95]] -> 0 | S86: =(Table10[[#This Row],[سعر Diesel]]-Table10[[#This Row],[شراء Diesel]])*Table10[[#This Row],[مبيعات Diesel]] -> 17.24 | T86: =SUM(Table10[[#This Row],[أرباح 91]:[أرباح Diesel]]) -> 229.485 | U86: =Table10[[#This Row],[اجمالي الايراد]]*(15/115) -> 780.8504348 | V86: =Table10[[#This Row],[اجمالي الايراد]]-Table10[[#This Row],[ضريبة]] -> 5205.669565
B87: 2022-02-11 | C87: وردية ثانية | D87: 3971 | E87: 2.18 | F87: =Table10[[#This Row],[مبيعات 91]]*Table10[[#This Row],[سعر 91]] -> 8656.78 | I87: =Table10[[#This Row],[سعر 95]]*Table10[[#This Row],[مبيعات 95]] -> 0 | J87: 2145 | K87: 0.63 | L87: =Table10[[#This Row],[سعر Diesel]]*Table10[[#This Row],[مبيعات Diesel]] -> 1351.35 | M87: =Table10[[#This Row],[ايراد Diesel]]+Table10[[#This Row],[ايراد 95]]+Table10[[#This Row],[ايراد 91]] -> 10008.13 | N87: 2.095 | O87: 0.61 | P87: 0.61 | Q87: =(Table10[[#This Row],[سعر 91]]-Table10[[#This Row],[شراء 91]])*Table10[[#This Row],[مبيعات 91]] -> 337.535 | R87: =(Table10[[#This Row],[سعر 95]]-Table10[[#This Row],[شراء 95]])*Table10[[#This Row],[مبيعات 95]] -> 0 | S87: =(Table10[[#This Row],[سعر Diesel]]-Table10[[#This Row],[شراء Diesel]])*Table10[[#This Row],[مبيعات Diesel]] -> 42.9 | T87: =SUM(Table10[[#This Row],[أرباح 91]:[أرباح Diesel]]) -> 380.435 | U87: =Table10[[#This Row],[اجمالي الايراد]]*(15/115) -> 1305.408261 | V87: =Table10[[#This Row],[اجمالي الايراد]]-Table10[[#This Row],[ضريبة]] -> 8702.721739
B88: 2022-02-12 | C88: وردية أولى | D88: 4475 | E88: 2.18 | F88: =Table10[[#This Row],[مبيعات 91]]*Table10[[#This Row],[سعر 91]] -> 9755.5 | I88: =Table10[[#This Row],[سعر 95]]*Table10[[#This Row],[مبيعات 95]] -> 0 | J88: 5469 | K88: 0.63 | L88: =Table10[[#This Row],[سعر Diesel]]*Table10[[#This Row],[مبيعات Diesel]] -> 3445.47 | M88: =Table10[[#This Row],[ايراد Diesel]]+Table10[[#This Row],[ايراد 95]]+Table10[[#This Row],[ايراد 91]] -> 13200.97 | N88: 2.095 | O88: 0.61 | P88: 0.61 | Q88: =(Table10[[#This Row],[سعر 91]]-Table10[[#This Row],[شراء 91]])*Table10[[#This Row],[مبيعات 91]] -> 380.375 | R88: =(Table10[[#This Row],[سعر 95]]-Table10[[#This Row],[شراء 95]])*Table10[[#This Row],[مبيعات 95]] -> 0 | S88: =(Table10[[#This Row],[سعر Diesel]]-Table10[[#This Row],[شراء Diesel]])*Table10[[#This Row],[مبيعات Diesel]] -> 109.38 | T88: =SUM(Table10[[#This Row],[أرباح 91]:[أرباح Diesel]]) -> 489.755 | U88: =Table10[[#This Row],[اجمالي الايراد]]*(15/115) -> 1721.865652 | V88: =Table10[[#This Row],[اجمالي الايراد]]-Table10[[#This Row],[ضريبة]] -> 11479.10435
B89: 2022-02-12 | C89: وردية أولى | D89: 4798 | E89: 2.18 | F89: =Table10[[#This Row],[مبيعات 91]]*Table10[[#This Row],[سعر 91]] -> 10459.64 | I89: =Table10[[#This Row],[سعر 95]]*Table10[[#This Row],[مبيعات 95]] -> 0 | J89: 2778 | K89: 0.63 | L89: =Table10[[#This Row],[سعر Diesel]]*Table10[[#This Row],[مبيعات Diesel]] -> 1750.14 | M89: =Table10[[#This Row],[ايراد Diesel]]+Table10[[#This Row],[ايراد 95]]+Table10[[#This Row],[ايراد 91]] -> 12209.78 | N89: 2.095 | O89: 0.61 | P89: 0.61 | Q89: =(Table10[[#This Row],[سعر 91]]-Table10[[#This Row],[شراء 91]])*Table10[[#This Row],[مبيعات 91]] -> 407.83 | R89: =(Table10[[#This Row],[سعر 95]]-Table10[[#This Row],[شراء 95]])*Table10[[#This Row],[مبيعات 95]] -> 0 | S89: =(Table10[[#This Row],[سعر Diesel]]-Table10[[#This Row],[شراء Diesel]])*Table10[[#This Row],[مبيعات Diesel]] -> 55.56 | T89: =SUM(Table10[[#This Row],[أرباح 91]:[أرباح Diesel]]) -> 463.39 | U89: =Table10[[#This Row],[اجمالي الايراد]]*(15/115) -> 1592.58 | V89: =Table10[[#This Row],[اجمالي الايراد]]-Table10[[#This Row],[ضريبة]] -> 10617.2
B90: 2022-02-13 | C90: وردية أولى | D90: 4993 | E90: 2.18 | F90: =Table10[[#This Row],[مبيعات 91]]*Table10[[#This Row],[سعر 91]] -> 10884.74 | I90: =Table10[[#This Row],[سعر 95]]*Table10[[#This Row],[مبيعات 95]] -> 0 | J90: 4948 | K90: 0.63 | L90: =Table10[[#This Row],[سعر Diesel]]*Table10[[#This Row],[مبيعات Diesel]] -> 3117.24 | M90: =Table10[[#This Row],[ايراد Diesel]]+Table10[[#This Row],[ايراد 95]]+Table10[[#This Row],[ايراد 91]] -> 14001.98 | N90: 2.095 | O90: 0.61 | P90: 0.61 | Q90: =(Table10[[#This Row],[سعر 91]]-Table10[[#This Row],[شراء 91]])*Table10[[#This Row],[مبيعات 91]] -> 424.405 | R90: =(Table10[[#This Row],[سعر 95]]-Table10[[#This Row],[شراء 95]])*Table10[[#This Row],[مبيعات 95]] -> 0 | S90: =(Table10[[#This Row],[سعر Diesel]]-Table10[[#This Row],[شراء Diesel]])*Table10[[#This Row],[مبيعات Diesel]] -> 98.96 | T90: =SUM(Table10[[#This Row],[أرباح 91]:[أرباح Diesel]]) -> 523.365 | U90: =Table10[[#This Row],[اجمالي الايراد]]*(15/115) -> 1826.345217 | V90: =Table10[[#This Row],[اجمالي الايراد]]-Table10[[#This Row],[ضريبة]] -> 12175.63478
B91: 2022-02-13 | C91: وردية ثانية | D91: 4576 | E91: 2.18 | F91: =Table10[[#This Row],[مبيعات 91]]*Table10[[#This Row],[سعر 91]] -> 9975.68 | I91: =Table10[[#This Row],[سعر 95]]*Table10[[#This Row],[مبيعات 95]] -> 0 | J91: 2568 | K91: 0.63 | L91: =Table10[[#This Row],[سعر Diesel]]*Table10[[#This Row],[مبيعات Diesel]] -> 1617.84 | M91: =Table10[[#This Row],[ايراد Diesel]]+Table10[[#This Row],[ايراد 95]]+Table10[[#This Row],[ايراد 91]] -> 11593.52 | N91: 2.095 | O91: 0.61 | P91: 0.61 | Q91: =(Table10[[#This Row],[سعر 91]]-Table10[[#This Row],[شراء 91]])*Table10[[#This Row],[مبيعات 91]] -> 388.96 | R91: =(Table10[[#This Row],[سعر 95]]-Table10[[#This Row],[شراء 95]])*Table10[[#This Row],[مبيعات 95]] -> 0 | S91: =(Table10[[#This Row],[سعر Diesel]]-Table10[[#This Row],[شراء Diesel]])*Table10[[#This Row],[مبيعات Diesel]] -> 51.36 | T91: =SUM(Table10[[#This Row],[أرباح 91]:[أرباح Diesel]]) -> 440.32 | U91: =Table10[[#This Row],[اجمالي الايراد]]*(15/115) -> 1512.198261 | V91: =Table10[[#This Row],[اجمالي الايراد]]-Table10[[#This Row],[ضريبة]] -> 10081.32174
B92: 2022-02-14 | C92: وردية أولى | D92: 4810 | E92: 2.18 | F92: =Table10[[#This Row],[مبيعات 91]]*Table10[[#This Row],[سعر 91]] -> 10485.8 | I92: =Table10[[#This Row],[سعر 95]]*Table10[[#This Row],[مبيعات 95]] -> 0 | J92: 6099 | K92: 0.63 | L92: =Table10[[#This Row],[سعر Diesel]]*Table10[[#This Row],[مبيعات Diesel]] -> 3842.37 | M92: =Table10[[#This Row],[ايراد Diesel]]+Table10[[#This Row],[ايراد 95]]+Table10[[#This Row],[ايراد 91]] -> 14328.17 | N92: 2.095 | O92: 0.61 | P92: 0.61 | Q92: =(Table10[[#This Row],[سعر 91]]-Table10[[#This Row],[شراء 91]])*Table10[[#This Row],[مبيعات 91]] -> 408.85 | R92: =(Table10[[#This Row],[سعر 95]]-Table10[[#This Row],[شراء 95]])*Table10[[#This Row],[مبيعات 95]] -> 0 | S92: =(Table10[[#This Row],[سعر Diesel]]-Table10[[#This Row],[شراء Diesel]])*Table10[[#This Row],[مبيعات Diesel]] -> 121.98 | T92: =SUM(Table10[[#This Row],[أرباح 91]:[أرباح Diesel]]) -> 530.83 | U92: =Table10[[#This Row],[اجمالي الايراد]]*(15/115) -> 1868.891739 | V92: =Table10[[#This Row],[اجمالي الايراد]]-Table10[[#This Row],[ضريبة]] -> 12459.27826
B93: 2022-02-14 | C93: وردية ثانية | D93: 4626 | E93: 2.18 | F93: =Table10[[#This Row],[مبيعات 91]]*Table10[[#This Row],[سعر 91]] -> 10084.68 | I93: =Table10[[#This Row],[سعر 95]]*Table10[[#This Row],[مبيعات 95]] -> 0 | J93: 1900 | K93: 0.63 | L93: =Table10[[#This Row],[سعر Diesel]]*Table10[[#This Row],[مبيعات Diesel]] -> 1197 | M93: =Table10[[#This Row],[ايراد Diesel]]+Table10[[#This Row],[ايراد 95]]+Table10[[#This Row],[ايراد 91]] -> 11281.68 | N93: 2.095 | O93: 0.61 | P93: 0.61 | Q93: =(Table10[[#This Row],[سعر 91]]-Table10[[#This Row],[شراء 91]])*Table10[[#This Row],[مبيعات 91]] -> 393.21 | R93: =(Table10[[#This Row],[سعر 95]]-Table10[[#This Row],[شراء 95]])*Table10[[#This Row],[مبيعات 95]] -> 0 | S93: =(Table10[[#This Row],[سعر Diesel]]-Table10[[#This Row],[شراء Diesel]])*Table10[[#This Row],[مبيعات Diesel]] -> 38 | T93: =SUM(Table10[[#This Row],[أرباح 91]:[أرباح Diesel]]) -> 431.21 | U93: =Table10[[#This Row],[اجمالي الايراد]]*(15/115) -> 1471.523478 | V93: =Table10[[#This Row],[اجمالي الايراد]]-Table10[[#This Row],[ضريبة]] -> 9810.156522
B94: 2022-02-15 | C94: وردية أولى | D94: 4164 | E94: 2.18 | F94: =Table10[[#This Row],[مبيعات 91]]*Table10[[#This Row],[سعر 91]] -> 9077.52 | I94: =Table10[[#This Row],[سعر 95]]*Table10[[#This Row],[مبيعات 95]] -> 0 | J94: 3510 | K94: 0.63 | L94: =Table10[[#This Row],[سعر Diesel]]*Table10[[#This Row],[مبيعات Diesel]] -> 2211.3 | M94: =Table10[[#This Row],[ايراد Diesel]]+Table10[[#This Row],[ايراد 95]]+Table10[[#This Row],[ايراد 91]] -> 11288.82 | N94: 2.095 | O94: 0.61 | P94: 0.61 | Q94: =(Table10[[#This Row],[سعر 91]]-Table10[[#This Row],[شراء 91]])*Table10[[#This Row],[مبيعات 91]] -> 353.94 | R94: =(Table10[[#This Row],[سعر 95]]-Table10[[#This Row],[شراء 95]])*Table10[[#This Row],[مبيعات 95]] -> 0 | S94: =(Table10[[#This Row],[سعر Diesel]]-Table10[[#This Row],[شراء Diesel]])*Table10[[#This Row],[مبيعات Diesel]] -> 70.2 | T94: =SUM(Table10[[#This Row],[أرباح 91]:[أرباح Diesel]]) -> 424.14 | U94: =Table10[[#This Row],[اجمالي الايراد]]*(15/115) -> 1472.454783 | V94: =Table10[[#This Row],[اجمالي الايراد]]-Table10[[#This Row],[ضريبة]] -> 9816.365217
B95: 2022-02-15 | C95: وردية ثانية | D95: 4593 | E95: 2.18 | F95: =Table10[[#This Row],[مبيعات 91]]*Table10[[#This Row],[سعر 91]] -> 10012.74 | I95: =Table10[[#This Row],[سعر 95]]*Table10[[#This Row],[مبيعات 95]] -> 0 | J95: 2651 | K95: 0.63 | L95: =Table10[[#This Row],[سعر Diesel]]*Table10[[#This Row],[مبيعات Diesel]] -> 1670.13 | M95: =Table10[[#This Row],[ايراد Diesel]]+Table10[[#This Row],[ايراد 95]]+Table10[[#This Row],[ايراد 91]] -> 11682.87 | N95: 2.095 | O95: 0.61 | P95: 0.61 | Q95: =(Table10[[#This Row],[سعر 91]]-Table10[[#This Row],[شراء 91]])*Table10[[#This Row],[مبيعات 91]] -> 390.405 | R95: =(Table10[[#This Row],[سعر 95]]-Table10[[#This Row],[شراء 95]])*Table10[[#This Row],[مبيعات 95]] -> 0 | S95: =(Table10[[#This Row],[سعر Diesel]]-Table10[[#This Row],[شراء Diesel]])*Table10[[#This Row],[مبيعات Diesel]] -> 53.02 | T95: =SUM(Table10[[#This Row],[أرباح 91]:[أرباح Diesel]]) -> 443.425 | U95: =Table10[[#This Row],[اجمالي الايراد]]*(15/115) -> 1523.852609 | V95: =Table10[[#This Row],[اجمالي الايراد]]-Table10[[#This Row],[ضريبة]] -> 10159.01739
B96: 2022-02-16 | C96: وردية أولى | D96: 4271 | E96: 2.18 | F96: =Table10[[#This Row],[مبيعات 91]]*Table10[[#This Row],[سعر 91]] -> 9310.78 | I96: =Table10[[#This Row],[سعر 95]]*Table10[[#This Row],[مبيعات 95]] -> 0 | J96: 4605 | K96: 0.63 | L96: =Table10[[#This Row],[سعر Diesel]]*Table10[[#This Row],[مبيعات Diesel]] -> 2901.15 | M96: =Table10[[#This Row],[ايراد Diesel]]+Table10[[#This Row],[ايراد 95]]+Table10[[#This Row],[ايراد 91]] -> 12211.93 | N96: 2.095 | O96: 0.61 | P96: 0.61 | Q96: =(Table10[[#This Row],[سعر 91]]-Table10[[#This Row],[شراء 91]])*Table10[[#This Row],[مبيعات 91]] -> 363.035 | R96: =(Table10[[#This Row],[سعر 95]]-Table10[[#This Row],[شراء 95]])*Table10[[#This Row],[مبيعات 95]] -> 0 | S96: =(Table10[[#This Row],[سعر Diesel]]-Table10[[#This Row],[شراء Diesel]])*Table10[[#This Row],[مبيعات Diesel]] -> 92.1 | T96: =SUM(Table10[[#This Row],[أرباح 91]:[أرباح Diesel]]) -> 455.135 | U96: =Table10[[#This Row],[اجمالي الايراد]]*(15/115) -> 1592.860435 | V96: =Table10[[#This Row],[اجمالي الايراد]]-Table10[[#This Row],[ضريبة]] -> 10619.06957
B97: 2022-02-16 | C97: وردية ثانية | D97: 4079 | E97: 2.18 | F97: =Table10[[#This Row],[مبيعات 91]]*Table10[[#This Row],[سعر 91]] -> 8892.22 | I97: =Table10[[#This Row],[سعر 95]]*Table10[[#This Row],[مبيعات 95]] -> 0 | J97: 2355 | K97: 0.63 | L97: =Table10[[#This Row],[سعر Diesel]]*Table10[[#This Row],[مبيعات Diesel]] -> 1483.65 | M97: =Table10[[#This Row],[ايراد Diesel]]+Table10[[#This Row],[ايراد 95]]+Table10[[#This Row],[ايراد 91]] -> 10375.87 | N97: 2.095 | O97: 0.61 | P97: 0.61 | Q97: =(Table10[[#This Row],[سعر 91]]-Table10[[#This Row],[شراء 91]])*Table10[[#This Row],[مبيعات 91]] -> 346.715 | R97: =(Table10[[#This Row],[سعر 95]]-Table10[[#This Row],[شراء 95]])*Table10[[#This Row],[مبيعات 95]] -> 0 | S97: =(Table10[[#This Row],[سعر Diesel]]-Table10[[#This Row],[شراء Diesel]])*Table10[[#This Row],[مبيعات Diesel]] -> 47.1 | T97: =SUM(Table10[[#This Row],[أرباح 91]:[أرباح Diesel]]) -> 393.815 | U97: =Table10[[#This Row],[اجمالي الايراد]]*(15/115) -> 1353.374348 | V97: =Table10[[#This Row],[اجمالي الايراد]]-Table10[[#This Row],[ضريبة]] -> 9022.495652
B98: 2022-02-17 | C98: وردية أولى | D98: 4445 | E98: 2.18 | F98: =Table10[[#This Row],[مبيعات 91]]*Table10[[#This Row],[سعر 91]] -> 9690.1 | I98: =Table10[[#This Row],[سعر 95]]*Table10[[#This Row],[مبيعات 95]] -> 0 | J98: 4344 | K98: 0.63 | L98: =Table10[[#This Row],[سعر Diesel]]*Table10[[#This Row],[مبيعات Diesel]] -> 2736.72 | M98: =Table10[[#This Row],[ايراد Diesel]]+Table10[[#This Row],[ايراد 95]]+Table10[[#This Row],[ايراد 91]] -> 12426.82 | N98: 2.095 | O98: 0.61 | P98: 0.61 | Q98: =(Table10[[#This Row],[سعر 91]]-Table10[[#This Row],[شراء 91]])*Table10[[#This Row],[مبيعات 91]] -> 377.825 | R98: =(Table10[[#This Row],[سعر 95]]-Table10[[#This Row],[شراء 95]])*Table10[[#This Row],[مبيعات 95]] -> 0 | S98: =(Table10[[#This Row],[سعر Diesel]]-Table10[[#This Row],[شراء Diesel]])*Table10[[#This Row],[مبيعات Diesel]] -> 86.88 | T98: =SUM(Table10[[#This Row],[أرباح 91]:[أرباح Diesel]]) -> 464.705 | U98: =Table10[[#This Row],[اجمالي الايراد]]*(15/115) -> 1620.889565 | V98: =Table10[[#This Row],[اجمالي الايراد]]-Table10[[#This Row],[ضريبة]] -> 10805.93043
B99: 2022-02-17 | C99: وردية ثانية | D99: 4823 | E99: 2.18 | F99: =Table10[[#This Row],[مبيعات 91]]*Table10[[#This Row],[سعر 91]] -> 10514.14 | I99: =Table10[[#This Row],[سعر 95]]*Table10[[#This Row],[مبيعات 95]] -> 0 | J99: 2556 | K99: 0.63 | L99: =Table10[[#This Row],[سعر Diesel]]*Table10[[#This Row],[مبيعات Diesel]] -> 1610.28 | M99: =Table10[[#This Row],[ايراد Diesel]]+Table10[[#This Row],[ايراد 95]]+Table10[[#This Row],[ايراد 91]] -> 12124.42 | N99: 2.095 | O99: 0.61 | P99: 0.61 | Q99: =(Table10[[#This Row],[سعر 91]]-Table10[[#This Row],[شراء 91]])*Table10[[#This Row],[مبيعات 91]] -> 409.955 | R99: =(Table10[[#This Row],[سعر 95]]-Table10[[#This Row],[شراء 95]])*Table10[[#This Row],[مبيعات 95]] -> 0 | S99: =(Table10[[#This Row],[سعر Diesel]]-Table10[[#This Row],[شراء Diesel]])*Table10[[#This Row],[مبيعات Diesel]] -> 51.12 | T99: =SUM(Table10[[#This Row],[أرباح 91]:[أرباح Diesel]]) -> 461.075 | U99: =Table10[[#This Row],[اجمالي الايراد]]*(15/115) -> 1581.446087 | V99: =Table10[[#This Row],[اجمالي الايراد]]-Table10[[#This Row],[ضريبة]] -> 10542.97391
B100: 2022-02-18 | C100: وردية أولى | D100: 2452 | E100: 2.18 | F100: =Table10[[#This Row],[مبيعات 91]]*Table10[[#This Row],[سعر 91]] -> 5345.36 | I100: =Table10[[#This Row],[سعر 95]]*Table10[[#This Row],[مبيعات 95]] -> 0 | J100: 1255 | K100: 0.63 | L100: =Table10[[#This Row],[سعر Diesel]]*Table10[[#This Row],[مبيعات Diesel]] -> 790.65 | M100: =Table10[[#This Row],[ايراد Diesel]]+Table10[[#This Row],[ايراد 95]]+Table10[[#This Row],[ايراد 91]] -> 6136.01 | N100: 2.095 | O100: 0.61 | P100: 0.61 | Q100: =(Table10[[#This Row],[سعر 91]]-Table10[[#This Row],[شراء 91]])*Table10[[#This Row],[مبيعات 91]] -> 208.42 | R100: =(Table10[[#This Row],[سعر 95]]-Table10[[#This Row],[شراء 95]])*Table10[[#This Row],[مبيعات 95]] -> 0 | S100: =(Table10[[#This Row],[سعر Diesel]]-Table10[[#This Row],[شراء Diesel]])*Table10[[#This Row],[مبيعات Diesel]] -> 25.1 | T100: =SUM(Table10[[#This Row],[أرباح 91]:[أرباح Diesel]]) -> 233.52 | U100: =Table10[[#This Row],[اجمالي الايراد]]*(15/115) -> 800.3491304 | V100: =Table10[[#This Row],[اجمالي الايراد]]-Table10[[#This Row],[ضريبة]] -> 5335.66087
B101: 2022-02-18 | C101: وردية ثانية | D101: 4203 | E101: 2.18 | F101: =Table10[[#This Row],[مبيعات 91]]*Table10[[#This Row],[سعر 91]] -> 9162.54 | I101: =Table10[[#This Row],[سعر 95]]*Table10[[#This Row],[مبيعات 95]] -> 0 | J101: 1831 | K101: 0.63 | L101: =Table10[[#This Row],[سعر Diesel]]*Table10[[#This Row],[مبيعات Diesel]] -> 1153.53 | M101: =Table10[[#This Row],[ايراد Diesel]]+Table10[[#This Row],[ايراد 95]]+Table10[[#This Row],[ايراد 91]] -> 10316.07 | N101: 2.095 | O101: 0.61 | P101: 0.61 | Q101: =(Table10[[#This Row],[سعر 91]]-Table10[[#This Row],[شراء 91]])*Table10[[#This Row],[مبيعات 91]] -> 357.255 | R101: =(Table10[[#This Row],[سعر 95]]-Table10[[#This Row],[شراء 95]])*Table10[[#This Row],[مبيعات 95]] -> 0 | S101: =(Table10[[#This Row],[سعر Diesel]]-Table10[[#This Row],[شراء Diesel]])*Table10[[#This Row],[مبيعات Diesel]] -> 36.62 | T101: =SUM(Table10[[#This Row],[أرباح 91]:[أرباح Diesel]]) -> 393.875 | U101: =Table10[[#This Row],[اجمالي الايراد]]*(15/115) -> 1345.574348 | V101: =Table10[[#This Row],[اجمالي الايراد]]-Table10[[#This Row],[ضريبة]] -> 8970.495652
B102: 2022-02-19 | C102: وردية أولى | D102: 2740 | E102: 2.18 | F102: =Table10[[#This Row],[مبيعات 91]]*Table10[[#This Row],[سعر 91]] -> 5973.2 | I102: =Table10[[#This Row],[سعر 95]]*Table10[[#This Row],[مبيعات 95]] -> 0 | J102: 3655 | K102: 0.63 | L102: =Table10[[#This Row],[سعر Diesel]]*Table10[[#This Row],[مبيعات Diesel]] -> 2302.65 | M102: =Table10[[#This Row],[ايراد Diesel]]+Table10[[#This Row],[ايراد 95]]+Table10[[#This Row],[ايراد 91]] -> 8275.85 | N102: 2.095 | O102: 0.61 | P102: 0.61 | Q102: =(Table10[[#This Row],[سعر 91]]-Table10[[#This Row],[شراء 91]])*Table10[[#This Row],[مبيعات 91]] -> 232.9 | R102: =(Table10[[#This Row],[سعر 95]]-Table10[[#This Row],[شراء 95]])*Table10[[#This Row],[مبيعات 95]] -> 0 | S102: =(Table10[[#This Row],[سعر Diesel]]-Table10[[#This Row],[شراء Diesel]])*Table10[[#This Row],[مبيعات Diesel]] -> 73.1 | T102: =SUM(Table10[[#This Row],[أرباح 91]:[أرباح Diesel]]) -> 306 | U102: =Table10[[#This Row],[اجمالي الايراد]]*(15/115) -> 1079.458696 | V102: =Table10[[#This Row],[اجمالي الايراد]]-Table10[[#This Row],[ضريبة]] -> 7196.391304
B103: 2022-02-19 | C103: وردية أولى | D103: 4480 | E103: 2.18 | F103: =Table10[[#This Row],[مبيعات 91]]*Table10[[#This Row],[سعر 91]] -> 9766.4 | I103: =Table10[[#This Row],[سعر 95]]*Table10[[#This Row],[مبيعات 95]] -> 0 | J103: 2159 | K103: 0.63 | L103: =Table10[[#This Row],[سعر Diesel]]*Table10[[#This Row],[مبيعات Diesel]] -> 1360.17 | M103: =Table10[[#This Row],[ايراد Diesel]]+Table10[[#This Row],[ايراد 95]]+Table10[[#This Row],[ايراد 91]] -> 11126.57 | N103: 2.095 | O103: 0.61 | P103: 0.61 | Q103: =(Table10[[#This Row],[سعر 91]]-Table10[[#This Row],[شراء 91]])*Table10[[#This Row],[مبيعات 91]] -> 380.8 | R103: =(Table10[[#This Row],[سعر 95]]-Table10[[#This Row],[شراء 95]])*Table10[[#This Row],[مبيعات 95]] -> 0 | S103: =(Table10[[#This Row],[سعر Diesel]]-Table10[[#This Row],[شراء Diesel]])*Table10[[#This Row],[مبيعات Diesel]] -> 43.18 | T103: =SUM(Table10[[#This Row],[أرباح 91]:[أرباح Diesel]]) -> 423.98 | U103: =Table10[[#This Row],[اجمالي الايراد]]*(15/115) -> 1451.291739 | V103: =Table10[[#This Row],[اجمالي الايراد]]-Table10[[#This Row],[ضريبة]] -> 9675.278261
B104: 2022-02-20 | C104: وردية أولى | D104: 4112 | E104: 2.18 | F104: =Table10[[#This Row],[مبيعات 91]]*Table10[[#This Row],[سعر 91]] -> 8964.16 | I104: =Table10[[#This Row],[سعر 95]]*Table10[[#This Row],[مبيعات 95]] -> 0 | J104: 3834 | K104: 0.63 | L104: =Table10[[#This Row],[سعر Diesel]]*Table10[[#This Row],[مبيعات Diesel]] -> 2415.42 | M104: =Table10[[#This Row],[ايراد Diesel]]+Table10[[#This Row],[ايراد 95]]+Table10[[#This Row],[ايراد 91]] -> 11379.58 | N104: 2.095 | O104: 0.61 | P104: 0.61 | Q104: =(Table10[[#This Row],[سعر 91]]-Table10[[#This Row],[شراء 91]])*Table10[[#This Row],[مبيعات 91]] -> 349.52 | R104: =(Table10[[#This Row],[سعر 95]]-Table10[[#This Row],[شراء 95]])*Table10[[#This Row],[مبيعات 95]] -> 0 | S104: =(Table10[[#This Row],[سعر Diesel]]-Table10[[#This Row],[شراء Diesel]])*Table10[[#This Row],[مبيعات Diesel]] -> 76.68 | T104: =SUM(Table10[[#This Row],[أرباح 91]:[أرباح Diesel]]) -> 426.2 | U104: =Table10[[#This Row],[اجمالي الايراد]]*(15/115) -> 1484.293043 | V104: =Table10[[#This Row],[اجمالي الايراد]]-Table10[[#This Row],[ضريبة]] -> 9895.286957
B105: 2022-02-20 | C105: وردية ثانية | D105: 4763 | E105: 2.18 | F105: =Table10[[#This Row],[مبيعات 91]]*Table10[[#This Row],[سعر 91]] -> 10383.34 | I105: =Table10[[#This Row],[سعر 95]]*Table10[[#This Row],[مبيعات 95]] -> 0 | J105: 2215 | K105: 0.63 | L105: =Table10[[#This Row],[سعر Diesel]]*Table10[[#This Row],[مبيعات Diesel]] -> 1395.45 | M105: =Table10[[#This Row],[ايراد Diesel]]+Table10[[#This Row],[ايراد 95]]+Table10[[#This Row],[ايراد 91]] -> 11778.79 | N105: 2.095 | O105: 0.61 | P105: 0.61 | Q105: =(Table10[[#This Row],[سعر 91]]-Table10[[#This Row],[شراء 91]])*Table10[[#This Row],[مبيعات 91]] -> 404.855 | R105: =(Table10[[#This Row],[سعر 95]]-Table10[[#This Row],[شراء 95]])*Table10[[#This Row],[مبيعات 95]] -> 0 | S105: =(Table10[[#This Row],[سعر Diesel]]-Table10[[#This Row],[شراء Diesel]])*Table10[[#This Row],[مبيعات Diesel]] -> 44.3 | T105: =SUM(Table10[[#This Row],[أرباح 91]:[أرباح Diesel]]) -> 449.155 | U105: =Table10[[#This Row],[اجمالي الايراد]]*(15/115) -> 1536.363913 | V105: =Table10[[#This Row],[اجمالي الايراد]]-Table10[[#This Row],[ضريبة]] -> 10242.42609
B106: 2022-02-21 | C106: وردية أولى | D106: 4821 | E106: 2.18 | F106: =Table10[[#This Row],[مبيعات 91]]*Table10[[#This Row],[سعر 91]] -> 10509.78 | I106: =Table10[[#This Row],[سعر 95]]*Table10[[#This Row],[مبيعات 95]] -> 0 | J106: 6006 | K106: 0.63 | L106: =Table10[[#This Row],[سعر Diesel]]*Table10[[#This Row],[مبيعات Diesel]] -> 3783.78 | M106: =Table10[[#This Row],[ايراد Diesel]]+Table10[[#This Row],[ايراد 95]]+Table10[[#This Row],[ايراد 91]] -> 14293.56 | N106: 2.095 | O106: 0.61 | P106: 0.61 | Q106: =(Table10[[#This Row],[سعر 91]]-Table10[[#This Row],[شراء 91]])*Table10[[#This Row],[مبيعات 91]] -> 409.785 | R106: =(Table10[[#This Row],[سعر 95]]-Table10[[#This Row],[شراء 95]])*Table10[[#This Row],[مبيعات 95]] -> 0 | S106: =(Table10[[#This Row],[سعر Diesel]]-Table10[[#This Row],[شراء Diesel]])*Table10[[#This Row],[مبيعات Diesel]] -> 120.12 | T106: =SUM(Table10[[#This Row],[أرباح 91]:[أرباح Diesel]]) -> 529.905 | U106: =Table10[[#This Row],[اجمالي الايراد]]*(15/115) -> 1864.377391 | V106: =Table10[[#This Row],[اجمالي الايراد]]-Table10[[#This Row],[ضريبة]] -> 12429.18261
B107: 2022-02-21 | C107: وردية ثانية | D107: 5066 | E107: 2.18 | F107: =Table10[[#This Row],[مبيعات 91]]*Table10[[#This Row],[سعر 91]] -> 11043.88 | I107: =Table10[[#This Row],[سعر 95]]*Table10[[#This Row],[مبيعات 95]] -> 0 | J107: 2400 | K107: 0.63 | L107: =Table10[[#This Row],[سعر Diesel]]*Table10[[#This Row],[مبيعات Diesel]] -> 1512 | M107: =Table10[[#This Row],[ايراد Diesel]]+Table10[[#This Row],[ايراد 95]]+Table10[[#This Row],[ايراد 91]] -> 12555.88 | N107: 2.095 | O107: 0.61 | P107: 0.61 | Q107: =(Table10[[#This Row],[سعر 91]]-Table10[[#This Row],[شراء 91]])*Table10[[#This Row],[مبيعات 91]] -> 430.61 | R107: =(Table10[[#This Row],[سعر 95]]-Table10[[#This Row],[شراء 95]])*Table10[[#This Row],[مبيعات 95]] -> 0 | S107: =(Table10[[#This Row],[سعر Diesel]]-Table10[[#This Row],[شراء Diesel]])*Table10[[#This Row],[مبيعات Diesel]] -> 48 | T107: =SUM(Table10[[#This Row],[أرباح 91]:[أرباح Diesel]]) -> 478.61 | U107: =Table10[[#This Row],[اجمالي الايراد]]*(15/115) -> 1637.723478 | V107: =Table10[[#This Row],[اجمالي الايراد]]-Table10[[#This Row],[ضريبة]] -> 10918.15652
B108: 2022-02-22 | C108: وردية أولى | D108: 4578 | E108: 2.18 | F108: =Table10[[#This Row],[مبيعات 91]]*Table10[[#This Row],[سعر 91]] -> 9980.04 | I108: =Table10[[#This Row],[سعر 95]]*Table10[[#This Row],[مبيعات 95]] -> 0 | J108: 2764 | K108: 0.63 | L108: =Table10[[#This Row],[سعر Diesel]]*Table10[[#This Row],[مبيعات Diesel]] -> 1741.32 | M108: =Table10[[#This Row],[ايراد Diesel]]+Table10[[#This Row],[ايراد 95]]+Table10[[#This Row],[ايراد 91]] -> 11721.36 | N108: 2.095 | O108: 0.61 | P108: 0.61 | Q108: =(Table10[[#This Row],[سعر 91]]-Table10[[#This Row],[شراء 91]])*Table10[[#This Row],[مبيعات 91]] -> 389.13 | R108: =(Table10[[#This Row],[سعر 95]]-Table10[[#This Row],[شراء 95]])*Table10[[#This Row],[مبيعات 95]] -> 0 | S108: =(Table10[[#This Row],[سعر Diesel]]-Table10[[#This Row],[شراء Diesel]])*Table10[[#This Row],[مبيعات Diesel]] -> 55.28 | T108: =SUM(Table10[[#This Row],[أرباح 91]:[أرباح Diesel]]) -> 444.41 | U108: =Table10[[#This Row],[اجمالي الايراد]]*(15/115) -> 1528.873043 | V108: =Table10[[#This Row],[اجمالي الايراد]]-Table10[[#This Row],[ضريبة]] -> 10192.48696
B109: 2022-02-22 | C109: وردية ثانية | D109: 4674 | E109: 2.18 | F109: =Table10[[#This Row],[مبيعات 91]]*Table10[[#This Row],[سعر 91]] -> 10189.32 | I109: =Table10[[#This Row],[سعر 95]]*Table10[[#This Row],[مبيعات 95]] -> 0 | J109: 2406 | K109: 0.63 | L109: =Table10[[#This Row],[سعر Diesel]]*Table10[[#This Row],[مبيعات Diesel]] -> 1515.78 | M109: =Table10[[#This Row],[ايراد Diesel]]+Table10[[#This Row],[ايراد 95]]+Table10[[#This Row],[ايراد 91]] -> 11705.1 | N109: 2.095 | O109: 0.61 | P109: 0.61 | Q109: =(Table10[[#This Row],[سعر 91]]-Table10[[#This Row],[شراء 91]])*Table10[[#This Row],[مبيعات 91]] -> 397.29 | R109: =(Table10[[#This Row],[سعر 95]]-Table10[[#This Row],[شراء 95]])*Table10[[#This Row],[مبيعات 95]] -> 0 | S109: =(Table10[[#This Row],[سعر Diesel]]-Table10[[#This Row],[شراء Diesel]])*Table10[[#This Row],[مبيعات Diesel]] -> 48.12 | T109: =SUM(Table10[[#This Row],[أرباح 91]:[أرباح Diesel]]) -> 445.41 | U109: =Table10[[#This Row],[اجمالي الايراد]]*(15/115) -> 1526.752174 | V109: =Table10[[#This Row],[اجمالي الايراد]]-Table10[[#This Row],[ضريبة]] -> 10178.34783
B110: 2022-02-23 | C110: وردية أولى | D110: 4331 | E110: 2.18 | F110: =Table10[[#This Row],[مبيعات 91]]*Table10[[#This Row],[سعر 91]] -> 9441.58 | I110: =Table10[[#This Row],[سعر 95]]*Table10[[#This Row],[مبيعات 95]] -> 0 | J110: 3787 | K110: 0.63 | L110: =Table10[[#This Row],[سعر Diesel]]*Table10[[#This Row],[مبيعات Diesel]] -> 2385.81 | M110: =Table10[[#This Row],[ايراد Diesel]]+Table10[[#This Row],[ايراد 95]]+Table10[[#This Row],[ايراد 91]] -> 11827.39 | N110: 2.095 | O110: 0.61 | P110: 0.61 | Q110: =(Table10[[#This Row],[سعر 91]]-Table10[[#This Row],[شراء 91]])*Table10[[#This Row],[مبيعات 91]] -> 368.135 | R110: =(Table10[[#This Row],[سعر 95]]-Table10[[#This Row],[شراء 95]])*Table10[[#This Row],[مبيعات 95]] -> 0 | S110: =(Table10[[#This Row],[سعر Diesel]]-Table10[[#This Row],[شراء Diesel]])*Table10[[#This Row],[مبيعات Diesel]] -> 75.74 | T110: =SUM(Table10[[#This Row],[أرباح 91]:[أرباح Diesel]]) -> 443.875 | U110: =Table10[[#This Row],[اجمالي الايراد]]*(15/115) -> 1542.703043 | V110: =Table10[[#This Row],[اجمالي الايراد]]-Table10[[#This Row],[ضريبة]] -> 10284.68696
B111: 2022-02-23 | C111: وردية ثانية | D111: 5073 | E111: 2.18 | F111: =Table10[[#This Row],[مبيعات 91]]*Table10[[#This Row],[سعر 91]] -> 11059.14 | I111: =Table10[[#This Row],[سعر 95]]*Table10[[#This Row],[مبيعات 95]] -> 0 | J111: 2445 | K111: 0.63 | L111: =Table10[[#This Row],[سعر Diesel]]*Table10[[#This Row],[مبيعات Diesel]] -> 1540.35 | M111: =Table10[[#This Row],[ايراد Diesel]]+Table10[[#This Row],[ايراد 95]]+Table10[[#This Row],[ايراد 91]] -> 12599.49 | N111: 2.095 | O111: 0.61 | P111: 0.61 | Q111: =(Table10[[#This Row],[سعر 91]]-Table10[[#This Row],[شراء 91]])*Table10[[#This Row],[مبيعات 91]] -> 431.205 | R111: =(Table10[[#This Row],[سعر 95]]-Table10[[#This Row],[شراء 95]])*Table10[[#This Row],[مبيعات 95]] -> 0 | S111: =(Table10[[#This Row],[سعر Diesel]]-Table10[[#This Row],[شراء Diesel]])*Table10[[#This Row],[مبيعات Diesel]] -> 48.9 | T111: =SUM(Table10[[#This Row],[أرباح 91]:[أرباح Diesel]]) -> 480.105 | U111: =Table10[[#This Row],[اجمالي الايراد]]*(15/115) -> 1643.411739 | V111: =Table10[[#This Row],[اجمالي الايراد]]-Table10[[#This Row],[ضريبة]] -> 10956.07826
B112: 2022-02-24 | C112: وردية أولى | D112: 4387 | E112: 2.18 | F112: =Table10[[#This Row],[مبيعات 91]]*Table10[[#This Row],[سعر 91]] -> 9563.66 | I112: =Table10[[#This Row],[سعر 95]]*Table10[[#This Row],[مبيعات 95]] -> 0 | J112: 5434 | K112: 0.63 | L112: =Table10[[#This Row],[سعر Diesel]]*Table10[[#This Row],[مبيعات Diesel]] -> 3423.42 | M112: =Table10[[#This Row],[ايراد Diesel]]+Table10[[#This Row],[ايراد 95]]+Table10[[#This Row],[ايراد 91]] -> 12987.08 | N112: 2.095 | O112: 0.61 | P112: 0.61 | Q112: =(Table10[[#This Row],[سعر 91]]-Table10[[#This Row],[شراء 91]])*Table10[[#This Row],[مبيعات 91]] -> 372.895 | R112: =(Table10[[#This Row],[سعر 95]]-Table10[[#This Row],[شراء 95]])*Table10[[#This Row],[مبيعات 95]] -> 0 | S112: =(Table10[[#This Row],[سعر Diesel]]-Table10[[#This Row],[شراء Diesel]])*Table10[[#This Row],[مبيعات Diesel]] -> 108.68 | T112: =SUM(Table10[[#This Row],[أرباح 91]:[أرباح Diesel]]) -> 481.575 | U112: =Table10[[#This Row],[اجمالي الايراد]]*(15/115) -> 1693.966957 | V112: =Table10[[#This Row],[اجمالي الايراد]]-Table10[[#This Row],[ضريبة]] -> 11293.11304
B113: 2022-02-24 | C113: وردية ثانية | D113: 5034 | E113: 2.18 | F113: =Table10[[#This Row],[مبيعات 91]]*Table10[[#This Row],[سعر 91]] -> 10974.12 | I113: =Table10[[#This Row],[سعر 95]]*Table10[[#This Row],[مبيعات 95]] -> 0 | J113: 2363 | K113: 0.63 | L113: =Table10[[#This Row],[سعر Diesel]]*Table10[[#This Row],[مبيعات Diesel]] -> 1488.69 | M113: =Table10[[#This Row],[ايراد Diesel]]+Table10[[#This Row],[ايراد 95]]+Table10[[#This Row],[ايراد 91]] -> 12462.81 | N113: 2.095 | O113: 0.61 | P113: 0.61 | Q113: =(Table10[[#This Row],[سعر 91]]-Table10[[#This Row],[شراء 91]])*Table10[[#This Row],[مبيعات 91]] -> 427.89 | R113: =(Table10[[#This Row],[سعر 95]]-Table10[[#This Row],[شراء 95]])*Table10[[#This Row],[مبيعات 95]] -> 0 | S113: =(Table10[[#This Row],[سعر Diesel]]-Table10[[#This Row],[شراء Diesel]])*Table10[[#This Row],[مبيعات Diesel]] -> 47.26 | T113: =SUM(Table10[[#This Row],[أرباح 91]:[أرباح Diesel]]) -> 475.15 | U113: =Table10[[#This Row],[اجمالي الايراد]]*(15/115) -> 1625.583913 | V113: =Table10[[#This Row],[اجمالي الايراد]]-Table10[[#This Row],[ضريبة]] -> 10837.22609
B114: 2022-02-25 | C114: وردية أولى | D114: 2317 | E114: 2.18 | F114: =Table10[[#This Row],[مبيعات 91]]*Table10[[#This Row],[سعر 91]] -> 5051.06 | I114: =Table10[[#This Row],[سعر 95]]*Table10[[#This Row],[مبيعات 95]] -> 0 | J114: 411 | K114: 0.63 | L114: =Table10[[#This Row],[سعر Diesel]]*Table10[[#This Row],[مبيعات Diesel]] -> 258.93 | M114: =Table10[[#This Row],[ايراد Diesel]]+Table10[[#This Row],[ايراد 95]]+Table10[[#This Row],[ايراد 91]] -> 5309.99 | N114: 2.095 | O114: 0.61 | P114: 0.61 | Q114: =(Table10[[#This Row],[سعر 91]]-Table10[[#This Row],[شراء 91]])*Table10[[#This Row],[مبيعات 91]] -> 196.945 | R114: =(Table10[[#This Row],[سعر 95]]-Table10[[#This Row],[شراء 95]])*Table10[[#This Row],[مبيعات 95]] -> 0 | S114: =(Table10[[#This Row],[سعر Diesel]]-Table10[[#This Row],[شراء Diesel]])*Table10[[#This Row],[مبيعات Diesel]] -> 8.22 | T114: =SUM(Table10[[#This Row],[أرباح 91]:[أرباح Diesel]]) -> 205.165 | U114: =Table10[[#This Row],[اجمالي الايراد]]*(15/115) -> 692.6073913 | V114: =Table10[[#This Row],[اجمالي الايراد]]-Table10[[#This Row],[ضريبة]] -> 4617.382609
B115: 2022-02-25 | C115: وردية ثانية | D115: 4252 | E115: 2.18 | F115: =Table10[[#This Row],[مبيعات 91]]*Table10[[#This Row],[سعر 91]] -> 9269.36 | I115: =Table10[[#This Row],[سعر 95]]*Table10[[#This Row],[مبيعات 95]] -> 0 | J115: 2199 | K115: 0.63 | L115: =Table10[[#This Row],[سعر Diesel]]*Table10[[#This Row],[مبيعات Diesel]] -> 1385.37 | M115: =Table10[[#This Row],[ايراد Diesel]]+Table10[[#This Row],[ايراد 95]]+Table10[[#This Row],[ايراد 91]] -> 10654.73 | N115: 2.095 | O115: 0.61 | P115: 0.61 | Q115: =(Table10[[#This Row],[سعر 91]]-Table10[[#This Row],[شراء 91]])*Table10[[#This Row],[مبيعات 91]] -> 361.42 | R115: =(Table10[[#This Row],[سعر 95]]-Table10[[#This Row],[شراء 95]])*Table10[[#This Row],[مبيعات 95]] -> 0 | S115: =(Table10[[#This Row],[سعر Diesel]]-Table10[[#This Row],[شراء Diesel]])*Table10[[#This Row],[مبيعات Diesel]] -> 43.98 | T115: =SUM(Table10[[#This Row],[أرباح 91]:[أرباح Diesel]]) -> 405.4 | U115: =Table10[[#This Row],[اجمالي الايراد]]*(15/115) -> 1389.747391 | V115: =Table10[[#This Row],[اجمالي الايراد]]-Table10[[#This Row],[ضريبة]] -> 9264.982609
B116: 2022-02-26 | C116: وردية أولى | D116: 4370 | E116: 2.18 | F116: =Table10[[#This Row],[مبيعات 91]]*Table10[[#This Row],[سعر 91]] -> 9526.6 | I116: =Table10[[#This Row],[سعر 95]]*Table10[[#This Row],[مبيعات 95]] -> 0 | J116: 2540 | K116: 0.63 | L116: =Table10[[#This Row],[سعر Diesel]]*Table10[[#This Row],[مبيعات Diesel]] -> 1600.2 | M116: =Table10[[#This Row],[ايراد Diesel]]+Table10[[#This Row],[ايراد 95]]+Table10[[#This Row],[ايراد 91]] -> 11126.8 | N116: 2.095 | O116: 0.61 | P116: 0.61 | Q116: =(Table10[[#This Row],[سعر 91]]-Table10[[#This Row],[شراء 91]])*Table10[[#This Row],[مبيعات 91]] -> 371.45 | R116: =(Table10[[#This Row],[سعر 95]]-Table10[[#This Row],[شراء 95]])*Table10[[#This Row],[مبيعات 95]] -> 0 | S116: =(Table10[[#This Row],[سعر Diesel]]-Table10[[#This Row],[شراء Diesel]])*Table10[[#This Row],[مبيعات Diesel]] -> 50.8 | T116: =SUM(Table10[[#This Row],[أرباح 91]:[أرباح Diesel]]) -> 422.25 | U116: =Table10[[#This Row],[اجمالي الايراد]]*(15/115) -> 1451.321739 | V116: =Table10[[#This Row],[اجمالي الايراد]]-Table10[[#This Row],[ضريبة]] -> 9675.478261
B117: 2022-02-26 | C117: وردية ثانية | D117: 5177 | E117: 2.18 | F117: =Table10[[#This Row],[مبيعات 91]]*Table10[[#This Row],[سعر 91]] -> 11285.86 | I117: =Table10[[#This Row],[سعر 95]]*Table10[[#This Row],[مبيعات 95]] -> 0 | J117: 2134 | K117: 0.63 | L117: =Table10[[#This Row],[سعر Diesel]]*Table10[[#This Row],[مبيعات Diesel]] -> 1344.42 | M117: =Table10[[#This Row],[ايراد Diesel]]+Table10[[#This Row],[ايراد 95]]+Table10[[#This Row],[ايراد 91]] -> 12630.28 | N117: 2.095 | O117: 0.61 | P117: 0.61 | Q117: =(Table10[[#This Row],[سعر 91]]-Table10[[#This Row],[شراء 91]])*Table10[[#This Row],[مبيعات 91]] -> 440.045 | R117: =(Table10[[#This Row],[سعر 95]]-Table10[[#This Row],[شراء 95]])*Table10[[#This Row],[مبيعات 95]] -> 0 | S117: =(Table10[[#This Row],[سعر Diesel]]-Table10[[#This Row],[شراء Diesel]])*Table10[[#This Row],[مبيعات Diesel]] -> 42.68 | T117: =SUM(Table10[[#This Row],[أرباح 91]:[أرباح Diesel]]) -> 482.725 | U117: =Table10[[#This Row],[اجمالي الايراد]]*(15/115) -> 1647.427826 | V117: =Table10[[#This Row],[اجمالي الايراد]]-Table10[[#This Row],[ضريبة]] -> 10982.85217
B118: 2022-02-27 | C118: وردية أولى | D118: 5751 | E118: 2.18 | F118: =Table10[[#This Row],[مبيعات 91]]*Table10[[#This Row],[سعر 91]] -> 12537.18 | I118: =Table10[[#This Row],[سعر 95]]*Table10[[#This Row],[مبيعات 95]] -> 0 | J118: 5283 | K118: 0.63 | L118: =Table10[[#This Row],[سعر Diesel]]*Table10[[#This Row],[مبيعات Diesel]] -> 3328.29 | M118: =Table10[[#This Row],[ايراد Diesel]]+Table10[[#This Row],[ايراد 95]]+Table10[[#This Row],[ايراد 91]] -> 15865.47 | N118: 2.095 | O118: 0.61 | P118: 0.61 | Q118: =(Table10[[#This Row],[سعر 91]]-Table10[[#This Row],[شراء 91]])*Table10[[#This Row],[مبيعات 91]] -> 488.835 | R118: =(Table10[[#This Row],[سعر 95]]-Table10[[#This Row],[شراء 95]])*Table10[[#This Row],[مبيعات 95]] -> 0 | S118: =(Table10[[#This Row],[سعر Diesel]]-Table10[[#This Row],[شراء Diesel]])*Table10[[#This Row],[مبيعات Diesel]] -> 105.66 | T118: =SUM(Table10[[#This Row],[أرباح 91]:[أرباح Diesel]]) -> 594.495 | U118: =Table10[[#This Row],[اجمالي الايراد]]*(15/115) -> 2069.40913 | V118: =Table10[[#This Row],[اجمالي الايراد]]-Table10[[#This Row],[ضريبة]] -> 13796.06087
B119: 2022-02-27 | C119: وردية ثانية | D119: 4576 | E119: 2.18 | F119: =Table10[[#This Row],[مبيعات 91]]*Table10[[#This Row],[سعر 91]] -> 9975.68 | I119: =Table10[[#This Row],[سعر 95]]*Table10[[#This Row],[مبيعات 95]] -> 0 | J119: 2795 | K119: 0.63 | L119: =Table10[[#This Row],[سعر Diesel]]*Table10[[#This Row],[مبيعات Diesel]] -> 1760.85 | M119: =Table10[[#This Row],[ايراد Diesel]]+Table10[[#This Row],[ايراد 95]]+Table10[[#This Row],[ايراد 91]] -> 11736.53 | N119: 2.095 | O119: 0.61 | P119: 0.61 | Q119: =(Table10[[#This Row],[سعر 91]]-Table10[[#This Row],[شراء 91]])*Table10[[#This Row],[مبيعات 91]] -> 388.96 | R119: =(Table10[[#This Row],[سعر 95]]-Table10[[#This Row],[شراء 95]])*Table10[[#This Row],[مبيعات 95]] -> 0 | S119: =(Table10[[#This Row],[سعر Diesel]]-Table10[[#This Row],[شراء Diesel]])*Table10[[#This Row],[مبيعات Diesel]] -> 55.9 | T119: =SUM(Table10[[#This Row],[أرباح 91]:[أرباح Diesel]]) -> 444.86 | U119: =Table10[[#This Row],[اجمالي الايراد]]*(15/115) -> 1530.851739 | V119: =Table10[[#This Row],[اجمالي الايراد]]-Table10[[#This Row],[ضريبة]] -> 10205.67826
B120: 2022-02-28 | C120: وردية أولى | D120: 4416 | E120: 2.18 | F120: =Table10[[#This Row],[مبيعات 91]]*Table10[[#This Row],[سعر 91]] -> 9626.88 | I120: =Table10[[#This Row],[سعر 95]]*Table10[[#This Row],[مبيعات 95]] -> 0 | J120: 4715 | K120: 0.63 | L120: =Table10[[#This Row],[سعر Diesel]]*Table10[[#This Row],[مبيعات Diesel]] -> 2970.45 | M120: =Table10[[#This Row],[ايراد Diesel]]+Table10[[#This Row],[ايراد 95]]+Table10[[#This Row],[ايراد 91]] -> 12597.33 | N120: 2.095 | O120: 0.61 | P120: 0.61 | Q120: =(Table10[[#This Row],[سعر 91]]-Table10[[#This Row],[شراء 91]])*Table10[[#This Row],[مبيعات 91]] -> 375.36 | R120: =(Table10[[#This Row],[سعر 95]]-Table10[[#This Row],[شراء 95]])*Table10[[#This Row],[مبيعات 95]] -> 0 | S120: =(Table10[[#This Row],[سعر Diesel]]-Table10[[#This Row],[شراء Diesel]])*Table10[[#This Row],[مبيعات Diesel]] -> 94.3 | T120: =SUM(Table10[[#This Row],[أرباح 91]:[أرباح Diesel]]) -> 469.66 | U120: =Table10[[#This Row],[اجمالي الايراد]]*(15/115) -> 1643.13 | V120: =Table10[[#This Row],[اجمالي الايراد]]-Table10[[#This Row],[ضريبة]] -> 10954.2
B121: 2022-02-28 | C121: وردية ثانية | D121: 4822 | E121: 2.18 | F121: =Table10[[#This Row],[مبيعات 91]]*Table10[[#This Row],[سعر 91]] -> 10511.96 | I121: =Table10[[#This Row],[سعر 95]]*Table10[[#This Row],[مبيعات 95]] -> 0 | J121: 2181 | K121: 0.63 | L121: =Table10[[#This Row],[سعر Diesel]]*Table10[[#This Row],[مبيعات Diesel]] -> 1374.03 | M121: =Table10[[#This Row],[ايراد Diesel]]+Table10[[#This Row],[ايراد 95]]+Table10[[#This Row],[ايراد 91]] -> 11885.99 | N121: 2.095 | O121: 0.61 | P121: 0.61 | Q121: =(Table10[[#This Row],[سعر 91]]-Table10[[#This Row],[شراء 91]])*Table10[[#This Row],[مبيعات 91]] -> 409.87 | R121: =(Table10[[#This Row],[سعر 95]]-Table10[[#This Row],[شراء 95]])*Table10[[#This Row],[مبيعات 95]] -> 0 | S121: =(Table10[[#This Row],[سعر Diesel]]-Table10[[#This Row],[شراء Diesel]])*Table10[[#This Row],[مبيعات Diesel]] -> 43.62 | T121: =SUM(Table10[[#This Row],[أرباح 91]:[أرباح Diesel]]) -> 453.49 | U121: =Table10[[#This Row],[اجمالي الايراد]]*(15/115) -> 1550.346522 | V121: =Table10[[#This Row],[اجمالي الايراد]]-Table10[[#This Row],[ضريبة]] -> 10335.64348
B122: 2022-03-01 | C122: وردية أولى | D122: 4873 | E122: 2.18 | F122: =Table10[[#This Row],[مبيعات 91]]*Table10[[#This Row],[سعر 91]] -> 10623.14 | I122: =Table10[[#This Row],[سعر 95]]*Table10[[#This Row],[مبيعات 95]] -> 0 | J122: 6551 | K122: 0.63 | L122: =Table10[[#This Row],[سعر Diesel]]*Table10[[#This Row],[مبيعات Diesel]] -> 4127.13 | M122: =Table10[[#This Row],[ايراد Diesel]]+Table10[[#This Row],[ايراد 95]]+Table10[[#This Row],[ايراد 91]] -> 14750.27 | N122: 2.095 | O122: 0.61 | P122: 0.61 | Q122: =(Table10[[#This Row],[سعر 91]]-Table10[[#This Row],[شراء 91]])*Table10[[#This Row],[مبيعات 91]] -> 414.205 | R122: =(Table10[[#This Row],[سعر 95]]-Table10[[#This Row],[شراء 95]])*Table10[[#This Row],[مبيعات 95]] -> 0 | S122: =(Table10[[#This Row],[سعر Diesel]]-Table10[[#This Row],[شراء Diesel]])*Table10[[#This Row],[مبيعات Diesel]] -> 131.02 | T122: =SUM(Table10[[#This Row],[أرباح 91]:[أرباح Diesel]]) -> 545.225 | U122: =Table10[[#This Row],[اجمالي الايراد]]*(15/115) -> 1923.948261 | V122: =Table10[[#This Row],[اجمالي الايراد]]-Table10[[#This Row],[ضريبة]] -> 12826.32174
B123: 2022-03-01 | C123: وردية ثانية | D123: 5094 | E123: 2.18 | F123: =Table10[[#This Row],[مبيعات 91]]*Table10[[#This Row],[سعر 91]] -> 11104.92 | I123: =Table10[[#This Row],[سعر 95]]*Table10[[#This Row],[مبيعات 95]] -> 0 | J123: 3634 | K123: 0.63 | L123: =Table10[[#This Row],[سعر Diesel]]*Table10[[#This Row],[مبيعات Diesel]] -> 2289.42 | M123: =Table10[[#This Row],[ايراد Diesel]]+Table10[[#This Row],[ايراد 95]]+Table10[[#This Row],[ايراد 91]] -> 13394.34 | N123: 2.095 | O123: 0.61 | P123: 0.61 | Q123: =(Table10[[#This Row],[سعر 91]]-Table10[[#This Row],[شراء 91]])*Table10[[#This Row],[مبيعات 91]] -> 432.99 | R123: =(Table10[[#This Row],[سعر 95]]-Table10[[#This Row],[شراء 95]])*Table10[[#This Row],[مبيعات 95]] -> 0 | S123: =(Table10[[#This Row],[سعر Diesel]]-Table10[[#This Row],[شراء Diesel]])*Table10[[#This Row],[مبيعات Diesel]] -> 72.68 | T123: =SUM(Table10[[#This Row],[أرباح 91]:[أرباح Diesel]]) -> 505.67 | U123: =Table10[[#This Row],[اجمالي الايراد]]*(15/115) -> 1747.087826 | V123: =Table10[[#This Row],[اجمالي الايراد]]-Table10[[#This Row],[ضريبة]] -> 11647.25217
B124: 2022-03-02 | C124: وردية أولى | D124: 4357 | E124: 2.18 | F124: =Table10[[#This Row],[مبيعات 91]]*Table10[[#This Row],[سعر 91]] -> 9498.26 | I124: =Table10[[#This Row],[سعر 95]]*Table10[[#This Row],[مبيعات 95]] -> 0 | J124: 3061 | K124: 0.63 | L124: =Table10[[#This Row],[سعر Diesel]]*Table10[[#This Row],[مبيعات Diesel]] -> 1928.43 | M124: =Table10[[#This Row],[ايراد Diesel]]+Table10[[#This Row],[ايراد 95]]+Table10[[#This Row],[ايراد 91]] -> 11426.69 | N124: 2.095 | O124: 0.61 | P124: 0.61 | Q124: =(Table10[[#This Row],[سعر 91]]-Table10[[#This Row],[شراء 91]])*Table10[[#This Row],[مبيعات 91]] -> 370.345 | R124: =(Table10[[#This Row],[سعر 95]]-Table10[[#This Row],[شراء 95]])*Table10[[#This Row],[مبيعات 95]] -> 0 | S124: =(Table10[[#This Row],[سعر Diesel]]-Table10[[#This Row],[شراء Diesel]])*Table10[[#This Row],[مبيعات Diesel]] -> 61.22 | T124: =SUM(Table10[[#This Row],[أرباح 91]:[أرباح Diesel]]) -> 431.565 | U124: =Table10[[#This Row],[اجمالي الايراد]]*(15/115) -> 1490.437826 | V124: =Table10[[#This Row],[اجمالي الايراد]]-Table10[[#This Row],[ضريبة]] -> 9936.252174
B125: 2022-03-02 | C125: وردية ثانية | D125: 4882 | E125: 2.18 | F125: =Table10[[#This Row],[مبيعات 91]]*Table10[[#This Row],[سعر 91]] -> 10642.76 | I125: =Table10[[#This Row],[سعر 95]]*Table10[[#This Row],[مبيعات 95]] -> 0 | J125: 3055 | K125: 0.63 | L125: =Table10[[#This Row],[سعر Diesel]]*Table10[[#This Row],[مبيعات Diesel]] -> 1924.65 | M125: =Table10[[#This Row],[ايراد Diesel]]+Table10[[#This Row],[ايراد 95]]+Table10[[#This Row],[ايراد 91]] -> 12567.41 | N125: 2.095 | O125: 0.61 | P125: 0.61 | Q125: =(Table10[[#This Row],[سعر 91]]-Table10[[#This Row],[شراء 91]])*Table10[[#This Row],[مبيعات 91]] -> 414.97 | R125: =(Table10[[#This Row],[سعر 95]]-Table10[[#This Row],[شراء 95]])*Table10[[#This Row],[مبيعات 95]] -> 0 | S125: =(Table10[[#This Row],[سعر Diesel]]-Table10[[#This Row],[شراء Diesel]])*Table10[[#This Row],[مبيعات Diesel]] -> 61.1 | T125: =SUM(Table10[[#This Row],[أرباح 91]:[أرباح Diesel]]) -> 476.07 | U125: =Table10[[#This Row],[اجمالي الايراد]]*(15/115) -> 1639.227391 | V125: =Table10[[#This Row],[اجمالي الايراد]]-Table10[[#This Row],[ضريبة]] -> 10928.18261
B126: 2022-03-03 | C126: وردية أولى | D126: 5387 | E126: 2.18 | F126: =Table10[[#This Row],[مبيعات 91]]*Table10[[#This Row],[سعر 91]] -> 11743.66 | I126: =Table10[[#This Row],[سعر 95]]*Table10[[#This Row],[مبيعات 95]] -> 0 | J126: 4418 | K126: 0.63 | L126: =Table10[[#This Row],[سعر Diesel]]*Table10[[#This Row],[مبيعات Diesel]] -> 2783.34 | M126: =Table10[[#This Row],[ايراد Diesel]]+Table10[[#This Row],[ايراد 95]]+Table10[[#This Row],[ايراد 91]] -> 14527 | N126: 2.095 | O126: 0.61 | P126: 0.61 | Q126: =(Table10[[#This Row],[سعر 91]]-Table10[[#This Row],[شراء 91]])*Table10[[#This Row],[مبيعات 91]] -> 457.895 | R126: =(Table10[[#This Row],[سعر 95]]-Table10[[#This Row],[شراء 95]])*Table10[[#This Row],[مبيعات 95]] -> 0 | S126: =(Table10[[#This Row],[سعر Diesel]]-Table10[[#This Row],[شراء Diesel]])*Table10[[#This Row],[مبيعات Diesel]] -> 88.36 | T126: =SUM(Table10[[#This Row],[أرباح 91]:[أرباح Diesel]]) -> 546.255 | U126: =Table10[[#This Row],[اجمالي الايراد]]*(15/115) -> 1894.826087 | V126: =Table10[[#This Row],[اجمالي الايراد]]-Table10[[#This Row],[ضريبة]] -> 12632.17391
B127: 2022-03-03 | C127: وردية ثانية | D127: 4786 | E127: 2.18 | F127: =Table10[[#This Row],[مبيعات 91]]*Table10[[#This Row],[سعر 91]] -> 10433.48 | I127: =Table10[[#This Row],[سعر 95]]*Table10[[#This Row],[مبيعات 95]] -> 0 | J127: 2484 | K127: 0.63 | L127: =Table10[[#This Row],[سعر Diesel]]*Table10[[#This Row],[مبيعات Diesel]] -> 1564.92 | M127: =Table10[[#This Row],[ايراد Diesel]]+Table10[[#This Row],[ايراد 95]]+Table10[[#This Row],[ايراد 91]] -> 11998.4 | N127: 2.095 | O127: 0.61 | P127: 0.61 | Q127: =(Table10[[#This Row],[سعر 91]]-Table10[[#This Row],[شراء 91]])*Table10[[#This Row],[مبيعات 91]] -> 406.81 | R127: =(Table10[[#This Row],[سعر 95]]-Table10[[#This Row],[شراء 95]])*Table10[[#This Row],[مبيعات 95]] -> 0 | S127: =(Table10[[#This Row],[سعر Diesel]]-Table10[[#This Row],[شراء Diesel]])*Table10[[#This Row],[مبيعات Diesel]] -> 49.68 | T127: =SUM(Table10[[#This Row],[أرباح 91]:[أرباح Diesel]]) -> 456.49 | U127: =Table10[[#This Row],[اجمالي الايراد]]*(15/115) -> 1565.008696 | V127: =Table10[[#This Row],[اجمالي الايراد]]-Table10[[#This Row],[ضريبة]] -> 10433.3913
B128: 2022-03-04 | C128: وردية أولى | D128: 2286 | E128: 2.18 | F128: =Table10[[#This Row],[مبيعات 91]]*Table10[[#This Row],[سعر 91]] -> 4983.48 | I128: =Table10[[#This Row],[سعر 95]]*Table10[[#This Row],[مبيعات 95]] -> 0 | J128: 958 | K128: 0.63 | L128: =Table10[[#This Row],[سعر Diesel]]*Table10[[#This Row],[مبيعات Diesel]] -> 603.54 | M128: =Table10[[#This Row],[ايراد Diesel]]+Table10[[#This Row],[ايراد 95]]+Table10[[#This Row],[ايراد 91]] -> 5587.02 | N128: 2.095 | O128: 0.61 | P128: 0.61 | Q128: =(Table10[[#This Row],[سعر 91]]-Table10[[#This Row],[شراء 91]])*Table10[[#This Row],[مبيعات 91]] -> 194.31 | R128: =(Table10[[#This Row],[سعر 95]]-Table10[[#This Row],[شراء 95]])*Table10[[#This Row],[مبيعات 95]] -> 0 | S128: =(Table10[[#This Row],[سعر Diesel]]-Table10[[#This Row],[شراء Diesel]])*Table10[[#This Row],[مبيعات Diesel]] -> 19.16 | T128: =SUM(Table10[[#This Row],[أرباح 91]:[أرباح Diesel]]) -> 213.47 | U128: =Table10[[#This Row],[اجمالي الايراد]]*(15/115) -> 728.7417391 | V128: =Table10[[#This Row],[اجمالي الايراد]]-Table10[[#This Row],[ضريبة]] -> 4858.278261
B129: 2022-03-04 | C129: وردية ثانية | D129: 4865 | E129: 2.18 | F129: =Table10[[#This Row],[مبيعات 91]]*Table10[[#This Row],[سعر 91]] -> 10605.7 | I129: =Table10[[#This Row],[سعر 95]]*Table10[[#This Row],[مبيعات 95]] -> 0 | J129: 2481 | K129: 0.63 | L129: =Table10[[#This Row],[سعر Diesel]]*Table10[[#This Row],[مبيعات Diesel]] -> 1563.03 | M129: =Table10[[#This Row],[ايراد Diesel]]+Table10[[#This Row],[ايراد 95]]+Table10[[#This Row],[ايراد 91]] -> 12168.73 | N129: 2.095 | O129: 0.61 | P129: 0.61 | Q129: =(Table10[[#This Row],[سعر 91]]-Table10[[#This Row],[شراء 91]])*Table10[[#This Row],[مبيعات 91]] -> 413.525 | R129: =(Table10[[#This Row],[سعر 95]]-Table10[[#This Row],[شراء 95]])*Table10[[#This Row],[مبيعات 95]] -> 0 | S129: =(Table10[[#This Row],[سعر Diesel]]-Table10[[#This Row],[شراء Diesel]])*Table10[[#This Row],[مبيعات Diesel]] -> 49.62 | T129: =SUM(Table10[[#This Row],[أرباح 91]:[أرباح Diesel]]) -> 463.145 | U129: =Table10[[#This Row],[اجمالي الايراد]]*(15/115) -> 1587.225652 | V129: =Table10[[#This Row],[اجمالي الايراد]]-Table10[[#This Row],[ضريبة]] -> 10581.50435
B130: 2022-03-05 | C130: وردية أولى | D130: 4268 | E130: 2.18 | F130: =Table10[[#This Row],[مبيعات 91]]*Table10[[#This Row],[سعر 91]] -> 9304.24 | I130: =Table10[[#This Row],[سعر 95]]*Table10[[#This Row],[مبيعات 95]] -> 0 | J130: 7334 | K130: 0.63 | L130: =Table10[[#This Row],[سعر Diesel]]*Table10[[#This Row],[مبيعات Diesel]] -> 4620.42 | M130: =Table10[[#This Row],[ايراد Diesel]]+Table10[[#This Row],[ايراد 95]]+Table10[[#This Row],[ايراد 91]] -> 13924.66 | N130: 2.095 | O130: 0.61 | P130: 0.61 | Q130: =(Table10[[#This Row],[سعر 91]]-Table10[[#This Row],[شراء 91]])*Table10[[#This Row],[مبيعات 91]] -> 362.78 | R130: =(Table10[[#This Row],[سعر 95]]-Table10[[#This Row],[شراء 95]])*Table10[[#This Row],[مبيعات 95]] -> 0 | S130: =(Table10[[#This Row],[سعر Diesel]]-Table10[[#This Row],[شراء Diesel]])*Table10[[#This Row],[مبيعات Diesel]] -> 146.68 | T130: =SUM(Table10[[#This Row],[أرباح 91]:[أرباح Diesel]]) -> 509.46 | U130: =Table10[[#This Row],[اجمالي الايراد]]*(15/115) -> 1816.26 | V130: =Table10[[#This Row],[اجمالي الايراد]]-Table10[[#This Row],[ضريبة]] -> 12108.4
B131: 2022-03-05 | C131: وردية ثانية | D131: 5213 | E131: 2.18 | F131: =Table10[[#This Row],[مبيعات 91]]*Table10[[#This Row],[سعر 91]] -> 11364.34 | I131: =Table10[[#This Row],[سعر 95]]*Table10[[#This Row],[مبيعات 95]] -> 0 | J131: 3004 | K131: 0.63 | L131: =Table10[[#This Row],[سعر Diesel]]*Table10[[#This Row],[مبيعات Diesel]] -> 1892.52 | M131: =Table10[[#This Row],[ايراد Diesel]]+Table10[[#This Row],[ايراد 95]]+Table10[[#This Row],[ايراد 91]] -> 13256.86 | N131: 2.095 | O131: 0.61 | P131: 0.61 | Q131: =(Table10[[#This Row],[سعر 91]]-Table10[[#This Row],[شراء 91]])*Table10[[#This Row],[مبيعات 91]] -> 443.105 | R131: =(Table10[[#This Row],[سعر 95]]-Table10[[#This Row],[شراء 95]])*Table10[[#This Row],[مبيعات 95]] -> 0 | S131: =(Table10[[#This Row],[سعر Diesel]]-Table10[[#This Row],[شراء Diesel]])*Table10[[#This Row],[مبيعات Diesel]] -> 60.08 | T131: =SUM(Table10[[#This Row],[أرباح 91]:[أرباح Diesel]]) -> 503.185 | U131: =Table10[[#This Row],[اجمالي الايراد]]*(15/115) -> 1729.155652 | V131: =Table10[[#This Row],[اجمالي الايراد]]-Table10[[#This Row],[ضريبة]] -> 11527.70435
B132: 2022-03-06 | C132: وردية أولى | D132: 5027 | E132: 2.18 | F132: =Table10[[#This Row],[مبيعات 91]]*Table10[[#This Row],[سعر 91]] -> 10958.86 | I132: =Table10[[#This Row],[سعر 95]]*Table10[[#This Row],[مبيعات 95]] -> 0 | J132: 5723 | K132: 0.63 | L132: =Table10[[#This Row],[سعر Diesel]]*Table10[[#This Row],[مبيعات Diesel]] -> 3605.49 | M132: =Table10[[#This Row],[ايراد Diesel]]+Table10[[#This Row],[ايراد 95]]+Table10[[#This Row],[ايراد 91]] -> 14564.35 | N132: 2.095 | O132: 0.61 | P132: 0.61 | Q132: =(Table10[[#This Row],[سعر 91]]-Table10[[#This Row],[شراء 91]])*Table10[[#This Row],[مبيعات 91]] -> 427.295 | R132: =(Table10[[#This Row],[سعر 95]]-Table10[[#This Row],[شراء 95]])*Table10[[#This Row],[مبيعات 95]] -> 0 | S132: =(Table10[[#This Row],[سعر Diesel]]-Table10[[#This Row],[شراء Diesel]])*Table10[[#This Row],[مبيعات Diesel]] -> 114.46 | T132: =SUM(Table10[[#This Row],[أرباح 91]:[أرباح Diesel]]) -> 541.755 | U132: =Table10[[#This Row],[اجمالي الايراد]]*(15/115) -> 1899.697826 | V132: =Table10[[#This Row],[اجمالي الايراد]]-Table10[[#This Row],[ضريبة]] -> 12664.65217
B133: 2022-03-06 | C133: وردية ثانية | D133: 4713 | E133: 2.18 | F133: =Table10[[#This Row],[مبيعات 91]]*Table10[[#This Row],[سعر 91]] -> 10274.34 | I133: =Table10[[#This Row],[سعر 95]]*Table10[[#This Row],[مبيعات 95]] -> 0 | J133: 4104 | K133: 0.63 | L133: =Table10[[#This Row],[سعر Diesel]]*Table10[[#This Row],[مبيعات Diesel]] -> 2585.52 | M133: =Table10[[#This Row],[ايراد Diesel]]+Table10[[#This Row],[ايراد 95]]+Table10[[#This Row],[ايراد 91]] -> 12859.86 | N133: 2.095 | O133: 0.61 | P133: 0.61 | Q133: =(Table10[[#This Row],[سعر 91]]-Table10[[#This Row],[شراء 91]])*Table10[[#This Row],[مبيعات 91]] -> 400.605 | R133: =(Table10[[#This Row],[سعر 95]]-Table10[[#This Row],[شراء 95]])*Table10[[#This Row],[مبيعات 95]] -> 0 | S133: =(Table10[[#This Row],[سعر Diesel]]-Table10[[#This Row],[شراء Diesel]])*Table10[[#This Row],[مبيعات Diesel]] -> 82.08 | T133: =SUM(Table10[[#This Row],[أرباح 91]:[أرباح Diesel]]) -> 482.685 | U133: =Table10[[#This Row],[اجمالي الايراد]]*(15/115) -> 1677.373043 | V133: =Table10[[#This Row],[اجمالي الايراد]]-Table10[[#This Row],[ضريبة]] -> 11182.48696
B134: 2022-03-07 | C134: وردية أولى | D134: 3830 | E134: 2.18 | F134: =Table10[[#This Row],[مبيعات 91]]*Table10[[#This Row],[سعر 91]] -> 8349.4 | I134: =Table10[[#This Row],[سعر 95]]*Table10[[#This Row],[مبيعات 95]] -> 0 | J134: 2726 | K134: 0.63 | L134: =Table10[[#This Row],[سعر Diesel]]*Table10[[#This Row],[مبيعات Diesel]] -> 1717.38 | M134: =Table10[[#This Row],[ايراد Diesel]]+Table10[[#This Row],[ايراد 95]]+Table10[[#This Row],[ايراد 91]] -> 10066.78 | N134: 2.095 | O134: 0.61 | P134: 0.61 | Q134: =(Table10[[#This Row],[سعر 91]]-Table10[[#This Row],[شراء 91]])*Table10[[#This Row],[مبيعات 91]] -> 325.55 | R134: =(Table10[[#This Row],[سعر 95]]-Table10[[#This Row],[شراء 95]])*Table10[[#This Row],[مبيعات 95]] -> 0 | S134: =(Table10[[#This Row],[سعر Diesel]]-Table10[[#This Row],[شراء Diesel]])*Table10[[#This Row],[مبيعات Diesel]] -> 54.52 | T134: =SUM(Table10[[#This Row],[أرباح 91]:[أرباح Diesel]]) -> 380.07 | U134: =Table10[[#This Row],[اجمالي الايراد]]*(15/115) -> 1313.058261 | V134: =Table10[[#This Row],[اجمالي الايراد]]-Table10[[#This Row],[ضريبة]] -> 8753.721739
B135: 2022-03-07 | C135: وردية ثانية | D135: 5167 | E135: 2.18 | F135: =Table10[[#This Row],[مبيعات 91]]*Table10[[#This Row],[سعر 91]] -> 11264.06 | I135: =Table10[[#This Row],[سعر 95]]*Table10[[#This Row],[مبيعات 95]] -> 0 | J135: 2446 | K135: 0.63 | L135: =Table10[[#This Row],[سعر Diesel]]*Table10[[#This Row],[مبيعات Diesel]] -> 1540.98 | M135: =Table10[[#This Row],[ايراد Diesel]]+Table10[[#This Row],[ايراد 95]]+Table10[[#This Row],[ايراد 91]] -> 12805.04 | N135: 2.095 | O135: 0.61 | P135: 0.61 | Q135: =(Table10[[#This Row],[سعر 91]]-Table10[[#This Row],[شراء 91]])*Table10[[#This Row],[مبيعات 91]] -> 439.195 | R135: =(Table10[[#This Row],[سعر 95]]-Table10[[#This Row],[شراء 95]])*Table10[[#This Row],[مبيعات 95]] -> 0 | S135: =(Table10[[#This Row],[سعر Diesel]]-Table10[[#This Row],[شراء Diesel]])*Table10[[#This Row],[مبيعات Diesel]] -> 48.92 | T135: =SUM(Table10[[#This Row],[أرباح 91]:[أرباح Diesel]]) -> 488.115 | U135: =Table10[[#This Row],[اجمالي الايراد]]*(15/115) -> 1670.222609 | V135: =Table10[[#This Row],[اجمالي الايراد]]-Table10[[#This Row],[ضريبة]] -> 11134.81739
B136: 2022-03-08 | C136: وردية أولى | D136: 4482 | E136: 2.18 | F136: =Table10[[#This Row],[مبيعات 91]]*Table10[[#This Row],[سعر 91]] -> 9770.76 | I136: =Table10[[#This Row],[سعر 95]]*Table10[[#This Row],[مبيعات 95]] -> 0 | J136: 5242 | K136: 0.63 | L136: =Table10[[#This Row],[سعر Diesel]]*Table10[[#This Row],[مبيعات Diesel]] -> 3302.46 | M136: =Table10[[#This Row],[ايراد Diesel]]+Table10[[#This Row],[ايراد 95]]+Table10[[#This Row],[ايراد 91]] -> 13073.22 | N136: 2.095 | O136: 0.61 | P136: 0.61 | Q136: =(Table10[[#This Row],[سعر 91]]-Table10[[#This Row],[شراء 91]])*Table10[[#This Row],[مبيعات 91]] -> 380.97 | R136: =(Table10[[#This Row],[سعر 95]]-Table10[[#This Row],[شراء 95]])*Table10[[#This Row],[مبيعات 95]] -> 0 | S136: =(Table10[[#This Row],[سعر Diesel]]-Table10[[#This Row],[شراء Diesel]])*Table10[[#This Row],[مبيعات Diesel]] -> 104.84 | T136: =SUM(Table10[[#This Row],[أرباح 91]:[أرباح Diesel]]) -> 485.81 | U136: =Table10[[#This Row],[اجمالي الايراد]]*(15/115) -> 1705.202609 | V136: =Table10[[#This Row],[اجمالي الايراد]]-Table10[[#This Row],[ضريبة]] -> 11368.01739
B137: 2022-03-08 | C137: وردية ثانية | D137: 5211 | E137: 2.18 | F137: =Table10[[#This Row],[مبيعات 91]]*Table10[[#This Row],[سعر 91]] -> 11359.98 | I137: =Table10[[#This Row],[سعر 95]]*Table10[[#This Row],[مبيعات 95]] -> 0 | J137: 2877 | K137: 0.63 | L137: =Table10[[#This Row],[سعر Diesel]]*Table10[[#This Row],[مبيعات Diesel]] -> 1812.51 | M137: =Table10[[#This Row],[ايراد Diesel]]+Table10[[#This Row],[ايراد 95]]+Table10[[#This Row],[ايراد 91]] -> 13172.49 | N137: 2.095 | O137: 0.61 | P137: 0.61 | Q137: =(Table10[[#This Row],[سعر 91]]-Table10[[#This Row],[شراء 91]])*Table10[[#This Row],[مبيعات 91]] -> 442.935 | R137: =(Table10[[#This Row],[سعر 95]]-Table10[[#This Row],[شراء 95]])*Table10[[#This Row],[مبيعات 95]] -> 0 | S137: =(Table10[[#This Row],[سعر Diesel]]-Table10[[#This Row],[شراء Diesel]])*Table10[[#This Row],[مبيعات Diesel]] -> 57.54 | T137: =SUM(Table10[[#This Row],[أرباح 91]:[أرباح Diesel]]) -> 500.475 | U137: =Table10[[#This Row],[اجمالي الايراد]]*(15/115) -> 1718.15087 | V137: =Table10[[#This Row],[اجمالي الايراد]]-Table10[[#This Row],[ضريبة]] -> 11454.33913
B138: 2022-03-09 | C138: وردية أولى | D138: 4841 | E138: 2.18 | F138: =Table10[[#This Row],[مبيعات 91]]*Table10[[#This Row],[سعر 91]] -> 10553.38 | I138: =Table10[[#This Row],[سعر 95]]*Table10[[#This Row],[مبيعات 95]] -> 0 | J138: 5233 | K138: 0.63 | L138: =Table10[[#This Row],[سعر Diesel]]*Table10[[#This Row],[مبيعات Diesel]] -> 3296.79 | M138: =Table10[[#This Row],[ايراد Diesel]]+Table10[[#This Row],[ايراد 95]]+Table10[[#This Row],[ايراد 91]] -> 13850.17 | N138: 2.095 | O138: 0.61 | P138: 0.61 | Q138: =(Table10[[#This Row],[سعر 91]]-Table10[[#This Row],[شراء 91]])*Table10[[#This Row],[مبيعات 91]] -> 411.485 | R138: =(Table10[[#This Row],[سعر 95]]-Table10[[#This Row],[شراء 95]])*Table10[[#This Row],[مبيعات 95]] -> 0 | S138: =(Table10[[#This Row],[سعر Diesel]]-Table10[[#This Row],[شراء Diesel]])*Table10[[#This Row],[مبيعات Diesel]] -> 104.66 | T138: =SUM(Table10[[#This Row],[أرباح 91]:[أرباح Diesel]]) -> 516.145 | U138: =Table10[[#This Row],[اجمالي الايراد]]*(15/115) -> 1806.543913 | V138: =Table10[[#This Row],[اجمالي الايراد]]-Table10[[#This Row],[ضريبة]] -> 12043.62609
B139: 2022-03-09 | C139: وردية ثانية | D139: 5001 | E139: 2.18 | F139: =Table10[[#This Row],[مبيعات 91]]*Table10[[#This Row],[سعر 91]] -> 10902.18 | I139: =Table10[[#This Row],[سعر 95]]*Table10[[#This Row],[مبيعات 95]] -> 0 | J139: 3220 | K139: 0.63 | L139: =Table10[[#This Row],[سعر Diesel]]*Table10[[#This Row],[مبيعات Diesel]] -> 2028.6 | M139: =Table10[[#This Row],[ايراد Diesel]]+Table10[[#This Row],[ايراد 95]]+Table10[[#This Row],[ايراد 91]] -> 12930.78 | N139: 2.095 | O139: 0.61 | P139: 0.61 | Q139: =(Table10[[#This Row],[سعر 91]]-Table10[[#This Row],[شراء 91]])*Table10[[#This Row],[مبيعات 91]] -> 425.085 | R139: =(Table10[[#This Row],[سعر 95]]-Table10[[#This Row],[شراء 95]])*Table10[[#This Row],[مبيعات 95]] -> 0 | S139: =(Table10[[#This Row],[سعر Diesel]]-Table10[[#This Row],[شراء Diesel]])*Table10[[#This Row],[مبيعات Diesel]] -> 64.4 | T139: =SUM(Table10[[#This Row],[أرباح 91]:[أرباح Diesel]]) -> 489.485 | U139: =Table10[[#This Row],[اجمالي الايراد]]*(15/115) -> 1686.623478 | V139: =Table10[[#This Row],[اجمالي الايراد]]-Table10[[#This Row],[ضريبة]] -> 11244.15652
B140: 2022-03-10 | C140: وردية أولى | D140: 4495 | E140: 2.18 | F140: =Table10[[#This Row],[مبيعات 91]]*Table10[[#This Row],[سعر 91]] -> 9799.1 | I140: =Table10[[#This Row],[سعر 95]]*Table10[[#This Row],[مبيعات 95]] -> 0 | J140: 4897 | K140: 0.63 | L140: =Table10[[#This Row],[سعر Diesel]]*Table10[[#This Row],[مبيعات Diesel]] -> 3085.11 | M140: =Table10[[#This Row],[ايراد Diesel]]+Table10[[#This Row],[ايراد 95]]+Table10[[#This Row],[ايراد 91]] -> 12884.21 | N140: 2.095 | O140: 0.61 | P140: 0.61 | Q140: =(Table10[[#This Row],[سعر 91]]-Table10[[#This Row],[شراء 91]])*Table10[[#This Row],[مبيعات 91]] -> 382.075 | R140: =(Table10[[#This Row],[سعر 95]]-Table10[[#This Row],[شراء 95]])*Table10[[#This Row],[مبيعات 95]] -> 0 | S140: =(Table10[[#This Row],[سعر Diesel]]-Table10[[#This Row],[شراء Diesel]])*Table10[[#This Row],[مبيعات Diesel]] -> 97.94 | T140: =SUM(Table10[[#This Row],[أرباح 91]:[أرباح Diesel]]) -> 480.015 | U140: =Table10[[#This Row],[اجمالي الايراد]]*(15/115) -> 1680.54913 | V140: =Table10[[#This Row],[اجمالي الايراد]]-Table10[[#This Row],[ضريبة]] -> 11203.66087
B141: 2022-03-10 | C141: وردية ثانية | D141: 5526 | E141: 2.18 | F141: =Table10[[#This Row],[مبيعات 91]]*Table10[[#This Row],[سعر 91]] -> 12046.68 | I141: =Table10[[#This Row],[سعر 95]]*Table10[[#This Row],[مبيعات 95]] -> 0 | J141: 2411 | K141: 0.63 | L141: =Table10[[#This Row],[سعر Diesel]]*Table10[[#This Row],[مبيعات Diesel]] -> 1518.93 | M141: =Table10[[#This Row],[ايراد Diesel]]+Table10[[#This Row],[ايراد 95]]+Table10[[#This Row],[ايراد 91]] -> 13565.61 | N141: 2.095 | O141: 0.61 | P141: 0.61 | Q141: =(Table10[[#This Row],[سعر 91]]-Table10[[#This Row],[شراء 91]])*Table10[[#This Row],[مبيعات 91]] -> 469.71 | R141: =(Table10[[#This Row],[سعر 95]]-Table10[[#This Row],[شراء 95]])*Table10[[#This Row],[مبيعات 95]] -> 0 | S141: =(Table10[[#This Row],[سعر Diesel]]-Table10[[#This Row],[شراء Diesel]])*Table10[[#This Row],[مبيعات Diesel]] -> 48.22 | T141: =SUM(Table10[[#This Row],[أرباح 91]:[أرباح Diesel]]) -> 517.93 | U141: =Table10[[#This Row],[اجمالي الايراد]]*(15/115) -> 1769.427391 | V141: =Table10[[#This Row],[اجمالي الايراد]]-Table10[[#This Row],[ضريبة]] -> 11796.18261
B142: 2022-03-11 | C142: وردية أولى | D142: 2621 | E142: 2.18 | F142: =Table10[[#This Row],[مبيعات 91]]*Table10[[#This Row],[سعر 91]] -> 5713.78 | I142: =Table10[[#This Row],[سعر 95]]*Table10[[#This Row],[مبيعات 95]] -> 0 | J142: 998 | K142: 0.63 | L142: =Table10[[#This Row],[سعر Diesel]]*Table10[[#This Row],[مبيعات Diesel]] -> 628.74 | M142: =Table10[[#This Row],[ايراد Diesel]]+Table10[[#This Row],[ايراد 95]]+Table10[[#This Row],[ايراد 91]] -> 6342.52 | N142: 2.095 | O142: 0.61 | P142: 0.61 | Q142: =(Table10[[#This Row],[سعر 91]]-Table10[[#This Row],[شراء 91]])*Table10[[#This Row],[مبيعات 91]] -> 222.785 | R142: =(Table10[[#This Row],[سعر 95]]-Table10[[#This Row],[شراء 95]])*Table10[[#This Row],[مبيعات 95]] -> 0 | S142: =(Table10[[#This Row],[سعر Diesel]]-Table10[[#This Row],[شراء Diesel]])*Table10[[#This Row],[مبيعات Diesel]] -> 19.96 | T142: =SUM(Table10[[#This Row],[أرباح 91]:[أرباح Diesel]]) -> 242.745 | U142: =Table10[[#This Row],[اجمالي الايراد]]*(15/115) -> 827.2852174 | V142: =Table10[[#This Row],[اجمالي الايراد]]-Table10[[#This Row],[ضريبة]] -> 5515.234783
B143: 2022-03-11 | C143: وردية ثانية | D143: 5878 | E143: 2.18 | F143: =Table10[[#This Row],[مبيعات 91]]*Table10[[#This Row],[سعر 91]] -> 12814.04 | I143: =Table10[[#This Row],[سعر 95]]*Table10[[#This Row],[مبيعات 95]] -> 0 | J143: 1974 | K143: 0.63 | L143: =Table10[[#This Row],[سعر Diesel]]*Table10[[#This Row],[مبيعات Diesel]] -> 1243.62 | M143: =Table10[[#This Row],[ايراد Diesel]]+Table10[[#This Row],[ايراد 95]]+Table10[[#This Row],[ايراد 91]] -> 14057.66 | N143: 2.095 | O143: 0.61 | P143: 0.61 | Q143: =(Table10[[#This Row],[سعر 91]]-Table10[[#This Row],[شراء 91]])*Table10[[#This Row],[مبيعات 91]] -> 499.63 | R143: =(Table10[[#This Row],[سعر 95]]-Table10[[#This Row],[شراء 95]])*Table10[[#This Row],[مبيعات 95]] -> 0 | S143: =(Table10[[#This Row],[سعر Diesel]]-Table10[[#This Row],[شراء Diesel]])*Table10[[#This Row],[مبيعات Diesel]] -> 39.48 | T143: =SUM(Table10[[#This Row],[أرباح 91]:[أرباح Diesel]]) -> 539.11 | U143: =Table10[[#This Row],[اجمالي الايراد]]*(15/115) -> 1833.607826 | V143: =Table10[[#This Row],[اجمالي الايراد]]-Table10[[#This Row],[ضريبة]] -> 12224.05217
B144: 2022-03-12 | C144: وردية أولى | D144: 3862 | E144: 2.18 | F144: =Table10[[#This Row],[مبيعات 91]]*Table10[[#This Row],[سعر 91]] -> 8419.16 | I144: =Table10[[#This Row],[سعر 95]]*Table10[[#This Row],[مبيعات 95]] -> 0 | J144: 2812 | K144: 0.63 | L144: =Table10[[#This Row],[سعر Diesel]]*Table10[[#This Row],[مبيعات Diesel]] -> 1771.56 | M144: =Table10[[#This Row],[ايراد Diesel]]+Table10[[#This Row],[ايراد 95]]+Table10[[#This Row],[ايراد 91]] -> 10190.72 | N144: 2.095 | O144: 0.61 | P144: 0.61 | Q144: =(Table10[[#This Row],[سعر 91]]-Table10[[#This Row],[شراء 91]])*Table10[[#This Row],[مبيعات 91]] -> 328.27 | R144: =(Table10[[#This Row],[سعر 95]]-Table10[[#This Row],[شراء 95]])*Table10[[#This Row],[مبيعات 95]] -> 0 | S144: =(Table10[[#This Row],[سعر Diesel]]-Table10[[#This Row],[شراء Diesel]])*Table10[[#This Row],[مبيعات Diesel]] -> 56.24 | T144: =SUM(Table10[[#This Row],[أرباح 91]:[أرباح Diesel]]) -> 384.51 | U144: =Table10[[#This Row],[اجمالي الايراد]]*(15/115) -> 1329.224348 | V144: =Table10[[#This Row],[اجمالي الايراد]]-Table10[[#This Row],[ضريبة]] -> 8861.495652
B145: 2022-03-12 | C145: وردية ثانية | D145: 4635 | E145: 2.18 | F145: =Table10[[#This Row],[مبيعات 91]]*Table10[[#This Row],[سعر 91]] -> 10104.3 | I145: =Table10[[#This Row],[سعر 95]]*Table10[[#This Row],[مبيعات 95]] -> 0 | J145: 4947 | K145: 0.63 | L145: =Table10[[#This Row],[سعر Diesel]]*Table10[[#This Row],[مبيعات Diesel]] -> 3116.61 | M145: =Table10[[#This Row],[ايراد Diesel]]+Table10[[#This Row],[ايراد 95]]+Table10[[#This Row],[ايراد 91]] -> 13220.91 | N145: 2.095 | O145: 0.61 | P145: 0.61 | Q145: =(Table10[[#This Row],[سعر 91]]-Table10[[#This Row],[شراء 91]])*Table10[[#This Row],[مبيعات 91]] -> 393.975 | R145: =(Table10[[#This Row],[سعر 95]]-Table10[[#This Row],[شراء 95]])*Table10[[#This Row],[مبيعات 95]] -> 0 | S145: =(Table10[[#This Row],[سعر Diesel]]-Table10[[#This Row],[شراء Diesel]])*Table10[[#This Row],[مبيعات Diesel]] -> 98.94 | T145: =SUM(Table10[[#This Row],[أرباح 91]:[أرباح Diesel]]) -> 492.915 | U145: =Table10[[#This Row],[اجمالي الايراد]]*(15/115) -> 1724.466522 | V145: =Table10[[#This Row],[اجمالي الايراد]]-Table10[[#This Row],[ضريبة]] -> 11496.44348
B146: 2022-03-13 | C146: وردية أولى | D146: 4326 | E146: 2.18 | F146: =Table10[[#This Row],[مبيعات 91]]*Table10[[#This Row],[سعر 91]] -> 9430.68 | I146: =Table10[[#This Row],[سعر 95]]*Table10[[#This Row],[مبيعات 95]] -> 0 | J146: 4973 | K146: 0.63 | L146: =Table10[[#This Row],[سعر Diesel]]*Table10[[#This Row],[مبيعات Diesel]] -> 3132.99 | M146: =Table10[[#This Row],[ايراد Diesel]]+Table10[[#This Row],[ايراد 95]]+Table10[[#This Row],[ايراد 91]] -> 12563.67 | N146: 2.095 | O146: 0.61 | P146: 0.61 | Q146: =(Table10[[#This Row],[سعر 91]]-Table10[[#This Row],[شراء 91]])*Table10[[#This Row],[مبيعات 91]] -> 367.71 | R146: =(Table10[[#This Row],[سعر 95]]-Table10[[#This Row],[شراء 95]])*Table10[[#This Row],[مبيعات 95]] -> 0 | S146: =(Table10[[#This Row],[سعر Diesel]]-Table10[[#This Row],[شراء Diesel]])*Table10[[#This Row],[مبيعات Diesel]] -> 99.46 | T146: =SUM(Table10[[#This Row],[أرباح 91]:[أرباح Diesel]]) -> 467.17 | U146: =Table10[[#This Row],[اجمالي الايراد]]*(15/115) -> 1638.739565 | V146: =Table10[[#This Row],[اجمالي الايراد]]-Table10[[#This Row],[ضريبة]] -> 10924.93043
B147: 2022-03-13 | C147: وردية ثانية | D147: 5116 | E147: 2.18 | F147: =Table10[[#This Row],[مبيعات 91]]*Table10[[#This Row],[سعر 91]] -> 11152.88 | I147: =Table10[[#This Row],[سعر 95]]*Table10[[#This Row],[مبيعات 95]] -> 0 | J147: 2616 | K147: 0.63 | L147: =Table10[[#This Row],[سعر Diesel]]*Table10[[#This Row],[مبيعات Diesel]] -> 1648.08 | M147: =Table10[[#This Row],[ايراد Diesel]]+Table10[[#This Row],[ايراد 95]]+Table10[[#This Row],[ايراد 91]] -> 12800.96 | N147: 2.095 | O147: 0.61 | P147: 0.61 | Q147: =(Table10[[#This Row],[سعر 91]]-Table10[[#This Row],[شراء 91]])*Table10[[#This Row],[مبيعات 91]] -> 434.86 | R147: =(Table10[[#This Row],[سعر 95]]-Table10[[#This Row],[شراء 95]])*Table10[[#This Row],[مبيعات 95]] -> 0 | S147: =(Table10[[#This Row],[سعر Diesel]]-Table10[[#This Row],[شراء Diesel]])*Table10[[#This Row],[مبيعات Diesel]] -> 52.32 | T147: =SUM(Table10[[#This Row],[أرباح 91]:[أرباح Diesel]]) -> 487.18 | U147: =Table10[[#This Row],[اجمالي الايراد]]*(15/115) -> 1669.690435 | V147: =Table10[[#This Row],[اجمالي الايراد]]-Table10[[#This Row],[ضريبة]] -> 11131.26957
B148: 2022-03-14 | C148: وردية أولى | D148: 4966 | E148: 2.18 | F148: =Table10[[#This Row],[مبيعات 91]]*Table10[[#This Row],[سعر 91]] -> 10825.88 | I148: =Table10[[#This Row],[سعر 95]]*Table10[[#This Row],[مبيعات 95]] -> 0 | J148: 6362 | K148: 0.63 | L148: =Table10[[#This Row],[سعر Diesel]]*Table10[[#This Row],[مبيعات Diesel]] -> 4008.06 | M148: =Table10[[#This Row],[ايراد Diesel]]+Table10[[#This Row],[ايراد 95]]+Table10[[#This Row],[ايراد 91]] -> 14833.94 | N148: 2.095 | O148: 0.61 | P148: 0.61 | Q148: =(Table10[[#This Row],[سعر 91]]-Table10[[#This Row],[شراء 91]])*Table10[[#This Row],[مبيعات 91]] -> 422.11 | R148: =(Table10[[#This Row],[سعر 95]]-Table10[[#This Row],[شراء 95]])*Table10[[#This Row],[مبيعات 95]] -> 0 | S148: =(Table10[[#This Row],[سعر Diesel]]-Table10[[#This Row],[شراء Diesel]])*Table10[[#This Row],[مبيعات Diesel]] -> 127.24 | T148: =SUM(Table10[[#This Row],[أرباح 91]:[أرباح Diesel]]) -> 549.35 | U148: =Table10[[#This Row],[اجمالي الايراد]]*(15/115) -> 1934.861739 | V148: =Table10[[#This Row],[اجمالي الايراد]]-Table10[[#This Row],[ضريبة]] -> 12899.07826
B149: 2022-03-14 | C149: وردية ثانية | D149: 4679 | E149: 2.18 | F149: =Table10[[#This Row],[مبيعات 91]]*Table10[[#This Row],[سعر 91]] -> 10200.22 | I149: =Table10[[#This Row],[سعر 95]]*Table10[[#This Row],[مبيعات 95]] -> 0 | J149: 3784 | K149: 0.63 | L149: =Table10[[#This Row],[سعر Diesel]]*Table10[[#This Row],[مبيعات Diesel]] -> 2383.92 | M149: =Table10[[#This Row],[ايراد Diesel]]+Table10[[#This Row],[ايراد 95]]+Table10[[#This Row],[ايراد 91]] -> 12584.14 | N149: 2.095 | O149: 0.61 | P149: 0.61 | Q149: =(Table10[[#This Row],[سعر 91]]-Table10[[#This Row],[شراء 91]])*Table10[[#This Row],[مبيعات 91]] -> 397.715 | R149: =(Table10[[#This Row],[سعر 95]]-Table10[[#This Row],[شراء 95]])*Table10[[#This Row],[مبيعات 95]] -> 0 | S149: =(Table10[[#This Row],[سعر Diesel]]-Table10[[#This Row],[شراء Diesel]])*Table10[[#This Row],[مبيعات Diesel]] -> 75.68 | T149: =SUM(Table10[[#This Row],[أرباح 91]:[أرباح Diesel]]) -> 473.395 | U149: =Table10[[#This Row],[اجمالي الايراد]]*(15/115) -> 1641.409565 | V149: =Table10[[#This Row],[اجمالي الايراد]]-Table10[[#This Row],[ضريبة]] -> 10942.73043
B150: 2022-03-15 | C150: وردية أولى | D150: 5137 | E150: 2.18 | F150: =Table10[[#This Row],[مبيعات 91]]*Table10[[#This Row],[سعر 91]] -> 11198.66 | I150: =Table10[[#This Row],[سعر 95]]*Table10[[#This Row],[مبيعات 95]] -> 0 | J150: 6107 | K150: 0.63 | L150: =Table10[[#This Row],[سعر Diesel]]*Table10[[#This Row],[مبيعات Diesel]] -> 3847.41 | M150: =Table10[[#This Row],[ايراد Diesel]]+Table10[[#This Row],[ايراد 95]]+Table10[[#This Row],[ايراد 91]] -> 15046.07 | N150: 2.095 | O150: 0.61 | P150: 0.61 | Q150: =(Table10[[#This Row],[سعر 91]]-Table10[[#This Row],[شراء 91]])*Table10[[#This Row],[مبيعات 91]] -> 436.645 | R150: =(Table10[[#This Row],[سعر 95]]-Table10[[#This Row],[شراء 95]])*Table10[[#This Row],[مبيعات 95]] -> 0 | S150: =(Table10[[#This Row],[سعر Diesel]]-Table10[[#This Row],[شراء Diesel]])*Table10[[#This Row],[مبيعات Diesel]] -> 122.14 | T150: =SUM(Table10[[#This Row],[أرباح 91]:[أرباح Diesel]]) -> 558.785 | U150: =Table10[[#This Row],[اجمالي الايراد]]*(15/115) -> 1962.53087 | V150: =Table10[[#This Row],[اجمالي الايراد]]-Table10[[#This Row],[ضريبة]] -> 13083.53913
B151: 2022-03-15 | C151: وردية ثانية | D151: 5000 | E151: 2.18 | F151: =Table10[[#This Row],[مبيعات 91]]*Table10[[#This Row],[سعر 91]] -> 10900 | I151: =Table10[[#This Row],[سعر 95]]*Table10[[#This Row],[مبيعات 95]] -> 0 | J151: 2553 | K151: 0.63 | L151: =Table10[[#This Row],[سعر Diesel]]*Table10[[#This Row],[مبيعات Diesel]] -> 1608.39 | M151: =Table10[[#This Row],[ايراد Diesel]]+Table10[[#This Row],[ايراد 95]]+Table10[[#This Row],[ايراد 91]] -> 12508.39 | N151: 2.095 | O151: 0.61 | P151: 0.61 | Q151: =(Table10[[#This Row],[سعر 91]]-Table10[[#This Row],[شراء 91]])*Table10[[#This Row],[مبيعات 91]] -> 425 | R151: =(Table10[[#This Row],[سعر 95]]-Table10[[#This Row],[شراء 95]])*Table10[[#This Row],[مبيعات 95]] -> 0 | S151: =(Table10[[#This Row],[سعر Diesel]]-Table10[[#This Row],[شراء Diesel]])*Table10[[#This Row],[مبيعات Diesel]] -> 51.06 | T151: =SUM(Table10[[#This Row],[أرباح 91]:[أرباح Diesel]]) -> 476.06 | U151: =Table10[[#This Row],[اجمالي الايراد]]*(15/115) -> 1631.52913 | V151: =Table10[[#This Row],[اجمالي الايراد]]-Table10[[#This Row],[ضريبة]] -> 10876.86087
B152: 2022-03-16 | C152: وردية أولى | D152: 5409 | E152: 2.18 | F152: =Table10[[#This Row],[مبيعات 91]]*Table10[[#This Row],[سعر 91]] -> 11791.62 | I152: =Table10[[#This Row],[سعر 95]]*Table10[[#This Row],[مبيعات 95]] -> 0 | J152: 7076 | K152: 0.63 | L152: =Table10[[#This Row],[سعر Diesel]]*Table10[[#This Row],[مبيعات Diesel]] -> 4457.88 | M152: =Table10[[#This Row],[ايراد Diesel]]+Table10[[#This Row],[ايراد 95]]+Table10[[#This Row],[ايراد 91]] -> 16249.5 | N152: 2.095 | O152: 0.61 | P152: 0.61 | Q152: =(Table10[[#This Row],[سعر 91]]-Table10[[#This Row],[شراء 91]])*Table10[[#This Row],[مبيعات 91]] -> 459.765 | R152: =(Table10[[#This Row],[سعر 95]]-Table10[[#This Row],[شراء 95]])*Table10[[#This Row],[مبيعات 95]] -> 0 | S152: =(Table10[[#This Row],[سعر Diesel]]-Table10[[#This Row],[شراء Diesel]])*Table10[[#This Row],[مبيعات Diesel]] -> 141.52 | T152: =SUM(Table10[[#This Row],[أرباح 91]:[أرباح Diesel]]) -> 601.285 | U152: =Table10[[#This Row],[اجمالي الايراد]]*(15/115) -> 2119.5 | V152: =Table10[[#This Row],[اجمالي الايراد]]-Table10[[#This Row],[ضريبة]] -> 14130
B153: 2022-03-16 | C153: وردية أولى | D153: 4552 | E153: 2.18 | F153: =Table10[[#This Row],[مبيعات 91]]*Table10[[#This Row],[سعر 91]] -> 9923.36 | I153: =Table10[[#This Row],[سعر 95]]*Table10[[#This Row],[مبيعات 95]] -> 0 | J153: 3538 | K153: 0.63 | L153: =Table10[[#This Row],[سعر Diesel]]*Table10[[#This Row],[مبيعات Diesel]] -> 2228.94 | M153: =Table10[[#This Row],[ايراد Diesel]]+Table10[[#This Row],[ايراد 95]]+Table10[[#This Row],[ايراد 91]] -> 12152.3 | N153: 2.095 | O153: 0.61 | P153: 0.61 | Q153: =(Table10[[#This Row],[سعر 91]]-Table10[[#This Row],[شراء 91]])*Table10[[#This Row],[مبيعات 91]] -> 386.92 | R153: =(Table10[[#This Row],[سعر 95]]-Table10[[#This Row],[شراء 95]])*Table10[[#This Row],[مبيعات 95]] -> 0 | S153: =(Table10[[#This Row],[سعر Diesel]]-Table10[[#This Row],[شراء Diesel]])*Table10[[#This Row],[مبيعات Diesel]] -> 70.76 | T153: =SUM(Table10[[#This Row],[أرباح 91]:[أرباح Diesel]]) -> 457.68 | U153: =Table10[[#This Row],[اجمالي الايراد]]*(15/115) -> 1585.082609 | V153: =Table10[[#This Row],[اجمالي الايراد]]-Table10[[#This Row],[ضريبة]] -> 10567.21739
B154: 2022-03-17 | C154: وردية أولى | D154: 4998 | E154: 2.18 | F154: =Table10[[#This Row],[مبيعات 91]]*Table10[[#This Row],[سعر 91]] -> 10895.64 | I154: =Table10[[#This Row],[سعر 95]]*Table10[[#This Row],[مبيعات 95]] -> 0 | J154: 5503 | K154: 0.63 | L154: =Table10[[#This Row],[سعر Diesel]]*Table10[[#This Row],[مبيعات Diesel]] -> 3466.89 | M154: =Table10[[#This Row],[ايراد Diesel]]+Table10[[#This Row],[ايراد 95]]+Table10[[#This Row],[ايراد 91]] -> 14362.53 | N154: 2.095 | O154: 0.61 | P154: 0.61 | Q154: =(Table10[[#This Row],[سعر 91]]-Table10[[#This Row],[شراء 91]])*Table10[[#This Row],[مبيعات 91]] -> 424.83 | R154: =(Table10[[#This Row],[سعر 95]]-Table10[[#This Row],[شراء 95]])*Table10[[#This Row],[مبيعات 95]] -> 0 | S154: =(Table10[[#This Row],[سعر Diesel]]-Table10[[#This Row],[شراء Diesel]])*Table10[[#This Row],[مبيعات Diesel]] -> 110.06 | T154: =SUM(Table10[[#This Row],[أرباح 91]:[أرباح Diesel]]) -> 534.89 | U154: =Table10[[#This Row],[اجمالي الايراد]]*(15/115) -> 1873.373478 | V154: =Table10[[#This Row],[اجمالي الايراد]]-Table10[[#This Row],[ضريبة]] -> 12489.15652
B155: 2022-03-17 | C155: وردية ثانية | D155: 5077 | E155: 2.18 | F155: =Table10[[#This Row],[مبيعات 91]]*Table10[[#This Row],[سعر 91]] -> 11067.86 | I155: =Table10[[#This Row],[سعر 95]]*Table10[[#This Row],[مبيعات 95]] -> 0 | J155: 3104 | K155: 0.63 | L155: =Table10[[#This Row],[سعر Diesel]]*Table10[[#This Row],[مبيعات Diesel]] -> 1955.52 | M155: =Table10[[#This Row],[ايراد Diesel]]+Table10[[#This Row],[ايراد 95]]+Table10[[#This Row],[ايراد 91]] -> 13023.38 | N155: 2.095 | O155: 0.61 | P155: 0.61 | Q155: =(Table10[[#This Row],[سعر 91]]-Table10[[#This Row],[شراء 91]])*Table10[[#This Row],[مبيعات 91]] -> 431.545 | R155: =(Table10[[#This Row],[سعر 95]]-Table10[[#This Row],[شراء 95]])*Table10[[#This Row],[مبيعات 95]] -> 0 | S155: =(Table10[[#This Row],[سعر Diesel]]-Table10[[#This Row],[شراء Diesel]])*Table10[[#This Row],[مبيعات Diesel]] -> 62.08 | T155: =SUM(Table10[[#This Row],[أرباح 91]:[أرباح Diesel]]) -> 493.625 | U155: =Table10[[#This Row],[اجمالي الايراد]]*(15/115) -> 1698.701739 | V155: =Table10[[#This Row],[اجمالي الايراد]]-Table10[[#This Row],[ضريبة]] -> 11324.67826
B156: 2022-03-18 | C156: وردية أولى | D156: 2760 | E156: 2.18 | F156: =Table10[[#This Row],[مبيعات 91]]*Table10[[#This Row],[سعر 91]] -> 6016.8 | I156: =Table10[[#This Row],[سعر 95]]*Table10[[#This Row],[مبيعات 95]] -> 0 | J156: 1211 | K156: 0.63 | L156: =Table10[[#This Row],[سعر Diesel]]*Table10[[#This Row],[مبيعات Diesel]] -> 762.93 | M156: =Table10[[#This Row],[ايراد Diesel]]+Table10[[#This Row],[ايراد 95]]+Table10[[#This Row],[ايراد 91]] -> 6779.73 | N156: 2.095 | O156: 0.61 | P156: 0.61 | Q156: =(Table10[[#This Row],[سعر 91]]-Table10[[#This Row],[شراء 91]])*Table10[[#This Row],[مبيعات 91]] -> 234.6 | R156: =(Table10[[#This Row],[سعر 95]]-Table10[[#This Row],[شراء 95]])*Table10[[#This Row],[مبيعات 95]] -> 0 | S156: =(Table10[[#This Row],[سعر Diesel]]-Table10[[#This Row],[شراء Diesel]])*Table10[[#This Row],[مبيعات Diesel]] -> 24.22 | T156: =SUM(Table10[[#This Row],[أرباح 91]:[أرباح Diesel]]) -> 258.82 | U156: =Table10[[#This Row],[اجمالي الايراد]]*(15/115) -> 884.3126087 | V156: =Table10[[#This Row],[اجمالي الايراد]]-Table10[[#This Row],[ضريبة]] -> 5895.417391
B157: 2022-03-18 | C157: وردية ثانية | D157: 4887 | E157: 2.18 | F157: =Table10[[#This Row],[مبيعات 91]]*Table10[[#This Row],[سعر 91]] -> 10653.66 | I157: =Table10[[#This Row],[سعر 95]]*Table10[[#This Row],[مبيعات 95]] -> 0 | J157: 2502 | K157: 0.63 | L157: =Table10[[#This Row],[سعر Diesel]]*Table10[[#This Row],[مبيعات Diesel]] -> 1576.26 | M157: =Table10[[#This Row],[ايراد Diesel]]+Table10[[#This Row],[ايراد 95]]+Table10[[#This Row],[ايراد 91]] -> 12229.92 | N157: 2.095 | O157: 0.61 | P157: 0.61 | Q157: =(Table10[[#This Row],[سعر 91]]-Table10[[#This Row],[شراء 91]])*Table10[[#This Row],[مبيعات 91]] -> 415.395 | R157: =(Table10[[#This Row],[سعر 95]]-Table10[[#This Row],[شراء 95]])*Table10[[#This Row],[مبيعات 95]] -> 0 | S157: =(Table10[[#This Row],[سعر Diesel]]-Table10[[#This Row],[شراء Diesel]])*Table10[[#This Row],[مبيعات Diesel]] -> 50.04 | T157: =SUM(Table10[[#This Row],[أرباح 91]:[أرباح Diesel]]) -> 465.435 | U157: =Table10[[#This Row],[اجمالي الايراد]]*(15/115) -> 1595.206957 | V157: =Table10[[#This Row],[اجمالي الايراد]]-Table10[[#This Row],[ضريبة]] -> 10634.71304
B158: 2022-03-19 | C158: وردية أولى | D158: 4509 | E158: 2.18 | F158: =Table10[[#This Row],[مبيعات 91]]*Table10[[#This Row],[سعر 91]] -> 9829.62 | I158: =Table10[[#This Row],[سعر 95]]*Table10[[#This Row],[مبيعات 95]] -> 0 | J158: 2781 | K158: 0.63 | L158: =Table10[[#This Row],[سعر Diesel]]*Table10[[#This Row],[مبيعات Diesel]] -> 1752.03 | M158: =Table10[[#This Row],[ايراد Diesel]]+Table10[[#This Row],[ايراد 95]]+Table10[[#This Row],[ايراد 91]] -> 11581.65 | N158: 2.095 | O158: 0.61 | P158: 0.61 | Q158: =(Table10[[#This Row],[سعر 91]]-Table10[[#This Row],[شراء 91]])*Table10[[#This Row],[مبيعات 91]] -> 383.265 | R158: =(Table10[[#This Row],[سعر 95]]-Table10[[#This Row],[شراء 95]])*Table10[[#This Row],[مبيعات 95]] -> 0 | S158: =(Table10[[#This Row],[سعر Diesel]]-Table10[[#This Row],[شراء Diesel]])*Table10[[#This Row],[مبيعات Diesel]] -> 55.62 | T158: =SUM(Table10[[#This Row],[أرباح 91]:[أرباح Diesel]]) -> 438.885 | U158: =Table10[[#This Row],[اجمالي الايراد]]*(15/115) -> 1510.65 | V158: =Table10[[#This Row],[اجمالي الايراد]]-Table10[[#This Row],[ضريبة]] -> 10071
B159: 2022-03-19 | C159: وردية ثانية | D159: 5079 | E159: 2.18 | F159: =Table10[[#This Row],[مبيعات 91]]*Table10[[#This Row],[سعر 91]] -> 11072.22 | I159: =Table10[[#This Row],[سعر 95]]*Table10[[#This Row],[مبيعات 95]] -> 0 | J159: 2876 | K159: 0.63 | L159: =Table10[[#This Row],[سعر Diesel]]*Table10[[#This Row],[مبيعات Diesel]] -> 1811.88 | M159: =Table10[[#This Row],[ايراد Diesel]]+Table10[[#This Row],[ايراد 95]]+Table10[[#This Row],[ايراد 91]] -> 12884.1 | N159: 2.095 | O159: 0.61 | P159: 0.61 | Q159: =(Table10[[#This Row],[سعر 91]]-Table10[[#This Row],[شراء 91]])*Table10[[#This Row],[مبيعات 91]] -> 431.715 | R159: =(Table10[[#This Row],[سعر 95]]-Table10[[#This Row],[شراء 95]])*Table10[[#This Row],[مبيعات 95]] -> 0 | S159: =(Table10[[#This Row],[سعر Diesel]]-Table10[[#This Row],[شراء Diesel]])*Table10[[#This Row],[مبيعات Diesel]] -> 57.52 | T159: =SUM(Table10[[#This Row],[أرباح 91]:[أرباح Diesel]]) -> 489.235 | U159: =Table10[[#This Row],[اجمالي الايراد]]*(15/115) -> 1680.534783 | V159: =Table10[[#This Row],[اجمالي الايراد]]-Table10[[#This Row],[ضريبة]] -> 11203.56522
B160: 2022-03-20 | C160: وردية أولى | D160: 5263 | E160: 2.18 | F160: =Table10[[#This Row],[مبيعات 91]]*Table10[[#This Row],[سعر 91]] -> 11473.34 | I160: =Table10[[#This Row],[سعر 95]]*Table10[[#This Row],[مبيعات 95]] -> 0 | J160: 6539 | K160: 0.63 | L160: =Table10[[#This Row],[سعر Diesel]]*Table10[[#This Row],[مبيعات Diesel]] -> 4119.57 | M160: =Table10[[#This Row],[ايراد Diesel]]+Table10[[#This Row],[ايراد 95]]+Table10[[#This Row],[ايراد 91]] -> 15592.91 | N160: 2.095 | O160: 0.61 | P160: 0.61 | Q160: =(Table10[[#This Row],[سعر 91]]-Table10[[#This Row],[شراء 91]])*Table10[[#This Row],[مبيعات 91]] -> 447.355 | R160: =(Table10[[#This Row],[سعر 95]]-Table10[[#This Row],[شراء 95]])*Table10[[#This Row],[مبيعات 95]] -> 0 | S160: =(Table10[[#This Row],[سعر Diesel]]-Table10[[#This Row],[شراء Diesel]])*Table10[[#This Row],[مبيعات Diesel]] -> 130.78 | T160: =SUM(Table10[[#This Row],[أرباح 91]:[أرباح Diesel]]) -> 578.135 | U160: =Table10[[#This Row],[اجمالي الايراد]]*(15/115) -> 2033.857826 | V160: =Table10[[#This Row],[اجمالي الايراد]]-Table10[[#This Row],[ضريبة]] -> 13559.05217
B161: 2022-03-20 | C161: وردية ثانية | D161: 5378 | E161: 2.18 | F161: =Table10[[#This Row],[مبيعات 91]]*Table10[[#This Row],[سعر 91]] -> 11724.04 | I161: =Table10[[#This Row],[سعر 95]]*Table10[[#This Row],[مبيعات 95]] -> 0 | J161: 2779 | K161: 0.63 | L161: =Table10[[#This Row],[سعر Diesel]]*Table10[[#This Row],[مبيعات Diesel]] -> 1750.77 | M161: =Table10[[#This Row],[ايراد Diesel]]+Table10[[#This Row],[ايراد 95]]+Table10[[#This Row],[ايراد 91]] -> 13474.81 | N161: 2.095 | O161: 0.61 | P161: 0.61 | Q161: =(Table10[[#This Row],[سعر 91]]-Table10[[#This Row],[شراء 91]])*Table10[[#This Row],[مبيعات 91]] -> 457.13 | R161: =(Table10[[#This Row],[سعر 95]]-Table10[[#This Row],[شراء 95]])*Table10[[#This Row],[مبيعات 95]] -> 0 | S161: =(Table10[[#This Row],[سعر Diesel]]-Table10[[#This Row],[شراء Diesel]])*Table10[[#This Row],[مبيعات Diesel]] -> 55.58 | T161: =SUM(Table10[[#This Row],[أرباح 91]:[أرباح Diesel]]) -> 512.71 | U161: =Table10[[#This Row],[اجمالي الايراد]]*(15/115) -> 1757.583913 | V161: =Table10[[#This Row],[اجمالي الايراد]]-Table10[[#This Row],[ضريبة]] -> 11717.22609
B162: 2022-03-21 | C162: وردية أولى | D162: 3610 | E162: 2.18 | F162: =Table10[[#This Row],[مبيعات 91]]*Table10[[#This Row],[سعر 91]] -> 7869.8 | I162: =Table10[[#This Row],[سعر 95]]*Table10[[#This Row],[مبيعات 95]] -> 0 | J162: 7213 | K162: 0.63 | L162: =Table10[[#This Row],[سعر Diesel]]*Table10[[#This Row],[مبيعات Diesel]] -> 4544.19 | M162: =Table10[[#This Row],[ايراد Diesel]]+Table10[[#This Row],[ايراد 95]]+Table10[[#This Row],[ايراد 91]] -> 12413.99 | N162: 2.095 | O162: 0.61 | P162: 0.61 | Q162: =(Table10[[#This Row],[سعر 91]]-Table10[[#This Row],[شراء 91]])*Table10[[#This Row],[مبيعات 91]] -> 306.85 | R162: =(Table10[[#This Row],[سعر 95]]-Table10[[#This Row],[شراء 95]])*Table10[[#This Row],[مبيعات 95]] -> 0 | S162: =(Table10[[#This Row],[سعر Diesel]]-Table10[[#This Row],[شراء Diesel]])*Table10[[#This Row],[مبيعات Diesel]] -> 144.26 | T162: =SUM(Table10[[#This Row],[أرباح 91]:[أرباح Diesel]]) -> 451.11 | U162: =Table10[[#This Row],[اجمالي الايراد]]*(15/115) -> 1619.216087 | V162: =Table10[[#This Row],[اجمالي الايراد]]-Table10[[#This Row],[ضريبة]] -> 10794.77391
B163: 2022-03-21 | C163: وردية ثانية | D163: 4611 | E163: 2.18 | F163: =Table10[[#This Row],[مبيعات 91]]*Table10[[#This Row],[سعر 91]] -> 10051.98 | I163: =Table10[[#This Row],[سعر 95]]*Table10[[#This Row],[مبيعات 95]] -> 0 | J163: 2390 | K163: 0.63 | L163: =Table10[[#This Row],[سعر Diesel]]*Table10[[#This Row],[مبيعات Diesel]] -> 1505.7 | M163: =Table10[[#This Row],[ايراد Diesel]]+Table10[[#This Row],[ايراد 95]]+Table10[[#This Row],[ايراد 91]] -> 11557.68 | N163: 2.095 | O163: 0.61 | P163: 0.61 | Q163: =(Table10[[#This Row],[سعر 91]]-Table10[[#This Row],[شراء 91]])*Table10[[#This Row],[مبيعات 91]] -> 391.935 | R163: =(Table10[[#This Row],[سعر 95]]-Table10[[#This Row],[شراء 95]])*Table10[[#This Row],[مبيعات 95]] -> 0 | S163: =(Table10[[#This Row],[سعر Diesel]]-Table10[[#This Row],[شراء Diesel]])*Table10[[#This Row],[مبيعات Diesel]] -> 47.8 | T163: =SUM(Table10[[#This Row],[أرباح 91]:[أرباح Diesel]]) -> 439.735 | U163: =Table10[[#This Row],[اجمالي الايراد]]*(15/115) -> 1507.523478 | V163: =Table10[[#This Row],[اجمالي الايراد]]-Table10[[#This Row],[ضريبة]] -> 10050.15652
B164: 2022-03-22 | C164: وردية أولى | D164: 5637 | E164: 2.18 | F164: =Table10[[#This Row],[مبيعات 91]]*Table10[[#This Row],[سعر 91]] -> 12288.66 | I164: =Table10[[#This Row],[سعر 95]]*Table10[[#This Row],[مبيعات 95]] -> 0 | J164: 5572 | K164: 0.63 | L164: =Table10[[#This Row],[سعر Diesel]]*Table10[[#This Row],[مبيعات Diesel]] -> 3510.36 | M164: =Table10[[#This Row],[ايراد Diesel]]+Table10[[#This Row],[ايراد 95]]+Table10[[#This Row],[ايراد 91]] -> 15799.02 | N164: 2.095 | O164: 0.61 | P164: 0.61 | Q164: =(Table10[[#This Row],[سعر 91]]-Table10[[#This Row],[شراء 91]])*Table10[[#This Row],[مبيعات 91]] -> 479.145 | R164: =(Table10[[#This Row],[سعر 95]]-Table10[[#This Row],[شراء 95]])*Table10[[#This Row],[مبيعات 95]] -> 0 | S164: =(Table10[[#This Row],[سعر Diesel]]-Table10[[#This Row],[شراء Diesel]])*Table10[[#This Row],[مبيعات Diesel]] -> 111.44 | T164: =SUM(Table10[[#This Row],[أرباح 91]:[أرباح Diesel]]) -> 590.585 | U164: =Table10[[#This Row],[اجمالي الايراد]]*(15/115) -> 2060.741739 | V164: =Table10[[#This Row],[اجمالي الايراد]]-Table10[[#This Row],[ضريبة]] -> 13738.27826
B165: 2022-03-22 | C165: وردية ثانية | D165: 4290 | E165: 2.18 | F165: =Table10[[#This Row],[مبيعات 91]]*Table10[[#This Row],[سعر 91]] -> 9352.2 | I165: =Table10[[#This Row],[سعر 95]]*Table10[[#This Row],[مبيعات 95]] -> 0 | J165: 2005 | K165: 0.63 | L165: =Table10[[#This Row],[سعر Diesel]]*Table10[[#This Row],[مبيعات Diesel]] -> 1263.15 | M165: =Table10[[#This Row],[ايراد Diesel]]+Table10[[#This Row],[ايراد 95]]+Table10[[#This Row],[ايراد 91]] -> 10615.35 | N165: 2.095 | O165: 0.61 | P165: 0.61 | Q165: =(Table10[[#This Row],[سعر 91]]-Table10[[#This Row],[شراء 91]])*Table10[[#This Row],[مبيعات 91]] -> 364.65 | R165: =(Table10[[#This Row],[سعر 95]]-Table10[[#This Row],[شراء 95]])*Table10[[#This Row],[مبيعات 95]] -> 0 | S165: =(Table10[[#This Row],[سعر Diesel]]-Table10[[#This Row],[شراء Diesel]])*Table10[[#This Row],[مبيعات Diesel]] -> 40.1 | T165: =SUM(Table10[[#This Row],[أرباح 91]:[أرباح Diesel]]) -> 404.75 | U165: =Table10[[#This Row],[اجمالي الايراد]]*(15/115) -> 1384.61087 | V165: =Table10[[#This Row],[اجمالي الايراد]]-Table10[[#This Row],[ضريبة]] -> 9230.73913
B166: 2022-03-23 | C166: وردية أولى | D166: 5186 | E166: 2.18 | F166: =Table10[[#This Row],[مبيعات 91]]*Table10[[#This Row],[سعر 91]] -> 11305.48 | I166: =Table10[[#This Row],[سعر 95]]*Table10[[#This Row],[مبيعات 95]] -> 0 | J166: 5731 | K166: 0.63 | L166: =Table10[[#This Row],[سعر Diesel]]*Table10[[#This Row],[مبيعات Diesel]] -> 3610.53 | M166: =Table10[[#This Row],[ايراد Diesel]]+Table10[[#This Row],[ايراد 95]]+Table10[[#This Row],[ايراد 91]] -> 14916.01 | N166: 2.095 | O166: 0.61 | P166: 0.61 | Q166: =(Table10[[#This Row],[سعر 91]]-Table10[[#This Row],[شراء 91]])*Table10[[#This Row],[مبيعات 91]] -> 440.81 | R166: =(Table10[[#This Row],[سعر 95]]-Table10[[#This Row],[شراء 95]])*Table10[[#This Row],[مبيعات 95]] -> 0 | S166: =(Table10[[#This Row],[سعر Diesel]]-Table10[[#This Row],[شراء Diesel]])*Table10[[#This Row],[مبيعات Diesel]] -> 114.62 | T166: =SUM(Table10[[#This Row],[أرباح 91]:[أرباح Diesel]]) -> 555.43 | U166: =Table10[[#This Row],[اجمالي الايراد]]*(15/115) -> 1945.566522 | V166: =Table10[[#This Row],[اجمالي الايراد]]-Table10[[#This Row],[ضريبة]] -> 12970.44348
B167: 2022-03-23 | C167: وردية ثانية | D167: 4962 | E167: 2.18 | F167: =Table10[[#This Row],[مبيعات 91]]*Table10[[#This Row],[سعر 91]] -> 10817.16 | I167: =Table10[[#This Row],[سعر 95]]*Table10[[#This Row],[مبيعات 95]] -> 0 | J167: 3167 | K167: 0.63 | L167: =Table10[[#This Row],[سعر Diesel]]*Table10[[#This Row],[مبيعات Diesel]] -> 1995.21 | M167: =Table10[[#This Row],[ايراد Diesel]]+Table10[[#This Row],[ايراد 95]]+Table10[[#This Row],[ايراد 91]] -> 12812.37 | N167: 2.095 | O167: 0.61 | P167: 0.61 | Q167: =(Table10[[#This Row],[سعر 91]]-Table10[[#This Row],[شراء 91]])*Table10[[#This Row],[مبيعات 91]] -> 421.77 | R167: =(Table10[[#This Row],[سعر 95]]-Table10[[#This Row],[شراء 95]])*Table10[[#This Row],[مبيعات 95]] -> 0 | S167: =(Table10[[#This Row],[سعر Diesel]]-Table10[[#This Row],[شراء Diesel]])*Table10[[#This Row],[مبيعات Diesel]] -> 63.34 | T167: =SUM(Table10[[#This Row],[أرباح 91]:[أرباح Diesel]]) -> 485.11 | U167: =Table10[[#This Row],[اجمالي الايراد]]*(15/115) -> 1671.178696 | V167: =Table10[[#This Row],[اجمالي الايراد]]-Table10[[#This Row],[ضريبة]] -> 11141.1913
B168: 2022-03-24 | C168: وردية أولى | D168: 5277 | E168: 2.18 | F168: =Table10[[#This Row],[مبيعات 91]]*Table10[[#This Row],[سعر 91]] -> 11503.86 | I168: =Table10[[#This Row],[سعر 95]]*Table10[[#This Row],[مبيعات 95]] -> 0 | J168: 4688 | K168: 0.63 | L168: =Table10[[#This Row],[سعر Diesel]]*Table10[[#This Row],[مبيعات Diesel]] -> 2953.44 | M168: =Table10[[#This Row],[ايراد Diesel]]+Table10[[#This Row],[ايراد 95]]+Table10[[#This Row],[ايراد 91]] -> 14457.3 | N168: 2.095 | O168: 0.61 | P168: 0.61 | Q168: =(Table10[[#This Row],[سعر 91]]-Table10[[#This Row],[شراء 91]])*Table10[[#This Row],[مبيعات 91]] -> 448.545 | R168: =(Table10[[#This Row],[سعر 95]]-Table10[[#This Row],[شراء 95]])*Table10[[#This Row],[مبيعات 95]] -> 0 | S168: =(Table10[[#This Row],[سعر Diesel]]-Table10[[#This Row],[شراء Diesel]])*Table10[[#This Row],[مبيعات Diesel]] -> 93.76 | T168: =SUM(Table10[[#This Row],[أرباح 91]:[أرباح Diesel]]) -> 542.305 | U168: =Table10[[#This Row],[اجمالي الايراد]]*(15/115) -> 1885.734783 | V168: =Table10[[#This Row],[اجمالي الايراد]]-Table10[[#This Row],[ضريبة]] -> 12571.56522
B169: 2022-03-24 | C169: وردية ثانية | D169: 5292 | E169: 2.18 | F169: =Table10[[#This Row],[مبيعات 91]]*Table10[[#This Row],[سعر 91]] -> 11536.56 | I169: =Table10[[#This Row],[سعر 95]]*Table10[[#This Row],[مبيعات 95]] -> 0 | J169: 2794 | K169: 0.63 | L169: =Table10[[#This Row],[سعر Diesel]]*Table10[[#This Row],[مبيعات Diesel]] -> 1760.22 | M169: =Table10[[#This Row],[ايراد Diesel]]+Table10[[#This Row],[ايراد 95]]+Table10[[#This Row],[ايراد 91]] -> 13296.78 | N169: 2.095 | O169: 0.61 | P169: 0.61 | Q169: =(Table10[[#This Row],[سعر 91]]-Table10[[#This Row],[شراء 91]])*Table10[[#This Row],[مبيعات 91]] -> 449.82 | R169: =(Table10[[#This Row],[سعر 95]]-Table10[[#This Row],[شراء 95]])*Table10[[#This Row],[مبيعات 95]] -> 0 | S169: =(Table10[[#This Row],[سعر Diesel]]-Table10[[#This Row],[شراء Diesel]])*Table10[[#This Row],[مبيعات Diesel]] -> 55.88 | T169: =SUM(Table10[[#This Row],[أرباح 91]:[أرباح Diesel]]) -> 505.7 | U169: =Table10[[#This Row],[اجمالي الايراد]]*(15/115) -> 1734.362609 | V169: =Table10[[#This Row],[اجمالي الايراد]]-Table10[[#This Row],[ضريبة]] -> 11562.41739
B170: 2022-03-25 | C170: وردية أولى | D170: 2331 | E170: 2.18 | F170: =Table10[[#This Row],[مبيعات 91]]*Table10[[#This Row],[سعر 91]] -> 5081.58 | I170: =Table10[[#This Row],[سعر 95]]*Table10[[#This Row],[مبيعات 95]] -> 0 | J170: 1461 | K170: 0.63 | L170: =Table10[[#This Row],[سعر Diesel]]*Table10[[#This Row],[مبيعات Diesel]] -> 920.43 | M170: =Table10[[#This Row],[ايراد Diesel]]+Table10[[#This Row],[ايراد 95]]+Table10[[#This Row],[ايراد 91]] -> 6002.01 | N170: 2.095 | O170: 0.61 | P170: 0.61 | Q170: =(Table10[[#This Row],[سعر 91]]-Table10[[#This Row],[شراء 91]])*Table10[[#This Row],[مبيعات 91]] -> 198.135 | R170: =(Table10[[#This Row],[سعر 95]]-Table10[[#This Row],[شراء 95]])*Table10[[#This Row],[مبيعات 95]] -> 0 | S170: =(Table10[[#This Row],[سعر Diesel]]-Table10[[#This Row],[شراء Diesel]])*Table10[[#This Row],[مبيعات Diesel]] -> 29.22 | T170: =SUM(Table10[[#This Row],[أرباح 91]:[أرباح Diesel]]) -> 227.355 | U170: =Table10[[#This Row],[اجمالي الايراد]]*(15/115) -> 782.8708696 | V170: =Table10[[#This Row],[اجمالي الايراد]]-Table10[[#This Row],[ضريبة]] -> 5219.13913
B171: 2022-03-25 | C171: وردية ثانية | D171: 5472 | E171: 2.18 | F171: =Table10[[#This Row],[مبيعات 91]]*Table10[[#This Row],[سعر 91]] -> 11928.96 | I171: =Table10[[#This Row],[سعر 95]]*Table10[[#This Row],[مبيعات 95]] -> 0 | J171: 2010 | K171: 0.63 | L171: =Table10[[#This Row],[سعر Diesel]]*Table10[[#This Row],[مبيعات Diesel]] -> 1266.3 | M171: =Table10[[#This Row],[ايراد Diesel]]+Table10[[#This Row],[ايراد 95]]+Table10[[#This Row],[ايراد 91]] -> 13195.26 | N171: 2.095 | O171: 0.61 | P171: 0.61 | Q171: =(Table10[[#This Row],[سعر 91]]-Table10[[#This Row],[شراء 91]])*Table10[[#This Row],[مبيعات 91]] -> 465.12 | R171: =(Table10[[#This Row],[سعر 95]]-Table10[[#This Row],[شراء 95]])*Table10[[#This Row],[مبيعات 95]] -> 0 | S171: =(Table10[[#This Row],[سعر Diesel]]-Table10[[#This Row],[شراء Diesel]])*Table10[[#This Row],[مبيعات Diesel]] -> 40.2 | T171: =SUM(Table10[[#This Row],[أرباح 91]:[أرباح Diesel]]) -> 505.32 | U171: =Table10[[#This Row],[اجمالي الايراد]]*(15/115) -> 1721.12087 | V171: =Table10[[#This Row],[اجمالي الايراد]]-Table10[[#This Row],[ضريبة]] -> 11474.13913
B172: 2022-03-26 | C172: وردية أولى | D172: 4168 | E172: 2.18 | F172: =Table10[[#This Row],[مبيعات 91]]*Table10[[#This Row],[سعر 91]] -> 9086.24 | I172: =Table10[[#This Row],[سعر 95]]*Table10[[#This Row],[مبيعات 95]] -> 0 | J172: 7439 | K172: 0.63 | L172: =Table10[[#This Row],[سعر Diesel]]*Table10[[#This Row],[مبيعات Diesel]] -> 4686.57 | M172: =Table10[[#This Row],[ايراد Diesel]]+Table10[[#This Row],[ايراد 95]]+Table10[[#This Row],[ايراد 91]] -> 13772.81 | N172: 2.095 | O172: 0.61 | P172: 0.61 | Q172: =(Table10[[#This Row],[سعر 91]]-Table10[[#This Row],[شراء 91]])*Table10[[#This Row],[مبيعات 91]] -> 354.28 | R172: =(Table10[[#This Row],[سعر 95]]-Table10[[#This Row],[شراء 95]])*Table10[[#This Row],[مبيعات 95]] -> 0 | S172: =(Table10[[#This Row],[سعر Diesel]]-Table10[[#This Row],[شراء Diesel]])*Table10[[#This Row],[مبيعات Diesel]] -> 148.78 | T172: =SUM(Table10[[#This Row],[أرباح 91]:[أرباح Diesel]]) -> 503.06 | U172: =Table10[[#This Row],[اجمالي الايراد]]*(15/115) -> 1796.453478 | V172: =Table10[[#This Row],[اجمالي الايراد]]-Table10[[#This Row],[ضريبة]] -> 11976.35652
B173: 2022-03-26 | C173: وردية ثانية | D173: 5764 | E173: 2.18 | F173: =Table10[[#This Row],[مبيعات 91]]*Table10[[#This Row],[سعر 91]] -> 12565.52 | I173: =Table10[[#This Row],[سعر 95]]*Table10[[#This Row],[مبيعات 95]] -> 0 | J173: 4620 | K173: 0.63 | L173: =Table10[[#This Row],[سعر Diesel]]*Table10[[#This Row],[مبيعات Diesel]] -> 2910.6 | M173: =Table10[[#This Row],[ايراد Diesel]]+Table10[[#This Row],[ايراد 95]]+Table10[[#This Row],[ايراد 91]] -> 15476.12 | N173: 2.095 | O173: 0.61 | P173: 0.61 | Q173: =(Table10[[#This Row],[سعر 91]]-Table10[[#This Row],[شراء 91]])*Table10[[#This Row],[مبيعات 91]] -> 489.94 | R173: =(Table10[[#This Row],[سعر 95]]-Table10[[#This Row],[شراء 95]])*Table10[[#This Row],[مبيعات 95]] -> 0 | S173: =(Table10[[#This Row],[سعر Diesel]]-Table10[[#This Row],[شراء Diesel]])*Table10[[#This Row],[مبيعات Diesel]] -> 92.4 | T173: =SUM(Table10[[#This Row],[أرباح 91]:[أرباح Diesel]]) -> 582.34 | U173: =Table10[[#This Row],[اجمالي الايراد]]*(15/115) -> 2018.624348 | V173: =Table10[[#This Row],[اجمالي الايراد]]-Table10[[#This Row],[ضريبة]] -> 13457.49565
B174: 2022-03-27 | C174: وردية أولى | D174: 6059 | E174: 2.18 | F174: =Table10[[#This Row],[مبيعات 91]]*Table10[[#This Row],[سعر 91]] -> 13208.62 | I174: =Table10[[#This Row],[سعر 95]]*Table10[[#This Row],[مبيعات 95]] -> 0 | J174: 6911 | K174: 0.63 | L174: =Table10[[#This Row],[سعر Diesel]]*Table10[[#This Row],[مبيعات Diesel]] -> 4353.93 | M174: =Table10[[#This Row],[ايراد Diesel]]+Table10[[#This Row],[ايراد 95]]+Table10[[#This Row],[ايراد 91]] -> 17562.55 | N174: 2.095 | O174: 0.61 | P174: 0.61 | Q174: =(Table10[[#This Row],[سعر 91]]-Table10[[#This Row],[شراء 91]])*Table10[[#This Row],[مبيعات 91]] -> 515.015 | R174: =(Table10[[#This Row],[سعر 95]]-Table10[[#This Row],[شراء 95]])*Table10[[#This Row],[مبيعات 95]] -> 0 | S174: =(Table10[[#This Row],[سعر Diesel]]-Table10[[#This Row],[شراء Diesel]])*Table10[[#This Row],[مبيعات Diesel]] -> 138.22 | T174: =SUM(Table10[[#This Row],[أرباح 91]:[أرباح Diesel]]) -> 653.235 | U174: =Table10[[#This Row],[اجمالي الايراد]]*(15/115) -> 2290.767391 | V174: =Table10[[#This Row],[اجمالي الايراد]]-Table10[[#This Row],[ضريبة]] -> 15271.78261
B175: 2022-03-27 | C175: وردية ثانية | D175: 5515 | E175: 2.18 | F175: =Table10[[#This Row],[مبيعات 91]]*Table10[[#This Row],[سعر 91]] -> 12022.7 | I175: =Table10[[#This Row],[سعر 95]]*Table10[[#This Row],[مبيعات 95]] -> 0 | J175: 2068 | K175: 0.63 | L175: =Table10[[#This Row],[سعر Diesel]]*Table10[[#This Row],[مبيعات Diesel]] -> 1302.84 | M175: =Table10[[#This Row],[ايراد Diesel]]+Table10[[#This Row],[ايراد 95]]+Table10[[#This Row],[ايراد 91]] -> 13325.54 | N175: 2.095 | O175: 0.61 | P175: 0.61 | Q175: =(Table10[[#This Row],[سعر 91]]-Table10[[#This Row],[شراء 91]])*Table10[[#This Row],[مبيعات 91]] -> 468.775 | R175: =(Table10[[#This Row],[سعر 95]]-Table10[[#This Row],[شراء 95]])*Table10[[#This Row],[مبيعات 95]] -> 0 | S175: =(Table10[[#This Row],[سعر Diesel]]-Table10[[#This Row],[شراء Diesel]])*Table10[[#This Row],[مبيعات Diesel]] -> 41.36 | T175: =SUM(Table10[[#This Row],[أرباح 91]:[أرباح Diesel]]) -> 510.135 | U175: =Table10[[#This Row],[اجمالي الايراد]]*(15/115) -> 1738.113913 | V175: =Table10[[#This Row],[اجمالي الايراد]]-Table10[[#This Row],[ضريبة]] -> 11587.42609
B176: 2022-03-28 | C176: وردية أولى | D176: 4894 | E176: 2.18 | F176: =Table10[[#This Row],[مبيعات 91]]*Table10[[#This Row],[سعر 91]] -> 10668.92 | I176: =Table10[[#This Row],[سعر 95]]*Table10[[#This Row],[مبيعات 95]] -> 0 | J176: 5305 | K176: 0.63 | L176: =Table10[[#This Row],[سعر Diesel]]*Table10[[#This Row],[مبيعات Diesel]] -> 3342.15 | M176: =Table10[[#This Row],[ايراد Diesel]]+Table10[[#This Row],[ايراد 95]]+Table10[[#This Row],[ايراد 91]] -> 14011.07 | N176: 2.095 | O176: 0.61 | P176: 0.61 | Q176: =(Table10[[#This Row],[سعر 91]]-Table10[[#This Row],[شراء 91]])*Table10[[#This Row],[مبيعات 91]] -> 415.99 | R176: =(Table10[[#This Row],[سعر 95]]-Table10[[#This Row],[شراء 95]])*Table10[[#This Row],[مبيعات 95]] -> 0 | S176: =(Table10[[#This Row],[سعر Diesel]]-Table10[[#This Row],[شراء Diesel]])*Table10[[#This Row],[مبيعات Diesel]] -> 106.1 | T176: =SUM(Table10[[#This Row],[أرباح 91]:[أرباح Diesel]]) -> 522.09 | U176: =Table10[[#This Row],[اجمالي الايراد]]*(15/115) -> 1827.53087 | V176: =Table10[[#This Row],[اجمالي الايراد]]-Table10[[#This Row],[ضريبة]] -> 12183.53913
B177: 2022-03-28 | C177: وردية ثانية | D177: 5328 | E177: 2.18 | F177: =Table10[[#This Row],[مبيعات 91]]*Table10[[#This Row],[سعر 91]] -> 11615.04 | I177: =Table10[[#This Row],[سعر 95]]*Table10[[#This Row],[مبيعات 95]] -> 0 | J177: 3383 | K177: 0.63 | L177: =Table10[[#This Row],[سعر Diesel]]*Table10[[#This Row],[مبيعات Diesel]] -> 2131.29 | M177: =Table10[[#This Row],[ايراد Diesel]]+Table10[[#This Row],[ايراد 95]]+Table10[[#This Row],[ايراد 91]] -> 13746.33 | N177: 2.095 | O177: 0.61 | P177: 0.61 | Q177: =(Table10[[#This Row],[سعر 91]]-Table10[[#This Row],[شراء 91]])*Table10[[#This Row],[مبيعات 91]] -> 452.88 | R177: =(Table10[[#This Row],[سعر 95]]-Table10[[#This Row],[شراء 95]])*Table10[[#This Row],[مبيعات 95]] -> 0 | S177: =(Table10[[#This Row],[سعر Diesel]]-Table10[[#This Row],[شراء Diesel]])*Table10[[#This Row],[مبيعات Diesel]] -> 67.66 | T177: =SUM(Table10[[#This Row],[أرباح 91]:[أرباح Diesel]]) -> 520.54 | U177: =Table10[[#This Row],[اجمالي الايراد]]*(15/115) -> 1792.999565 | V177: =Table10[[#This Row],[اجمالي الايراد]]-Table10[[#This Row],[ضريبة]] -> 11953.33043
B178: 2022-03-29 | C178: وردية أولى | D178: 5703 | E178: 2.18 | F178: =Table10[[#This Row],[مبيعات 91]]*Table10[[#This Row],[سعر 91]] -> 12432.54 | I178: =Table10[[#This Row],[سعر 95]]*Table10[[#This Row],[مبيعات 95]] -> 0 | J178: 5111 | K178: 0.63 | L178: =Table10[[#This Row],[سعر Diesel]]*Table10[[#This Row],[مبيعات Diesel]] -> 3219.93 | M178: =Table10[[#This Row],[ايراد Diesel]]+Table10[[#This Row],[ايراد 95]]+Table10[[#This Row],[ايراد 91]] -> 15652.47 | N178: 2.095 | O178: 0.61 | P178: 0.61 | Q178: =(Table10[[#This Row],[سعر 91]]-Table10[[#This Row],[شراء 91]])*Table10[[#This Row],[مبيعات 91]] -> 484.755 | R178: =(Table10[[#This Row],[سعر 95]]-Table10[[#This Row],[شراء 95]])*Table10[[#This Row],[مبيعات 95]] -> 0 | S178: =(Table10[[#This Row],[سعر Diesel]]-Table10[[#This Row],[شراء Diesel]])*Table10[[#This Row],[مبيعات Diesel]] -> 102.22 | T178: =SUM(Table10[[#This Row],[أرباح 91]:[أرباح Diesel]]) -> 586.975 | U178: =Table10[[#This Row],[اجمالي الايراد]]*(15/115) -> 2041.626522 | V178: =Table10[[#This Row],[اجمالي الايراد]]-Table10[[#This Row],[ضريبة]] -> 13610.84348
B179: 2022-03-29 | C179: وردية ثانية | D179: 5859 | E179: 2.18 | F179: =Table10[[#This Row],[مبيعات 91]]*Table10[[#This Row],[سعر 91]] -> 12772.62 | I179: =Table10[[#This Row],[سعر 95]]*Table10[[#This Row],[مبيعات 95]] -> 0 | J179: 2497 | K179: 0.63 | L179: =Table10[[#This Row],[سعر Diesel]]*Table10[[#This Row],[مبيعات Diesel]] -> 1573.11 | M179: =Table10[[#This Row],[ايراد Diesel]]+Table10[[#This Row],[ايراد 95]]+Table10[[#This Row],[ايراد 91]] -> 14345.73 | N179: 2.095 | O179: 0.61 | P179: 0.61 | Q179: =(Table10[[#This Row],[سعر 91]]-Table10[[#This Row],[شراء 91]])*Table10[[#This Row],[مبيعات 91]] -> 498.015 | R179: =(Table10[[#This Row],[سعر 95]]-Table10[[#This Row],[شراء 95]])*Table10[[#This Row],[مبيعات 95]] -> 0 | S179: =(Table10[[#This Row],[سعر Diesel]]-Table10[[#This Row],[شراء Diesel]])*Table10[[#This Row],[مبيعات Diesel]] -> 49.94 | T179: =SUM(Table10[[#This Row],[أرباح 91]:[أرباح Diesel]]) -> 547.955 | U179: =Table10[[#This Row],[اجمالي الايراد]]*(15/115) -> 1871.182174 | V179: =Table10[[#This Row],[اجمالي الايراد]]-Table10[[#This Row],[ضريبة]] -> 12474.54783
B180: 2022-03-30 | C180: وردية أولى | D180: 4639 | E180: 2.18 | F180: =Table10[[#This Row],[مبيعات 91]]*Table10[[#This Row],[سعر 91]] -> 10113.02 | I180: =Table10[[#This Row],[سعر 95]]*Table10[[#This Row],[مبيعات 95]] -> 0 | J180: 6338 | K180: 0.63 | L180: =Table10[[#This Row],[سعر Diesel]]*Table10[[#This Row],[مبيعات Diesel]] -> 3992.94 | M180: =Table10[[#This Row],[ايراد Diesel]]+Table10[[#This Row],[ايراد 95]]+Table10[[#This Row],[ايراد 91]] -> 14105.96 | N180: 2.095 | O180: 0.61 | P180: 0.61 | Q180: =(Table10[[#This Row],[سعر 91]]-Table10[[#This Row],[شراء 91]])*Table10[[#This Row],[مبيعات 91]] -> 394.315 | R180: =(Table10[[#This Row],[سعر 95]]-Table10[[#This Row],[شراء 95]])*Table10[[#This Row],[مبيعات 95]] -> 0 | S180: =(Table10[[#This Row],[سعر Diesel]]-Table10[[#This Row],[شراء Diesel]])*Table10[[#This Row],[مبيعات Diesel]] -> 126.76 | T180: =SUM(Table10[[#This Row],[أرباح 91]:[أرباح Diesel]]) -> 521.075 | U180: =Table10[[#This Row],[اجمالي الايراد]]*(15/115) -> 1839.907826 | V180: =Table10[[#This Row],[اجمالي الايراد]]-Table10[[#This Row],[ضريبة]] -> 12266.05217
B181: 2022-03-30 | C181: وردية ثانية | D181: 4928 | E181: 2.18 | F181: =Table10[[#This Row],[مبيعات 91]]*Table10[[#This Row],[سعر 91]] -> 10743.04 | I181: =Table10[[#This Row],[سعر 95]]*Table10[[#This Row],[مبيعات 95]] -> 0 | J181: 3335 | K181: 0.63 | L181: =Table10[[#This Row],[سعر Diesel]]*Table10[[#This Row],[مبيعات Diesel]] -> 2101.05 | M181: =Table10[[#This Row],[ايراد Diesel]]+Table10[[#This Row],[ايراد 95]]+Table10[[#This Row],[ايراد 91]] -> 12844.09 | N181: 2.095 | O181: 0.61 | P181: 0.61 | Q181: =(Table10[[#This Row],[سعر 91]]-Table10[[#This Row],[شراء 91]])*Table10[[#This Row],[مبيعات 91]] -> 418.88 | R181: =(Table10[[#This Row],[سعر 95]]-Table10[[#This Row],[شراء 95]])*Table10[[#This Row],[مبيعات 95]] -> 0 | S181: =(Table10[[#This Row],[سعر Diesel]]-Table10[[#This Row],[شراء Diesel]])*Table10[[#This Row],[مبيعات Diesel]] -> 66.7 | T181: =SUM(Table10[[#This Row],[أرباح 91]:[أرباح Diesel]]) -> 485.58 | U181: =Table10[[#This Row],[اجمالي الايراد]]*(15/115) -> 1675.316087 | V181: =Table10[[#This Row],[اجمالي الايراد]]-Table10[[#This Row],[ضريبة]] -> 11168.77391
B182: 2022-03-31 | C182: وردية أولى | D182: 5755 | E182: 2.18 | F182: =Table10[[#This Row],[مبيعات 91]]*Table10[[#This Row],[سعر 91]] -> 12545.9 | I182: =Table10[[#This Row],[سعر 95]]*Table10[[#This Row],[مبيعات 95]] -> 0 | J182: 6912 | K182: 0.63 | L182: =Table10[[#This Row],[سعر Diesel]]*Table10[[#This Row],[مبيعات Diesel]] -> 4354.56 | M182: =Table10[[#This Row],[ايراد Diesel]]+Table10[[#This Row],[ايراد 95]]+Table10[[#This Row],[ايراد 91]] -> 16900.46 | N182: 2.095 | O182: 0.61 | P182: 0.61 | Q182: =(Table10[[#This Row],[سعر 91]]-Table10[[#This Row],[شراء 91]])*Table10[[#This Row],[مبيعات 91]] -> 489.175 | R182: =(Table10[[#This Row],[سعر 95]]-Table10[[#This Row],[شراء 95]])*Table10[[#This Row],[مبيعات 95]] -> 0 | S182: =(Table10[[#This Row],[سعر Diesel]]-Table10[[#This Row],[شراء Diesel]])*Table10[[#This Row],[مبيعات Diesel]] -> 138.24 | T182: =SUM(Table10[[#This Row],[أرباح 91]:[أرباح Diesel]]) -> 627.415 | U182: =Table10[[#This Row],[اجمالي الايراد]]*(15/115) -> 2204.407826 | V182: =Table10[[#This Row],[اجمالي الايراد]]-Table10[[#This Row],[ضريبة]] -> 14696.05217
B183: 2022-03-31 | C183: وردية ثانية | D183: 4902 | E183: 2.18 | F183: =Table10[[#This Row],[مبيعات 91]]*Table10[[#This Row],[سعر 91]] -> 10686.36 | I183: =Table10[[#This Row],[سعر 95]]*Table10[[#This Row],[مبيعات 95]] -> 0 | J183: 2899 | K183: 0.63 | L183: =Table10[[#This Row],[سعر Diesel]]*Table10[[#This Row],[مبيعات Diesel]] -> 1826.37 | M183: =Table10[[#This Row],[ايراد Diesel]]+Table10[[#This Row],[ايراد 95]]+Table10[[#This Row],[ايراد 91]] -> 12512.73 | N183: 2.095 | O183: 0.61 | P183: 0.61 | Q183: =(Table10[[#This Row],[سعر 91]]-Table10[[#This Row],[شراء 91]])*Table10[[#This Row],[مبيعات 91]] -> 416.67 | R183: =(Table10[[#This Row],[سعر 95]]-Table10[[#This Row],[شراء 95]])*Table10[[#This Row],[مبيعات 95]] -> 0 | S183: =(Table10[[#This Row],[سعر Diesel]]-Table10[[#This Row],[شراء Diesel]])*Table10[[#This Row],[مبيعات Diesel]] -> 57.98 | T183: =SUM(Table10[[#This Row],[أرباح 91]:[أرباح Diesel]]) -> 474.65 | U183: =Table10[[#This Row],[اجمالي الايراد]]*(15/115) -> 1632.095217 | V183: =Table10[[#This Row],[اجمالي الايراد]]-Table10[[#This Row],[ضريبة]] -> 10880.63478
B184: 2022-04-01 | C184: وردية أولى | D184: 3319 | E184: 2.18 | F184: =Table10[[#This Row],[مبيعات 91]]*Table10[[#This Row],[سعر 91]] -> 7235.42 | I184: =Table10[[#This Row],[سعر 95]]*Table10[[#This Row],[مبيعات 95]] -> 0 | J184: 1478 | K184: 0.63 | L184: =Table10[[#This Row],[سعر Diesel]]*Table10[[#This Row],[مبيعات Diesel]] -> 931.14 | M184: =Table10[[#This Row],[ايراد Diesel]]+Table10[[#This Row],[ايراد 95]]+Table10[[#This Row],[ايراد 91]] -> 8166.56 | N184: 2.095 | O184: 0.61 | P184: 0.61 | Q184: =(Table10[[#This Row],[سعر 91]]-Table10[[#This Row],[شراء 91]])*Table10[[#This Row],[مبيعات 91]] -> 282.115 | R184: =(Table10[[#This Row],[سعر 95]]-Table10[[#This Row],[شراء 95]])*Table10[[#This Row],[مبيعات 95]] -> 0 | S184: =(Table10[[#This Row],[سعر Diesel]]-Table10[[#This Row],[شراء Diesel]])*Table10[[#This Row],[مبيعات Diesel]] -> 29.56 | T184: =SUM(Table10[[#This Row],[أرباح 91]:[أرباح Diesel]]) -> 311.675 | U184: =Table10[[#This Row],[اجمالي الايراد]]*(15/115) -> 1065.203478 | V184: =Table10[[#This Row],[اجمالي الايراد]]-Table10[[#This Row],[ضريبة]] -> 7101.356522
B185: 2022-04-01 | C185: وردية ثانية | D185: 5969 | E185: 2.18 | F185: =Table10[[#This Row],[مبيعات 91]]*Table10[[#This Row],[سعر 91]] -> 13012.42 | I185: =Table10[[#This Row],[سعر 95]]*Table10[[#This Row],[مبيعات 95]] -> 0 | J185: 5462 | K185: 0.63 | L185: =Table10[[#This Row],[سعر Diesel]]*Table10[[#This Row],[مبيعات Diesel]] -> 3441.06 | M185: =Table10[[#This Row],[ايراد Diesel]]+Table10[[#This Row],[ايراد 95]]+Table10[[#This Row],[ايراد 91]] -> 16453.48 | N185: 2.095 | O185: 0.61 | P185: 0.61 | Q185: =(Table10[[#This Row],[سعر 91]]-Table10[[#This Row],[شراء 91]])*Table10[[#This Row],[مبيعات 91]] -> 507.365 | R185: =(Table10[[#This Row],[سعر 95]]-Table10[[#This Row],[شراء 95]])*Table10[[#This Row],[مبيعات 95]] -> 0 | S185: =(Table10[[#This Row],[سعر Diesel]]-Table10[[#This Row],[شراء Diesel]])*Table10[[#This Row],[مبيعات Diesel]] -> 109.24 | T185: =SUM(Table10[[#This Row],[أرباح 91]:[أرباح Diesel]]) -> 616.605 | U185: =Table10[[#This Row],[اجمالي الايراد]]*(15/115) -> 2146.106087 | V185: =Table10[[#This Row],[اجمالي الايراد]]-Table10[[#This Row],[ضريبة]] -> 14307.37391
B186: 2022-04-02 | C186: وردية أولى | D186: 3904 | E186: 2.18 | F186: =Table10[[#This Row],[مبيعات 91]]*Table10[[#This Row],[سعر 91]] -> 8510.72 | I186: =Table10[[#This Row],[سعر 95]]*Table10[[#This Row],[مبيعات 95]] -> 0 | J186: 4996 | K186: 0.63 | L186: =Table10[[#This Row],[سعر Diesel]]*Table10[[#This Row],[مبيعات Diesel]] -> 3147.48 | M186: =Table10[[#This Row],[ايراد Diesel]]+Table10[[#This Row],[ايراد 95]]+Table10[[#This Row],[ايراد 91]] -> 11658.2 | N186: 2.095 | O186: 0.61 | P186: 0.61 | Q186: =(Table10[[#This Row],[سعر 91]]-Table10[[#This Row],[شراء 91]])*Table10[[#This Row],[مبيعات 91]] -> 331.84 | R186: =(Table10[[#This Row],[سعر 95]]-Table10[[#This Row],[شراء 95]])*Table10[[#This Row],[مبيعات 95]] -> 0 | S186: =(Table10[[#This Row],[سعر Diesel]]-Table10[[#This Row],[شراء Diesel]])*Table10[[#This Row],[مبيعات Diesel]] -> 99.92 | T186: =SUM(Table10[[#This Row],[أرباح 91]:[أرباح Diesel]]) -> 431.76 | U186: =Table10[[#This Row],[اجمالي الايراد]]*(15/115) -> 1520.634783 | V186: =Table10[[#This Row],[اجمالي الايراد]]-Table10[[#This Row],[ضريبة]] -> 10137.56522
B187: 2022-04-02 | C187: وردية ثانية | D187: 4896 | E187: 2.18 | F187: =Table10[[#This Row],[مبيعات 91]]*Table10[[#This Row],[سعر 91]] -> 10673.28 | I187: =Table10[[#This Row],[سعر 95]]*Table10[[#This Row],[مبيعات 95]] -> 0 | J187: 3864 | K187: 0.63 | L187: =Table10[[#This Row],[سعر Diesel]]*Table10[[#This Row],[مبيعات Diesel]] -> 2434.32 | M187: =Table10[[#This Row],[ايراد Diesel]]+Table10[[#This Row],[ايراد 95]]+Table10[[#This Row],[ايراد 91]] -> 13107.6 | N187: 2.095 | O187: 0.61 | P187: 0.61 | Q187: =(Table10[[#This Row],[سعر 91]]-Table10[[#This Row],[شراء 91]])*Table10[[#This Row],[مبيعات 91]] -> 416.16 | R187: =(Table10[[#This Row],[سعر 95]]-Table10[[#This Row],[شراء 95]])*Table10[[#This Row],[مبيعات 95]] -> 0 | S187: =(Table10[[#This Row],[سعر Diesel]]-Table10[[#This Row],[شراء Diesel]])*Table10[[#This Row],[مبيعات Diesel]] -> 77.28 | T187: =SUM(Table10[[#This Row],[أرباح 91]:[أرباح Diesel]]) -> 493.44 | U187: =Table10[[#This Row],[اجمالي الايراد]]*(15/115) -> 1709.686957 | V187: =Table10[[#This Row],[اجمالي الايراد]]-Table10[[#This Row],[ضريبة]] -> 11397.91304
B188: 2022-04-03 | C188: وردية أولى | D188: 5218 | E188: 2.18 | F188: =Table10[[#This Row],[مبيعات 91]]*Table10[[#This Row],[سعر 91]] -> 11375.24 | I188: =Table10[[#This Row],[سعر 95]]*Table10[[#This Row],[مبيعات 95]] -> 0 | J188: 6395 | K188: 0.63 | L188: =Table10[[#This Row],[سعر Diesel]]*Table10[[#This Row],[مبيعات Diesel]] -> 4028.85 | M188: =Table10[[#This Row],[ايراد Diesel]]+Table10[[#This Row],[ايراد 95]]+Table10[[#This Row],[ايراد 91]] -> 15404.09 | N188: 2.095 | O188: 0.61 | P188: 0.61 | Q188: =(Table10[[#This Row],[سعر 91]]-Table10[[#This Row],[شراء 91]])*Table10[[#This Row],[مبيعات 91]] -> 443.53 | R188: =(Table10[[#This Row],[سعر 95]]-Table10[[#This Row],[شراء 95]])*Table10[[#This Row],[مبيعات 95]] -> 0 | S188: =(Table10[[#This Row],[سعر Diesel]]-Table10[[#This Row],[شراء Diesel]])*Table10[[#This Row],[مبيعات Diesel]] -> 127.9 | T188: =SUM(Table10[[#This Row],[أرباح 91]:[أرباح Diesel]]) -> 571.43 | U188: =Table10[[#This Row],[اجمالي الايراد]]*(15/115) -> 2009.22913 | V188: =Table10[[#This Row],[اجمالي الايراد]]-Table10[[#This Row],[ضريبة]] -> 13394.86087
B189: 2022-04-03 | C189: وردية ثانية | D189: 4698 | E189: 2.18 | F189: =Table10[[#This Row],[مبيعات 91]]*Table10[[#This Row],[سعر 91]] -> 10241.64 | I189: =Table10[[#This Row],[سعر 95]]*Table10[[#This Row],[مبيعات 95]] -> 0 | J189: 2922 | K189: 0.63 | L189: =Table10[[#This Row],[سعر Diesel]]*Table10[[#This Row],[مبيعات Diesel]] -> 1840.86 | M189: =Table10[[#This Row],[ايراد Diesel]]+Table10[[#This Row],[ايراد 95]]+Table10[[#This Row],[ايراد 91]] -> 12082.5 | N189: 2.095 | O189: 0.61 | P189: 0.61 | Q189: =(Table10[[#This Row],[سعر 91]]-Table10[[#This Row],[شراء 91]])*Table10[[#This Row],[مبيعات 91]] -> 399.33 | R189: =(Table10[[#This Row],[سعر 95]]-Table10[[#This Row],[شراء 95]])*Table10[[#This Row],[مبيعات 95]] -> 0 | S189: =(Table10[[#This Row],[سعر Diesel]]-Table10[[#This Row],[شراء Diesel]])*Table10[[#This Row],[مبيعات Diesel]] -> 58.44 | T189: =SUM(Table10[[#This Row],[أرباح 91]:[أرباح Diesel]]) -> 457.77 | U189: =Table10[[#This Row],[اجمالي الايراد]]*(15/115) -> 1575.978261 | V189: =Table10[[#This Row],[اجمالي الايراد]]-Table10[[#This Row],[ضريبة]] -> 10506.52174
B190: 2022-04-04 | C190: وردية أولى | D190: 4380 | E190: 2.18 | F190: =Table10[[#This Row],[مبيعات 91]]*Table10[[#This Row],[سعر 91]] -> 9548.4 | I190: =Table10[[#This Row],[سعر 95]]*Table10[[#This Row],[مبيعات 95]] -> 0 | J190: 6029 | K190: 0.63 | L190: =Table10[[#This Row],[سعر Diesel]]*Table10[[#This Row],[مبيعات Diesel]] -> 3798.27 | M190: =Table10[[#This Row],[ايراد Diesel]]+Table10[[#This Row],[ايراد 95]]+Table10[[#This Row],[ايراد 91]] -> 13346.67 | N190: 2.095 | O190: 0.61 | P190: 0.61 | Q190: =(Table10[[#This Row],[سعر 91]]-Table10[[#This Row],[شراء 91]])*Table10[[#This Row],[مبيعات 91]] -> 372.3 | R190: =(Table10[[#This Row],[سعر 95]]-Table10[[#This Row],[شراء 95]])*Table10[[#This Row],[مبيعات 95]] -> 0 | S190: =(Table10[[#This Row],[سعر Diesel]]-Table10[[#This Row],[شراء Diesel]])*Table10[[#This Row],[مبيعات Diesel]] -> 120.58 | T190: =SUM(Table10[[#This Row],[أرباح 91]:[أرباح Diesel]]) -> 492.88 | U190: =Table10[[#This Row],[اجمالي الايراد]]*(15/115) -> 1740.87 | V190: =Table10[[#This Row],[اجمالي الايراد]]-Table10[[#This Row],[ضريبة]] -> 11605.8
B191: 2022-04-04 | C191: وردية ثانية | D191: 4395 | E191: 2.18 | F191: =Table10[[#This Row],[مبيعات 91]]*Table10[[#This Row],[سعر 91]] -> 9581.1 | I191: =Table10[[#This Row],[سعر 95]]*Table10[[#This Row],[مبيعات 95]] -> 0 | J191: 3948 | K191: 0.63 | L191: =Table10[[#This Row],[سعر Diesel]]*Table10[[#This Row],[مبيعات Diesel]] -> 2487.24 | M191: =Table10[[#This Row],[ايراد Diesel]]+Table10[[#This Row],[ايراد 95]]+Table10[[#This Row],[ايراد 91]] -> 12068.34 | N191: 2.095 | O191: 0.61 | P191: 0.61 | Q191: =(Table10[[#This Row],[سعر 91]]-Table10[[#This Row],[شراء 91]])*Table10[[#This Row],[مبيعات 91]] -> 373.575 | R191: =(Table10[[#This Row],[سعر 95]]-Table10[[#This Row],[شراء 95]])*Table10[[#This Row],[مبيعات 95]] -> 0 | S191: =(Table10[[#This Row],[سعر Diesel]]-Table10[[#This Row],[شراء Diesel]])*Table10[[#This Row],[مبيعات Diesel]] -> 78.96 | T191: =SUM(Table10[[#This Row],[أرباح 91]:[أرباح Diesel]]) -> 452.535 | U191: =Table10[[#This Row],[اجمالي الايراد]]*(15/115) -> 1574.131304 | V191: =Table10[[#This Row],[اجمالي الايراد]]-Table10[[#This Row],[ضريبة]] -> 10494.2087
B192: 2022-04-05 | C192: وردية أولى | D192: 4693 | E192: 2.18 | F192: =Table10[[#This Row],[مبيعات 91]]*Table10[[#This Row],[سعر 91]] -> 10230.74 | I192: =Table10[[#This Row],[سعر 95]]*Table10[[#This Row],[مبيعات 95]] -> 0 | J192: 5461 | K192: 0.63 | L192: =Table10[[#This Row],[سعر Diesel]]*Table10[[#This Row],[مبيعات Diesel]] -> 3440.43 | M192: =Table10[[#This Row],[ايراد Diesel]]+Table10[[#This Row],[ايراد 95]]+Table10[[#This Row],[ايراد 91]] -> 13671.17 | N192: 2.095 | O192: 0.61 | P192: 0.61 | Q192: =(Table10[[#This Row],[سعر 91]]-Table10[[#This Row],[شراء 91]])*Table10[[#This Row],[مبيعات 91]] -> 398.905 | R192: =(Table10[[#This Row],[سعر 95]]-Table10[[#This Row],[شراء 95]])*Table10[[#This Row],[مبيعات 95]] -> 0 | S192: =(Table10[[#This Row],[سعر Diesel]]-Table10[[#This Row],[شراء Diesel]])*Table10[[#This Row],[مبيعات Diesel]] -> 109.22 | T192: =SUM(Table10[[#This Row],[أرباح 91]:[أرباح Diesel]]) -> 508.125 | U192: =Table10[[#This Row],[اجمالي الايراد]]*(15/115) -> 1783.196087 | V192: =Table10[[#This Row],[اجمالي الايراد]]-Table10[[#This Row],[ضريبة]] -> 11887.97391
B193: 2022-04-05 | C193: وردية ثانية | D193: 5127 | E193: 2.18 | F193: =Table10[[#This Row],[مبيعات 91]]*Table10[[#This Row],[سعر 91]] -> 11176.86 | I193: =Table10[[#This Row],[سعر 95]]*Table10[[#This Row],[مبيعات 95]] -> 0 | J193: 3500 | K193: 0.63 | L193: =Table10[[#This Row],[سعر Diesel]]*Table10[[#This Row],[مبيعات Diesel]] -> 2205 | M193: =Table10[[#This Row],[ايراد Diesel]]+Table10[[#This Row],[ايراد 95]]+Table10[[#This Row],[ايراد 91]] -> 13381.86 | N193: 2.095 | O193: 0.61 | P193: 0.61 | Q193: =(Table10[[#This Row],[سعر 91]]-Table10[[#This Row],[شراء 91]])*Table10[[#This Row],[مبيعات 91]] -> 435.795 | R193: =(Table10[[#This Row],[سعر 95]]-Table10[[#This Row],[شراء 95]])*Table10[[#This Row],[مبيعات 95]] -> 0 | S193: =(Table10[[#This Row],[سعر Diesel]]-Table10[[#This Row],[شراء Diesel]])*Table10[[#This Row],[مبيعات Diesel]] -> 70 | T193: =SUM(Table10[[#This Row],[أرباح 91]:[أرباح Diesel]]) -> 505.795 | U193: =Table10[[#This Row],[اجمالي الايراد]]*(15/115) -> 1745.46 | V193: =Table10[[#This Row],[اجمالي الايراد]]-Table10[[#This Row],[ضريبة]] -> 11636.4
B194: 2022-04-06 | C194: وردية أولى | D194: 3968 | E194: 2.18 | F194: =Table10[[#This Row],[مبيعات 91]]*Table10[[#This Row],[سعر 91]] -> 8650.24 | I194: =Table10[[#This Row],[سعر 95]]*Table10[[#This Row],[مبيعات 95]] -> 0 | J194: 7400 | K194: 0.63 | L194: =Table10[[#This Row],[سعر Diesel]]*Table10[[#This Row],[مبيعات Diesel]] -> 4662 | M194: =Table10[[#This Row],[ايراد Diesel]]+Table10[[#This Row],[ايراد 95]]+Table10[[#This Row],[ايراد 91]] -> 13312.24 | N194: 2.095 | O194: 0.61 | P194: 0.61 | Q194: =(Table10[[#This Row],[سعر 91]]-Table10[[#This Row],[شراء 91]])*Table10[[#This Row],[مبيعات 91]] -> 337.28 | R194: =(Table10[[#This Row],[سعر 95]]-Table10[[#This Row],[شراء 95]])*Table10[[#This Row],[مبيعات 95]] -> 0 | S194: =(Table10[[#This Row],[سعر Diesel]]-Table10[[#This Row],[شراء Diesel]])*Table10[[#This Row],[مبيعات Diesel]] -> 148 | T194: =SUM(Table10[[#This Row],[أرباح 91]:[أرباح Diesel]]) -> 485.28 | U194: =Table10[[#This Row],[اجمالي الايراد]]*(15/115) -> 1736.37913 | V194: =Table10[[#This Row],[اجمالي الايراد]]-Table10[[#This Row],[ضريبة]] -> 11575.86087
B195: 2022-04-06 | C195: وردية ثانية | D195: 5607 | E195: 2.18 | F195: =Table10[[#This Row],[مبيعات 91]]*Table10[[#This Row],[سعر 91]] -> 12223.26 | I195: =Table10[[#This Row],[سعر 95]]*Table10[[#This Row],[مبيعات 95]] -> 0 | J195: 3876 | K195: 0.63 | L195: =Table10[[#This Row],[سعر Diesel]]*Table10[[#This Row],[مبيعات Diesel]] -> 2441.88 | M195: =Table10[[#This Row],[ايراد Diesel]]+Table10[[#This Row],[ايراد 95]]+Table10[[#This Row],[ايراد 91]] -> 14665.14 | N195: 2.095 | O195: 0.61 | P195: 0.61 | Q195: =(Table10[[#This Row],[سعر 91]]-Table10[[#This Row],[شراء 91]])*Table10[[#This Row],[مبيعات 91]] -> 476.595 | R195: =(Table10[[#This Row],[سعر 95]]-Table10[[#This Row],[شراء 95]])*Table10[[#This Row],[مبيعات 95]] -> 0 | S195: =(Table10[[#This Row],[سعر Diesel]]-Table10[[#This Row],[شراء Diesel]])*Table10[[#This Row],[مبيعات Diesel]] -> 77.52 | T195: =SUM(Table10[[#This Row],[أرباح 91]:[أرباح Diesel]]) -> 554.115 | U195: =Table10[[#This Row],[اجمالي الايراد]]*(15/115) -> 1912.844348 | V195: =Table10[[#This Row],[اجمالي الايراد]]-Table10[[#This Row],[ضريبة]] -> 12752.29565
B196: 2022-04-07 | C196: وردية أولى | D196: 4751 | E196: 2.18 | F196: =Table10[[#This Row],[مبيعات 91]]*Table10[[#This Row],[سعر 91]] -> 10357.18 | I196: =Table10[[#This Row],[سعر 95]]*Table10[[#This Row],[مبيعات 95]] -> 0 | J196: 4481 | K196: 0.63 | L196: =Table10[[#This Row],[سعر Diesel]]*Table10[[#This Row],[مبيعات Diesel]] -> 2823.03 | M196: =Table10[[#This Row],[ايراد Diesel]]+Table10[[#This Row],[ايراد 95]]+Table10[[#This Row],[ايراد 91]] -> 13180.21 | N196: 2.095 | O196: 0.61 | P196: 0.61 | Q196: =(Table10[[#This Row],[سعر 91]]-Table10[[#This Row],[شراء 91]])*Table10[[#This Row],[مبيعات 91]] -> 403.835 | R196: =(Table10[[#This Row],[سعر 95]]-Table10[[#This Row],[شراء 95]])*Table10[[#This Row],[مبيعات 95]] -> 0 | S196: =(Table10[[#This Row],[سعر Diesel]]-Table10[[#This Row],[شراء Diesel]])*Table10[[#This Row],[مبيعات Diesel]] -> 89.62 | T196: =SUM(Table10[[#This Row],[أرباح 91]:[أرباح Diesel]]) -> 493.455 | U196: =Table10[[#This Row],[اجمالي الايراد]]*(15/115) -> 1719.157826 | V196: =Table10[[#This Row],[اجمالي الايراد]]-Table10[[#This Row],[ضريبة]] -> 11461.05217
B197: 2022-04-07 | C197: وردية ثانية | D197: 5266 | E197: 2.18 | F197: =Table10[[#This Row],[مبيعات 91]]*Table10[[#This Row],[سعر 91]] -> 11479.88 | I197: =Table10[[#This Row],[سعر 95]]*Table10[[#This Row],[مبيعات 95]] -> 0 | J197: 2384 | K197: 0.63 | L197: =Table10[[#This Row],[سعر Diesel]]*Table10[[#This Row],[مبيعات Diesel]] -> 1501.92 | M197: =Table10[[#This Row],[ايراد Diesel]]+Table10[[#This Row],[ايراد 95]]+Table10[[#This Row],[ايراد 91]] -> 12981.8 | N197: 2.095 | O197: 0.61 | P197: 0.61 | Q197: =(Table10[[#This Row],[سعر 91]]-Table10[[#This Row],[شراء 91]])*Table10[[#This Row],[مبيعات 91]] -> 447.61 | R197: =(Table10[[#This Row],[سعر 95]]-Table10[[#This Row],[شراء 95]])*Table10[[#This Row],[مبيعات 95]] -> 0 | S197: =(Table10[[#This Row],[سعر Diesel]]-Table10[[#This Row],[شراء Diesel]])*Table10[[#This Row],[مبيعات Diesel]] -> 47.68 | T197: =SUM(Table10[[#This Row],[أرباح 91]:[أرباح Diesel]]) -> 495.29 | U197: =Table10[[#This Row],[اجمالي الايراد]]*(15/115) -> 1693.278261 | V197: =Table10[[#This Row],[اجمالي الايراد]]-Table10[[#This Row],[ضريبة]] -> 11288.52174
B198: 2022-04-08 | C198: وردية أولى | D198: 3490 | E198: 2.18 | F198: =Table10[[#This Row],[مبيعات 91]]*Table10[[#This Row],[سعر 91]] -> 7608.2 | I198: =Table10[[#This Row],[سعر 95]]*Table10[[#This Row],[مبيعات 95]] -> 0 | J198: 1848 | K198: 0.63 | L198: =Table10[[#This Row],[سعر Diesel]]*Table10[[#This Row],[مبيعات Diesel]] -> 1164.24 | M198: =Table10[[#This Row],[ايراد Diesel]]+Table10[[#This Row],[ايراد 95]]+Table10[[#This Row],[ايراد 91]] -> 8772.44 | N198: 2.095 | O198: 0.61 | P198: 0.61 | Q198: =(Table10[[#This Row],[سعر 91]]-Table10[[#This Row],[شراء 91]])*Table10[[#This Row],[مبيعات 91]] -> 296.65 | R198: =(Table10[[#This Row],[سعر 95]]-Table10[[#This Row],[شراء 95]])*Table10[[#This Row],[مبيعات 95]] -> 0 | S198: =(Table10[[#This Row],[سعر Diesel]]-Table10[[#This Row],[شراء Diesel]])*Table10[[#This Row],[مبيعات Diesel]] -> 36.96 | T198: =SUM(Table10[[#This Row],[أرباح 91]:[أرباح Diesel]]) -> 333.61 | U198: =Table10[[#This Row],[اجمالي الايراد]]*(15/115) -> 1144.231304 | V198: =Table10[[#This Row],[اجمالي الايراد]]-Table10[[#This Row],[ضريبة]] -> 7628.208696
B199: 2022-04-08 | C199: وردية ثانية | D199: 4142 | E199: 2.18 | F199: =Table10[[#This Row],[مبيعات 91]]*Table10[[#This Row],[سعر 91]] -> 9029.56 | I199: =Table10[[#This Row],[سعر 95]]*Table10[[#This Row],[مبيعات 95]] -> 0 | J199: 3806 | K199: 0.63 | L199: =Table10[[#This Row],[سعر Diesel]]*Table10[[#This Row],[مبيعات Diesel]] -> 2397.78 | M199: =Table10[[#This Row],[ايراد Diesel]]+Table10[[#This Row],[ايراد 95]]+Table10[[#This Row],[ايراد 91]] -> 11427.34 | N199: 2.095 | O199: 0.61 | P199: 0.61 | Q199: =(Table10[[#This Row],[سعر 91]]-Table10[[#This Row],[شراء 91]])*Table10[[#This Row],[مبيعات 91]] -> 352.07 | R199: =(Table10[[#This Row],[سعر 95]]-Table10[[#This Row],[شراء 95]])*Table10[[#This Row],[مبيعات 95]] -> 0 | S199: =(Table10[[#This Row],[سعر Diesel]]-Table10[[#This Row],[شراء Diesel]])*Table10[[#This Row],[مبيعات Diesel]] -> 76.12 | T199: =SUM(Table10[[#This Row],[أرباح 91]:[أرباح Diesel]]) -> 428.19 | U199: =Table10[[#This Row],[اجمالي الايراد]]*(15/115) -> 1490.522609 | V199: =Table10[[#This Row],[اجمالي الايراد]]-Table10[[#This Row],[ضريبة]] -> 9936.817391
B200: 2022-04-09 | C200: وردية أولى | D200: 3562 | E200: 2.18 | F200: =Table10[[#This Row],[مبيعات 91]]*Table10[[#This Row],[سعر 91]] -> 7765.16 | I200: =Table10[[#This Row],[سعر 95]]*Table10[[#This Row],[مبيعات 95]] -> 0 | J200: 4504 | K200: 0.63 | L200: =Table10[[#This Row],[سعر Diesel]]*Table10[[#This Row],[مبيعات Diesel]] -> 2837.52 | M200: =Table10[[#This Row],[ايراد Diesel]]+Table10[[#This Row],[ايراد 95]]+Table10[[#This Row],[ايراد 91]] -> 10602.68 | N200: 2.095 | O200: 0.61 | P200: 0.61 | Q200: =(Table10[[#This Row],[سعر 91]]-Table10[[#This Row],[شراء 91]])*Table10[[#This Row],[مبيعات 91]] -> 302.77 | R200: =(Table10[[#This Row],[سعر 95]]-Table10[[#This Row],[شراء 95]])*Table10[[#This Row],[مبيعات 95]] -> 0 | S200: =(Table10[[#This Row],[سعر Diesel]]-Table10[[#This Row],[شراء Diesel]])*Table10[[#This Row],[مبيعات Diesel]] -> 90.08 | T200: =SUM(Table10[[#This Row],[أرباح 91]:[أرباح Diesel]]) -> 392.85 | U200: =Table10[[#This Row],[اجمالي الايراد]]*(15/115) -> 1382.958261 | V200: =Table10[[#This Row],[اجمالي الايراد]]-Table10[[#This Row],[ضريبة]] -> 9219.721739
B201: 2022-04-09 | C201: وردية ثانية | D201: 5282 | E201: 2.18 | F201: =Table10[[#This Row],[مبيعات 91]]*Table10[[#This Row],[سعر 91]] -> 11514.76 | I201: =Table10[[#This Row],[سعر 95]]*Table10[[#This Row],[مبيعات 95]] -> 0 | J201: 4965 | K201: 0.63 | L201: =Table10[[#This Row],[سعر Diesel]]*Table10[[#This Row],[مبيعات Diesel]] -> 3127.95 | M201: =Table10[[#This Row],[ايراد Diesel]]+Table10[[#This Row],[ايراد 95]]+Table10[[#This Row],[ايراد 91]] -> 14642.71 | N201: 2.095 | O201: 0.61 | P201: 0.61 | Q201: =(Table10[[#This Row],[سعر 91]]-Table10[[#This Row],[شراء 91]])*Table10[[#This Row],[مبيعات 91]] -> 448.97 | R201: =(Table10[[#This Row],[سعر 95]]-Table10[[#This Row],[شراء 95]])*Table10[[#This Row],[مبيعات 95]] -> 0 | S201: =(Table10[[#This Row],[سعر Diesel]]-Table10[[#This Row],[شراء Diesel]])*Table10[[#This Row],[مبيعات Diesel]] -> 99.3 | T201: =SUM(Table10[[#This Row],[أرباح 91]:[أرباح Diesel]]) -> 548.27 | U201: =Table10[[#This Row],[اجمالي الايراد]]*(15/115) -> 1909.918696 | V201: =Table10[[#This Row],[اجمالي الايراد]]-Table10[[#This Row],[ضريبة]] -> 12732.7913
... 255 more rows

Sheet Special (hidden)
D1: تقرير فترة خاص
B2: من تاريخ | C2: 2022-01-01 | E2: حتى تاريخ | G2: 2022-04-01
C3: ســـــــــــــــــــــــــولار | E3: بنــــــــــــــــــزين 80 | G3: بنـــــــــــــــــــــــــــزين 92
B4: بيـــــــــــــــــــان | C4: سولار 1 | D4: سولار 2 | E4: بنزين 80 /1 | F4: بنزين 80 /2 | G4: بنزين 92 /1 | H4: بنزين 92 /2
B5: فتح الاستوك كنترول | C5: =OFFSET(Dis!$B$4,MATCH($C$2,Dis!$B$5:$B$458,0)-1,2,,) -> 601059 | D5: =OFFSET(Dis!$B$4,MATCH($C$2,Dis!$B$5:$B$458,0)-1,3,,) -> 348132 | E5: =OFFSET('91'!$B$4,MATCH($C$2,'91'!$B$5:$B$458,0)-1,2,,) -> 756577 | F5: =OFFSET('91'!$B$4,MATCH($C$2,'91'!$B$5:$B$458,0)-1,3,,) -> 540777 | G5: =OFFSET('95'!$B$4,MATCH($C$2,'95'!$B$5:$B$16,0)-1,2,,) ->  | H5: =OFFSET('95'!$B$4,MATCH($C$2,'95'!$B$5:$B$16,0)-1,3,,) -> 
B6: غلق الاستوك كنترول | C6: =OFFSET(Dis!$B$4,MATCH($G$2,Dis!$B$5:$B$458,0)+1,2,,) -> 979473 | D6: =OFFSET(Dis!$B$4,MATCH($G$2,Dis!$B$5:$B$458,0)+1,3,,) -> 629089 | E6: =OFFSET('91'!$B$4,MATCH($G$2,'91'!$B$5:$B$458,0)+1,2,,) -> 141507 | F6: =OFFSET('91'!$B$4,MATCH($G$2,'91'!$B$5:$B$458,0)+1,3,,) -> 718889 | G6: =OFFSET('95'!$B$4,MATCH($G$2,'95'!$B$5:$B$16,0)+1,2,,) ->  | H6: =OFFSET('95'!$B$4,MATCH($G$2,'95'!$B$5:$B$16,0)+1,3,,) -> 
B7: المنصرف | C7: =C6-C5 -> 378414 | D7: 280957 | E7: -615070 | F7: 178112
B8: اجمالي المنصرف | C8: =C7+D7 -> 659371 | E8: =E7+F7 -> -436958 | G8: =G7+H7 -> 
B9: رصيد فتح التنكات | C9: =OFFSET(Tanks!$M$4,MATCH($C$2&"وردية أولى",Tanks!$M$4:$M$4,0)-2,2,,) ->  | D9: =OFFSET(Tanks!$M$4,MATCH($C$2&"وردية أولى",Tanks!$M$4:$M$4,0),2,,) ->  | E9: =OFFSET(Tanks!$M$4,MATCH($C$2&"وردية أولى",Tanks!$M$4:$M$4,0)-2,1,,) ->  | F9: =OFFSET(Tanks!$M$4,MATCH($C$2&"وردية أولى",Tanks!$M$4:$M$4,0),2,,) ->  | G9: =OFFSET(Tanks!$M$4,MATCH($C$2&"وردية أولى",Tanks!$M$4:$M$4,0)-2,3,,) ->  | H9: =OFFSET(Tanks!$M$4,MATCH($C$2&"وردية أولى",Tanks!$M$4:$M$4,0),2,,) -> 
B10: الوارد خلال المدة | C10: =SUMIFS(Tanks!$G$4:$G$463,Tanks!$B$4:$B$463,">="&$C$2,Tanks!$B$4:$B$463,"<="&$G$2) -> 0 | E10: =SUMIFS(Tanks!E4:E463,Tanks!$B$4:$B$463,">="&$C$2,Tanks!$B$4:$B$463,"<="&$G$2) -> 839843 | G10: =SUMIFS(Tanks!I4:I463,Tanks!$B$4:$B$463,">="&$C$2,Tanks!$B$4:$B$463,"<="&$G$2) -> 682911
B11: رصيد غلق التنكات | C11: =OFFSET(Tanks!$M$4,MATCH($G$2&"وردية ثانية",Tanks!$M$4:$M$4,0),2,,) ->  | D11: =OFFSET(Tanks!$M$4,MATCH($C$2&"وردية أولى",Tanks!$M$4:$M$4,0),2,,) ->  | E11: =OFFSET(Tanks!$M$4,MATCH($G$2&"وردية ثانية",Tanks!$M$4:$M$4,0),1,,) ->  | F11: =OFFSET(Tanks!$M$4,MATCH($C$2&"وردية أولى",Tanks!$M$4:$M$4,0),2,,) ->  | G11: =OFFSET(Tanks!$M$4,MATCH($G$2&"وردية ثانية",Tanks!$M$4:$M$4,0),3,,) ->  | H11: =OFFSET(Tanks!$M$4,MATCH($C$2&"وردية أولى",Tanks!$M$4:$M$4,0),2,,) -> 

Sheet Tanks
B1: حـــركة الخـــزانات | N1: الأرصدة اليومية للخزانات
B2: رصيد الخزانات | D2: 91 | E2: 42595.8 | F2: 95 | G2: 0 | H2: ديزل | I2: 38314
A3: رقم# | B3: التاريخ | C3: الوردية | D3: مبيعات 91 | E3: إضافة 91 | F3: مبيعات 95 | G3: إضافة 95 | H3: مبيعات Deseil | I3: إضافة Deseil | J3: رقم فاتورة | K3: المورد | N3: رصيد آخر 91 | O3: رصيد آخر 95 | P3: رصيد آخر des | Q3: زيادة(عجز)
J4: رصيد اول | N4: 15679 | P4: 6504
B5: 2022-01-01 | C5: وردية أولى | D5: 4024 | H5: 7240 | I5: 20000 | N5: 11655 | P5: 19264
B6: 2022-01-01 | C6: وردية ثانية | D6: 3887 | H6: 3007 | N6: 7768 | P6: 16257
B7: 2022-01-02 | C7: وردية أولى | D7: 4753 | H7: 3960 | N7: 3015 | P7: 12297
B8: 2022-01-02 | C8: وردية ثانية | D8: 3756 | E8: 20000 | H8: 2479 | I8: 20000 | N8: 19259 | P8: 29818
B9: 2022-01-03 | C9: وردية أولى | D9: 4418 | H9: 7279 | N9: 14841 | P9: 22539
B10: 2022-01-03 | C10: وردية ثانية | D10: 5699 | H10: 2368 | N10: 9142 | P10: 20171
B11: 2022-01-04 | C11: وردية أولى | D11: 4419 | E11: 20000 | H11: 3057 | I11: 20000 | N11: 24723 | P11: 37114
B12: 2022-01-04 | C12: وردية ثانية | D12: 5208 | H12: 3196 | N12: 19515 | P12: 33918
B13: 2022-01-05 | C13: وردية أولى | D13: 4565 | H13: 7688 | N13: 14950 | P13: 26230
B14: 2022-01-05 | C14: وردية ثانية | D14: 5355 | H14: 2442 | N14: 9595 | P14: 23788
B15: 2022-01-06 | C15: وردية أولى | D15: 4525 | H15: 3215 | N15: 5070 | P15: 20573
B16: 2022-01-06 | C16: وردية ثانية | D16: 5502 | E16: 20000 | H16: 2461 | N16: 19568 | P16: 18112
B17: 2022-01-07 | C17: وردية أولى | D17: 2844 | H17: 896 | N17: 16724 | P17: 17216
B18: 2022-01-07 | C18: وردية ثانية | D18: 5050 | H18: 2181 | I18: 20000 | N18: 11674 | P18: 35035
B19: 2022-01-08 | C19: وردية أولى | D19: 4359 | H19: 6894 | N19: 7315 | P19: 28141
B20: 2022-01-08 | C20: وردية ثانية | D20: 4440 | H20: 2983 | N20: 2875 | P20: 25158
B21: 2022-01-09 | C21: وردية أولى | D21: 3672 | E21: 20000 | H21: 4053 | N21: 19203 | P21: 21105
B22: 2022-01-09 | C22: وردية ثانية | D22: 5132 | H22: 2618 | N22: 14071 | P22: 18487
B23: 2022-01-10 | C23: وردية أولى | D23: 3658 | H23: 7226 | N23: 10413 | P23: 11261
B24: 2022-01-10 | C24: وردية ثانية | D24: 4619 | E24: 20000 | H24: 2558 | N24: 25794 | P24: 8703
B25: 2022-01-11 | C25: وردية أولى | D25: 3868 | H25: 2165 | I25: 20000 | N25: 21926 | P25: 26538
B26: 2022-01-11 | C26: وردية ثانية | D26: 4903 | H26: 3520 | N26: 17023 | P26: 23018
B27: 2022-01-12 | C27: وردية أولى | D27: 4799 | H27: 7661 | N27: 12224 | P27: 15357
B28: 2022-01-12 | C28: وردية ثانية | D28: 4750 | H28: 2512 | N28: 7474 | P28: 12845
B29: 2022-01-13 | C29: وردية أولى | D29: 4485 | E29: 20000 | H29: 3868 | N29: 22989 | P29: 8977
B30: 2022-01-13 | C30: وردية ثانية | D30: 5432 | H30: 2536 | N30: 17557 | P30: 6441
B31: 2022-01-14 | C31: وردية أولى | D31: 1807 | H31: 665 | I31: 20000 | N31: 15750 | P31: 25776
B32: 2022-01-14 | C32: وردية ثانية | D32: 3621 | H32: 2122 | N32: 12129 | P32: 23654
B33: 2022-01-15 | C33: وردية أولى | D33: 3582 | H33: 2089 | N33: 8547 | P33: 21565
B34: 2022-01-15 | C34: وردية ثانية | D34: 4726 | E34: 20000 | H34: 7492 | N34: 23821 | P34: 14073
B35: 2022-01-16 | C35: وردية أولى | D35: 4161 | H35: 4211 | I35: 20000 | N35: 19660 | P35: 29862
B36: 2022-11-16 | C36: وردية ثانية | D36: 5237 | H36: 2671 | N36: 14423 | P36: 27191
B37: 2022-01-17 | C37: وردية أولى | D37: 4756 | E37: 20000 | H37: 5921 | N37: 29667 | P37: 21270
B38: 2022-01-17 | C38: وردية ثانية | D38: 4794 | H38: 2398 | N38: 24873 | P38: 18872
B39: 2022-01-18 | C39: وردية أولى | D39: 5415 | H39: 3973 | N39: 19458 | P39: 14899
B40: 2022-01-18 | C40: وردية ثانية | D40: 4834 | H40: 2209 | N40: 14624 | P40: 12690
B41: 2022-01-19 | C41: وردية أولى | D41: 4237 | H41: 7286 | N41: 10387 | P41: 5404
B42: 2022-01-19 | C42: وردية ثانية | D42: 4458 | E42: 20000 | H42: 2711 | I42: 20000 | N42: 25929 | P42: 22693
B43: 2022-01-20 | C43: وردية أولى | D43: 4872 | H43: 3659 | N43: 21057 | P43: 19034
B44: 2022-01-20 | C44: وردية ثانية | D44: 5623 | H44: 2264 | N44: 15434 | P44: 16770
B45: 2022-01-21 | C45: وردية أولى | D45: 2170 | H45: 1496 | N45: 13264 | P45: 15274
B46: 2022-01-21 | C46: وردية ثانية | D46: 4494 | H46: 2869 | N46: 8770 | P46: 12405
B47: 2022-01-22 | C47: وردية أولى | D47: 4814 | E47: 20000 | H47: 6714 | I47: 20000 | N47: 23956 | P47: 25691
B48: 2022-01-22 | C48: وردية ثانية | D48: 5198 | H48: 3081 | N48: 18758 | P48: 22610
B49: 2022-01-23 | C49: وردية أولى | D49: 5364 | H49: 2934 | N49: 13394 | P49: 19676
B50: 2022-01-23 | C50: وردية ثانية | D50: 5808 | H50: 3115 | N50: 7586 | P50: 16561
B51: 2022-01-24 | C51: وردية أولى | D51: 4789 | H51: 3762 | N51: 2797 | P51: 12799
B52: 2022-01-24 | C52: وردية ثانية | D52: 4693 | E52: 20000 | H52: 2207 | N52: 18104 | P52: 10592
B53: 2022-01-25 | C53: وردية أولى | D53: 4257 | H53: 3196 | N53: 13847 | P53: 7396
B54: 2022-01-25 | C54: وردية ثانية | D54: 4609 | H54: 2002 | I54: 20000 | N54: 9238 | P54: 25394
B55: 2022-01-26 | C55: وردية أولى | D55: 3554 | H55: 5054 | N55: 5684 | P55: 20340
B56: 2022-01-26 | C56: وردية ثانية | D56: 4811 | E56: 20000 | H56: 2926 | N56: 20873 | P56: 17414
B57: 2022-01-27 | C57: وردية أولى | D57: 5623 | H57: 7392 | N57: 15250 | P57: 10022
B58: 2022-01-27 | C58: وردية ثانية | D58: 5508 | H58: 2550 | N58: 9742 | P58: 7472
B59: 2022-01-28 | C59: وردية أولى | D59: 3082 | H59: 1145 | N59: 6660 | P59: 6327
B60: 2022-01-28 | C60: وردية ثانية | D60: 2895 | E60: 20000 | H60: 1665 | I60: 20000 | N60: 23765 | P60: 24662
B61: 2022-01-29 | C61: وردية أولى | D61: 3997 | H61: 6730 | N61: 19768 | P61: 17932
B62: 2022-01-29 | C62: وردية ثانية | D62: 4916 | H62: 2781 | N62: 14852 | P62: 15151
B63: 2022-01-30 | C63: وردية أولى | D63: 5432 | H63: 3095 | N63: 9420 | P63: 12056
B64: 2022-01-30 | C64: وردية ثانية | D64: 3616 | E64: 20000 | H64: 2017 | I64: 20000 | N64: 25804 | P64: 30039
B65: 2022-01-31 | C65: وردية أولى | D65: 6205 | H65: 4350 | N65: 19599 | P65: 25689
B66: 2022-01-31 | C66: وردية ثانية | D66: 4719 | H66: 2315 | N66: 14880 | P66: 23374
B67: 2022-02-01 | C67: وردية أولى | D67: 3976 | H67: 5906 | N67: 10904 | P67: 17468
B68: 2022-02-01 | C68: وردية ثانية | D68: 4824 | E68: 20000 | H68: 2343 | N68: 26080 | P68: 15125
B69: 2022-02-02 | C69: وردية أولى | D69: 4339 | H69: 6998 | N69: 21741 | P69: 8127
B70: 2022-02-02 | C70: وردية ثانية | D70: 4800 | H70: 3683 | I70: 20000 | N70: 16941 | P70: 24444
B71: 2022-02-03 | C71: وردية أولى | D71: 4811 | H71: 2846 | N71: 12130 | P71: 21598
B72: 2022-02-03 | C72: وردية ثانية | D72: 4932 | H72: 1911 | N72: 7198 | P72: 19687
B73: 2022-02-04 | C73: وردية أولى | D73: 2096 | H73: 846 | N73: 5102 | P73: 18841
B74: 2022-02-04 | C74: وردية ثانية | D74: 3922 | E74: 20000 | H74: 2495 | N74: 21180 | P74: 16346
B75: 2022-02-05 | C75: وردية أولى | D75: 3721 | H75: 5931 | I75: 20000 | N75: 17459 | P75: 30415
B76: 2022-02-05 | C76: وردية أولى | D76: 4953 | H76: 3005 | N76: 12506 | P76: 27410
B77: 2022-02-06 | C77: وردية أولى | D77: 4281 | H77: 3229 | N77: 8225 | P77: 24181
B78: 2022-02-06 | C78: وردية ثانية | D78: 4749 | E78: 20000 | H78: 2969 | N78: 23476 | P78: 21212
B79: 2022-02-07 | C79: وردية أولى | D79: 5523 | H79: 5008 | N79: 17953 | P79: 16204
B80: 2022-02-07 | C80: وردية ثانية | D80: 4975 | H80: 2521 | N80: 12978 | P80: 13683
B81: 2022-02-08 | C81: وردية أولى | D81: 4375 | E81: 20000 | H81: 4843 | N81: 28603 | P81: 8840
B82: 2022-02-08 | C82: وردية ثانية | D82: 4564 | H82: 3007 | I82: 20000 | N82: 24039 | P82: 25833
B83: 2022-02-09 | C83: وردية أولى | D83: 4946 | H83: 6785 | N83: 19093 | P83: 19048
B84: 2022-02-09 | C84: وردية ثانية | D84: 4893 | H84: 2694 | N84: 14200 | P84: 16354
B85: 2022-02-10 | C85: وردية أولى | D85: 4824 | E85: 20000 | H85: 3336 | N85: 29376 | P85: 13018
B86: 2022-02-10 | C86: وردية ثانية | D86: 6221 | H86: 2600 | N86: 23155 | P86: 10418
B87: 2022-02-11 | C87: وردية أولى | D87: 2497 | H87: 862 | I87: 20000 | N87: 20658 | P87: 29556
B88: 2022-02-11 | C88: وردية ثانية | D88: 3971 | H88: 2145 | N88: 16687 | P88: 27411
B89: 2022-02-12 | C89: وردية أولى | D89: 4475 | E89: 20000 | H89: 5469 | N89: 32212 | P89: 21942
B90: 2022-02-12 | C90: وردية أولى | D90: 4798 | H90: 2778 | N90: 27414 | P90: 19164
B91: 2022-02-13 | C91: وردية أولى | D91: 4993 | H91: 4948 | N91: 22421 | P91: 14216
B92: 2022-02-13 | C92: وردية ثانية | D92: 4576 | H92: 2568 | N92: 17845 | P92: 11648
B93: 2022-02-14 | C93: وردية أولى | D93: 4810 | H93: 6099 | N93: 13035 | P93: 5549
B94: 2022-02-14 | C94: وردية ثانية | D94: 4626 | H94: 1900 | I94: 20000 | N94: 8409 | P94: 23649
B95: 2022-02-15 | C95: وردية أولى | D95: 4164 | E95: 20000 | H95: 3510 | N95: 24245 | P95: 20139
B96: 2022-02-15 | C96: وردية ثانية | D96: 4593 | H96: 2651 | N96: 19652 | P96: 17488
B97: 2022-02-16 | C97: وردية أولى | D97: 4271 | H97: 4605 | I97: 20000 | N97: 15381 | P97: 32883
B98: 2022-02-16 | C98: وردية ثانية | D98: 4079 | H98: 2355 | N98: 11302 | P98: 30528
B99: 2022-02-17 | C99: وردية أولى | D99: 4445 | E99: 20000 | H99: 4344 | N99: 26857 | P99: 26184
B100: 2022-02-17 | C100: وردية ثانية | D100: 4823 | H100: 2556 | N100: 22034 | P100: 23628
B101: 2022-02-18 | C101: وردية أولى | D101: 2452 | H101: 1255 | N101: 19582 | P101: 22373
B102: 2022-02-18 | C102: وردية ثانية | D102: 4203 | H102: 1831 | N102: 15379 | P102: 20542
B103: 2022-02-19 | C103: وردية أولى | D103: 2740 | E103: 19920 | H103: 3655 | N103: 32559 | P103: 16887
B104: 2022-02-19 | C104: وردية أولى | D104: 4480 | H104: 2159 | N104: 28079 | P104: 14728
B105: 2022-02-20 | C105: وردية أولى | D105: 4112 | H105: 3834 | I105: 20000 | N105: 23967 | P105: 30894
B106: 2022-02-20 | C106: وردية ثانية | D106: 4763 | H106: 2215 | N106: 19204 | P106: 28679
B107: 2022-02-21 | C107: وردية أولى | D107: 4821 | E107: 20000 | H107: 6006 | N107: 34383 | P107: 22673
B108: 2022-02-21 | C108: وردية ثانية | D108: 5066 | H108: 2400 | N108: 29317 | P108: 20273
B109: 2022-02-22 | C109: وردية أولى | D109: 4578 | H109: 2764 | N109: 24739 | P109: 17509
B110: 2022-02-22 | C110: وردية ثانية | D110: 4674 | H110: 2406 | N110: 20065 | P110: 15103
B111: 2022-02-23 | C111: وردية أولى | D111: 4331 | H111: 3787 | I111: 20000 | J111: ديزل اليوم 23/ 2 | N111: 15734 | P111: 31316
B112: 2022-02-23 | C112: وردية ثانية | D112: 5073 | H112: 2445 | N112: 10661 | P112: 28871
B113: 2022-02-24 | C113: وردية أولى | D113: 4387 | E113: 20000 | H113: 5434 | J113: قيمة رد بنزين 24/ 2 | N113: 26274 | P113: 23437
B114: 2022-02-24 | C114: وردية ثانية | D114: 5034 | H114: 2363 | N114: 21240 | P114: 21074
B115: 2022-02-25 | C115: وردية أولى | D115: 2317 | H115: 411 | N115: 18923 | P115: 20663
B116: 2022-02-25 | C116: وردية ثانية | D116: 4252 | H116: 2199 | N116: 14671 | P116: 18464
B117: 2022-02-26 | C117: وردية أولى | D117: 4370 | E117: 19923 | H117: 2540 | J117: 34740 | N117: 30224 | P117: 15924
B118: 2022-02-26 | C118: وردية ثانية | D118: 5177 | H118: 2134 | N118: 25047 | P118: 13790
B119: 2022-02-27 | C119: وردية أولى | D119: 5751 | H119: 5283 | I119: 20000 | N119: 19296 | P119: 28507
B120: 2022-02-27 | C120: وردية ثانية | D120: 4576 | H120: 2795 | N120: 14720 | P120: 25712
B121: 2022-02-28 | C121: وردية أولى | D121: 4416 | E121: 20000 | H121: 4715 | N121: 30304 | P121: 20997
B122: 2022-02-28 | C122: وردية ثانية | D122: 4822 | H122: 2181 | N122: 25482 | P122: 18816
B123: 2022-03-01 | C123: وردية أولى | D123: 4873 | H123: 6551 | I123: 20000 | N123: 20609 | P123: 32265
B124: 2022-03-01 | C124: وردية ثانية | D124: 5094 | H124: 3634 | N124: 15515 | P124: 28631
B125: 2022-03-02 | C125: وردية أولى | D125: 4357 | E125: 20000 | H125: 3061 | N125: 31158 | P125: 25570
B126: 2022-03-02 | C126: وردية ثانية | D126: 4882 | H126: 3055 | N126: 26276 | P126: 22515
B127: 2022-03-03 | C127: وردية أولى | D127: 5387 | H127: 4418 | N127: 20889 | P127: 18097
B128: 2022-03-03 | C128: وردية ثانية | D128: 4786 | H128: 2484 | N128: 16103 | P128: 15613
B129: 2022-03-04 | C129: وردية أولى | D129: 2286 | H129: 958 | N129: 13817 | P129: 14655
B130: 2022-03-04 | C130: وردية ثانية | D130: 4865 | E130: 20000 | H130: 2481 | I130: 20000 | N130: 28952 | P130: 32174
B131: 2022-03-05 | C131: وردية أولى | D131: 4268 | H131: 7334 | N131: 24684 | P131: 24840
B132: 2022-03-05 | C132: وردية ثانية | D132: 5213 | H132: 3004 | N132: 19471 | P132: 21836
B133: 2022-03-06 | C133: وردية أولى | D133: 5027 | H133: 5723 | N133: 14444 | P133: 16113
B134: 2022-03-06 | C134: وردية ثانية | D134: 4713 | H134: 4104 | N134: 9731 | P134: 12009
B135: 2022-03-07 | C135: وردية أولى | D135: 3830 | E135: 20000 | H135: 2726 | I135: 19958 | N135: 25901 | P135: 29241
B136: 2022-03-07 | C136: وردية ثانية | D136: 5167 | H136: 2446 | N136: 20734 | P136: 26795
B137: 2022-03-08 | C137: وردية أولى | D137: 4482 | H137: 5242 | N137: 16252 | P137: 21553
B138: 2022-03-08 | C138: وردية ثانية | D138: 5211 | H138: 2877 | N138: 11041 | P138: 18676
B139: 2022-03-09 | C139: وردية أولى | D139: 4841 | H139: 5233 | N139: 6200 | P139: 13443
B140: 2022-03-09 | C140: وردية ثانية | D140: 5001 | E140: 20000 | H140: 3220 | N140: 21199 | P140: 10223
B141: 2022-03-10 | C141: وردية أولى | D141: 4495 | H141: 4897 | I141: 23000 | N141: 16704 | P141: 28326
B142: 2022-03-10 | C142: وردية ثانية | D142: 5526 | H142: 2411 | N142: 11178 | P142: 25915
B143: 2022-03-11 | C143: وردية أولى | D143: 2621 | E143: 20000 | H143: 998 | N143: 28557 | P143: 24917
B144: 2022-03-11 | C144: وردية ثانية | D144: 5878 | H144: 1974 | N144: 22679 | P144: 22943
B145: 2022-03-12 | C145: وردية أولى | D145: 3862 | H145: 2812 | N145: 18817 | P145: 20131
B146: 2022-03-12 | C146: وردية ثانية | D146: 4635 | H146: 4947 | N146: 14182 | P146: 15184
B147: 2022-03-13 | C147: وردية أولى | D147: 4326 | E147: 20000 | H147: 4973 | N147: 29856 | P147: 10211
B148: 2022-03-13 | C148: وردية ثانية | D148: 5116 | H148: 2616 | I148: 20000 | N148: 24740 | P148: 27595
B149: 2022-03-14 | C149: وردية أولى | D149: 4966 | H149: 6362 | N149: 19774 | P149: 21233
B150: 2022-03-14 | C150: وردية ثانية | D150: 4679 | H150: 3784 | N150: 15095 | P150: 17449
B151: 2022-03-15 | C151: وردية أولى | D151: 5137 | E151: 20000 | H151: 6107 | N151: 29958 | P151: 11342
B152: 2022-03-15 | C152: وردية ثانية | D152: 5000 | H152: 2553 | N152: 24958 | P152: 8789
B153: 2022-03-16 | C153: وردية أولى | D153: 5409 | H153: 7076 | N153: 19549 | P153: 1713
B154: 2022-03-16 | C154: وردية أولى | D154: 4552 | H154: 3538 | I154: 19971 | N154: 14997 | P154: 18146
B155: 2022-03-17 | C155: وردية أولى | D155: 4998 | H155: 5503 | N155: 9999 | P155: 12643
B156: 2022-03-17 | C156: وردية ثانية | D156: 5077 | E156: 20000 | H156: 3104 | N156: 24922 | P156: 9539
B157: 2022-03-18 | C157: وردية أولى | D157: 2760 | H157: 1211 | N157: 22162 | P157: 8328
B158: 2022-03-18 | C158: وردية ثانية | D158: 4887 | H158: 2502 | I158: 19982 | N158: 17275 | P158: 25808
B159: 2022-03-19 | C159: وردية أولى | D159: 4509 | E159: 20000 | H159: 2781 | N159: 32766 | P159: 23027
B160: 2022-03-19 | C160: وردية ثانية | D160: 5079 | H160: 2876 | N160: 27687 | P160: 20151
B161: 2022-03-20 | C161: وردية أولى | D161: 5263 | H161: 6539 | N161: 22424 | P161: 13612
B162: 2022-03-20 | C162: وردية ثانية | D162: 5378 | H162: 2779 | N162: 17046 | P162: 10833
B163: 2022-03-21 | C163: وردية أولى | D163: 3610 | H163: 7213 | I163: 20000 | N163: 13436 | P163: 23620
B164: 2022-03-21 | C164: وردية ثانية | D164: 4611 | E164: 20000 | H164: 2390 | N164: 28825 | P164: 21230
B165: 2022-03-22 | C165: وردية أولى | D165: 5637 | H165: 5572 | N165: 23188 | P165: 15658
B166: 2022-03-22 | C166: وردية ثانية | D166: 4290 | H166: 2005 | I166: 20000 | N166: 18898 | P166: 33653
B167: 2022-03-23 | C167: وردية أولى | D167: 5186 | E167: 20000 | H167: 5731 | N167: 33712 | P167: 27922
B168: 2022-03-23 | C168: وردية ثانية | D168: 4962 | H168: 3167 | N168: 28750 | P168: 24755
B169: 2022-03-24 | C169: وردية أولى | D169: 5277 | H169: 4688 | N169: 23473 | P169: 20067
B170: 2022-03-24 | C170: وردية ثانية | D170: 5292 | H170: 2794 | N170: 18181 | P170: 17273
B171: 2022-03-25 | C171: وردية أولى | D171: 2331 | H171: 1461 | N171: 15850 | P171: 15812
B172: 2022-03-25 | C172: وردية ثانية | D172: 5472 | H172: 2010 | N172: 10378 | P172: 13802
B173: 2022-03-26 | C173: وردية أولى | D173: 4168 | E173: 20000 | H173: 7439 | I173: 20000 | J173: 41900 | N173: 26210 | P173: 26363
B174: 2022-03-26 | C174: وردية ثانية | D174: 5764 | H174: 4620 | N174: 20446 | P174: 21743
B175: 2022-03-27 | C175: وردية أولى | D175: 6059 | H175: 6911 | J175: 54100 | N175: 14387 | P175: 14832
B176: 2022-03-27 | C176: وردية ثانية | D176: 5515 | E176: 20000 | H176: 2068 | N176: 28872 | P176: 12764
B177: 2022-03-28 | C177: وردية أولى | D177: 4894 | H177: 5305 | I177: 20000 | N177: 23978 | P177: 27459
B178: 2022-03-28 | C178: وردية ثانية | D178: 5328 | H178: 3383 | N178: 18650 | P178: 24076
B179: 2022-03-29 | C179: وردية أولى | D179: 5703 | H179: 5111 | N179: 12947 | P179: 18965
B180: 2022-03-29 | C180: وردية ثانية | D180: 5859 | H180: 2497 | N180: 7088 | P180: 16468
B181: 2022-03-30 | C181: وردية أولى | D181: 4639 | E181: 20000 | H181: 6338 | N181: 22449 | P181: 10130
B182: 2022-03-30 | C182: وردية ثانية | D182: 4928 | H182: 3335 | I182: 20000 | N182: 17521 | P182: 26795
B183: 2022-03-31 | C183: وردية أولى | D183: 5755 | H183: 6912 | N183: 11766 | P183: 19883
B184: 2022-03-31 | C184: وردية ثانية | D184: 4902 | H184: 2899 | N184: 6864 | P184: 16984
B185: 2022-04-01 | C185: وردية أولى | D185: 3319 | E185: 20000 | H185: 1478 | I185: 20000 | N185: 23545 | P185: 35506
B186: 2022-04-01 | C186: وردية ثانية | D186: 5969 | H186: 5462 | N186: 17576 | P186: 30044
B187: 2022-04-02 | C187: وردية أولى | D187: 3904 | H187: 4996 | N187: 13672 | P187: 25048
B188: 2022-04-02 | C188: وردية ثانية | D188: 4896 | H188: 3864 | N188: 8776 | P188: 21184
B189: 2022-04-03 | C189: وردية أولى | D189: 5218 | E189: 20000 | H189: 6395 | N189: 23558 | P189: 14789
B190: 2022-04-03 | C190: وردية ثانية | D190: 4698 | H190: 2922 | N190: 18860 | P190: 11867
B191: 2022-04-04 | C191: وردية أولى | D191: 4380 | H191: 6029 | I191: 20000 | N191: 14480 | P191: 25838
B192: 2022-04-04 | C192: وردية ثانية | D192: 4395 | H192: 3948 | N192: 10085 | P192: 21890
B193: 2022-04-05 | C193: وردية أولى | D193: 4693 | E193: 20000 | H193: 5461 | J193: إيداع بتاريخ 4/4 بنزين اليوم | N193: 25392 | P193: 16429
B194: 2022-04-05 | C194: وردية ثانية | D194: 5127 | H194: 3500 | N194: 20265 | P194: 12929
B195: 2022-04-06 | C195: وردية أولى | D195: 3968 | H195: 7400 | I195: 20000 | N195: 16297 | P195: 25529
B196: 2022-04-06 | C196: وردية ثانية | D196: 5607 | H196: 3876 | N196: 10690 | P196: 21653
B197: 2022-04-07 | C197: وردية أولى | D197: 4751 | E197: 20000 | H197: 4481 | N197: 25939 | P197: 17172
B198: 2022-04-07 | C198: وردية ثانية | D198: 5266 | H198: 2384 | N198: 20673 | P198: 14788
B199: 2022-04-08 | C199: وردية أولى | D199: 3490 | H199: 1848 | N199: 17183 | P199: 12940
B200: 2022-04-08 | C200: وردية ثانية | D200: 4142 | H200: 3806 | J200: قيمة بنزين غدا 9 / 4 | N200: 13041 | P200: 9134
... 263 more rows

Sheet Vender
G1: إجمــــــــالــــي التوريدات
B2: =COLUMN() -> 2 | C2: =COLUMN() -> 3 | N2: =SUM(J4:J459)-SUM(Table1[نقدية]+Table1[إيداع]) -> 165064.503
B3: رقم# | C3: الوردية | D3: التاريخ | E3: نقدية | F3: إيداع | G3: إضافة 91 | H3: إضافة 95 | I3: إضافة ديزل | J3: قمية الوارد | K3: الضريبة | L3: رقم الفاتورة | M3: اسم المورد | N3: بيـــــــان
B4: =ROW()-3 -> 1 | C4: وردية أولى | E4: 0 | F4: 0 | G4: 0 | H4: 0 | I4: 0 | J4: =I4+H4+G4 -> 0 | M4: موسسة محمد العجلان | N4: رصيد اول
B5: 2 | C5: وردية ثانية | D5: 2022-01-01 | F5: 12150 | G5: 0 | I5: 12150 | J5: 12150 | K5: =J5*15/115 -> 1584.782609 | M5: موسسة محمد العجلان
B6: 3 | C6: وردية أولى | D6: 2022-01-01 | G6: 0 | I6: 0 | J6: 0 | K6: 0 | M6: موسسة محمد العجلان
B7: 4 | C7: وردية ثانية | D7: 2022-01-02 | G7: 0 | I7: 0 | J7: 0 | K7: 0 | M7: موسسة محمد العجلان
B8: 5 | C8: وردية ثانية | D8: 2022-01-02 | F8: 54100 | G8: 41900 | I8: 12150 | J8: 54050 | K8: 7050 | M8: موسسة محمد العجلان
B9: 6 | C9: وردية أولى | D9: 2022-01-03 | G9: 0 | I9: 0 | J9: 0 | K9: 0 | M9: موسسة محمد العجلان
B10: 7 | C10: وردية ثانية | D10: 2022-01-03 | G10: 0 | I10: 0 | J10: 0 | K10: 0 | M10: موسسة محمد العجلان
B11: 8 | C11: وردية أولى | D11: 2022-01-04 | F11: 54050 | G11: 41900 | I11: 12150 | J11: 54050 | K11: 7050 | M11: موسسة محمد العجلان
B12: 9 | C12: وردية أولى | D12: 2022-01-04 | G12: 0 | I12: 0 | J12: 0 | K12: 0 | M12: موسسة محمد العجلان
B13: 10 | C13: وردية أولى | D13: 2022-01-05 | G13: 0 | I13: 0 | J13: 0 | K13: 0 | M13: موسسة محمد العجلان
B14: 11 | C14: وردية ثانية | D14: 2022-01-05 | G14: 0 | I14: 0 | J14: 0 | K14: 0 | M14: موسسة محمد العجلان
B15: 12 | C15: وردية أولى | D15: 2022-01-06 | G15: 0 | I15: 0 | J15: 0 | K15: 0 | M15: موسسة محمد العجلان
B16: 13 | C16: وردية أولى | D16: 2022-01-06 | F16: 41900 | G16: 41900 | I16: 0 | J16: 41900 | K16: 5465.217391 | M16: موسسة محمد العجلان
B17: 14 | C17: وردية ثانية | D17: 2022-01-07 | G17: 0 | I17: 0 | J17: 0 | K17: 0 | M17: موسسة محمد العجلان
B18: 15 | C18: وردية أولى | D18: 2022-01-07 | G18: 0 | I18: 12150 | J18: 12150 | K18: 1584.782609 | M18: موسسة محمد العجلان
B19: 16 | C19: وردية ثانية | D19: 2022-01-08 | G19: 0 | I19: 0 | J19: 0 | K19: 0 | M19: موسسة محمد العجلان
B20: 17 | C20: وردية ثانية | D20: 2022-01-08 | G20: 0 | I20: 0 | J20: 0 | K20: 0 | M20: موسسة محمد العجلان
B21: 18 | C21: وردية ثانية | D21: 2022-01-09 | F21: 54050 | G21: 41900 | I21: 0 | J21: 41900 | K21: 5465.217391 | M21: موسسة محمد العجلان
B22: 19 | C22: وردية ثانية | D22: 2022-01-09 | G22: 0 | I22: 0 | J22: 0 | K22: 0 | M22: موسسة محمد العجلان
B23: 20 | C23: وردية ثانية | D23: 2022-01-10 | G23: 0 | I23: 0 | J23: 0 | K23: 0 | M23: موسسة محمد العجلان
B24: 21 | C24: وردية ثانية | D24: 2022-01-10 | G24: 41900 | I24: 0 | J24: 41900 | K24: 5465.217391 | M24: موسسة محمد العجلان
B25: 22 | C25: وردية ثانية | D25: 2022-01-11 | F25: 54050 | G25: 0 | I25: 12150 | J25: 12150 | K25: 1584.782609 | M25: موسسة محمد العجلان
B26: 23 | C26: وردية ثانية | D26: 2022-01-11 | G26: 0 | I26: 0 | J26: 0 | K26: 0 | M26: موسسة محمد العجلان
B27: 24 | C27: وردية أولى | D27: 2022-01-12 | G27: 0 | I27: 0 | J27: 0 | K27: 0 | M27: موسسة محمد العجلان
B28: 25 | C28: وردية ثانية | D28: 2022-01-12 | G28: 0 | I28: 0 | J28: 0 | K28: 0 | M28: موسسة محمد العجلان
B29: 26 | C29: وردية ثانية | D29: 2022-01-13 | F29: 41900 | G29: 41900 | I29: 0 | J29: 41900 | K29: 5465.217391 | M29: موسسة محمد العجلان
B30: 27 | C30: وردية أولى | D30: 2022-01-13 | G30: 0 | I30: 0 | J30: 0 | K30: 0 | M30: موسسة محمد العجلان
B31: 28 | C31: وردية أولى | D31: 2022-01-14 | G31: 0 | I31: 12195 | J31: 12195 | K31: 1590.652174 | M31: موسسة محمد العجلان
B32: 29 | C32: وردية أولى | D32: 2022-01-14 | G32: 0 | I32: 0 | J32: 0 | K32: 0 | M32: موسسة محمد العجلان
B33: 30 | C33: وردية ثانية | D33: 2022-01-15 | G33: 0 | I33: 0 | J33: 0 | K33: 0 | M33: موسسة محمد العجلان
B34: 31 | C34: وردية ثانية | D34: 2022-01-15 | G34: 41900 | I34: 0 | J34: 41900 | K34: 5465.217391 | M34: موسسة محمد العجلان
B35: 32 | C35: وردية أولى | D35: 2022-01-16 | F35: 54095 | G35: 0 | I35: 12195 | J35: 12195 | K35: 1590.652174 | M35: موسسة محمد العجلان
B36: =ROW()-3 -> 33 | C36: وردية أولى | D36: 2022-11-16 | G36: 0 | I36: 0 | J36: 0 | K36: 0 | M36: موسسة محمد العجلان
B37: 34 | C37: وردية أولى | D37: 2022-01-17 | F37: 54095 | G37: 41900 | I37: 0 | J37: 41900 | K37: 5465.217391 | M37: موسسة محمد العجلان
B38: 35 | C38: وردية أولى | D38: 2022-01-17 | G38: 0 | I38: 0 | J38: 0 | K38: 0 | M38: موسسة محمد العجلان
B39: 36 | C39: وردية أولى | D39: 2022-01-18 | G39: 0 | I39: 0 | J39: 0 | K39: 0 | M39: موسسة محمد العجلان
B40: 37 | C40: وردية أولى | D40: 2022-01-18 | G40: 0 | I40: 0 | J40: 0 | K40: 0 | M40: موسسة محمد العجلان
B41: 38 | C41: وردية أولى | D41: 2022-01-19 | G41: 0 | I41: 0 | J41: 0 | K41: 0 | M41: موسسة محمد العجلان
B42: 39 | C42: وردية أولى | D42: 2022-01-19 | G42: 41900 | I42: 12195 | J42: 54095 | K42: 7055.869565 | M42: موسسة محمد العجلان
B43: 40 | C43: وردية أولى | D43: 2022-01-20 | G43: 0 | I43: 0 | J43: 0 | K43: 0 | M43: موسسة محمد العجلان
B44: 41 | C44: وردية أولى | D44: 2022-01-20 | F44: 54095 | G44: 0 | I44: 0 | J44: 0 | K44: 0 | M44: موسسة محمد العجلان
B45: 42 | C45: وردية أولى | D45: 2022-01-21 | G45: 0 | I45: 0 | J45: 0 | K45: 0 | M45: موسسة محمد العجلان
B46: 43 | C46: وردية أولى | D46: 2022-01-21 | G46: 0 | I46: 0 | J46: 0 | K46: 0 | M46: موسسة محمد العجلان
B47: 44 | C47: وردية أولى | D47: 2022-01-22 | G47: 41900 | I47: 12195 | J47: 54095 | K47: 7055.869565 | M47: موسسة محمد العجلان
B48: 45 | C48: وردية ثانية | D48: 2022-01-22 | G48: 0 | I48: 0 | J48: 0 | K48: 0 | M48: موسسة محمد العجلان
B49: 46 | C49: وردية أولى | D49: 2022-01-23 | F49: 54100 | G49: 0 | I49: 0 | J49: 0 | K49: 0 | M49: موسسة محمد العجلان
B50: 47 | C50: وردية أولى | D50: 2022-01-23 | G50: 0 | I50: 0 | J50: 0 | K50: 0 | M50: موسسة محمد العجلان
B51: 48 | C51: وردية ثانية | D51: 2022-01-24 | G51: 0 | I51: 0 | J51: 0 | K51: 0 | M51: موسسة محمد العجلان
B52: 49 | C52: وردية أولى | D52: 2022-01-24 | G52: 41900 | I52: 0 | J52: 41900 | K52: 5465.217391 | M52: موسسة محمد العجلان
B53: 50 | C53: وردية أولى | D53: 2022-01-25 | G53: 0 | I53: 0 | J53: 0 | K53: 0 | M53: موسسة محمد العجلان
B54: 51 | C54: وردية أولى | D54: 2022-01-25 | G54: 0 | I54: 12195 | J54: 12195 | K54: 1590.652174 | M54: موسسة محمد العجلان
B55: 52 | C55: وردية ثانية | D55: 2022-01-26 | G55: 0 | I55: 0 | J55: 0 | K55: 0 | M55: موسسة محمد العجلان
B56: 53 | C56: وردية أولى | D56: 2022-01-26 | G56: 41900 | I56: 0 | J56: 41900 | K56: 5465.217391 | M56: موسسة محمد العجلان
B57: 54 | C57: وردية ثانية | D57: 2022-01-27 | F57: 95990 | G57: 0 | I57: 0 | J57: 0 | K57: 0 | M57: موسسة محمد العجلان
B58: 55 | C58: وردية أولى | D58: 2022-01-27 | G58: 0 | I58: 0 | J58: 0 | K58: 0 | M58: موسسة محمد العجلان
B59: 56 | C59: وردية ثانية | D59: 2022-01-28 | G59: 0 | I59: 0 | J59: 0 | K59: 0 | M59: موسسة محمد العجلان
B60: 57 | C60: وردية أولى | D60: 2022-01-28 | G60: 41900 | I60: 12195 | J60: 54095 | K60: 7055.869565 | M60: موسسة محمد العجلان
B61: 58 | C61: وردية أولى | D61: 2022-01-29 | F61: 54095 | G61: 0 | I61: 0 | J61: 0 | K61: 0 | M61: موسسة محمد العجلان
B62: 59 | C62: وردية ثانية | D62: 2022-01-29 | G62: 0 | I62: 0 | J62: 0 | K62: 0 | M62: موسسة محمد العجلان
B63: 60 | D63: 2022-01-30 | G63: 0 | I63: 0 | J63: 0 | K63: 0 | M63: موسسة محمد العجلان
B64: 61 | D64: 2022-01-30 | G64: 41900 | I64: 12195 | J64: 54095 | K64: 7055.869565 | M64: موسسة محمد العجلان
B65: 62 | D65: 2022-01-31 | F65: 54095 | G65: 0 | I65: 0 | J65: 0 | K65: 0 | M65: موسسة محمد العجلان
B66: 63 | D66: 2022-01-31 | G66: 0 | I66: 0 | J66: 0 | K66: 0 | M66: موسسة محمد العجلان
B67: =ROW()-3 -> 64 | D67: 2022-02-01 | G67: 0 | I67: 0 | J67: 0 | K67: 0 | M67: موسسة محمد العجلان
B68: =ROW()-3 -> 65 | D68: 2022-02-01 | G68: 41900 | I68: 0 | J68: =I68+H68+G68 -> 41900 | K68: 5465.217391 | L68: 150 | M68: موسسة محمد العجلان
B69: =ROW()-3 -> 66 | D69: 2022-02-02 | F69: 41900 | G69: 0 | I69: 0 | J69: 0 | K69: =J69*15/115 -> 0 | L69: 15 | M69: موسسة محمد العجلان
B70: 67 | D70: 2022-02-02 | G70: 0 | I70: 12195 | J70: 12195 | K70: 1590.652174 | M70: موسسة محمد العجلان
B71: =ROW()-3 -> 68 | C71: 3 | D71: 2022-02-03 | G71: 0 | I71: 0 | J71: 0 | K71: 0 | L71: 0 | M71: موسسة محمد العجلان
B72: =ROW()-3 -> 69 | C72: 1900-01-03 | D72: 2022-02-03 | G72: 0 | I72: 0 | J72: 0 | K72: 0 | L72: 0 | M72: موسسة محمد العجلان
B73: =ROW()-3 -> 70 | C73: وردية أولى | D73: 2022-02-04 | G73: 0 | I73: 0 | J73: 0 | K73: 0 | M73: موسسة محمد العجلان
B74: =ROW()-3 -> 71 | C74: وردية أولى | D74: 2022-02-04 | F74: 54095 | G74: 41900 | I74: 0 | J74: 41900 | K74: 5465.217391 | L74: 100 | M74: موسسة محمد العجلان
B75: =ROW()-3 -> 72 | D75: 2022-02-05 | G75: 0 | I75: 12200 | J75: 12200 | K75: 1591.304348 | M75: موسسة محمد العجلان
B76: 73 | D76: 2022-02-05 | G76: 0 | I76: 0 | J76: 0 | K76: 0 | M76: موسسة محمد العجلان
B77: 74 | D77: 2022-02-06 | G77: 0 | I77: 0 | J77: 0 | K77: 0 | M77: موسسة محمد العجلان
B78: 75 | D78: 2022-02-06 | G78: 41900 | I78: 0 | J78: 41900 | K78: 5465.217391 | M78: موسسة محمد العجلان
B79: 76 | D79: 2022-02-07 | F79: 54100 | G79: 0 | I79: 0 | J79: 0 | K79: 0 | M79: موسسة محمد العجلان
B80: 77 | D80: 2022-02-07 | G80: 0 | I80: 0 | J80: 0 | K80: 0 | M80: موسسة محمد العجلان
B81: 78 | D81: 2022-02-08 | G81: 41900 | I81: 0 | J81: 41900 | K81: 5465.217391 | M81: موسسة محمد العجلان
B82: 79 | D82: 2022-02-08 | G82: 0 | I82: 12200 | J82: 12200 | K82: 1591.304348 | M82: موسسة محمد العجلان
B83: 80 | D83: 2022-02-09 | F83: 54100 | G83: 0 | I83: 0 | J83: 0 | K83: 0 | M83: موسسة محمد العجلان
B84: 81 | D84: 2022-02-09 | G84: 0 | I84: 0 | J84: 0 | K84: 0 | M84: موسسة محمد العجلان
B85: 82 | D85: 2022-02-10 | G85: 41900 | I85: 0 | J85: 41900 | K85: 5465.217391 | M85: موسسة محمد العجلان
B86: 83 | D86: 2022-02-10 | G86: 0 | I86: 0 | J86: 0 | K86: 0 | M86: موسسة محمد العجلان
B87: 84 | D87: 2022-02-11 | F87: 54100 | G87: 0 | I87: 12200 | J87: 12200 | K87: 1591.304348 | M87: موسسة محمد العجلان
B88: 85 | D88: 2022-02-11 | G88: 41900 | I88: 0 | J88: 41900 | K88: 5465.217391 | M88: موسسة محمد العجلان
B89: 86 | D89: 2022-02-12 | F89: 41900 | G89: 0 | I89: 0 | J89: 0 | K89: 0 | M89: موسسة محمد العجلان
B90: 87 | D90: 2022-02-12 | G90: 0 | I90: 0 | J90: 0 | K90: 0 | M90: موسسة محمد العجلان
B91: 88 | D91: 2022-02-13 | G91: 0 | I91: 0 | J91: 0 | K91: 0 | M91: موسسة محمد العجلان
B92: 89 | D92: 2022-02-13 | G92: 0 | I92: 0 | J92: 0 | K92: 0 | M92: موسسة محمد العجلان
B93: 90 | D93: 2022-02-14 | G93: 0 | I93: 0 | J93: 0 | K93: 0 | M93: موسسة محمد العجلان
B94: 91 | D94: 2022-02-14 | G94: 0 | I94: 12200 | J94: 12200 | K94: 1591.304348 | M94: موسسة محمد العجلان
B95: 92 | D95: 2022-02-15 | G95: 41900 | I95: 0 | J95: 41900 | K95: 5465.217391 | M95: موسسة محمد العجلان
B96: 93 | D96: 2022-02-15 | F96: 54100 | G96: 0 | I96: 0 | J96: 0 | K96: 0 | M96: موسسة محمد العجلان
B97: 94 | D97: 2022-02-16 | G97: 0 | I97: 12200 | J97: 12200 | K97: 1591.304348 | M97: موسسة محمد العجلان
B98: 95 | D98: 2022-02-16 | G98: 0 | I98: 0 | J98: 0 | K98: 0 | M98: موسسة محمد العجلان
B99: 96 | D99: 2022-02-17 | F99: 54100 | G99: 41900 | I99: 0 | J99: 41900 | K99: 5465.217391 | M99: موسسة محمد العجلان
B100: 97 | D100: 2022-02-17 | G100: 0 | I100: 0 | J100: 0 | K100: 0 | M100: موسسة محمد العجلان
B101: 98 | D101: 2022-02-18 | G101: 0 | I101: 0 | J101: 0 | K101: 0 | M101: موسسة محمد العجلان
B102: 99 | D102: 2022-02-18 | G102: 0 | I102: 0 | J102: 0 | K102: 0 | M102: موسسة محمد العجلان
B103: 100 | D103: 2022-02-19 | G103: 41900 | I103: 0 | J103: 41900 | K103: 5465.217391 | M103: موسسة محمد العجلان
B104: 101 | D104: 2022-02-19 | G104: 0 | I104: 0 | J104: 0 | K104: 0 | M104: موسسة محمد العجلان
B105: 102 | D105: 2022-02-20 | F105: 54100 | G105: 0 | I105: 12200 | J105: 12200 | K105: 1591.304348 | M105: موسسة محمد العجلان
B106: 103 | D106: 2022-02-20 | G106: 0 | I106: 0 | J106: 0 | K106: 0 | M106: موسسة محمد العجلان
B107: 104 | D107: 2022-02-21 | G107: 41900 | I107: 0 | J107: 41900 | K107: 5465.217391 | M107: موسسة محمد العجلان
B108: 105 | D108: 2022-02-21 | G108: 0 | I108: 0 | J108: 0 | K108: 0 | M108: موسسة محمد العجلان
B109: 106 | D109: 2022-02-22 | G109: 0 | I109: 0 | J109: 0 | K109: 0 | M109: موسسة محمد العجلان
B110: 107 | D110: 2022-02-22 | G110: 0 | I110: 0 | J110: 0 | K110: 0 | M110: موسسة محمد العجلان
B111: 108 | D111: 2022-02-23 | G111: 0 | I111: 12200 | J111: 12200 | K111: 1591.304348 | M111: موسسة محمد العجلان | N111: ديزل اليوم 23/ 2
B112: 109 | D112: 2022-02-23 | E112: 12200 | G112: 0 | I112: 0 | J112: 0 | K112: 0 | M112: موسسة محمد العجلان
B113: 110 | D113: 2022-02-24 | E113: 41900 | G113: 41900 | I113: 0 | J113: 41900 | K113: 5465.217391 | M113: موسسة محمد العجلان | N113: قيمة رد بنزين 24/ 2
B114: 111 | D114: 2022-02-24 | G114: 0 | I114: 0 | J114: 0 | K114: 0 | M114: موسسة محمد العجلان
B115: 112 | D115: 2022-02-25 | F115: 41900 | G115: 0 | I115: 0 | J115: 0 | K115: 0 | M115: موسسة محمد العجلان
B116: 113 | D116: 2022-02-25 | G116: 0 | I116: 0 | J116: 0 | K116: 0 | M116: موسسة محمد العجلان
B117: 114 | D117: 2022-02-26 | F117: 41738 | G117: 41738.685 | I117: 0 | J117: 41738.685 | K117: 5444.176304 | M117: موسسة محمد العجلان | N117: 34740
B118: 115 | D118: 2022-02-26 | G118: 0 | I118: 0 | J118: 0 | K118: 0 | M118: موسسة محمد العجلان
B119: 116 | D119: 2022-02-27 | E119: 12200 | G119: 0 | I119: 12200 | J119: 12200 | K119: 1591.304348 | M119: موسسة محمد العجلان
B120: 117 | D120: 2022-02-27 | G120: 0 | I120: 0 | J120: 0 | K120: 0 | M120: موسسة محمد العجلان
B121: 118 | D121: 2022-02-28 | F121: 41900 | G121: 41900 | I121: 0 | J121: 41900 | K121: 5465.217391 | M121: موسسة محمد العجلان
B122: 119 | D122: 2022-02-28 | G122: 0 | I122: 0 | J122: 0 | K122: 0 | M122: موسسة محمد العجلان
B123: 120 | D123: 2022-03-01 | E123: 12000 | G123: 0 | I123: 12200 | J123: 12200 | K123: 1591.304348 | M123: موسسة محمد العجلان
B124: 121 | D124: 2022-03-01 | G124: 0 | I124: 0 | J124: 0 | K124: 0 | M124: موسسة محمد العجلان
B125: 122 | D125: 2022-03-02 | G125: 0 | I125: 0 | J125: 0 | K125: 0 | M125: موسسة محمد العجلان
B126: 123 | D126: 2022-03-02 | G126: 0 | I126: 0 | J126: 0 | K126: 0 | M126: موسسة محمد العجلان
B127: 124 | D127: 2022-03-03 | G127: 0 | I127: 0 | J127: 0 | K127: 0 | M127: موسسة محمد العجلان
B128: 125 | D128: 2022-03-03 | G128: 0 | I128: 0 | J128: 0 | K128: 0 | M128: موسسة محمد العجلان
B129: 126 | D129: 2022-03-04 | G129: 0 | I129: 0 | J129: 0 | K129: 0 | M129: موسسة محمد العجلان
B130: 127 | D130: 2022-03-04 | G130: 0 | I130: 0 | J130: 0 | K130: 0 | M130: موسسة محمد العجلان
B131: 128 | D131: 2022-03-05 | G131: 0 | I131: 0 | J131: 0 | K131: 0 | M131: موسسة محمد العجلان
B132: 129 | D132: 2022-03-05 | G132: 0 | I132: 0 | J132: =I132+H132+G132 -> 0 | K132: 0 | M132: موسسة محمد العجلان
B133: 130 | D133: 2022-03-06 | G133: 0 | I133: 0 | J133: 0 | K133: =J133*15/115 -> 0 | M133: موسسة محمد العجلان
B134: 131 | D134: 2022-03-06 | G134: 0 | I134: 0 | J134: 0 | K134: 0 | M134: موسسة محمد العجلان
B135: 132 | D135: 2022-03-07 | F135: 54074 | G135: 41900 | I135: 12174.38 | J135: 54074.38 | K135: 7053.18 | M135: موسسة محمد العجلان
B136: 133 | D136: 2022-03-07 | G136: 0 | I136: 0 | J136: 0 | K136: 0 | M136: موسسة محمد العجلان
B137: 134 | D137: 2022-03-08 | G137: 0 | I137: 0 | J137: 0 | K137: 0 | M137: موسسة محمد العجلان
B138: 135 | D138: 2022-03-08 | G138: 0 | I138: 0 | J138: 0 | K138: 0 | M138: موسسة محمد العجلان
B139: =ROW()-3 -> 136 | D139: 2022-03-09 | G139: 0 | I139: 0 | J139: 0 | K139: 0 | M139: موسسة محمد العجلان
B140: 137 | D140: 2022-03-09 | F140: 54100 | G140: 41900 | I140: 0 | J140: 41900 | K140: 5465.217391 | M140: موسسة محمد العجلان
B141: 138 | D141: 2022-03-10 | G141: 0 | I141: 12200 | J141: 12200 | K141: 1591.304348 | M141: موسسة محمد العجلان
B142: 139 | D142: 2022-03-10 | G142: 0 | I142: 0 | J142: 0 | K142: 0 | M142: موسسة محمد العجلان
B143: 140 | D143: 2022-03-11 | G143: 41900 | I143: 0 | J143: 41900 | K143: 5465.217391 | M143: موسسة محمد العجلان
B144: 141 | D144: 2022-03-11 | G144: 0 | I144: 0 | J144: 0 | K144: 0 | M144: موسسة محمد العجلان
B145: 142 | D145: 2022-03-12 | G145: 0 | I145: 0 | J145: 0 | K145: 0 | M145: موسسة محمد العجلان
B146: 143 | D146: 2022-03-12 | G146: 0 | I146: 0 | J146: 0 | K146: 0 | M146: موسسة محمد العجلان
B147: 144 | D147: 2022-03-13 | E147: 83800 | G147: 41900 | I147: 0 | J147: 41900 | K147: 5465.217391 | M147: موسسة محمد العجلان
B148: 145 | D148: 2022-03-13 | G148: 0 | I148: 12200 | J148: 12200 | K148: 1591.304348 | M148: موسسة محمد العجلان
B149: 146 | D149: 2022-03-14 | G149: 0 | I149: 0 | J149: 0 | K149: 0 | M149: موسسة محمد العجلان
B150: 147 | D150: 2022-03-14 | G150: 0 | I150: 0 | J150: 0 | K150: 0 | M150: موسسة محمد العجلان
B151: 148 | D151: 2022-03-15 | G151: 41900 | I151: 0 | J151: 41900 | K151: 5465.217391 | M151: موسسة محمد العجلان
B152: 149 | D152: 2022-03-15 | G152: 0 | I152: 0 | J152: 0 | K152: 0 | M152: موسسة محمد العجلان
B153: 150 | D153: 2022-03-16 | G153: 0 | I153: 0 | J153: 0 | K153: 0 | M153: موسسة محمد العجلان
B154: 151 | D154: 2022-03-16 | F154: 54100 | G154: 0 | I154: 12182.31 | J154: 12182.31 | K154: 1588.996957 | M154: موسسة محمد العجلان
B155: 152 | D155: 2022-03-17 | G155: 0 | I155: 0 | J155: 0 | K155: 0 | M155: موسسة محمد العجلان
B156: 153 | D156: 2022-03-17 | G156: 0 | I156: 0 | J156: 0 | K156: 0 | M156: موسسة محمد العجلان
B157: 154 | D157: 2022-03-18 | G157: 0 | I157: 0 | J157: 0 | K157: 0 | M157: موسسة محمد العجلان
B158: 155 | D158: 2022-03-18 | G158: 0 | I158: 12189.02 | J158: 12189.02 | K158: 1589.872174 | M158: موسسة محمد العجلان
B159: 156 | D159: 2022-03-19 | F159: 54100 | G159: 41900 | I159: 0 | J159: 41900 | K159: 5465.217391 | M159: موسسة محمد العجلان
B160: 157 | D160: 2022-03-19 | G160: 0 | I160: 0 | J160: 0 | K160: 0 | M160: موسسة محمد العجلان
B161: 158 | D161: 2022-03-20 | G161: 0 | I161: 0 | J161: 0 | K161: 0 | M161: موسسة محمد العجلان
B162: 159 | D162: 2022-03-20 | G162: 0 | I162: 0 | J162: 0 | K162: 0 | M162: موسسة محمد العجلان
B163: 160 | D163: 2022-03-21 | G163: 0 | I163: 0 | J163: 0 | K163: 0 | M163: موسسة محمد العجلان
B164: 161 | D164: 2022-03-21 | G164: 0 | I164: 0 | J164: 0 | K164: 0 | M164: موسسة محمد العجلان
B165: 162 | D165: 2022-03-22 | G165: 0 | I165: 0 | J165: 0 | K165: 0 | M165: موسسة محمد العجلان
B166: 163 | D166: 2022-03-22 | G166: 0 | I166: 12200 | J166: 12200 | K166: 1591.304348 | M166: موسسة محمد العجلان
B167: 164 | D167: 2022-03-23 | F167: 54100 | G167: 41900 | I167: 0 | J167: 41900 | K167: 5465.217391 | M167: موسسة محمد العجلان
B168: 165 | D168: 2022-03-23 | G168: 0 | I168: 0 | J168: 0 | K168: 0 | M168: موسسة محمد العجلان
B169: 166 | D169: 2022-03-24 | G169: 0 | I169: 0 | J169: 0 | K169: 0 | M169: موسسة محمد العجلان
B170: 167 | D170: 2022-03-24 | G170: 0 | I170: 0 | J170: 0 | K170: 0 | M170: موسسة محمد العجلان
B171: 168 | D171: 2022-03-25 | G171: 0 | I171: 0 | J171: 0 | K171: 0 | M171: موسسة محمد العجلان
B172: 169 | D172: 2022-03-25 | G172: 0 | I172: 0 | J172: 0 | K172: 0 | M172: موسسة محمد العجلان
B173: 170 | D173: 2022-03-26 | F173: 41900 | G173: 41900 | I173: 12200 | J173: 54100 | K173: 7056.521739 | M173: موسسة محمد العجلان | N173: 41900
B174: 171 | D174: 2022-03-26 | G174: 0 | I174: 0 | J174: 0 | K174: 0 | M174: موسسة محمد العجلان
B175: 172 | D175: 2022-03-27 | E175: 54100 | G175: 0 | I175: 0 | J175: 0 | K175: 0 | M175: موسسة محمد العجلان | N175: 54100
B176: 173 | D176: 2022-03-27 | G176: 41900 | I176: 0 | J176: 41900 | K176: 5465.217391 | M176: موسسة محمد العجلان
B177: 174 | D177: 2022-03-28 | E177: 12200 | F177: 12372 | G177: 0 | I177: 12200 | J177: 12200 | K177: 1591.304348 | M177: موسسة محمد العجلان
B178: 175 | D178: 2022-03-28 | G178: 0 | I178: 0 | J178: 0 | K178: 0 | M178: موسسة محمد العجلان
B179: 176 | D179: 2022-03-29 | G179: 0 | I179: 0 | J179: 0 | K179: 0 | M179: موسسة محمد العجلان
B180: 177 | D180: 2022-03-29 | G180: 0 | I180: 0 | J180: 0 | K180: 0 | M180: موسسة محمد العجلان
B181: 178 | D181: 2022-03-30 | F181: 41900 | G181: 41900 | I181: 0 | J181: 41900 | K181: 5465.217391 | M181: موسسة محمد العجلان
B182: 179 | D182: 2022-03-30 | G182: 0 | I182: 12200 | J182: 12200 | K182: 1591.304348 | M182: موسسة محمد العجلان
B183: 180 | D183: 2022-03-31 | G183: 0 | I183: 0 | J183: 0 | K183: 0 | M183: موسسة محمد العجلان
B184: 181 | D184: 2022-03-31 | G184: 0 | I184: 0 | J184: 0 | K184: 0 | M184: موسسة محمد العجلان
B185: 182 | D185: 2022-04-01 | F185: 66300 | G185: 41900 | I185: 12200 | J185: 54100 | K185: 7056.521739 | M185: موسسة محمد العجلان
B186: 183 | D186: 2022-04-01 | G186: 0 | I186: 0 | J186: 0 | K186: 0 | M186: موسسة محمد العجلان
B187: 184 | D187: 2022-04-02 | G187: 0 | I187: 0 | J187: 0 | K187: 0 | M187: موسسة محمد العجلان
B188: 185 | D188: 2022-04-02 | F188: 41900 | G188: 0 | I188: 0 | J188: 0 | K188: 0 | M188: موسسة محمد العجلان
B189: 186 | D189: 2022-04-03 | G189: 41900 | I189: 0 | J189: 41900 | K189: 5465.217391 | M189: موسسة محمد العجلان
B190: 187 | D190: 2022-04-03 | F190: 12200 | G190: 0 | I190: 0 | J190: 0 | K190: 0 | M190: موسسة محمد العجلان
B191: 188 | D191: 2022-04-04 | G191: 0 | I191: 12200 | J191: 12200 | K191: 1591.304348 | M191: موسسة محمد العجلان
B192: 189 | D192: 2022-04-04 | F192: 41900 | G192: 0 | I192: 0 | J192: 0 | K192: 0 | M192: موسسة محمد العجلان
B193: 190 | D193: 2022-04-05 | G193: 41900 | I193: 0 | J193: 41900 | K193: 5465.217391 | M193: موسسة محمد العجلان | N193: إيداع بتاريخ 4/4 بنزين اليوم
B194: 191 | D194: 2022-04-05 | F194: 12200 | G194: 0 | I194: 0 | J194: 0 | K194: 0 | M194: موسسة محمد العجلان
B195: 192 | D195: 2022-04-06 | G195: 0 | I195: 12200 | J195: 12200 | K195: 1591.304348 | M195: موسسة محمد العجلان
B196: 193 | D196: 2022-04-06 | G196: 0 | I196: 0 | J196: =I196+H196+G196 -> 0 | K196: 0 | M196: موسسة محمد العجلان
B197: 194 | D197: 2022-04-07 | G197: 41900 | I197: 0 | J197: 41900 | K197: =J197*15/115 -> 5465.217391 | M197: موسسة محمد العجلان
B198: 195 | D198: 2022-04-07 | F198: 41900 | G198: 0 | I198: 0 | J198: 0 | K198: 0 | M198: موسسة محمد العجلان
B199: 196 | D199: 2022-04-08 | G199: 0 | I199: 0 | J199: 0 | K199: 0 | M199: موسسة محمد العجلان
B200: 197 | D200: 2022-04-08 | F200: 41900 | G200: 0 | I200: 0 | J200: 0 | K200: 0 | M200: موسسة محمد العجلان | N200: قيمة بنزين غدا 9 / 4
... 259 more rows

Sheet Cash
C1: حركة النقدية و البنك | H1: =Data!C2 -> محطة آبار للوقود
B2: الاجمـــــــــــالـــــــــــــي | D2: =SUBTOTAL(9,Table21[اجمالي الوردية]) -> 134562.87 | E2: =SUBTOTAL(9,Table21[نقدية]) -> 65961 | F2: =SUBTOTAL(9,Table21[عملاء]) -> 32020 | G2: =SUBTOTAL(9,Table21[بنك]) -> 24265 | H2: =SUBTOTAL(9,Table21[متبقي (عجز)]) -> -12316.87 | I2: =SUBTOTAL(9,Table21[المجموع]) -> 72481.7
B3: التاريخ | C3: الوردية | D3: اجمالي الوردية | E3: نقدية | F3: عملاء | G3: بنك | H3: متبقي (عجز) | I3: المجموع
B5: 2022-08-07 | C5: وردية أولى | D5: 12960.1 | E5: 7319 | F5: 3247 | G5: 2393 | H5: -1.1 | I5: =H5+G5+F5+F5 -> 8885.9
B6: 2022-08-08 | C6: وردية ثانية | D6: 18026.67 | E6: 8882 | F6: 4869 | G6: 4275 | H6: -0.67 | I6: 14012.33
B7: 2022-08-09 | C7: وردية أولى | D7: 14105.35 | E7: 6829 | F7: 4667 | G7: 2609 | H7: -0.35 | I7: 11942.65
B8: 2022-08-13 | C8: وردية ثانية | D8: 15146.83 | E8: 8071 | F8: 2621 | G8: 4454 | H8: -0.83 | I8: 9695.17
B9: 2022-08-14 | C9: وردية أولى | D9: 11918.83 | E9: 7047 | F9: 2623 | G9: 2248 | H9: -0.83 | I9: 7493.17
B10: 2022-08-14 | C10: وردية ثانية | D10: 17166.41 | E10: 8734 | F10: 5023 | G10: 3408 | H10: -1.41 | I10: 13452.59
B11: 2022-08-15 | C11: وردية أولى | D11: 16901.29 | E11: 9858 | F11: 4633 | G11: 2409 | H11: -1.29 | I11: 11673.71
B12: 2022-08-15 | C12: وردية ثانية | D12: 12228.58 | H12: -12228.58 | I12: -12228.58
B13: 2022-08-16 | C13: وردية أولى | D13: 10601.24 | E13: 5721 | F13: 2837 | G13: 1962 | H13: -81.24 | I13: 7554.76
B14: 2022-08-18 | C14: وردية أولى | D14: 5507.57 | E14: 3500 | F14: 1500 | G14: 507 | H14: -0.57

Sheet min
B1: حركة العجز والزيادة في الخزنات | E1: الصنف | F1: 91 | G1: 95 | H1: Dis
E2: الكمية | F2: =SUMIF(Table22[الصنف],"بنزين 91",Table22[الكمية]) -> -350 | G2: =SUMIF(Table22[الصنف],"بنزين 95",Table22[الكمية]) -> 0 | H2: =SUMIF(Table22[الصنف],"Diesel",Table22[الكمية]) -> -820
B3: الصــــــافـــــي | D3: =SUM(F3:H3) -> -1294.45 | E3: القيمة | F3: =SUMIF(Table22[الصنف],"بنزين 91",Table22[القيمة]) -> -733.25 | G3: =SUMIF(Table22[الصنف],"بنزين 95",Table22[القيمة]) -> 0 | H3: =SUMIF(Table22[الصنف],"Diesel",Table22[القيمة]) -> -561.2
B4: رقم | C4: التاريخ | D4: الحالة | E4: الصنف | F4: الكمية | G4: السعر | H4: القيمة
C6: 2022-08-08 | D6: زيادة | E6: Diesel | F6: 50 | G6: 0.61 | H6: 30.5
C7: 2022-08-08 | D7: زيادة | E7: Diesel | F7: 50 | G7: 0.61 | H7: 30.5
C8: 2022-08-08 | D8: عجز | E8: Diesel | F8: 50 | G8: 0.61 | H8: -30.5
C9: 2022-07-08 | D9: عجز | E9: Diesel | F9: -1000 | G9: 0.61 | H9: -610
C10: 2022-08-20 | D10: زيادة | E10: Diesel | F10: 30 | G10: 0.61 | H10: 18.3
C11: 2022-08-18 | D11: عجز | E11: بنزين 91 | F11: -150 | G11: 2.095 | H11: -314.25
C12: 2022-08-18 | D12: عجز | E12: بنزين 91 | F12: -200 | G12: 2.095 | H12: -419

Sheet EXPENSES
B1: إجمـــــــــالـــي المصروفات
B2: رقم العملية | C2: التاريخ | D2: رقم الفاتورة | E2: المبلغ | F2: المبلغ الكلي | G2: الضريبة | H2: اسم المورد | I2: الرقم الضريبي | J2: نوع المصروف | K2: بيــــــــــــــــــــــــــان
B3: =ROW()-2 -> 1 | C3: 2022-08-01 | E3: 40 | F3: 40 | J3: اكراميات | K3: اكرامية سائق التريلا
B4: 2 | C4: 2022-08-01 | E4: 450 | F4: 517.5 | G4: =F4*(15/115) -> 67.5 | H4: شركة الكهرباء | I4: 2156840121864 | J4: كهرباء و إنارة | K4: فاتورة شهر 7
B5: 3 | C5: 2022-08-18 | E5: 60 | J5: إكراميات | K5: اكراميات سواقين التريلا
B6: 4 | C6: 2022-08-20 | D6: 21325 | E6: 850 | F6: 977.5 | G6: =F6*(15/115) -> 127.5 | H6: شركة الكهرباء | I6: 131431218 | J6: كهرباء و إنارة | K6: فاتورة شهر 8
B7: 5 | C7: 2022-02-18 | E7: 50 | J7: إكراميات | K7: اكرامية سائقين
B8: 6 | C8: 2022-08-18 | D8: 123 | E8: 300 | F8: 345 | G8: =F8*(15/115) -> 45 | H8: مكتبة الفلاح | I8: 213243215332 | J8: مصروفات نثرية | K8: قيمة شراء اوراق طباعة

Sheet Safe
C1: اجمـــالـــــي المقبوضــات
B2: رقم العملية | C2: رقم السند | D2: التاريخ | E2: نوع السند | F2: المبلغ | G2: المستفيد | H2: نوع الدفع | I2: رقم الشيك | J2: تاريخ صرف | K2: البنك | L2: بيان
B3: =ROW()-2 -> 1 | C3: 1 | D3: 2022-08-01 | F3: 200 | G3: الكتكوت المرعب | H3: نقدي | L3: دفعه من الحساب
B4: =ROW()-2 -> 2 | C4: 2 | D4: 2022-08-19 | F4: 200 | G4: مطعم الاكل العجيب | H4: نقدي | L4: دفعه من الحساب
B5: =ROW()-2 -> 3 | D5: 2022-08-18 | E5: قبض | F5: 300 | G5: مطعم الاكل العجيب | H5: نقدي | L5: دفعه من الحساب

Sheet Sal
B1: تـقــرير مبيـــــعات عــن فــترة | Q1: مبيعات 91 | R1: مبيعات 95 | S1: مبيعات Diesel | T1: التاريخ | U1: التاريخ
C2: من تاريخ | D2: 2022-01-01 | E2: حتى تاريخ | F2: 2022-04-01 | Q2: >=1 | R2: >=1 | S2: >=1 | T2: >=44562 | U2: <=44757
B4: التاريخ | C4: الوردية | D4: مبيعات 91 | E4: مبيعات 95 | F4: مبيعات Diesel | G4: اجمالي اللترات | H4: اجمالي الايراد | T4: =D2 -> 44562 | U4: =F2 -> 44652
G5: =F5+E5+D5 -> 0
B6: 2022 / 01 / 01 | C6: مبيعات وردية أولى | D6: 4024 | F6: 7240 | G6: =F6+E6+D6 -> 11264 | H6: 13333.52
B7: 2022 / 01 / 01 | C7: مبيعات وردية ثانية | D7: 3887 | F7: 3007 | G7: =F7+E7+D7 -> 6894 | H7: 10368.07
B8: 2022 / 01 / 02 | C8: مبيعات وردية أولى | D8: 4753 | F8: 3960 | G8: 8713 | H8: 12856.34
B9: 2022 / 01 / 02 | C9: مبيعات وردية ثانية | D9: 3756 | F9: 2479 | G9: 6235 | H9: 9749.85
B10: 2022 / 01 / 03 | C10: مبيعات وردية أولى | D10: 4418 | F10: 7279 | G10: 11697 | H10: 14217.01
B11: 2022 / 01 / 03 | C11: مبيعات وردية ثانية | D11: 5699 | F11: 2368 | G11: 8067 | H11: 13915.66
B12: 2022 / 01 / 04 | C12: مبيعات وردية أولى | D12: 4419 | F12: 3057 | G12: 7476 | H12: 11559.33
B13: 2022 / 01 / 04 | C13: مبيعات وردية ثانية | D13: 5208 | F13: 3196 | G13: 8404 | H13: 13366.92
B14: 2022 / 01 / 05 | C14: مبيعات وردية أولى | D14: 4565 | F14: 7688 | G14: 12253 | H14: 14795.14
B15: 2022 / 01 / 05 | C15: مبيعات وردية ثانية | D15: 5355 | F15: 2442 | G15: 7797 | H15: 13212.36
B16: 2022 / 01 / 06 | C16: مبيعات وردية أولى | D16: 4525 | F16: 3215 | G16: 7740 | H16: 11889.95
B17: 2022 / 01 / 06 | C17: مبيعات وردية ثانية | D17: 5502 | F17: 2461 | G17: 7963 | H17: 13544.79
B18: 2022 / 01 / 07 | C18: مبيعات وردية أولى | D18: 2844 | F18: 896 | G18: 3740 | H18: 6764.4
B19: 2022 / 01 / 07 | C19: مبيعات وردية ثانية | D19: 5050 | F19: 2181 | G19: 7231 | H19: 12383.03
B20: 2022 / 01 / 08 | C20: مبيعات وردية أولى | D20: 4359 | F20: 6894 | G20: 11253 | H20: 13845.84
B21: 2022 / 01 / 08 | C21: مبيعات وردية ثانية | D21: 4440 | F21: 2983 | G21: 7423 | H21: 11558.49
B22: 2022 / 01 / 09 | C22: مبيعات وردية أولى | D22: 3672 | F22: 4053 | G22: 7725 | H22: 10558.35
B23: 2022 / 01 / 09 | C23: مبيعات وردية ثانية | D23: 5132 | F23: 2618 | G23: 7750 | H23: 12837.1
B24: 2022 / 01 / 10 | C24: مبيعات وردية أولى | D24: 3658 | F24: 7226 | G24: 10884 | H24: 12526.82
B25: 2022 / 01 / 10 | C25: مبيعات وردية ثانية | D25: 4619 | F25: 2558 | G25: 7177 | H25: 11680.96
B26: 2022 / 01 / 11 | C26: مبيعات وردية أولى | D26: 3868 | F26: 2165 | G26: 6033 | H26: 9796.19
B27: 2022 / 01 / 11 | C27: مبيعات وردية ثانية | D27: 4903 | F27: 3520 | G27: 8423 | H27: 12906.14
B28: 2022 / 01 / 12 | C28: مبيعات وردية أولى | D28: 4799 | F28: 7661 | G28: 12460 | H28: 15288.25
B29: 2022 / 01 / 12 | C29: مبيعات وردية ثانية | D29: 4750 | F29: 2512 | G29: 7262 | H29: 11937.56
B30: 2022 / 01 / 13 | C30: مبيعات وردية أولى | D30: 4485 | F30: 3868 | G30: 8353 | H30: 12214.14
B31: 2022 / 01 / 13 | C31: مبيعات وردية ثانية | D31: 5432 | F31: 2536 | G31: 7968 | H31: 13439.44
B32: 2022 / 01 / 14 | C32: مبيعات وردية أولى | D32: 1807 | F32: 665 | G32: 2472 | H32: 4358.21
B33: 2022 / 01 / 14 | C33: مبيعات وردية ثانية | D33: 3621 | F33: 2122 | G33: 5743 | H33: 9230.64
B34: 2022 / 01 / 15 | C34: مبيعات وردية أولى | D34: 3582 | F34: 2089 | G34: 5671 | H34: 9124.83
B35: 2022 / 01 / 15 | C35: مبيعات وردية ثانية | D35: 4726 | F35: 7492 | G35: 12218 | H35: 15022.64
B36: 2022 / 01 / 16 | C36: مبيعات وردية أولى | D36: 4161 | F36: 4211 | G36: 8372 | H36: 11723.91
B37: 2022 / 01 / 16 | C37: مبيعات وردية ثانية | D37: 5237 | F37: 2671 | G37: 7908 | H37: 13099.39
B38: 2022 / 01 / 17 | C38: مبيعات وردية أولى | D38: 4756 | F38: 5921 | G38: 10677 | H38: 14098.31
B39: 2022 / 01 / 17 | C39: مبيعات وردية ثانية | D39: 4794 | F39: 2398 | G39: =F39+E39+D39 -> 7192 | H39: 11961.66
B40: 2022 / 01 / 18 | C40: مبيعات وردية أولى | D40: 5415 | F40: 3973 | G40: 9388 | H40: 14307.69
B41: 2022 / 01 / 18 | C41: مبيعات وردية ثانية | D41: 4834 | F41: 2209 | G41: 7043 | H41: 11929.79
B42: 2022 / 01 / 19 | C42: مبيعات وردية أولى | D42: 4237 | F42: 7286 | G42: 11523 | H42: 13826.84
B43: 2022 / 01 / 19 | C43: مبيعات وردية ثانية | D43: 4458 | F43: 2711 | G43: 7169 | H43: 11426.37
B44: 2022 / 01 / 20 | C44: مبيعات وردية أولى | D44: 4872 | F44: 3659 | G44: 8531 | H44: 12926.13
B45: 2022 / 01 / 20 | C45: مبيعات وردية ثانية | D45: 5623 | F45: 2264 | G45: 7887 | H45: 13684.46
B46: 2022 / 01 / 21 | C46: مبيعات وردية أولى | D46: 2170 | F46: 1496 | G46: 3666 | H46: 5673.08
B47: 2022 / 01 / 21 | C47: مبيعات وردية ثانية | D47: 4494 | F47: 2869 | G47: 7363 | H47: 11604.39
B48: 2022 / 01 / 22 | C48: مبيعات وردية أولى | D48: 4814 | F48: 6714 | G48: 11528 | H48: 14724.34
B49: 2022 / 01 / 22 | C49: مبيعات وردية ثانية | D49: 5198 | F49: 3081 | G49: 8279 | H49: 13272.67
